Workbook

Sheet User's Guide (hidden)
B2: INTRODUCTION TO OSU ENTERPRISE BUDGET SOFTWARE
C3: By Damona Doye and Roger Sahs
B14: User's Guide Contents
B24: Overview
B33: Getting Started
B85: Your computer may have a few settings to adjust before the enterprise budgets will work properly.
B86: In order for the macros to operate, please review the following settings:
B87: 1. Click on Tools, Macro, and Security on the menu bar at the top of the page. (Note that you may
B88: use the Alt key with underlined letter to select an item from the menu.)
B89: You will have three choices; High, Medium and Low.
B90: 2. Click on the Medium option button and click OK.
B92: 1 | G92: 2
B148: Using the Menu Bar
B174: What are Comment Boxes
B179: Grain | C179: Reporting | D179: Yield | E179: Est. Harvest
B180: Sorghum | C180: District | D180: bu/acre | E180: Price ($/bu)
B181: Default | C181: State | D181: 47.73 | E181: 2.16
B182: Your Value
B184: Tips on viewing comments:
B191: If you are not able to view comment boxes, do the following:
B192: 1. Click on Tools, Options on the menu bar at the top of the page.
B194: 2. Next click on the tab labeled View. In the Comments section, choose Comment indicator only.
B195: Click OK.
B198: 1 | G198: 2
B213: Worksheet Data Entry
B241: Erasing Default Information
B248: Entering Percentages
B249: If you attempt to enter a percentage and rather than appearing as 5% for example, it reads 500%, do the following:
B250: 1. Click on Tools, Options on the menu bar at the top of the page.
B252: 2. Next click on the tab labeled Edit. Select the option box Enable automatic percent entry located
B253: on the right-side in the Settings section. Click OK.
B256: 1 | F256: 2 | G256: 2
B270: Printing Reports
B271: Summary sheets are available for each worksheet tab in the budget.
B302: Database Update Procedure
B350: Error Messages
F367: Roger Sahs, Extension Assistant
F368: 520 Ag Hall
F369: Oklahoma State University
F370: (405) 744-7075
F371: roger.sahs@okstate.edu

Sheet Budget
B2: Irrigated Grain Sorghum Enterprise Budget | BA2: Ttl Acres | BB2: 1000 | BG2: FALSE
B3: 1000 acres farmed, 160 acres for this budget | BA3: Dry/Irr | BB3: FALSE | BG3: FALSE
BA4: NassArea | BB4: North Central | BG4: FALSE
BA5: Land | BB5: Own | BC5: TRUE | BG5: FALSE
B6: 2026 Planning Budget with harvest price estimated in October | BA6: Cash | BC6: FALSE | BG6: FALSE
G7: Total | H7: =BB8 -> Tenant | BA7: Share % | BB7: 1 | BC7: FALSE | BG7: FALSE
B8: TOTAL REVENUE (production) | D8: Units | E8: Price | F8: Quantity | G8: $/Acre | H8: Value | BA8: Own/tenant | BB8: Tenant | BC8: Tenant | BG8: FALSE
C9: Grain Sorghum | D9: =+IF(Yield!AJ22="Bushel", "Bu.","Cwt") -> Bu. | E9: =ROUND(Yield!AJ15,2) -> 3.8 | F9: =ROUND(IF(ISNUMBER(Yield!D10),Yield!D10,Yield!D9),2) -> 100 | G9: =ROUND(F9,2)*ROUND(E9,2) -> 380 | H9: =G9*ROUND(Yield!AJ19,4) -> 380 | BA9: Budget Area | BB9: North-Central | BG9: FALSE
BA10: Machinery | BB10: =+IF(Machinery!V33,IF(Machinery!V34,"Custom field work",IF(Machinery!V35,"Owned equipment","Custom field work and owned equipment")),IF(Machinery!V32,"Custom field work","Owned equipment")) -> Owned equipment | BG10: FALSE
C11: Other Income | D11: Acre | E11: ='Other Inc'!D17 -> 0 | F11: =IF(E11=0,0,1) -> 0 | G11: =ROUND(F11,2)*ROUND(E11,2) -> 0 | H11: =ROUND('Other Inc'!F17,2) -> 0 | BA11: Run Start-up | BB11: TRUE | BG11: FALSE
B12: Total Revenue (Receipts) | G12: =SUM(G9:G11) -> 380 | H12: =SUM(H9:H11) -> 380 | BB12: Grain Only | BG12: FALSE
B13: TOTAL COSTS (Operating + Fixed) | BA13: GS Acres | BB13: 160 | BG13: FALSE
C14: OPERATING INPUTS | D14: Units | E14: Price | F14: Quantity | G14: $/Acre | H14: Value | BA14: County | BB14: Garfield | BG14: FALSE
C15: Sorghum Seed | D15: Acre | E15: =+Seed!P16 -> 22.66666667 | F15: =IF(E15<=0,0,1) -> 1 | G15: =ROUND(F15,2)*ROUND(E15,2) -> 22.67 | H15: =ROUND(G15*ROUND(Seed!G10,4),2) -> 22.67 | BA15: New ? | BB15: FALSE | BG15: FALSE
C16: Fertilizer | D16: Acre | E16: =+Fertilizer!F24 -> 83.30169 | F16: =IF(E16<=0,0,1) -> 1 | G16: 83.3 | H16: =ROUND(Fertilizer!BH12,2) -> 83.3 | BA16: IFFS lime? | BB16: FALSE | BG16: FALSE
C17: Custom Harvest | D17: Acre | E17: =IF(Harvest!P6,Harvest!D21,0) -> 0 | F17: =IF(E17<=0,0,1) -> 0 | G17: 0 | H17: =+ROUND(G17*ROUND(Harvest!H13,4),2) -> 0 | BB17: Spring | BG17: FALSE
C18: Pesticide | D18: Acre | E18: =Pesticide!J17 -> 47.515 | F18: =IF(E18<=0,0,1) -> 1 | G18: 47.52 | H18: =ROUND(Pesticide!I17,2) -> 47.52 | BA18: Compliment | BB18: Large | BC18: Large
C19: Crop Insurance | D19: Acre | E19: =Ins!C13 -> 20 | F19: =IF(E19<=0,0,1) -> 1 | G19: 20 | H19: =ROUND(Ins!C15,2) -> 20 | BA19: Diversified? | BB19: TRUE | BC19: TRUE
C20: Annual Operating Capital | D20: Dollars | E20: =Parameters!P10 -> 0.075 | F20: =IF(Oper_Int!$AP$50<0,0,Oper_Int!$AP$50) -> 200.4758088 | G20: =ROUND(ROUND(F20,2)*ROUND(E20,4),2) -> 15.04 | H20: =ROUND(IF(Oper_Int!$P$50<0,0,ROUND(Oper_Int!$P$50,2))*ROUND(E20,4),2) -> 15.04 | BA20: Tillage | BB20: Lo Till Rot | BC20: Con Till
C21: Machinery Labor | D21: Hrs. | E21: =Parameters!P8 -> 18.25 | F21: =Machinery!X30+Machinery!Z30 -> 0.7374117647 | G21: =ROUND(ROUND(F21,2)*ROUND(E21,2),2) -> 13.51 | H21: =ROUND((ROUND(Machinery!AB30+Machinery!AD30,2))*ROUND(Budget!E21,2),2) -> 2.37 | BA21: Workbook Open | BB21: TRUE
C22: Irrigation Labor | D22: Hrs. | E22: =IF(F22<=0,0,Parameters!P8) -> 18.25 | F22: =IF(BB3,0,Irrig!BH4) -> 0.1333333333 | G22: =ROUND(ROUND(F22,2)*ROUND(E22,2),2) -> 2.37 | H22: =ROUND(G22*ROUND(Irrig!F35,4),2) -> 2.37 | BB22: owned | BC22: share
C23: Custom Hire | D23: Acre | E23: =IF(Machinery!V32, Machinery!Q65,0)+IF(Machinery!V33,Machinery!Q66,0)+Fertilizer!BH13+Pesticide!L17 -> 9.63 | F23: =IF(E23<=0,0,1) -> 1 | G23: =ROUND(F23,2)*ROUND(E23,2) -> 9.63 | H23: =ROUND((IF(Machinery!V32,Machinery!Q65,0)+IF(Machinery!V33,Machinery!Q66,0)+Pesticide!L17+Fertilizer!BH13)*ROUND(Machinery!J13,4),2) -> 0 | BA23: custom hire | BB23: =+E23 -> 9.63 | BC23: =(IF(Machinery!V32,Machinery!Q65,0)+IF(Machinery!V33, Machinery!Q66,0)+Pesticide!L17+Fertilizer!BH13)*Machinery!J13 -> 0
C24: Machinery Fuel, Lube, Repairs | D24: Acre | E24: =SUM(Machinery!AA19:AA21) -> 61.6985025 | F24: =IF(E24<=0,0,1) -> 1 | G24: 61.7 | H24: =ROUND(Machinery!AE22,2) -> 61.7
C25: Irrigation Fuel, Lube, Repair | D25: Acre | E25: =IF(BB3,0,Irrig!D26) -> 315.4076419 | F25: =IF(E25<=0,0,1) -> 1 | G25: 315.41 | H25: =ROUND(G25*ROUND(Irrig!F26,4),2) -> 315.41
C26: Rent | D26: Acre | E26: =+IF(BB5="Cash",BB6,0) -> 0 | F26: =IF(E26<=0,0,1) -> 0 | G26: 0 | H26: =G26 -> 0
C27: Other Expense | D27: Acre | E27: ='Other Exp'!D17 -> 4.15 | F27: =IF(E27<=0,0,1) -> 1 | G27: 4.15 | H27: =ROUND('Other Exp'!F17,2) -> 4.15 | BA27: IFFS Acres/Plant | BB27: 160
D28: Total Operating Costs | G28: =SUM(G15:G27) -> 595.3 | H28: =SUM(H15:H27) -> 574.53 | BA28: IFFS Acres/Harvest | BB28: 160
D29: Returns Above Total Operating Costs | G29: =G12-G28 -> -215.3 | H29: =H12-H28 -> -194.53 | BA29: Iffs Lime | BB29: FALSE
C30: FIXED COSTS | D30: Units | E30: Rate | G30: $/Acre | H30: Value | BA30: Iffs Prop Taxes | BB30: TRUE
C31: Machinery/Irrigation | D31: $/value | BA31: Iffs Real Taxes | BB31: TRUE
C32: Interest at | D32: Dollars | E32: =Parameters!P11 -> 0.085 | G32: =ROUND(Machinery!AA27,2) -> 145.35 | H32: =+ROUND(Machinery!AE27,2) -> 32.15 | BA32: Iffs Prop Ins | BB32: TRUE
C33: Taxes at | D33: Dollars | E33: =Parameters!P12 -> 0.01 | G33: =ROUND(Machinery!AA26,2) -> 19.17 | H33: =+ROUND(Machinery!AE26,2) -> 5.85
C34: Insurance | D34: Dollars | E34: =Parameters!P13 -> 0.0085 | G34: =ROUND(Machinery!AA25,2) -> 14.58 | H34: =+ROUND(Machinery!AE25,2) -> 3.26
C35: Depreciation | D35: Dollars | G35: =ROUND(Machinery!AA24,2) -> 133.8 | H35: =+ROUND(Machinery!AE24,2) -> 44.97
C36: Land | D36: $/acre | E36: =Parameters!P17 -> 3000
C37: Interest at | D37: Dollars | E37: =Parameters!P15 -> 0.03 | G37: =ROUND(ROUND(E37,4)*ROUND(E36,2)*ROUND(Parameters!P18,4),2)*IF(BB5="cash",0,1) -> 90 | H37: =IF($BB$8="owner",G37,0) -> 0 | BA37: B/W | BB37: TRUE
C38: Taxes at | D38: Dollars | E38: =Parameters!P16 -> 0.00013 | G38: =ROUND(ROUND(E38,4)*ROUND(E36,2)*ROUND(Parameters!P18,4),2)*IF(BB5="cash",0,1) -> 0.3 | H38: =IF($BB$8="owner",G38,0) -> 0
D39: Total Fixed Costs | G39: =SUM(G32:G38) -> 403.2 | H39: =SUM(H32:H38) -> 86.23
B40: Total Costs (Operating + Fixed) | G40: =G28+G39 -> 998.5 | H40: =H28+H39 -> 660.76
B41: NET RETURNS Above All Specified Costs | G41: =G12-G40 -> -618.5 | H41: =H12-H40 -> -280.76
B43: Garfield County - North-Central OK | E43: Owner-Operator
B44: =BB10 -> Owned equipment
D46: Grain Break-Even (B-E) Analysis
C47: =+IF(Yield!AJ22="Bushel", "B-E Yield at $/bu.","B-E Yield at $/cwt.") -> B-E Yield at $/bu. | D47: =crop_price -> 3.8 | E47: =+IF(Yield!AJ22="Bushel", "B-E Price at bu./ac.","B-E Price at cwt./ac.") -> B-E Price at bu./ac. | G47: =Crop_Yield -> 100 | U47: Income Above Operating Costs at Differing Yields and Prices1
C48: =+IF(Yield!AJ22="Bushel", "Above Operating Costs (bu.)","Above Operating Costs (cwt.)") -> Above Operating Costs (bu.) | D48: =IF(crop_price<=0,"NA",IF($BB$5="share",(H28-H12+H9)/(crop_price*AI57),(G28-G12+G9)/crop_price)) -> 156.6578947 | F48: Above Operating Costs | G48: =IF(Crop_Yield<=0,"NA",IF($BB$5="share",(H28-H12+H9)/(Crop_Yield*AI57),(G28-G12+G9)/Crop_Yield)) -> 5.953 | T48: Yield | U48: ----------------------- | W48: =+IF(Yield!AJ22="Bushel", "Price ($/bu.)","Price ($/cwt.)") -> Price ($/bu.) | X48: -------------------------- | AI48: Amt Yld | AJ48: Cust Harv | AK48: If Custom
C49: =+IF(Yield!AJ22="Bushel", "Above Total Costs (bu.)","Above Total Costs (cwt.)") -> Above Total Costs (bu.) | D49: =IF(crop_price<=0,"NA",IF($BB$5="share",(H40-H12+H9)/(crop_price*AI57),(G40-G12+G9)/crop_price)) -> 262.7631579 | F49: Above Total Costs | G49: =IF(Crop_Yield<=0,"NA",IF($BB$5="share",(H40-H12+H9)/(Crop_Yield*AI57),(G40-G12+G9)/Crop_Yield)) -> 9.985 | T49: =+IF(Yield!AJ22="Bushel", "bu./acre)","cwt./acre)") -> bu./acre) | U49: =$W$49*(1-(2*$AA$50)) -> 3.42 | V49: =$W$49*(1-$AA$50) -> 3.61 | W49: =crop_price -> 3.8 | X49: =$W$49*(1+$AA$50) -> 3.99 | Y49: =$W$49*(1+(2*$AA$50)) -> 4.18 | AA49: Vary Price by | AH49: Yld | AI49: Over chg | AJ49: Charge | AK49: Harvest
T50: =$T$52*(1-(2*$AA$54)) -> 90 | U50: =IF($BB$5="share",$H$29-$H$9+$AK$52-$AK50+(U$49*$T50*$AI$57),$G$29-$G$9+$AK$52-$AK50+(U$49*$T50*$AI$57)) -> -287.5 | V50: -270.4 | W50: -253.3 | X50: -236.2 | Y50: -219.1 | AA50: =AF50/100 -> 0.05 | AF50: 5 | AH50: =T50 -> 90 | AI50: =+AH50 -> 90 | AJ50: =Harvest!$O$14+Budget!$AI50*Harvest!$O$16+Harvest!$O$17*Budget!$AH50*IF(Budget!$BB$8="owner",IF(Budget!$BB$5="share",0,1),1) -> 65.5 | AK50: =IF(Harvest!$P$6,$AJ50,0) -> 0
T51: =$T$52*(1-$AA$54) -> 95 | U51: -270.4 | V51: -252.35 | W51: -234.3 | X51: -216.25 | Y51: -198.2 | AH51: =T51 -> 95 | AI51: =+AH51 -> 95 | AJ51: =Harvest!$O$14+Budget!$AI51*Harvest!$O$16+Harvest!$O$17*Budget!$AH51*IF(Budget!$BB$8="owner",IF(Budget!$BB$5="share",0,1),1) -> 67.75 | AK51: =IF(Harvest!$P$6,$AJ51,0) -> 0
T52: =Crop_Yield -> 100 | U52: -253.3 | V52: -234.3 | W52: =IF($BB$5="share",$H$29-$H$9+$AK$52-$AK52+(W$49*$T52*$AI$57),$G$29-$G$9+$AK$52-$AK52+(W$49*$T52*$AI$57)) -> -215.3 | X52: -196.3 | Y52: -177.3 | AH52: =T52 -> 100 | AI52: =+AH52 -> 100 | AJ52: =Harvest!$O$14+Budget!$AI52*Harvest!$O$16+Harvest!$O$17*Budget!$AH52*IF(Budget!$BB$8="owner",IF(Budget!$BB$5="share",0,1),1) -> 70 | AK52: =IF(Harvest!$P$6,$AJ52,0) -> 0
T53: =$T$52*(1+$AA$54) -> 105 | U53: -236.2 | V53: -216.25 | W53: -196.3 | X53: -176.35 | Y53: -156.4 | AA53: Vary Yield by | AH53: =T53 -> 105 | AI53: =+AH53 -> 105 | AJ53: =Harvest!$O$14+Budget!$AI53*Harvest!$O$16+Harvest!$O$17*Budget!$AH53*IF(Budget!$BB$8="owner",IF(Budget!$BB$5="share",0,1),1) -> 72.25 | AK53: =IF(Harvest!$P$6,$AJ53,0) -> 0
T54: =$T$52*(1+(2*$AA$54)) -> 110 | U54: -219.1 | V54: -198.2 | W54: -177.3 | X54: -156.4 | Y54: -135.5 | AA54: =AF54/100 -> 0.05 | AF54: 5 | AH54: =T54 -> 110 | AI54: =+AH54 -> 110 | AJ54: =Harvest!$O$14+Budget!$AI54*Harvest!$O$16+Harvest!$O$17*Budget!$AH54*IF(Budget!$BB$8="owner",IF(Budget!$BB$5="share",0,1),1) -> 74.5 | AK54: =IF(Harvest!$P$6,$AJ54,0) -> 0
C56: Budget software questions? | D56: Contact Cheryl DeVuyst | U56: Income Above All Costs at Differing Yields and Prices1
D57: Visit OSU Enterprise Budget Website | T57: Yield | U57: ----------------------- | W57: =+W48 -> Price ($/bu.) | X57: -------------------------- | AA57: Return | AH57: Yld Share | AI57: =IF(G9=0,1,H9/G9) -> 1
T58: =+T49 -> bu./acre) | U58: =$W$49*(1-(2*$AA$50)) -> 3.42 | V58: =$W$49*(1-$AA$50) -> 3.61 | W58: =crop_price -> 3.8 | X58: =$W$49*(1+$AA$50) -> 3.99 | Y58: =$W$49*(1+(2*$AA$50)) -> 4.18
D59: Return | T59: =$T$52*(1-(2*$AA$54)) -> 90 | U59: =IF($BB$5="share",$H$41-$H$9+$AK$52-$AK50+(U$49*$T59*$AI$57),$G$41-$G$9+$AK$52-$AK50+(U$49*$T59*$AI$57)) -> -690.7 | V59: -673.6 | W59: -656.5 | X59: -639.4 | Y59: -622.3 | AI59: =+G48*G47 -> 595.3
T60: =$T$52*(1-$AA$54) -> 95 | U60: -673.6 | V60: -655.55 | W60: -637.5 | X60: -619.45 | Y60: -601.4 | AI60: =+G49*G47 -> 998.5
T61: =Crop_Yield -> 100 | U61: -656.5 | V61: -637.5 | W61: -618.5 | X61: -599.5 | Y61: -580.5
T62: =$T$52*(1+$AA$54) -> 105 | U62: =IF($BB$5="share",$H$41-$H$9+$AK$52-$AK53+(U$49*$T62*$AI$57),$G$41-$G$9+$AK$52-$AK53+(U$49*$T62*$AI$57)) -> -639.4 | V62: -619.45 | W62: -599.5 | X62: -579.55 | Y62: -559.6
T63: =$T$52*(1+(2*$AA$54)) -> 110 | U63: -622.3 | V63: -601.4 | W63: -580.5 | X63: -559.6 | Y63: -538.7
T65: 1 | U65: If custom harvest is used, the custom harvest
U66: charge used is based on the new yield

Sheet Yield
B1: Yield | S1: The average grain sorghum yields and prices are from data collected by the Oklahoma Agricultural Statistics | AG1: Month | AH1: Percent | AI1: Sale Price | AJ1: Avg Price | AK1: Oct | AL1: Est. Price | AM1: User Spec
B2: Specify unit preference for yield. | S2: Service (OASS). For more information, visit the OASS web page by clicking on the OASS link. | AG2: of Sale | AH2: Of Sale | AI2: by Month | AJ2: for sales | AK2: Base | AL2: w/ Base | AM2: Price | AT2: WC | AU2: SW | AV2: NC | AW2: Cen | AX2: SC | AY2: NE | AZ2: EC | BA2: SE | BB2: OK
AG3: January | AH3: 0 | AI3: =AL3 -> 4.0622 | AJ3: =AH3*AI3/100 -> 0 | AK3: 1.069 | AL3: =AK3*3.8 -> 4.0622 | AM3: =AL3 -> 4.0622 | AS3: 2014 | AU3: 48.5 | AV3: 57.7 | AW3: 67.5 | AX3: 66.7 | AY3: 51.1 | AZ3: 91.6 | BA3: 94.2 | BB3: 56
X4: In Bushels | Z4: 0.56 | AG4: February | AH4: 0 | AI4: 4.142 | AJ4: =AH4*AI4/100 -> 0 | AK4: 1.09 | AL4: 4.142 | AM4: =AL4 -> 4.142 | AS4: 2015 | AU4: 44 | AV4: 37 | AW4: 49.6 | AX4: 49.2 | AY4: 43.3 | AZ4: 65.7 | BA4: 43.3 | BB4: 52
X5: Market | AG5: March | AH5: 0 | AI5: 4.275 | AJ5: 0 | AK5: 1.125 | AL5: 4.275 | AM5: 4.275 | AS5: 2016 | AU5: 53.2 | AV5: 47.9 | AW5: 47.5 | AX5: 50 | AY5: 45.1 | AZ5: 45.1 | BA5: 45.1 | BB5: 55
S6: Crop | T6: 10yr Average (2023) | X6: Year Avg. | AG6: April | AH6: 0 | AI6: 4.3244 | AJ6: 0 | AK6: 1.138 | AL6: 4.3244 | AM6: 4.3244 | AS6: 2017 | AU6: 31.2 | AV6: 43.9 | AW6: 41.6 | AY6: 36.4 | BA6: 40 | BB6: 53
B7: Grain | C7: Reporting | D7: Yield | E7: Est. Harvest | F7: Harvest | G7: Sales | H7: Weighted | S7: Reporting | T7: Dryland | U7: Irrigated | W7: Year | X7: OK Price | AG7: May | AH7: 0 | AI7: 4.2864 | AJ7: 0 | AK7: 1.128 | AL7: 4.2864 | AM7: 4.2864 | AO7: In Hundred weight | AS7: 2018 | AT7: 53.1 | AU7: 27.7 | AW7: 47.8 | AZ7: 44.9 | BB7: 50
B8: Sorghum | C8: District | D8: =+IF(Yield!AJ22="Bushel", "bu/acre","cwt/acre") -> bu/acre | E8: =+IF(Yield!AJ22="Bushel", "Price $/bu","Price $/cwt") -> Price $/bu | F8: Month | G8: Information | H8: Avg. Price | S8: District | T8: =+IF(Yield!AJ22="Bushel", "bu/acre","cwt/acre") -> bu/acre | U8: =+T8 -> bu/acre | W8: 2014 | X8: =AO8*$Z$4 -> 2.1784 | AG8: June | AH8: 0 | AI8: 4.37 | AJ8: 0 | AK8: 1.15 | AL8: 4.37 | AM8: 4.37 | AO8: 3.89 | AS8: 2019 | AT8: 50.2 | AV8: 47.2 | AW8: 64.6 | AZ8: 58.5 | BB8: 51
B9: Default | C9: North Central | D9: =+IF(Yield!AJ22="Bushel", AJ25,AJ25*0.56) -> 100 | E9: =AJ15 -> 3.8 | F9: 10 | H9: =E9 -> 3.8 | P9: month to use | S9: Panhandle | T9: =+IF(Yield!$AJ$22="Bushel", +AP9,AP9/$AJ$24) -> 38 | U9: =+IF(Yield!$AJ$22="Bushel", +AQ9,AQ9/$AJ$24) -> 140 | W9: 2015 | X9: =AO9*$Z$4 -> 3.4384 | AG9: July | AH9: 0 | AI9: 4.3282 | AJ9: 0 | AK9: 1.139 | AL9: 4.3282 | AM9: 4.3282 | AO9: 6.14 | AP9: 38 | AQ9: 140 | AS9: 2020 | AT9: 40.76666667 | AU9: 26.5 | AV9: 29.62 | AW9: 58.36 | AZ9: 53.4 | BB9: 45
B10: Your Value | D10: =D9 -> 100 | E10: =+E16 -> 3.8 | F10: 10 | H10: =E10 -> 3.8 | P10: =+IF(ISNUMBER(F10),F10,F9) -> 10 | S10: West Central | T10: =+IF(Yield!$AJ$22="Bushel", +AP10,AP10/$AJ$24) -> 38.7 | U10: =+IF(Yield!$AJ$22="Bushel", +AQ10,AQ10/$AJ$24) -> 105 | W10: 2016 | X10: 2.6992 | AG10: August | AH10: 0 | AI10: 4.0736 | AJ10: 0 | AK10: 1.072 | AL10: 4.0736 | AM10: 4.0736 | AO10: 4.82 | AP10: 38.7 | AQ10: 105 | AS10: 2021 | AT10: 48.45 | AU10: 47 | AV10: 48.5 | AW10: 71.78333333 | AZ10: 62.6 | BB10: 54
S11: Southwest | T11: =+IF(Yield!$AJ$22="Bushel", +AP11,AP11/$AJ$24) -> 43.6 | U11: =+IF(Yield!$AJ$22="Bushel", +AQ11,AQ11/$AJ$24) -> 100 | W11: 2017 | X11: 3.1584 | AG11: September | AH11: 0 | AI11: 3.952 | AJ11: 0 | AK11: 1.04 | AL11: 3.952 | AM11: 3.952 | AO11: 5.64 | AP11: 43.6 | AQ11: 100 | AS11: 2022 | AT11: 23.56666667 | AU11: 24.35 | AW11: 21.275 | BB11: 24
S12: North Central | T12: =+IF(Yield!$AJ$22="Bushel", +AP12,AP12/$AJ$24) -> 50 | U12: 100 | W12: 2018 | X12: 3.332 | AG12: October | AH12: 100 | AI12: =AL12 -> 3.8 | AJ12: 3.8 | AK12: 1 | AL12: =AK12*3.8 -> 3.8 | AM12: 3.8 | AO12: 5.95 | AP12: 50 | AQ12: 100 | AS12: 2023 | AT12: 41.8 | AU12: 43.8 | AW12: 62.96 | AX12: 66.96666667 | AZ12: 84.4 | BB12: 47
S13: Central | T13: =+IF(Yield!$AJ$22="Bushel", +AP13,AP13/$AJ$24) -> 49.7 | U13: 100 | W13: 2019 | X13: 3.36 | AG13: November | AH13: 0 | AI13: 3.9216 | AJ13: 0 | AK13: 1.032 | AL13: 3.9216 | AM13: 3.9216 | AO13: 6 | AP13: 49.7 | AQ13: 100
S14: South Central | T14: =+IF(Yield!$AJ$22="Bushel", +AP14,AP14/$AJ$24) -> 39.6 | U14: 100 | W14: 2020 | X14: 5.068 | AG14: December | AH14: 0 | AI14: 3.9672 | AJ14: 0 | AK14: 1.044 | AL14: 3.9672 | AM14: 3.9672 | AO14: 9.05 | AP14: 39.6 | AQ14: 100
S15: Northeast | T15: =+IF(Yield!$AJ$22="Bushel", +AP15,AP15/$AJ$24) -> 56.9 | U15: 100 | W15: 2021 | X15: 5.5944 | AI15: Wght. Avg. | AJ15: =SUM(AJ3:AJ14) -> 3.8 | AL15: For harvest price of: | AM15: =AJ15 -> 3.8 | AO15: 9.99 | AP15: 56.9 | AQ15: 100
B16: Estimated harvest price | E16: =AJ15 -> 3.8 | S16: East Central | T16: =+IF(Yield!$AJ$22="Bushel", +AP16,AP16/$AJ$24) -> 45.5 | U16: 100 | W16: 2022 | X16: 6.72 | AI16: Oct price | AJ16: =AJ15 -> 3.8 | AO16: 12 | AP16: 45.5 | AQ16: 100
S17: Southeast | T17: =+IF(Yield!$AJ$22="Bushel", +AP17,AP17/$AJ$24) -> 45.5 | U17: 100 | W17: 2023 | X17: 4.872 | AO17: 8.7 | AP17: 45.5 | AQ17: 100 | AS17: avg | AT17: =+AVERAGE(AT3:AT12) -> 42.98055556 | AU17: 38.47222222 | AV17: 44.54571429 | AW17: 53.29783333 | AX17: 58.21666667 | AY17: 43.975 | AZ17: 63.275 | BA17: 55.65 | BB17: 48.7
S18: State | T18: =+IF(Yield!$AJ$22="Bushel", +AP18,AP18/$AJ$24) -> 45.27777778 | U18: =+IF(Yield!$AJ$22="Bushel", +AQ18,AQ18/$AJ$24) -> 105 | W18: Average | X18: =SUM(X8:X17)/10 -> 4.04208 | AI18: Share of Crop Received: | AJ18: =IF(Budget!BB7<>"",Budget!BB7,1) -> 1 | AP18: =AVERAGE(AP9:AP17) -> 45.27777778 | AQ18: =AVERAGE(AQ9:AQ17) -> 105 | AS18: 38 | AT18: 42.54 | AU18: 43.56 | AV18: 53.16 | AW18: 51.28 | AX18: 41.3375 | AY18: 57.83333333 | AZ18: 49.08 | BA18: 50.11 | BB18: =+AVERAGE(AS18:BA18) -> 47.43342593
AI19: Share amount to use: | AJ19: =ROUND(IF(F12="",AJ18,F12),4) -> 1 | AS19: TX ranged from 32-44 bu in 2018 budgets
S20: For more information:
S21: Oklahoma Agricultural Statistics
AI22: Bushel?? | AJ22: Bushel
AJ23: =+IF(Yield!AJ22="Bushel", 4.45,7.95) -> 4.45 | AK23: 5
AJ24: =1/0.56 -> 1.785714286 | AK24: =+AK23*AJ24 -> 8.928571429
AJ25: 100

Sheet Seed
B1: Seed
B7: Seeding | D7: Plant Pop. | E7: Seed Cost | F7: Planting | G7: Share | T7: Non-Irrigation | V7: Irrigation
B8: Rate | C8: Area | D8: (000/acre) | E8: $/bag | F8: Month | G8: Amount | T8: Plant | U8: Row | V8: Plant | W8: Row
B9: Default | C9: State | D9: =+IF(Budget!BB3=TRUE,40,80) -> 80 | E9: =3.4*50 -> 170 | F9: 5 | P9: month to use | S9: Area of | T9: Population | U9: Width | V9: Population | W9: Width
B10: Your Value | G10: 1 | P10: =+IF(ISNUMBER(F10),F10,F9) -> 5 | S10: State | T10: (000/acre) | U10: (inches) | V10: (000/acre) | W10: (in inches)
P11: rate to use | S11: Panhandle | T11: 15-20 | U11: 30 | V11: 60-100 | W11: 30
P12: =+IF(ISNUMBER(D10),D10,D9) -> 80 | S12: West of I-35 | T12: 25-40 | U12: 30 | V12: 60-100 | W12: 30
P13: price to use | S13: East of I-35 | T13: 35-50 | U13: 30 | V13: 60-100 | W13: 30
P14: =+IF(ISNUMBER(E10),E10,E9) -> 170
P15: cost to use
P16: =+P12/600*P14 -> 22.66666667

Sheet Fertilizer
B1: Fertilizer | Q1: Nitrogen | T1: Phosphorus | W1: Potassium | BH1: Share Cost
Q2: Requirements | T2: Recommendations | W2: Recommendations | BH2: of Fertilizer
Q3: Grain | R3: Nitrogen | T3: Soil | U3: Rate of | W3: Soil | X3: Rate of | AD3: Month to | AE3: Lbs. Applied | AF3: Number of | AG3: % | AH3: % | AI3: % | AK3: Custom | AL3: When | AN3: 0 | BG3: =B9 -> Anhydrous Ammonia | BH3: =(D9*M9)*K9 -> 35.69155
Q4: Sorghum | R4: Required | T4: Test | U4: P2O5 | W4: Test | X4: K2O | AC4: Fertilizer | AD4: Apply | AE4: per acre | AF4: Acres | AG4: N | AH4: P | AI4: K | AJ4: $/Ton1 | AK4: App Charge | AL4: Applied | BG4: Diammonium Phosphate | BH4: =(D10*M10)*K10 -> 22.58825
Q5: =+IF(Yield!$AJ$22="Bushel", "(bu/A)","(cwt/A)") -> (bu/A) | R5: (lbs/A) | T5: Index* | U5: (lbs./A) | W5: Index* | X5: (lbs./A) | AC5: Anhydrous Ammonia | AD5: 4 | AE5: 51 | AF5: =Budget!$BB$13 -> 160 | AG5: 82 | AH5: 0 | AI5: 0 | AJ5: 820 | AK5: 0 | AL5: Pre-Plant | AU5: Tons | AY5: Custom | AZ5: # of Years | BG5: Urea | BH5: 25.02189
Q6: =+IF(Yield!$AJ$22="Bushel", 36,36/Yield!$AJ$24) -> 36 | R6: 30 | T6: 0 | U6: 60 | W6: 0 | X6: 100 | AC6: Ammonium Nitrate | AF6: =Budget!$BB$13 -> 160 | AG6: 34 | AH6: 0 | AI6: 0 | AK6: 6.09 | AL6: Pre-Plant | AT6: Month to | AU6: Applied | AV6: Acreage | AW6: Percent | AX6: Price | AY6: Application | AZ6: to Allocate | BA6: Share of | BG6: 0 | BH6: 0
C7: Month to | D7: Lbs. Applied | E7: Acreage | F7: Percent | G7: Percent | H7: Percent | I7: Price | J7: Custom App. | K7: Share of | L7: Fertilizer | M7: Prorated | N7: Prorated | Q7: =+IF(Yield!$AJ$22="Bushel", 45,45/Yield!$AJ$24) -> 45 | R7: 40 | T7: 10 | U7: 50 | W7: 75 | X7: 75 | AC7: Ammonium Polyphosphate | AF7: =Budget!$BB$13 -> 160 | AG7: 10 | AH7: 34 | AI7: 0 | AJ7: 625 | AK7: 5.85 | AL7: Pre-Plant | AT7: Apply | AU7: per acre | AV7: Applied | AW7: ECCE | AX7: per Ton | AY7: per Ton | AZ7: App. Over | BA7: Expense | BG7: 0 | BH7: 0 | BJ7: custom fert | BK7: Monthly allocation of expenditures(%)
B8: Fertilizer | C8: Apply | D8: per Acre | E8: Applied | F8: N | G8: P | H8: K | I8: per Ton | J8: Charge | K8: Expense | L8: Price/Lb. | M8: Cost/lb. | N8: Cust. App. | Q8: =+IF(Yield!$AJ$22="Bushel", 54,54/Yield!$AJ$24) -> 54 | R8: 50 | T8: 20 | U8: 40 | W8: 125 | X8: 50 | AC8: Diammonium Phosphate | AD8: 4 | AE8: 50 | AF8: =Budget!$BB$13 -> 160 | AG8: 18 | AH8: 46 | AI8: 0 | AJ8: 740 | AK8: 0 | AL8: Pre-Plant | AT8: 3 | AU8: 0 | AV8: 160 | AW8: 0.5 | AX8: 60 | AY8: 10 | AZ8: 5 | BA8: 1 | BG8: 0 | BH8: 0 | BJ8: applic | BK8: 1 | BL8: 2 | BM8: 3 | BN8: 4 | BO8: 5 | BP8: 6 | BQ8: 7 | BR8: 8 | BS8: 9 | BT8: 10 | BU8: 11 | BV8: 12
B9: Anhydrous Ammonia | C9: 4 | D9: =IF((OR(F9=0,(F19-F18-(D10*F10+D11*F11+D12*F12+D13*F13+D14*F14+D15*F15+D16*F16))<0)),0,(F19-F18-(D10*F10+D11*F11+D12*F12+D13*F13+D14*F14+D15*F15+D16*F16))/F9) -> 87.05256098 | E9: 160 | F9: 0.82 | G9: 0 | H9: 0 | I9: 820 | J9: 0 | K9: 1 | L9: =I9/2000 -> 0.41 | M9: =L9*E9/Budget!BB$13 -> 0.41 | N9: =E9*J9/Budget!BB$13 -> 0 | Q9: =+IF(Yield!$AJ$22="Bushel", 71,71/Yield!$AJ$24) -> 71 | R9: 70 | T9: 40 | U9: 20 | W9: 200 | X9: 30 | AC9: Monoammonium Phosphate | AF9: =Budget!$BB$13 -> 160 | AG9: 11 | AH9: 52 | AI9: 0 | AJ9: 800 | AK9: 6.09 | AL9: Pre-Plant | BG9: 0 | BH9: 0 | BK9: =IF($C9=BK$8,100,0) -> 0 | BL9: 0 | BM9: 0 | BN9: 100 | BO9: 0 | BP9: 0 | BQ9: 0 | BR9: 0 | BS9: 0 | BT9: 0 | BU9: 0 | BV9: 0
B10: Diammonium Phosphate | C10: 4 | D10: 50 | E10: 160 | F10: 0.18 | G10: 0.46 | H10: 0 | I10: 903.53 | J10: 0 | K10: 1 | L10: =I10/2000 -> 0.451765 | M10: =L10*E10/Budget!BB$13 -> 0.451765 | N10: =E10*J10/Budget!BB$13 -> 0 | Q10: =+IF(Yield!$AJ$22="Bushel", 80,80/Yield!$AJ$24) -> 80 | R10: 85 | T10: 65+ | U10: None | W10: 250+ | X10: None | AC10: Muriate of Potash | AF10: =Budget!$BB$13 -> 160 | AG10: 0 | AH10: 0 | AI10: 60 | AJ10: 520 | AK10: 6.09 | AL10: Pre-Plant | AV10: Total cost of lime: | AW10: =IF(AZ8=0,0,AU8*AX8)*BH17 -> 0 | AX10: /budget ac. | BG10: 0 | BH10: 0 | BK10: 0 | BL10: 0 | BM10: 0 | BN10: 100 | BO10: 0 | BP10: 0 | BQ10: 0 | BR10: 0 | BS10: 0 | BT10: 0 | BU10: 0 | BV10: 0
B11: Urea | C11: 4 | D11: 82 | E11: 160 | F11: 0.46 | G11: 0 | H11: 0 | I11: 610.29 | J11: 4 | K11: 1 | L11: 0.305145 | M11: =L11*E11/Budget!BB$13 -> 0.305145 | N11: =E11*J11/Budget!BB$13 -> 4 | Q11: =+IF(Yield!$AJ$22="Bushel", 89,89/Yield!$AJ$24) -> 89 | R11: 100 | T11: *Oklahoma State | W11: *Oklahoma State | AC11: Urea | AD11: 4 | AE11: 80 | AF11: =Budget!$BB$13 -> 160 | AG11: 46 | AH11: 0 | AI11: 0 | AJ11: 610.29 | AK11: 4 | AV11: Prorated cost: | AW11: =IF(AZ8=0,0,AW10/AZ8) -> 0 | AX11: /budget ac. | BG11: Lime | BH11: =+AW11*BA8 -> 0 | BK11: 0 | BL11: 0 | BM11: 0 | BN11: 100 | BO11: 0 | BP11: 0 | BQ11: 0 | BR11: 0 | BS11: 0 | BT11: 0 | BU11: 0 | BV11: 0
K12: 1 | L12: 0 | M12: =L12*E12/Budget!BB$13 -> 0 | N12: =E12*J12/Budget!BB$13 -> 0 | Q12: =+IF(Yield!$AJ$22="Bushel", 125,125/Yield!$AJ$24) -> 125 | R12: 160 | T12: University Tests | W12: University Tests | AF12: =Budget!$BB$13 -> 160 | AV12: ECCE equivalent applied: | AW12: =AU8*AW8 -> 0 | AX12: tons/acre | BG12: Total Share Cost | BH12: =SUM(BH3:BH11) -> 83.30169 | BK12: 0 | BL12: 0 | BM12: 0 | BN12: 0 | BO12: 0 | BP12: 0 | BQ12: 0 | BR12: 0 | BS12: 0 | BT12: 0 | BU12: 0 | BV12: 0
K13: 1 | L13: 0 | M13: =L13*E13/Budget!BB$13 -> 0 | N13: =E13*J13/Budget!BB$13 -> 0 | Q13: =+IF(Yield!$AJ$22="Bushel", 143,143/Yield!$AJ$24) -> 143 | R13: 195 | AF13: =Budget!$BB$13 -> 160 | BG13: custom hire/prorated lime app | BH13: =SUM(N9:N16)+(IF(AZ8=0,0,AU8*AY8/AZ8)*IF(AW10=0,0,1)*BH17) -> 4 | BK13: 0 | BL13: 0 | BM13: 0 | BN13: 0 | BO13: 0 | BP13: 0 | BQ13: 0 | BR13: 0 | BS13: 0 | BT13: 0 | BU13: 0 | BV13: 0
K14: 1 | L14: 0 | M14: =L14*E14/Budget!BB$13 -> 0 | N14: =E14*J14/Budget!BB$13 -> 0 | Q14: =+IF(Yield!$AJ$22="Bushel", 161,161/Yield!$AJ$24) -> 161 | R14: 230 | AF14: =Budget!$BB$13 -> 160 | AT14: For additional information, see: | BG14: custom hire +lime app | BH14: =SUM(N9:N16)+(IF(AZ8=0,0,AU8*AY8)*IF(AW10=0,0,1)*BH17) -> 4 | BK14: 0 | BL14: 0 | BM14: 0 | BN14: 0 | BO14: 0 | BP14: 0 | BQ14: 0 | BR14: 0 | BS14: 0 | BT14: 0 | BU14: 0 | BV14: 0
K15: 1 | L15: 0 | M15: =L15*E15/Budget!BB$13 -> 0 | N15: =E15*J15/Budget!BB$13 -> 0 | AF15: =Budget!$BB$13 -> 160 | AT15: PSS-2225 OSU Soil Test Interpretations | BG15: lime app share | BH15: =IF(AZ8=0,0,IF(Budget!BB5="share",AU8*AY8*Machinery!J13,AU8*AY8))*IF(AW10=0,0,1)*BH17 -> 0 | BK15: 0 | BL15: 0 | BM15: 0 | BN15: 0 | BO15: 0 | BP15: 0 | BQ15: 0 | BR15: 0 | BS15: 0 | BT15: 0 | BU15: 0 | BV15: 0
K16: 1 | L16: 0 | M16: =L16*E16/Budget!BB$13 -> 0 | N16: =E16*J16/Budget!BB$13 -> 0 | AF16: =Budget!$BB$13 -> 160 | AT16: PSS-2229 Soil pH and Buffer Index | BG16: prorated lime app share | BH16: =+IF(AZ8=0,BH15,BH15/AZ8) -> 0 | BK16: 0 | BL16: 0 | BM16: 0 | BN16: 0 | BO16: 0 | BP16: 0 | BQ16: 0 | BR16: 0 | BS16: 0 | BT16: 0 | BU16: 0 | BV16: 0
B17: Pounds/acre applied | F17: =SUMPRODUCT(D9:D16,F9:F16) -> 118.1031 | G17: =$D$9*G$9+$D$10*G$10+$D$11*G$11+$D$14*G$14+$D$15*G$15+$D$16*G$16 -> 23 | H17: =$D$9*H$9+$D$10*H$10+$D$11*H$11+$D$14*H$14+$D$15*H$15+$D$16*H$16 -> 0 | AF17: =Budget!$BB$13 -> 160 | AT17: PSS-2239 Causes and Effects of Soil Acidity | BG17: lime prorated ac | BH17: =+AV8/Budget!BB13 -> 1
B18: Pounds of N/acre present per soil test results | F18: 0 | Q18: For additional information, see: | AF18: =Budget!$BB$13 -> 160 | BJ18: cost/ac | BK18: =SUMPRODUCT(BK9:BK16*$N9:$N16/100) -> 0 | BL18: =SUMPRODUCT(BL9:BL16*$N9:$N16/100) -> 0 | BM18: 0 | BN18: 4 | BO18: 0 | BP18: 0 | BQ18: 0 | BR18: 0 | BS18: 0 | BT18: 0 | BU18: 0 | BV18: 0 | BW18: =SUM(BK18:BV18) -> 4
B19: Estimated pounds N, P and K required | F19: =IF(Yield!AJ22="Bushel",IF(Crop_Yield<=90,1.30118*Crop_Yield-18.8237,1.801587*Crop_Yield-62.0556),IF(Crop_Yield<=50.4,2.323535*Crop_Yield-18.8237,3.21712*Crop_Yield-62.0556)) -> 118.1031 | G19: 20 | H19: 0 | Q19: PSS-2225 OSU Soil Test Interpretations | AF19: =Budget!$BB$13 -> 160 | AT19: View these and other OSU Publications at:
AT20: OSU Fact Sheets | BJ20: custom lime | BK20: Monthly allocation of expenditures(%)
Q21: View these and other OSU Publications at: | BJ21: applic | BK21: 1 | BL21: 2 | BM21: 3 | BN21: 4 | BO21: 5 | BP21: 6 | BQ21: 7 | BR21: 8 | BS21: 9 | BT21: 10 | BU21: 11 | BV21: 12
Q22: OSU Fact Sheets | BK22: =IF($AT8=BK$8,100,0) -> 0 | BL22: =IF($AT8=BL$8,100,0) -> 0 | BM22: 100 | BN22: 0 | BO22: 0 | BP22: 0 | BQ22: 0 | BR22: 0 | BS22: 0 | BT22: 0 | BU22: 0 | BV22: 0
C24: Fertilizer cost/budget acre | F24: =SUMPRODUCT(D9:D16,M9:M16) -> 83.30169 | BJ24: cost/ac | BK24: =+BK22*IF($AZ8=0,0,$AU$8*$AY$8)/100*IF($AW$10=0,0,1)*$BH$17 -> 0 | BL24: =+BL22*IF($AZ8=0,0,$AU$8*$AY$8)/100*IF($AW$10=0,0,1)*$BH$17 -> 0 | BM24: 0 | BN24: 0 | BO24: 0 | BP24: 0 | BQ24: 0 | BR24: 0 | BS24: 0 | BT24: 0 | BU24: 0 | BV24: 0 | BW24: =SUM(BK24:BV24) -> 0
C25: Prorated lime cost/budget acre | F25: =AW11 -> 0
C26: Total cost/budget acre | F26: =SUM(F24:F25) -> 83.30169 | AD26: Month to | AE26: Lbs. Applied | AF26: Number of | AG26: % | AH26: % | AI26: % | AK26: Custom | AL26: When
C27: Custom application cost/budget acre | F27: =+BH13 -> 4 | AC27: Fertilizer | AD27: Apply | AE27: per acre | AF27: Acres | AG27: N | AH27: P | AI27: K | AJ27: $/Ton1 | AK27: App Charge | AL27: Applied
AC28: Anhydrous Ammonia | AF28: =+Budget!$BB$13 -> 160 | AG28: 82 | AH28: 0 | AI28: 0 | AJ28: 820 | AK28: 12 | AL28: Pre-Plant
AC29: Ammonium Nitrate | AF29: =+Budget!$BB$13 -> 160 | AG29: 34 | AH29: 0 | AI29: 0 | AK29: 6.09 | AL29: Pre-Plant
AC30: Ammonium Polyphosphate | AF30: =+Budget!$BB$13 -> 160 | AG30: 10 | AH30: 34 | AI30: 0 | AJ30: 625 | AK30: 5.85 | AL30: Pre-Plant
AC31: Diammonium Phosphate | AF31: =+Budget!$BB$13 -> 160 | AG31: 18 | AH31: 46 | AI31: 0 | AJ31: 740 | AK31: 6.09 | AL31: Pre-Plant
AC32: Monoammonium Phosphate | AF32: =+Budget!$BB$13 -> 160 | AG32: 11 | AH32: 52 | AI32: 0 | AJ32: 800 | AK32: 6.09 | AL32: Pre-Plant
AC33: Muriate of Potash | AF33: =+Budget!$BB$13 -> 160 | AG33: 0 | AH33: 0 | AI33: 60 | AJ33: 520 | AK33: 6.09 | AL33: Pre-Plant
AC34: Urea | AD34: 4 | AE34: 80 | AF34: 160 | AG34: 46 | AH34: 0 | AI34: 0 | AJ34: 610.29 | AK34: 4
AF35: =+Budget!$BB$13 -> 160
AF36: =+Budget!$BB$13 -> 160
AF37: =+Budget!$BB$13 -> 160
AF38: =+Budget!$BB$13 -> 160
AF39: =+Budget!$BB$13 -> 160
AF40: =+Budget!$BB$13 -> 160
AF41: =+Budget!$BB$13 -> 160
AF42: =+Budget!$BB$13 -> 160

Sheet Harvest
A1: Harvest | B1: Will this crop be harvested using your own equipment or using a custom harvester?
O6: Custom harvest? | P6: FALSE
E9: Extra cost | G9: Cost for | N9: Yield (from Budget) | P9: =Crop_Yield -> 100
D10: Per acre | E10: for yld over | F10: Charge for | G10: hauling | H10: Share | N10: Extra cost for yld | P10: =IF(ISNUMBER(E13),E13,E12) -> 40
B11: Custom Harvest | D11: Charge | E11: =+IF(Yield!AJ22="Bushel", "x bushel","x cwt") -> x bushel | F11: extra yield | G11: grain | H11: Amount | N11: Amount over | P11: =P9-P10 -> 60
B12: Default | D12: 25 | E12: 40 | F12: 0.24 | G12: 0.21 | N12: if < 0 =0 | P12: =IF(P11<0,0,P11) -> 60
B13: Your values | H13: 1 | S13: 1
N14: Per acre | O14: =IF(Crop_Yield<=0,0,IF(ISNUMBER(D13),D13,D12)) -> 25
N15: yld over x | O15: =IF(ISNUMBER(E13),E13,E12) -> 40 | Q15: =+O15*0.56 -> 22.4
D16: Per Acre | N16: charge for x | O16: =IF(ISNUMBER(F13),F13,F12) -> 0.24 | Q16: =+O16/0.56 -> 0.4285714286
B17: Custom Harvest | D17: Cost | N17: hauling | O17: =IF(ISNUMBER(G13),G13,G12) -> 0.21 | Q17: =+O17/0.56 -> 0.375
B18: Per acre charge | D18: =O14 -> 25
B19: Extra yield charge | D19: =O16*P12 -> 14.4
B20: Hauling cost | D20: =O17*Crop_Yield -> 21
B21: Total Custom Cost | D21: =SUM(D18:D20) -> 60.4
B22: Total Share Cost | D22: =IF(Budget!BB5="share",D21*H13,D21) -> 60.4
B25: Owned Harvest Machinery Costs | M25: Combine Cost Estimator
M26: (includes header equipment)
M27: Crop Type (1 for grain sorghum) | O27: 1
M28: Combine (1=New, 2=Used) | O28: 2
AC29: Harvest
E30: Your | M30: Combine Information | Q30: Harvest Cost per Acre | AC30: Cost
D31: Default | E31: Value | N31: Make | Q31: Variable costs | S31: Combine | T31: Other | U31: Total | AA31: Variable costs
B32: Variable costs | N32: Model | Q32: Fuel | S32: =AA61 -> 6.439691176 | T32: 0 | U32: =SUM(S32:T32) -> 6.439691176 | AB32: Fuel | AC32: =IF(ISNUMBER(E33),E33,D33) -> 6.439691176
C33: Fuel | D33: =IF(Crop_Yield<=0,0,U32) -> 6.439691176 | N33: List Price | O33: =510000+51000 -> 561000 | Q33: Lube | S33: =AA62 -> 0.9659536765 | T33: 0 | U33: =SUM(S33:T33) -> 0.9659536765 | AB33: Lube | AC33: =IF(ISNUMBER(E34),E34,D34) -> 0.9659536765
C34: Lube | D34: =IF(Crop_Yield<=0,0,U33) -> 0.9659536765 | H34: Variable | N34: Use: acres/year | O34: 3000 | Q34: Repairs | S34: =AA59 -> 14.31231175 | T34: 0 | U34: 14.31231175 | AB34: Repairs | AC34: =IF(ISNUMBER(E35),E35,D35) -> 14.31231175
C35: Repairs | D35: =IF(Crop_Yield<=0,0,U34) -> 14.31231175 | H35: Cost Share | N35: Header width (ft) | O35: 30 | Q35: Total | S35: =SUM(S32:S34) -> 21.7179566 | T35: =SUM(T32:T34) -> 0 | U35: 21.7179566 | AB35: Total | AC35: =SUM(AC32:AC34) -> 21.7179566
C36: Total | D36: =SUM(D33:D35) -> 21.7179566 | E36: =IF(P6,0,IF(ISNUMBER(E33),E33,D33)+IF(ISNUMBER(E34),E34,D34)+IF(ISNUMBER(E35),E35,D35)) -> 21.7179566 | H36: 1 | N36: Field speed (mph) | O36: 3 | Q36: Fixed costs | AA36: Fixed costs
B37: Fixed costs | N37: Engine horsepower | O37: 375 | Q37: Depreciation | S37: =AA68 -> 9.116858124 | T37: 0 | U37: 9.116858124 | AB37: Depreciation | AC37: =IF(ISNUMBER(E38),E38,D38) -> 9.116858124
C38: Depreciation | D38: =IF(Crop_Yield<=0,0,U37) -> 9.116858124 | N38: Field efficiency | O38: 0.85 | Q38: Insurance | S38: =AA70 -> 0.4912195313 | T38: 0 | U38: 0.4912195313 | AB38: Insurance | AC38: =IF(ISNUMBER(E39),E39,D39) -> 0.4912195313
C39: Insurance | D39: =IF(Crop_Yield<=0,0,U38) -> 0.4912195313 | N39: Interest rate (if financed) | O39: 0.0775 | Q39: Taxes | S39: =AA69 -> 0.805826784 | T39: 0 | U39: 0.805826784 | AB39: Taxes | AC39: =IF(ISNUMBER(E40),E40,D40) -> 0.805826784
C40: Taxes | D40: =IF(Crop_Yield<=0,0,U39) -> 0.805826784 | H40: Fixed | M40: New Machine | Q40: Interest | S40: =AA72 -> 4.478766314 | T40: 0 | U40: 4.478766314 | AB40: Interest | AC40: =IF(ISNUMBER(E41),E41,D41) -> 4.478766314
C41: Interest | D41: =IF(Crop_Yield<=0,0,U40) -> 4.478766314 | H41: Cost Share | N41: Purchase price | O41: =0.9*O33 -> 504900 | Q41: Total | S41: =SUM(S37:S40) -> 14.89267075 | T41: =SUM(T37:T40) -> 0 | U41: 14.89267075 | AB41: Total | AC41: =SUM(AC37:AC40) -> 14.89267075
C42: Total | D42: =SUM(D38:D41) -> 14.89267075 | E42: =IF(P6,0,IF(ISNUMBER(E38),E38,D38)+IF(ISNUMBER(E39),E39,D39)+IF(ISNUMBER(E40),E40,D40)+IF(ISNUMBER(E41),E41,D41)) -> 14.89267075 | H42: 1 | N42: Years you will use | O42: 10
M43: Used Machine: | Q43: Hours of labor | S43: =AA63 -> 0.1294117647 | T43: 0 | U43: 0.1294117647 | AA43: Hours of labor | AC43: =IF(ISNUMBER(E44),E44,D44) -> 0.1294117647
B44: Hours of labor | D44: =IF(Crop_Yield<=0,0,U43) -> 0.1294117647 | H44: Labor Share | N44: Estimated purchase price | O44: =+(O33*AI62*AI63^O46)*1.25 -> 241748.0352 | Q44: Perf. rate (hrs/ac) | S44: =+AA57 -> 0.1078431373
B45: Labor costs per acre | D45: =D44*IF(Parameters!D8>0,Parameters!D8,Parameters!C8) -> 2.361764706 | E45: =IF(P6,0,IF(ISNUMBER(E44),E44,D44)*Parameters!P8) -> 2.361764706 | H45: 1 | N45: Your purchase price | Q45: Perf. rate (ac/hr) | S45: =+AC56 -> 9.272727273 | AC45: 160
B46: Total costs | D46: =+D36+D42+D45 -> 38.97239206 | E46: =+E36+E42+E45 -> 38.97239206 | N46: Age when purchased | O46: 5 | Q46: Breakeven acreage to justify
N47: Hours when purchased | O47: 1750 | Q47: machine ownership (vs. Custom Harvest) | U47: =+IF(D18+D19-AA65=0,"NA",IF(AB73/(D18+D19-AA65)<=0,"NA",AB73/(D18+D19-AA65))) -> 2916.266287 | AC47: TRUE
B48: For additional information, see: | N48: Years you will use | O48: 5 | U48: =+IF(Crop_Yield<=0,"",IF(D18+D19-AA65=0,"",IF(AB73/(D18+D19-AA65)<0,"Custom rate is less than variable costs and labor.",""))) -> 
B49: CR-205 Oklahoma Farm and Ranch Custom Rates
B50: AGEC-240 Machinery Ownership versus Custom Harvest
B52: View these and other OSU Publications at: | AA52: Combine Cost Calculator (Developed by Darrell Kletke)
B53: OSU Fact Sheets
AD54: Ownership
AA55: PerAcre | AB55: Annual | AC55: PerHour | AD55: Period
Z56: Acres | AA56: 1 | AB56: =O34 -> 3000 | AC56: =O36*O35*AI58/8.25 -> 9.272727273
Z57: Hours of use | AA57: =IF(AC56=0,0,1/AC56) -> 0.1078431373 | AB57: =IF(AC56=0,0,O34/AC56) -> 323.5294118 | AC57: 1 | AD57: =IF(O28=1,AB57*O42,AB57*O48) -> 1617.647059 | AF57: Cost estimation parameters
AH58: Field efficiency | AI58: =+O38 -> 0.85
Z59: Total Accumulated repairs | AA59: =IF(O34=0,0,AB59/O34) -> 14.31231175 | AB59: =IF(O28=1,IF(O42=0,0,AD59/O42),IF(O48=0,0,AD59/O48)) -> 42936.93525 | AC59: =IF(AB57=0,0,AB59/AB57) -> 132.7141635 | AD59: =IF(O28=1,O33*AI59*AI60*((AB57*O42/AI64*100)^AI61),O33*AI59*AI60*(((O47+AB57*O48)/AI64*100)^AI61)-O33*AI59*AI60*((O47/AI64*100)^AI61)) -> 214684.6762 | AH59: RC1 | AI59: 0.401804
Z60: Total Gallons of Diesel | AA60: =IF(O27=1,AI66,IF(O27=2,AI67,AI68)) -> 1.957352941 | AB60: =AA60*AB56 -> 5872.058824 | AC60: =AA60*AC56 -> 18.15 | AH60: RC2 | AI60: 6.31e-05
Z61: Total fuel cost | AA61: =IF(O34=0,0,IF(O34="",0,AA60*$AI$69)) -> 6.439691176 | AB61: =AB60*$AI$69 -> 19319.07353 | AC61: =AC60*$AI$69 -> 59.7135 | AH61: RC3 | AI61: 2.1
Z62: Total lube cost (15% of fuel) | AA62: =0.15*AA61 -> 0.9659536765 | AB62: =0.15*AB61 -> 2897.861029 | AC62: =0.15*AC61 -> 8.957025 | AH62: RFV1 | AI62: 0.635
Z63: Total hours labor | AA63: =1.2*AA57 -> 0.1294117647 | AB63: =1.2*AB57 -> 388.2352941 | AC63: =1.2*AC57 -> 1.2 | AH63: RFV2 | AI63: 0.885
Z64: Total combine labor cost | AA64: =$AI$70*AA63 -> 2.361764706 | AB64: =$AI$70*AB63 -> 7085.294118 | AC64: =$AI$70*AC63 -> 21.9 | AH64: Hours of life | AI64: 3000
Z65: Variable costs | AA65: =AA59+AA61+AA62+AA64 -> 24.07972131 | AB65: =AB59+AB61+AB62+AB64 -> 72239.16393 | AC65: =AC59+AC61+AC62+AC64 -> 223.2846885 | AH65: Fuel Multiplier | AI65: 0.044
AH66: Diesel per acre(GS) | AI66: =+((O37*AI65)/AC56)*1.1 -> 1.957352941
Z67: Salvage value | AD67: =IF(O28=1,O33*AI62*AI63^O42,O33*AI62*AI63^(O46+O48)) -> 104995.1633
Z68: Depreciation | AA68: =IF(AC56=0,0,AC68/$AC$56) -> 9.116858124 | AB68: =IF(O42=0,0,(IF(O28=1,IF(O41=0,0,(O41-AD67)/O42),IF(O48=0,0,IF(AI73=0,0,(AI73-AD67)/O48))))) -> 27350.57437 | AC68: =IF(AB57=0,0,AB68/$AB$57) -> 84.53813896
Z69: Taxes | AA69: =IF(AC56=0,0,AC69/$AC$56) -> 0.805826784 | AB69: =AI71*IF(O28=1,O41,AI73) -> 2417.480352 | AC69: =IF(AB57=0,0,AB69/$AB$57) -> 7.472211997 | AH69: Fuel price/gallon ($) | AI69: =Parameters!P9 -> 3.29
Z70: Insurance | AA70: =IF(AC56=0,0,AC70/$AC$56) -> 0.4912195313 | AB70: =+AB71*$AI$72 -> 1473.658594 | AC70: =IF(AB57=0,0,AB70/$AB$57) -> 4.554944744 | AH70: Wage rate/hour ($) | AI70: =Parameters!P8 -> 18.25
Z71: Average Investment | AA71: =IF(AC56=0,0,AC71/$AC$56) -> 57.79053309 | AB71: =IF(O28=1,(O41+AD67)/2,(AI73+AD67)/2) -> 173371.5993 | AC71: =IF(AB57=0,0,AB71/$AB$57) -> 535.8758523 | AH71: Taxes (% of purchase price) | AI71: =Parameters!P12 -> 0.01
Z72: Interest | AA72: =AA71*$O$39 -> 4.478766314 | AB72: =AB71*$O$39 -> 13436.29894 | AC72: =AC71*$O$39 -> 41.53037855 | AH72: Insurance (% of purchase price) | AI72: =Parameters!P13 -> 0.0085
Z73: Fixed costs | AA73: =AA68+AA69+AA70+AA72 -> 14.89267075 | AB73: =AB68+AB69+AB70+AB72 -> 44678.01226 | AC73: =AC68+AC69+AC70+AC72 -> 138.0956743 | AH73: purchase price | AI73: =+IF(ISNUMBER(O45),O45,O44) -> 241748.0352
AH74: engine HP | AI74: =+O37 -> 375
U75: Local Custom Combine Rates | Z75: Totals | AA75: =AA65+AA73 -> 38.97239206 | AB75: =AB65+AB73 -> 116917.1762 | AC75: =AC65+AC73 -> 361.3803628 | AH75: Diesel per hr | AI75: =+AI74*AI65 -> 16.5
U76: Flat rate per acre ($) | V76: 12
U77: Extra charge per bushel ($) | V77: 0.12
U78: For excess over xx bu./ac. | V78: 20
U79: Yield per acre | V79: 35

Sheet Pesticide
B1: Pesticide | AB1: Pesticide Descriptions
AB2: (a max of 20 Pesticides can be listed, start in aa5 and go down, no blank rows)
AC3: Month to | AD3: Application | AE3: Units | AF3: Number of | AG3: Cost | AH3: Charge for | AI3: What it
AB4: Pesticide | AC4: Apply | AD4: Unit | AE4: per Acre | AF4: Acres | AG4: per Unit | AH4: Cust App | AI4: Controls | AJ4: Other Comments
AB5: Atrazine 4L | AC5: 6 | AD5: Fl. Oz. | AE5: 12 | AF5: =Budget!$BB$13 -> 160 | AG5: =2.34/16 -> 0.14625 | AH5: 0 | AI5: Broadleaf/small grasses | AJ5: Resticted use pesticide. Apply pre or postemergence. See label for restrictions/waiting periods.
AB6: Baythroid XL (chinch bug) | AD6: Fl. Oz. | AE6: 2 | AF6: =Budget!$BB$13 -> 160 | AG6: 1.32 | AH6: 5.63 | AI6: Chinch bug | AJ6: Restricted use pesticide. See label for restrictions/waiting periods.
C7: Month to | D7: Application | E7: Units | F7: Acreage | G7: Cost | H7: Custom App. | I7: Share of | J7: Cost of | K7: Total App. | L7: prorated | AB7: Baythroid XL (earworm) | AD7: Fl. Oz. | AE7: 2 | AF7: =Budget!$BB$13 -> 160 | AG7: 1.32 | AH7: 5.63 | AI7: Corn earworm, fall armyworm | AJ7: Restricted use pesticide. See label for restrictions/waiting periods. | AM7: custom pest | AN7: Monthly allocation of expenditures(%)
B8: Pesticide | C8: Apply | D8: Unit | E8: per Acre | F8: Applied | G8: per Unit | H8: Charge | I8: Expense | J8: Chemical | K8: Cost | AB8: Bicep Lite II Magnum | AC8: 5 | AD8: Fl. Oz. | AE8: 32 | AF8: =Budget!$BB$13 -> 160 | AG8: =15.46/32 -> 0.483125 | AH8: 0 | AI8: Grasses/broadleaf | AJ8: (Dual + atrazine) Apply preemergence. Treat seeds with a safener (e.g., Concep, Screen) | AM8: applic | AN8: 1 | AO8: 2 | AP8: 3 | AQ8: 4 | AR8: 5 | AS8: 6 | AT8: 7 | AU8: 8 | AV8: 9 | AW8: 10 | AX8: 11 | AY8: 12
B9: Bicep Lite II Magnum | C9: 5 | D9: Fl. Oz. | E9: 32 | F9: 160 | G9: 0.48 | H9: 0 | I9: 1 | J9: =$G9*$E9*F9/Budget!BB$13 -> 15.36 | K9: =+J9+L9 -> 15.36 | L9: =H9*F9/Budget!BB$13 -> 0 | AB9: Dimethoate 4EC | AD9: Pint | AE9: 0.75 | AF9: =Budget!$BB$13 -> 160 | AG9: 13.5 | AH9: 5.63 | AI9: Sorghum greenbug | AJ9: See label for restrictions/waiting periods. | AN9: =IF($C9=AN$8,100,0) -> 0 | AO9: 0 | AP9: 0 | AQ9: 0 | AR9: 100 | AS9: 0 | AT9: 0 | AU9: 0 | AV9: 0 | AW9: 0 | AX9: 0 | AY9: 0
B10: Huskie | C10: 6 | D10: Fl. Oz. | E10: 16 | F10: 160 | G10: 0.99 | H10: 0 | I10: 1 | J10: =$G10*$E10*F10/Budget!BB$13 -> 15.84 | K10: =+J10+L10 -> 15.84 | L10: =H10*F10/Budget!BB$13 -> 0 | AB10: Dual II Magnum | AD10: Pint | AE10: 1.4 | AF10: =Budget!$BB$13 -> 160 | AG10: 12.03 | AH10: 5.63 | AI10: Grasses/several broadleaf | AJ10: Apply preemergence. Will kill sorghum unless seeds treated with safener (e.g., Concep, Screen) | AN10: 0 | AO10: 0 | AP10: 0 | AQ10: 0 | AR10: 0 | AS10: 100 | AT10: 0 | AU10: 0 | AV10: 0 | AW10: 0 | AX10: 0 | AY10: 0
B11: Atrazine 4L | C11: 6 | D11: Fl. Oz. | E11: 16 | F11: 160 | G11: 0.15 | H11: 0 | I11: 1 | J11: =$G11*$E11*F11/Budget!BB$13 -> 2.4 | K11: 2.4 | L11: =H11*F11/Budget!BB$13 -> 0 | AB11: Huskie | AC11: 6 | AD11: Fl. Oz. | AE11: 16 | AF11: =Budget!$BB$13 -> 160 | AG11: 0.99 | AH11: 0 | AI11: Broadleaf | AJ11: One pound ammonium sulfate may optimize usage. Restricted use pesticide. See label for restrictions/waiting periods. | AN11: 0 | AO11: 0 | AP11: 0 | AQ11: 0 | AR11: 0 | AS11: 100 | AT11: 0 | AU11: 0 | AV11: 0 | AW11: 0 | AX11: 0 | AY11: 0
B12: Sivanto 200 SL | C12: 8 | D12: Fl. Oz. | E12: 5.5 | F12: 160 | G12: 2.53 | H12: 5.63 | I12: 1 | J12: =$G12*$E12*F12/Budget!BB$13 -> 13.915 | K12: 19.545 | L12: =H12*F12/Budget!BB$13 -> 5.63 | AB12: Karate Z (armyworm) | AD12: Fl. Oz. | AE12: 1.6 | AF12: =Budget!$BB$13 -> 160 | AG12: 3.02 | AH12: 5.63 | AI12: Corn earworm, fall armyworm | AJ12: Restricted use pesticide. See label for restrictions/waiting periods. | AN12: 0 | AO12: 0 | AP12: 0 | AQ12: 0 | AR12: 0 | AS12: 0 | AT12: 0 | AU12: 100 | AV12: 0 | AW12: 0 | AX12: 0 | AY12: 0
I13: 1 | J13: =$G13*$E13*F13/Budget!BB$13 -> 0 | K13: 0 | L13: =H13*F13/Budget!BB$13 -> 0 | AB13: Karate Z (chinch bug) | AD13: Fl. Oz. | AE13: 1.92 | AF13: =Budget!$BB$13 -> 160 | AG13: 3.02 | AH13: 5.63 | AI13: Chinch bug | AJ13: Restricted use pesticide. See label for restrictions/waiting periods. | AN13: 0 | AO13: 0 | AP13: 0 | AQ13: 0 | AR13: 0 | AS13: 0 | AT13: 0 | AU13: 0 | AV13: 0 | AW13: 0 | AX13: 0 | AY13: 0
I14: 1 | J14: =$G14*$E14*F14/Budget!BB$13 -> 0 | K14: 0 | L14: =H14*F14/Budget!BB$13 -> 0 | AB14: Lasso | AD14: Quart | AE14: 2.75 | AF14: =Budget!$BB$13 -> 160 | AH14: 5.63 | AI14: Grasses/several broadleaf | AJ14: Restricted use pesticide. Apply preemergence. | AN14: 0 | AO14: 0 | AP14: 0 | AQ14: 0 | AR14: 0 | AS14: 0 | AT14: 0 | AU14: 0 | AV14: 0 | AW14: 0 | AX14: 0 | AY14: 0
I15: 1 | J15: =$G15*$E15*F15/Budget!BB$13 -> 0 | K15: 0 | L15: =H15*F15/Budget!BB$13 -> 0 | AB15: Lorsban 4E (greenbug) | AD15: Pint | AE15: 1.25 | AF15: =Budget!$BB$13 -> 160 | AH15: 5.63 | AI15: Sorghum greenbug | AJ15: PLEASE NOTE: EPA has banned chlorpyrifos use in food or feed crops effective February 28, 2022 | AN15: 0 | AO15: 0 | AP15: 0 | AQ15: 0 | AR15: 0 | AS15: 0 | AT15: 0 | AU15: 0 | AV15: 0 | AW15: 0 | AX15: 0 | AY15: 0
I16: 1 | J16: =$G16*$E16*F16/Budget!BB$13 -> 0 | K16: 0 | L16: =H16*F16/Budget!BB$13 -> 0 | AB16: Lorsban 4E (midge) | AD16: Pint | AE16: 0.5 | AF16: =Budget!$BB$13 -> 160 | AH16: 5.63 | AI16: Sorghum midge | AJ16: PLEASE NOTE: EPA has banned chlorpyrifos use in food or feed crops effective February 28, 2022 | AN16: 0 | AO16: 0 | AP16: 0 | AQ16: 0 | AR16: 0 | AS16: 0 | AT16: 0 | AU16: 0 | AV16: 0 | AW16: 0 | AX16: 0 | AY16: 0
H17: Total cost per budget acre | I17: =SUMPRODUCT(I9:I16,J9:J16) -> 47.515 | J17: =SUM(J9:J16) -> 47.515 | K17: =SUM(K9:K16) -> 53.145 | L17: =SUM(L9:L16) -> 5.63 | AB17: Lorsban 4E (webworm) | AD17: Pint | AE17: 1 | AF17: =Budget!$BB$13 -> 160 | AH17: 5.63 | AI17: Sorghum webworm | AJ17: PLEASE NOTE: EPA has banned chlorpyrifos use in food or feed crops effective February 28, 2022
AB18: Mustang MAX (chinch Bug) | AD18: Fl. Oz. | AE18: 3.6 | AF18: =Budget!$BB$13 -> 160 | AG18: 1.18 | AH18: 5.63 | AI18: Chinch bug | AJ18: Restricted use pesticide. See label for restrictions/waiting periods. | AM18: cost/ac | AN18: =SUMPRODUCT(AN9:AN16*$L9:$L16/100) -> 0 | AO18: =SUMPRODUCT(AO9:AO16*$L9:$L16/100) -> 0 | AP18: 0 | AQ18: 0 | AR18: 0 | AS18: 0 | AT18: 0 | AU18: 5.63 | AV18: 0 | AW18: 0 | AX18: 0 | AY18: 0
AB19: Mustang MAX (earworm) | AD19: Fl. Oz. | AE19: 2.9 | AF19: =Budget!$BB$13 -> 160 | AG19: 1.18 | AH19: 5.63 | AI19: Corn earworm, fall armyworm, sorghum webworm | AJ19: Restricted use pesticide. See label for restrictions/waiting periods.
AB20: Paramount | AD20: Oz. | AE20: 5.3 | AF20: =Budget!$BB$13 -> 160 | AH20: 5.63 | AI20: Grasses/bindweed | AJ20: Apply pre (5.3 oz.) and postemergence (8 oz).
B21: For more information: | AB21: Peak | AD21: Oz. | AE21: 0.5 | AF21: =Budget!$BB$13 -> 160 | AG21: 19 | AH21: 5.63 | AI21: Broadleaf | AJ21: Apply postemergence for annual broadleaf weeds.
B22: EPP-322 Pesticide Recordkeeping Requirements for Crop Production | AB22: Sivanto 200 SL | AC22: 8 | AD22: Fl. Oz. | AE22: 5.5 | AF22: =Budget!$BB$13 -> 160 | AG22: 2.53 | AH22: 5.63 | AI22: Sugar cane aphid | AJ22: See label for restrictions/waiting periods.
B23: EPP-7157 Field Key to Larvae in Sorghums | AF23: =Budget!$BB$13 -> 160
B24: CR-7170 Management of Sorghum Insects | AF24: =Budget!$BB$13 -> 160
Z26: Pesticide Data Transfer Row -->
AC29: Month to | AD29: Application | AE29: Units | AF29: Number of | AG29: Cost | AH29: Charge for | AI29: What it
B30: View these and other OSU Publications at: | AB30: Pesticide | AC30: Apply | AD30: Unit | AE30: per Acre | AF30: Acres | AG30: per Unit | AH30: Cust App | AI30: Controls | AJ30: Other Comments
B31: OSU Fact Sheets | AB31: Atrazine 4L | AD31: Fl. Oz. | AE31: 12 | AF31: =Budget!$BB$13 -> 160 | AG31: 0.15 | AH31: 5.63 | AI31: Broadleaf/small grasses | AJ31: Resticted use pesticide. Apply pre or postemergence. See label for restrictions/waiting periods.
AB32: Baythroid XL (chinch bug) | AD32: Fl. Oz. | AE32: 2 | AF32: =Budget!$BB$13 -> 160 | AG32: 1.32 | AH32: 5.63 | AI32: Chinch bug | AJ32: Restricted use pesticide. See label for restrictions/waiting periods.
B33: For information on Ag Product Labels and Material Safety Data Sheets, see: | AB33: Baythroid XL (earworm) | AD33: Fl. Oz. | AE33: 2 | AF33: =Budget!$BB$13 -> 160 | AG33: 1.32 | AH33: 5.63 | AI33: Corn earworm, fall armyworm | AJ33: Restricted use pesticide. See label for restrictions/waiting periods.
B34: http://www.cdms.net/ | AB34: Bicep Lite II Magnum | AD34: Fl. Oz. | AE34: 32 | AF34: =Budget!$BB$13 -> 160 | AG34: 0.48 | AH34: 5.63 | AI34: Grasses/broadleaf | AJ34: (Dual + atrazine) Apply preemergence. Treat seeds with a safener (e.g., Concep, Screen)
AB35: Dimethoate 4EC | AD35: Pint | AE35: 0.75 | AF35: =Budget!$BB$13 -> 160 | AG35: 13.5 | AH35: 5.63 | AI35: Sorghum greenbug | AJ35: See label for restrictions/waiting periods.
AB36: Dual II Magnum | AD36: Pint | AE36: 1.4 | AF36: =Budget!$BB$13 -> 160 | AG36: 12.03 | AH36: 5.63 | AI36: Grasses/several broadleaf | AJ36: Apply preemergence. Will kill sorghum unless seeds treated with safener (e.g., Concep, Screen)
AB37: Huskie | AD37: Fl. Oz. | AE37: 16 | AF37: =Budget!$BB$13 -> 160 | AG37: 0.99 | AH37: 5.63 | AI37: Broadleaf | AJ37: One pound ammonium sulfate may optimize usage. Restricted use pesticide. See label for restrictions/waiting periods.
AB38: Karate Z (armyworm) | AD38: Fl. Oz. | AE38: 1.6 | AF38: =Budget!$BB$13 -> 160 | AG38: 3.02 | AH38: 5.63 | AI38: Corn earworm, fall armyworm | AJ38: Restricted use pesticide. See label for restrictions/waiting periods.
AB39: Karate Z (chinch bug) | AD39: Fl. Oz. | AE39: 1.92 | AF39: =Budget!$BB$13 -> 160 | AG39: 3.02 | AH39: 5.63 | AI39: Chinch bug | AJ39: Restricted use pesticide. See label for restrictions/waiting periods.
AB40: Lasso | AD40: Quart | AE40: 2.75 | AF40: =Budget!$BB$13 -> 160 | AH40: 5.63 | AI40: Grasses/several broadleaf | AJ40: Restricted use pesticide. Apply preemergence.
AB41: Lorsban 4E (greenbug) | AD41: Pint | AE41: 1.25 | AF41: =Budget!$BB$13 -> 160 | AH41: 5.63 | AI41: Sorghum greenbug | AJ41: PLEASE NOTE: EPA has banned chlorpyrifos use in food or feed crops effective February 28, 2022
AB42: Lorsban 4E (midge) | AD42: Pint | AE42: 0.5 | AF42: =Budget!$BB$13 -> 160 | AH42: 5.63 | AI42: Sorghum midge | AJ42: PLEASE NOTE: EPA has banned chlorpyrifos use in food or feed crops effective February 28, 2022
AB43: Lorsban 4E (webworm) | AD43: Pint | AE43: 1 | AF43: =Budget!$BB$13 -> 160 | AH43: 5.63 | AI43: Sorghum webworm | AJ43: PLEASE NOTE: EPA has banned chlorpyrifos use in food or feed crops effective February 28, 2022
AB44: Mustang MAX (chinch Bug) | AD44: Fl. Oz. | AE44: 3.6 | AF44: =Budget!$BB$13 -> 160 | AG44: 1.18 | AH44: 5.63 | AI44: Chinch bug | AJ44: Restricted use pesticide. See label for restrictions/waiting periods.
AB45: Mustang MAX (earworm) | AD45: Fl. Oz. | AE45: 2.9 | AF45: =Budget!$BB$13 -> 160 | AG45: 1.18 | AH45: 5.63 | AI45: Corn earworm, fall armyworm, sorghum webworm | AJ45: Restricted use pesticide. See label for restrictions/waiting periods.
AB46: Paramount | AD46: Oz. | AE46: 5.3 | AF46: =Budget!$BB$13 -> 160 | AH46: 5.63 | AI46: Grasses/bindweed | AJ46: Apply pre (5.3 oz.) and postemergence (8 oz).
AB47: Peak | AD47: Oz. | AE47: 0.5 | AF47: =Budget!$BB$13 -> 160 | AG47: 19 | AH47: 5.63 | AI47: Broadleaf | AJ47: Apply postemergence for annual broadleaf weeds.
AB48: Sivanto 200 SL | AD48: Fl. Oz. | AE48: 5.5 | AF48: =Budget!$BB$13 -> 160 | AG48: 2.53 | AH48: 5.63 | AI48: Sugar cane aphid | AJ48: See label for restrictions/waiting periods.
AF49: =+Budget!$BB$13 -> 160
AF50: =+Budget!$BB$13 -> 160

Sheet Ins
B1: Insurance
B6: Crop Insurance Specification
B8: Approved APH yield
B9: Yield coverage level
B10: Crop price election
B11: Value of coverage | C11: =+C8*C9*C10 -> 0
B12: Month of Expense | C12: 10
B13: Cost of Insurance | C13: 20
B14: Share Amount | C14: 1
B15: Cost of Insurance (share) | C15: =C13*C14 -> 20

Sheet Parameters
B1: Parameters
P5: Parameter
D6: Your | P6: value to
B7: Parameter Settings | C7: Default | D7: Value | P7: use
B8: Opportunity wage rate charged for labor | C8: 18.25 | O8: Wage | P8: 18.25
B9: Average fuel price (Diesel) | C9: 3.75 | O9: Fuel | P9: 3.29
B10: Interest rate charged on operating capital (operating loan) | C10: =P10 -> 0.075 | O10: Oper Int | P10: 0.075
B11: Interest rate charged on machinery loans | C11: 0.085 | O11: Mach Int | P11: 0.085
B12: Percent taxes on machinery purchase price | C12: 0.01 | O12: Mach Tax | P12: 0.01
B13: Percent insurance on machinery average value | C13: 0.0085 | O13: Ins. Rate | P13: 0.0085
B14: Annual capital month | C14: =Yield!P10 -> 10 | O14: Harv. Mo | P14: 10
B15: Opportunity interest rate charged on land capital | C15: =P15 -> 0.03 | O15: Land-opp cost | P15: 0.03
B16: Percent ad valorem tax rate on land | C16: =P16 -> 0.00013 | O16: ad valorem | P16: 0.00013
B17: Per acre average value for land | C17: =P17 -> 3000 | O17: avg. land value | P17: 3000
B18: Percent of taxes and desired rate of return assigned to grain sorghum | C18: 1 | O18: % prop to | P18: 1
O22: Prod | P22: Monthly allocation of expenditures(%)
O23: Land Taxes | P23: 1 | Q23: 2 | R23: 3 | S23: 4 | T23: 5 | U23: 6 | V23: 7 | W23: 8 | X23: 9 | Y23: 10 | Z23: 11 | AA23: 12
P24: 100 | Q24: 0 | R24: 0 | S24: 0 | T24: 0 | U24: 0 | V24: 0 | W24: 0 | X24: 0 | Y24: 0 | Z24: 0 | AA24: 0

Sheet Machinery
B1: Machinery
AA4: Fert | AB4: TRUE
AA5: Pest | AB5: TRUE
E7: Your
D8: Default | E8: Value | AA8: Custom
B9: Variable costs ($/acre) | AA9: Selected | AB9: FALSE | AC9: FALSE | AD9: FALSE | AE9: FALSE
C10: Fuel | D10: =V19*Parameters!$P$9 -> 16.99614
C11: Lube | D11: =V20*Parameters!$P$9 -> 2.55633 | Z11: Row Number | AA11: 33 | AH11: Variable | AJ11: Variable
C12: Repairs | D12: =V21 -> 20.42807589 | Z12: Column Number | AA12: 63 | AH12: Cost Share | AJ12: Cost Share
C13: Total | D13: =SUM(D10:D12) -> 39.98054589 | E13: =IF(V32,0,IF(ISNUMBER(E10),E10,D10)+IF(ISNUMBER(E11),E11,D11)+IF(ISNUMBER(E12),E12,D12))*IF(V33,IF(V34,0,1),1) -> 39.98054589 | AH13: 1 | AJ13: 0
B14: Fixed costs ($/acre) | AB14: share
C15: Depreciation | D15: =V24 -> 35.85168121 | V15: Selected | W15: Selected | X15: Mach Cost | Y15: Irrigation | Z15: Owned | AB15: Mach Cost | AC15: Irrigation | AD15: Owned
C16: Insurance | D16: =V25*Parameters!$P$13 -> 2.76723235 | V16: Complement | W16: Complement | X16: Value to use | Z16: Combine | AB16: Value to use | AD16: Combine
C17: Taxes | D17: =V26*Parameters!$P$12 -> 5.047981409 | V17: Parameter | W17: (A-D) | X17: Selected vs | Y17: Fixed | AA17: Variable | AB17: Selected vs | AC17: Fixed | AE17: Variable | AF17: VC | AH17: Fixed | AJ17: Fixed
C18: Interest | D18: =V27*Parameters!$P$11 -> 27.6723235 | U18: Variable costs | V18: Values | X18: custom | Y18: Cost | Z18: Costs | AA18: Cost | AB18: custom | AC18: Cost | AD18: Costs | AE18: Cost | AF18: x column | AH18: Cost Share | AJ18: Cost Share
C19: Total | D19: =SUM(D15:D18) -> 71.33921848 | E19: =IF(V32,0,IF(ISNUMBER(E15),E15,D15)+IF(ISNUMBER(E16),E16,D16)+IF(ISNUMBER(E17),E17,D17)+IF(ISNUMBER(E18),E18,D18))*IF(V33,IF(V34,0,1),1) -> 71.33921848 | U19: Fuel | V19: 5.166 | W19: =D10 -> 16.99614 | X19: =IF(ISNUMBER(E10),E10,W19) -> 16.99614 | Z19: =IF(Harvest!$P$6,0,Harvest!AC32) -> 6.439691176 | AA19: =IF($V$32,0,X19)*IF(V$33,IF(V$34,0,1),1)+Z19 -> 23.43583118 | AB19: =+IF(Budget!$BB$5="share",X19*$J$13,X19)*IF(V$32,0,1)*IF(V$33,IF(V$34,0,1),1) -> 16.99614 | AD19: =Z19*Harvest!$H$36 -> 6.439691176 | AE19: =+IF($V$32,0,AB19)+AD19 -> 23.43583118 | AF19: =IF($V$32,0,X19)*IF(V$33,IF(V$34,0,1),1) -> 16.99614 | AH19: 1 | AJ19: 0
U20: Lube | V20: 0.777 | W20: =D11 -> 2.55633 | X20: =IF(ISNUMBER(E11),E11,W20) -> 2.55633 | Z20: =IF(Harvest!$P$6,0,Harvest!AC33) -> 0.9659536765 | AA20: =IF($V$32,0,X20)*IF(V$33,IF(V$34,0,1),1)+Z20 -> 3.522283676 | AB20: =+IF(Budget!$BB$5="share",X20*$J$13,X20)*IF(V$32,0,1)*IF(V$33,IF(V$34,0,1),1) -> 2.55633 | AD20: =Z20*Harvest!$H$36 -> 0.9659536765 | AE20: =+IF($V$32,0,AB20)+AD20 -> 3.522283676 | AF20: =IF($V$32,0,X20)*IF(V$33,IF(V$34,0,1),1) -> 2.55633
B21: Hours of labor (Hrs/Acre) | D21: =V30 -> 0.608 | U21: Repairs | V21: 20.42807589 | W21: 20.42807589 | X21: =IF(ISNUMBER(E12),E12,W21) -> 20.42807589 | Z21: =IF(Harvest!$P$6,0,Harvest!AC34) -> 14.31231175 | AA21: =IF($V$32,0,X21)*IF(V$33,IF(V$34,0,1),1)+Z21 -> 34.74038764 | AB21: =+IF(Budget!$BB$5="share",X21*$J$13,X21)*IF(V$32,0,1)*IF(V$33,IF(V$34,0,1),1) -> 20.42807589 | AD21: =Z21*Harvest!$H$36 -> 14.31231175 | AE21: =+IF($V$32,0,AB21)+AD21 -> 34.74038764 | AF21: =IF($V$32,0,X21)*IF(V$33,IF(V$34,0,1),1) -> 20.42807589
U22: Total | W22: 39.98054589 | X22: =SUM(X19:X21) -> 39.98054589 | AA22: =SUM(AA19:AA21) -> 61.6985025 | AB22: =SUM(AB19:AB21) -> 39.98054589 | AE22: =SUM(AE19:AE21) -> 61.6985025 | AF22: =SUM(AF19:AF21) -> 39.98054589
B23: Tractor #1 (hp) | D23: 270 | U23: Fixed costs | AA23: Cost | AE23: fixed
B24: Tractor #2 (hp) | D24: 95 | U24: Depreciation | V24: 35.85168121 | W24: 35.85168121 | X24: =IF(ISNUMBER(E15),E15,W24) -> 35.85168121 | Y24: =IF(Budget!BB$3,0,Irrig!BH34) -> 88.82678703 | Z24: =IF(Harvest!$P$6,0,Harvest!AC37) -> 9.116858124 | AA24: =IF($V$32,0,X24)*IF(V$33,IF(V$34,0,1),1)+SUM(Y24:Z24) -> 133.7953264 | AB24: =+IF(Budget!$BB$5="share",X24*$J$19,X24)*IF(V$32,0,1)*IF(V$33,IF(V$34,0,1),1) -> 35.85168121 | AC24: =+Y24*Irrig!$F$32 -> 0 | AD24: =+Z24*Harvest!$H$42 -> 9.116858124 | AE24: =IF($V$32,0,AB24)+SUM(AC24:AD24) -> 44.96853934 | AF24: =IF($V$32,0,X24)*IF(V$33,IF(V$34,0,1),1) -> 35.85168121
B25: Tractor #3 (hp) | U25: Insurance | V25: 325.5567471 | W25: 2.76723235 | X25: =IF(ISNUMBER(E16),E16,W25) -> 2.76723235 | Y25: =IF(Budget!BB$3,0,Irrig!BH35) -> 11.31975547 | Z25: =IF(Harvest!$P$6,0,Harvest!AC38) -> 0.4912195313 | AA25: =IF($V$32,0,X25)*IF(V$33,IF(V$34,0,1),1)+SUM(Y25:Z25) -> 14.57820735 | AB25: =+IF(Budget!$BB$5="share",X25*$J$19,X25)*IF(V$32,0,1)*IF(V$33,IF(V$34,0,1),1) -> 2.76723235 | AC25: =+Y25*Irrig!$F$32 -> 0 | AD25: =+Z25*Harvest!$H$42 -> 0.4912195313 | AE25: =IF($V$32,0,AB25)+SUM(AC25:AD25) -> 3.258451882 | AF25: =IF($V$32,0,X25)*IF(V$33,IF(V$34,0,1),1) -> 2.76723235 | AH25: Labor Share | AJ25: Labor Share
B26: Labor costs per acre | D26: =D21*IF(Parameters!D8>0,Parameters!D8,Parameters!C8) -> 11.096 | E26: =IF(V32,0,IF(ISNUMBER(E21),E21,D21))*Parameters!P8*IF(V33,IF(V34,0,1),1) -> 11.096 | U26: Taxes | V26: 504.7981409 | W26: 5.047981409 | X26: =IF(ISNUMBER(E17),E17,W26) -> 5.047981409 | Y26: =IF(Budget!BB$3,0,Irrig!BH36) -> 13.31735938 | Z26: =IF(Harvest!$P$6,0,Harvest!AC39) -> 0.805826784 | AA26: =IF($V$32,0,X26)*IF(V$33,IF(V$34,0,1),1)+SUM(Y26:Z26) -> 19.17116757 | AB26: =+IF(Budget!$BB$5="share",X26*$J$19,X26)*IF(V$32,0,1)*IF(V$33,IF(V$34,0,1),1) -> 5.047981409 | AC26: =+Y26*Irrig!$F$32 -> 0 | AD26: =+Z26*Harvest!$H$42 -> 0.805826784 | AE26: =IF($V$32,0,AB26)+SUM(AC26:AD26) -> 5.853808193 | AF26: =IF($V$32,0,X26)*IF(V$33,IF(V$34,0,1),1) -> 5.047981409 | AH26: 1 | AJ26: 0
B27: Total owned machinery costs | D27: =+D13+D19+D26 -> 122.4157644 | E27: =+E13+E19+E26 -> 122.4157644 | U27: Interest | V27: 325.5567471 | W27: 27.6723235 | X27: =IF(ISNUMBER(E18),E18,W27) -> 27.6723235 | Y27: =IF(Budget!BB$3,0,Irrig!BH37) -> 113.1975547 | Z27: =IF(Harvest!$P$6,0,Harvest!AC40) -> 4.478766314 | AA27: =IF($V$32,0,X27)*IF(V$33,IF(V$34,0,1),1)+SUM(Y27:Z27) -> 145.3486445 | AB27: =+IF(Budget!$BB$5="share",X27*$J$19,X27)*IF(V$32,0,1)*IF(V$33,IF(V$34,0,1),1) -> 27.6723235 | AC27: =+Y27*Irrig!$F$32 -> 0 | AD27: =+Z27*Harvest!$H$42 -> 4.478766314 | AE27: =IF($V$32,0,AB27)+SUM(AC27:AD27) -> 32.15108982 | AF27: =IF($V$32,0,X27)*IF(V$33,IF(V$34,0,1),1) -> 27.6723235
B28: Total custom machinery costs | E28: =+IF(V32,Q65,0)+IF(V33,Q66,0)+Fertilizer!BH13+Pesticide!L17 -> 9.63 | U28: Total | W28: 71.33921848 | X28: =SUM(X24:X27) -> 71.33921848 | Y28: 226.6614566 | Z28: 14.89267075 | AA28: 312.8933458 | AB28: 71.33921848 | AC28: 0 | AD28: 14.89267075 | AE28: 86.23188923 | BG28: 28630
B29: Total machinery costs | E29: =+E27+E28 -> 132.0457644
U30: Hours labor | V30: 0.608 | W30: 0.608 | X30: =IF(V32, 0,IF(ISNUMBER(E21),E21,W30))*IF(V$33,IF(V$34,0,1),1) -> 0.608 | Z30: =IF(Harvest!$P$6,0,Harvest!AC43) -> 0.1294117647 | AB30: =+X30*J26 -> 0 | AD30: =+Z30*Harvest!H45 -> 0.1294117647
B31: For additional information, see:
B32: CR-205 Oklahoma Farm and Ranch Custom Rates | U32: Use custom (T/F) | V32: FALSE | X32: =+X22+X28+IF(ISNUMBER(E21),E21,W30)*Parameters!P8 -> 122.4157644
B33: View these and other OSU Publications at: | U33: Use Both (T/F) | V33: FALSE
B34: OSU Fact Sheets | U34: Use Both(All custom) | V34: FALSE
U35: Use Both(All own) | V35: TRUE
U37: Values of chkbox | V37: 0 | W37: 0 | X37: 0 | Y37: 0 | Z37: 0 | AA37: 0 | AB37: 0 | AC37: 0 | AD37: 0 | AE37: 0 | AF37: 0 | AG37: 0 | AH37: 0 | AI37: 0 | AJ37: 0 | AK37: 0 | AL37: 0 | AM37: 0 | AN37: 0 | AO37: 0
U38: Selected Custom Cost | V38: =$D$44*$R$44*$V$37+$D$45*$R$45*$W$37+IF($AB$4,0,$D$46*$R$46*$X$37)+$D$47*$R$47*$Y$37+$D$48*$R$48*$Z$37+$D$49*$R$49*$AA$37+$D$50*$R$50*$AB$37+$D$51*$R$51*$AC$37+$D$52*$R$52*$AD$37+$D$53*$R$53*$AE$37+$D$54*$R$54*$AF$37+$D$55*$R$55*$AG$37+$D$56*$R$56*$AH$37+$D$57*$R$57*$AI$37+IF($AB$5,0,$D$58*$R$58*$AJ$37)+$D$59*$R$59*$AK$37+IF($AB$4,0,$D$60*$R$60*$AL$37)+$D$61*$R$61*$AM$37+$D$62*$R$62*$AN$37+$D$63*$R$63*$AO$37 -> 0 | W38: =$E$44*$R$44*$V$37+$E$45*$R$45*$W$37+IF($AB$4,0,$E$46*$R$46*$X$37)+$E$47*$R$47*$Y$37+$E$48*$R$48*$Z$37+$E$49*$R$49*$AA$37+$E$50*$R$50*$AB$37+$E$51*$R$51*$AC$37+$E$52*$R$52*$AD$37+$E$53*$R$53*$AE$37+$E$54*$R$54*$AF$37+$E$55*$R$55*$AG$37+$E$56*$R$56*$AH$37+$E$57*$R$57*$AI$37+IF($AB$5,0,$E$58*$R$58*$AJ$37)+$E$59*$R$59*$AK$37+IF($AB$4,0,$E$60*$R$60*$AL$37)+$E$61*$R$61*$AM$37+$E$62*$R$62*$AN$37+$E$63*$R$63*$AO$37 -> 0 | X38: =$F$44*$R$44*$V$37+$F$45*$R$45*$W$37+IF($AB$4,0,$F$46*$R$46*$X$37)+$F$47*$R$47*$Y$37+$F$48*$R$48*$Z$37+$F$49*$R$49*$AA$37+$F$50*$R$50*$AB$37+$F$51*$R$51*$AC$37+$F$52*$R$52*$AD$37+$F$53*$R$53*$AE$37+$F$54*$R$54*$AF$37+$F$55*$R$55*$AG$37+$F$56*$R$56*$AH$37+$F$57*$R$57*$AI$37+IF($AB$5,0,$F$58*$R$58*$AJ$37)+$F$59*$R$59*$AK$37+IF($AB$4,0,$F$60*$R$60*$AL$37)+$F$61*$R$61*$AM$37+$F$62*$R$62*$AN$37+$F$63*$R$63*$AO$37 -> 0 | Y38: =$G$44*$R$44*$V$37+$G$45*$R$45*$W$37+IF($AB$4,0,$G$46*$R$46*$X$37)+$G$47*$R$47*$Y$37+$G$48*$R$48*$Z$37+$G$49*$R$49*$AA$37+$G$50*$R$50*$AB$37+$G$51*$R$51*$AC$37+$G$52*$R$52*$AD$37+$G$53*$R$53*$AE$37+$G$54*$R$54*$AF$37+$G$55*$R$55*$AG$37+$G$56*$R$56*$AH$37+$G$57*$R$57*$AI$37+IF($AB$5,0,$G$58*$R$58*$AJ$37)+$G$59*$R$59*$AK$37+IF($AB$4,0,$G$60*$R$60*$AL$37)+$G$61*$R$61*$AM$37+$G$62*$R$62*$AN$37+$G$63*$R$63*$AO$37 -> 0 | Z38: =$H$44*$R$44*$V$37+$H$45*$R$45*$W$37+IF($AB$4,0,$H$46*$R$46*$X$37)+$H$47*$R$47*$Y$37+$H$48*$R$48*$Z$37+$H$49*$R$49*$AA$37+$H$50*$R$50*$AB$37+$H$51*$R$51*$AC$37+$H$52*$R$52*$AD$37+$H$53*$R$53*$AE$37+$H$54*$R$54*$AF$37+$H$55*$R$55*$AG$37+$H$56*$R$56*$AH$37+$H$57*$R$57*$AI$37+IF($AB$5,0,$H$58*$R$58*$AJ$37)+$H$59*$R$59*$AK$37+IF($AB$4,0,$H$60*$R$60*$AL$37)+$H$61*$R$61*$AM$37+$H$62*$R$62*$AN$37+$H$63*$R$63*$AO$37 -> 0 | AA38: =$I$44*$R$44*$V$37+$I$45*$R$45*$W$37+IF($AB$4,0,$I$46*$R$46*$X$37)+$I$47*$R$47*$Y$37+$I$48*$R$48*$Z$37+$I$49*$R$49*$AA$37+$I$50*$R$50*$AB$37+$I$51*$R$51*$AC$37+$I$52*$R$52*$AD$37+$I$53*$R$53*$AE$37+$I$54*$R$54*$AF$37+$I$55*$R$55*$AG$37+$I$56*$R$56*$AH$37+$I$57*$R$57*$AI$37+IF($AB$5,0,$I$58*$R$58*$AJ$37)+$I$59*$R$59*$AK$37+IF($AB$4,0,$I$60*$R$60*$AL$37)+$I$61*$R$61*$AM$37+$I$62*$R$62*$AN$37+$I$63*$R$63*$AO$37 -> 0 | AB38: =$J$44*$R$44*$V$37+$J$45*$R$45*$W$37+IF($AB$4,0,$J$46*$R$46*$X$37)+$J$47*$R$47*$Y$37+$J$48*$R$48*$Z$37+$J$49*$R$49*$AA$37+$J$50*$R$50*$AB$37+$J$51*$R$51*$AC$37+$J$52*$R$52*$AD$37+$J$53*$R$53*$AE$37+$J$54*$R$54*$AF$37+$J$55*$R$55*$AG$37+$J$56*$R$56*$AH$37+$J$57*$R$57*$AI$37+IF($AB$5,0,$J$58*$R$58*$AJ$37)+$J$59*$R$59*$AK$37+IF($AB$4,0,$J$60*$R$60*$AL$37)+$J$61*$R$61*$AM$37+$J$62*$R$62*$AN$37+$J$63*$R$63*$AO$37 -> 0 | AC38: =$K$44*$R$44*$V$37+$K$45*$R$45*$W$37+IF($AB$4,0,$K$46*$R$46*$X$37)+$K$47*$R$47*$Y$37+$K$48*$R$48*$Z$37+$K$49*$R$49*$AA$37+$K$50*$R$50*$AB$37+$K$51*$R$51*$AC$37+$K$52*$R$52*$AD$37+$K$53*$R$53*$AE$37+$K$54*$R$54*$AF$37+$K$55*$R$55*$AG$37+$K$56*$R$56*$AH$37+$K$57*$R$57*$AI$37+IF($AB$5,0,$K$58*$R$58*$AJ$37)+$K$59*$R$59*$AK$37+IF($AB$4,0,$K$60*$R$60*$AL$37)+$K$61*$R$61*$AM$37+$K$62*$R$62*$AN$37+$K$63*$R$63*$AO$37 -> 0 | AD38: =$L$44*$R$44*$V$37+$L$45*$R$45*$W$37+IF($AB$4,0,$L$46*$R$46*$X$37)+$L$47*$R$47*$Y$37+$L$48*$R$48*$Z$37+$L$49*$R$49*$AA$37+$L$50*$R$50*$AB$37+$L$51*$R$51*$AC$37+$L$52*$R$52*$AD$37+$L$53*$R$53*$AE$37+$L$54*$R$54*$AF$37+$L$55*$R$55*$AG$37+$L$56*$R$56*$AH$37+$L$57*$R$57*$AI$37+IF($AB$5,0,$L$58*$R$58*$AJ$37)+$L$59*$R$59*$AK$37+IF($AB$4,0,$L$60*$R$60*$AL$37)+$L$61*$R$61*$AM$37+$L$62*$R$62*$AN$37+$L$63*$R$63*$AO$37 -> 0 | AE38: =$M$44*$R$44*$V$37+$M$45*$R$45*$W$37+IF($AB$4,0,$M$46*$R$46*$X$37)+$M$47*$R$47*$Y$37+$M$48*$R$48*$Z$37+$M$49*$R$49*$AA$37+$M$50*$R$50*$AB$37+$M$51*$R$51*$AC$37+$M$52*$R$52*$AD$37+$M$53*$R$53*$AE37+$M$54*$R$54*$AF$37+$M$55*$R$55*$AG$37+$M$56*$R$56*$AH$37+$M$57*$R$57*$AI$37+IF($AB$5,0,$M$58*$R$58*$AJ$37)+$M$59*$R$59*$AK$37+IF($AB$4,0,$M$60*$R$60*$AL$37)+$M$61*$R$61*$AM$37+$M$62*$R$62*$AN$37+$M$63*$R$63*$AO$37 -> 0 | AF38: =$N$44*$R$44*$V$37+$N$45*$R$45*$W$37+IF($AB$4,0,$N$46*$R$46*$X$37)+$N$47*$R$47*$Y$37+$N$48*$R$48*$Z$37+$N$49*$R$49*$AA$37+$N$50*$R$50*$AB$37+$N$51*$R$51*$AC$37+$N$52*$R$52*$AD$37+$N$53*$R$53*$AE$37+$N$54*$R$54*$AF$37+$N$55*$R$55*$AG$37+$N$56*$R$56*$AH$37+$N$57*$R$57*$AI$37+IF($AB$5,0,$N$58*$R$58*$AJ$37)+$N$59*$R$59*$AK$37+IF($AB$4,0,$N$60*$R$60*$AL$37)+$N$61*$R$61*$AM$37+$N$62*$R$62*$AN$37+$N$63*$R$63*$AO$37 -> 0 | AG38: =$O$44*$R$44*$V$37+$O$45*$R$45*$W$37+IF($AB$4,0,$O$46*$R$46*$X$37)+$O$47*$R$47*$Y$37+$O$48*$R$48*$Z$37+$O$49*$R$49*$AA$37+$O$50*$R$50*$AB$37+$O$51*$R$51*$AC$37+$O$52*$R$52*$AD$37+$O$53*$R$53*$AE$37+$O$54*$R$54*$AF$37+$O$55*$R$55*$AG$37+$O$56*$R$56*$AH$37+$O$57*$R$57*$AI$37+IF($AB$5,0,$O$58*$R$58*$AJ$37)+$O$59*$R$59*$AK$37+IF($AB$4,0,$O$60*$R$60*$AL$37)+$O$61*$R$61*$AM$37+$O$62*$R$62*$AN$37+$O$63*$R$63*$AO$37 -> 0 | AH38: Total
D41: Specified monthly field operations, machinery implement, and custom rate costs (see comment box for more information)
C42: Machinery | P42: Times | Q42: Custom | R42: Cost/per
C43: Description | D43: 1 | E43: 2 | F43: 3 | G43: 4 | H43: 5 | I43: 6 | J43: 7 | K43: 8 | L43: 9 | M43: 10 | N43: 11 | O43: 12 | P43: Over | Q43: Cost | R43: Operation | U43: Taxes | V43: Monthly allocation of expenditures(%)
C44: Offset Disc | F44: 1 | P44: =SUM(D44:O44) -> 1 | Q44: =P44*R44 -> 10.79 | R44: 10.79 | U44: Allocation | V44: 1 | W44: 2 | X44: 3 | Y44: 4 | Z44: 5 | AA44: 6 | AB44: 7 | AC44: 8 | AD44: 9 | AE44: 10 | AF44: 11 | AG44: 12
C45: Chisel | P45: =SUM(D45:O45) -> 0 | Q45: =P45*R45 -> 0 | R45: 16.64 | V45: 100 | W45: 0 | X45: 0 | Y45: 0 | Z45: 0 | AA45: 0 | AB45: 0 | AC45: 0 | AD45: 0 | AE45: 0 | AF45: 0 | AG45: 0
C46: Anhy. App. | G46: 1 | P46: 1 | Q46: =IF($AB$4,0,P46*R46) -> 0 | R46: 17.72
C47: Sweep Plow | P47: 0 | Q47: =P47*R47 -> 0 | R47: 13.17
C48: M.B. Plow | P48: 0 | Q48: 0 | R48: 21.8 | U48: Insurance | V48: Monthly allocation of expenditures(%)
C49: Field Cultivator | G49: 1 | P49: 1 | Q49: 15.39 | R49: 15.39 | U49: Allocation | V49: 1 | W49: 2 | X49: 3 | Y49: 4 | Z49: 5 | AA49: 6 | AB49: 7 | AC49: 8 | AD49: 9 | AE49: 10 | AF49: 11 | AG49: 12
C50: Cultipacker | P50: 0 | Q50: 0 | V50: 100 | W50: 0 | X50: 0 | Y50: 0 | Z50: 0 | AA50: 0 | AB50: 0 | AC50: 0 | AD50: 0 | AE50: 0 | AF50: 0 | AG50: 0
C51: Tandem Disk | P51: 0 | Q51: 0 | R51: 12.27
C52: Springtooth | P52: 0 | Q52: 0
C53: S. Harrow | P53: 0 | Q53: 0 | R53: 7.8
C54: Drill | P54: 0 | Q54: 0 | R54: 12.55
C55: Planter | H55: 1 | P55: 1 | Q55: 18.77 | R55: 18.77
C56: Cultivator | P56: 0 | Q56: 0
C57: Rotary Hoe | P57: 0 | Q57: 0
C58: Sprayer | H58: 1 | I58: 1 | P58: 2 | Q58: =IF($AB$5,0,P58*R58) -> 0 | R58: 5.82
C59: S. Shreader | P59: 0 | Q59: 0
C60: Dry Fert. Spdr. | H60: 1 | P60: 1 | Q60: =IF($AB$4,0,P60*R60) -> 0 | R60: 5.6
C61: Windrower | P61: 0 | Q61: =P61*R61 -> 0
C62: Baler | P62: 0 | Q62: =P62*R62 -> 0
P63: 0 | Q63: =P63*R63 -> 0
C64: Operations/Month | D64: =SUM(D44:D63) -> 0 | E64: =SUM(E44:E63) -> 0 | F64: 1 | G64: 2 | H64: 3 | I64: 1 | J64: 0 | K64: 0 | L64: 0 | M64: 0 | N64: 0 | O64: 0 | P64: =SUM(D64:O64) -> 7
C65: Custom Cost/Month | D65: =D44*$R44+D45*$R45+IF($AB$4,0,D46*$R46)+D47*$R47+D48*$R48+D49*$R49+D50*$R50+D51*$R51+D52*$R52+D53*$R53+D54*$R54+D55*$R55+D56*$R56+D57*$R57+IF($AB$5,0,D58*$R58)+D59*$R59+IF($AB$4,0,D60*$R60)+D61*$R61+D62*$R62+D63*$R63 -> 0 | E65: =E44*$R44+E45*$R45+IF($AB$4,0,E46*$R46)+E47*$R47+E48*$R48+E49*$R49+E50*$R50+E51*$R51+E52*$R52+E53*$R53+E54*$R54+E55*$R55+E56*$R56+E57*$R57+IF($AB$5,0,E58*$R58)+E59*$R59+IF($AB$4,0,E60*$R60)+E61*$R61+E62*$R62+E63*$R63 -> 0 | F65: 10.79 | G65: 15.39 | H65: 18.77 | I65: 0 | J65: 0 | K65: 0 | L65: 0 | M65: 0 | N65: 0 | O65: 0 | P65: Total | Q65: =SUM(Q44:Q63) -> 44.95
C67: Owned Machinery | D67: =IF($V33,(D44*$R44+D45*$R45+D46*$R46+D47*$R47+D48*$R48+D49*$R49+D50*$R50+D51*$R51+D52*$R52+D53*$R53+D54*$R54+D55*$R55+D56*$R56+D57*$R57+D58*$R58+D59*$R59+D60*$R60+D61*$R61+D62*$R62+D63*$R63)-D66,D44*$R44+D45*$R45+D46*$R46+D47*$R47+D48*$R48+D49*$R49+D50*$R50+D51*$R51+D52*$R52+D53*$R53+D54*$R54+D55*$R55+D56*$R56+D57*$R57+D58*$R58+D59*$R59+D60*$R60+D61*$R61+D62*$R62+D63*$R63) -> 0 | E67: =IF($V33,(E44*$R44+E45*$R45+E46*$R46+E47*$R47+E48*$R48+E49*$R49+E50*$R50+E51*$R51+E52*$R52+E53*$R53+E54*$R54+E55*$R55+E56*$R56+E57*$R57+E58*$R58+E59*$R59+E60*$R60+E61*$R61+E62*$R62+E63*$R63)-E66,E44*$R44+E45*$R45+E46*$R46+E47*$R47+E48*$R48+E49*$R49+E50*$R50+E51*$R51+E52*$R52+E53*$R53+E54*$R54+E55*$R55+E56*$R56+E57*$R57+E58*$R58+E59*$R59+E60*$R60+E61*$R61+E62*$R62+E63*$R63) -> 0 | F67: 10.79 | G67: 33.11 | H67: 30.19 | I67: 5.82 | J67: 0 | K67: 0 | L67: 0 | M67: 0 | N67: 0 | O67: 0 | P67: Total | Q67: =SUM(D67:O67) -> 79.91
D70: =+IF(V33,"If you change the field operations performed, the frequency or timing of such ","") -> 
D71: =+IF(V33,"operations or the custom rates per acre, press the Recalculate button. ------->","") -> 

Sheet Irrig
B1: Irrigation | AE1: Average Monthly Precipitation by Area* | BA1: CP-15 | BB1: CP-Low | BC1: Lateral Move | BD1: Sroll | BE1: Surface-furrow | BG1: Selection | BH1: Actual
AF2: Jan | AG2: Feb | AH2: Mar | AI2: Apr | AJ2: May | AK2: Jun | AL2: Jul | AM2: Aug | AN2: Sept | AO2: Oct | AP2: Nov | AQ2: Dec | AR2: Annual | AZ2: Application Efficiency | BA2: 0.75 | BB2: 0.8 | BC2: 0.75 | BD2: 0.7 | BE2: 0.6 | BG2: 0.75 | BH2: =IF(ISNUMBER(D17),D17,IF(ISNUMBER(C17),C17,"")) -> 0.75
AE3: Panhandle | AF3: 0.6 | AG3: 0.5 | AH3: 1.3 | AI3: 1.7 | AJ3: 2.5 | AK3: 3 | AL3: 2.8 | AM3: 2.9 | AN3: 1.6 | AO3: 1.9 | AP3: 0.7 | AQ3: 0.8 | AR3: 20.2 | AZ3: Percent of costs related to repairs | BA3: 0.4 | BB3: 0.4 | BC3: 0.4 | BD3: 0.4 | BE3: 0.2 | BG3: 0.4 | BH3: =IF(ISNUMBER(D25),D25,C25) -> 0.4
AE4: West Central | AF4: 0.9 | AG4: 1 | AH4: 2 | AI4: 2.7 | AJ4: 4 | AK4: 3.7 | AL4: 2.6 | AM4: 3.2 | AN4: 2.6 | AO4: 2.6 | AP4: 1.4 | AQ4: 1.3 | AR4: 28 | AZ4: Hours of irrigation labor per acre | BA4: =0.01*BH10 -> 0.1333333333 | BB4: =0.01*BH10 -> 0.1333333333 | BC4: =0.02*BH10 -> 0.2666666667 | BD4: =0.12*BH10 -> 1.6 | BE4: =0.14*BH10 -> 1.866666667 | BG4: =+IF(BB35=BA38,BA4,IF(BB35=BA39,BB4,IF(BB35=BA40,BC4,IF(BB35=BA41,BD4,BE4)))) -> 0.1333333333 | BH4: =IF(ISNUMBER(D34),D34,C34) -> 0.1333333333
AE5: Southwest | AF5: 1.1 | AG5: 1.2 | AH5: 2.1 | AI5: 2.9 | AJ5: 4.4 | AK5: 3.8 | AL5: 2.5 | AM5: 2.9 | AN5: 2.9 | AO5: 2.8 | AP5: 1.7 | AQ5: 1.4 | AR5: 29.6 | AZ5: Labor cost per acre | BG5: =+BH4*Parameters!$P$8 -> 2.433333333 | BH5: =D35 -> 2.433333333
B6: Will this crop be irrigated ? | Q6: Initial Irrigation Investment Costs | U6: Additional Irrigation Settings | AE6: North Central | AF6: 1 | AG6: 1.2 | AH6: 2.3 | AI6: 3.1 | AJ6: 4.4 | AK6: 4.4 | AL6: 3.3 | AM6: 3.4 | AN6: 2.5 | AO6: 2.9 | AP6: 1.6 | AQ6: 1.4 | AR6: 31.4
R7: Default | S7: Your | V7: Default | W7: Your | AE7: Central | AF7: 1.4 | AG7: 1.6 | AH7: 2.7 | AI7: 3.8 | AJ7: 5.2 | AK7: 4.7 | AL7: 3.4 | AM7: 3.4 | AN7: 3.6 | AO7: 3.4 | AP7: 2.2 | AQ7: 2 | AR7: 37.4 | AZ7: Inches of water Required by crop | BA7: 23 | BG7: 23 | BH7: =IF(ISNUMBER(D19),D19,C19) -> 23
R8: Values | S8: Value | V8: Values | W8: Value | AE8: South Central | AF8: 2 | AG8: 2.2 | AH8: 3.3 | AI8: 3.8 | AJ8: 5.6 | AK8: 4.4 | AL8: 2.9 | AM8: 2.8 | AN8: 3.9 | AO8: 4 | AP8: 2.7 | AQ8: 2.7 | AR8: 40.4 | AZ8: Inches provided by rainfall | BA8: 13 | BG8: 13 | BH8: =IF(ISNUMBER(D20),D20,C20) -> 13
Q9: Sprinkler System | R9: 120000 | U9: Well Lift (feet) | V9: 125 | W9: 250 | AE9: Northeast | AF9: 1.7 | AG9: 1.9 | AH9: 3.2 | AI9: 4.5 | AJ9: 6.1 | AK9: 5 | AL9: 3.8 | AM9: 3.7 | AN9: 4 | AO9: 3.8 | AP9: 2.8 | AQ9: 2.3 | AR9: 42.6 | AZ9: Inches required from irrigation | BA9: =BA7-BA8 -> 10 | BG9: 10 | BH9: =D21 -> 10
Q10: Pump | R10: 20047.75 | U10: System Pressure (psi) | V10: 35 | AE10: East Central | AF10: 2.4 | AG10: 2.4 | AH10: 3.7 | AI10: 4.8 | AJ10: 6 | AK10: 4.7 | AL10: 3.8 | AM10: 3.5 | AN10: 4.5 | AO10: 4.2 | AP10: 3.6 | AQ10: 3.1 | AR10: 46.7 | AZ10: Inches required with efficiency | BG10: =BG9/BG2 -> 13.33333333 | BH10: =D22 -> 13.33333333
Q11: Diesel Motor | R11: 28630 | U11: Pump Flow (gpm) | V11: 1120 | AE11: Southeast | AF11: 3.2 | AG11: 3.2 | AH11: 4.6 | AI11: 5.1 | AJ11: 6.1 | AK11: 4.4 | AL11: 3.7 | AM11: 3.3 | AN11: 4.3 | AO11: 4.7 | AP11: 4.3 | AQ11: 4.3 | AR11: 51.2 | AZ11: Well Lift | BG11: 125 | BH11: =IF(ISNUMBER(W9),W9,V9) -> 250
Q12: Well | R12: 26250 | U12: Diesel Cost ($/gal) | V12: 3.75 | AE12: State Avg.** | AF12: 1.6 | AG12: 1.7 | AH12: 2.8 | AI12: 3.6 | AJ12: 4.9 | AK12: 4.2 | AL12: 3.2 | AM12: 3.2 | AN12: 3.3 | AO12: 3.4 | AP12: 2.3 | AQ12: 2.1 | AR12: 36.4 | AZ12: System Pressure | BG12: 35 | BH12: =IF(ISNUMBER(W10),W10,V10) -> 35
Q13: Column Pipe | R13: 18150 | AZ13: Pump flow | BG13: =IF(BB35="CP: 15 psi Drops",5.9*0.85*Budget!BB13,IF(BB35="CP: Low Drift Nozzles",5.9*0.85*Budget!BB13,7*Budget!BB13)) -> 802.4 | BH13: =IF(ISNUMBER(W11),W11,V11) -> 1120 | BI13: reflects adjustment for actual irr acres
Q14: Other | R14: 0 | AE14: * | AF14: Normals for all stations are climatological normals based on the period 1991-2020. | AZ14: Power Cost | BB14: Power Cost ($/kWh) | BD14: Electric Motor | BG14: 0.13 | BH14: =IF(ISNUMBER(W12),W12,V12) -> 3.75
D15: Your | Q15: Proportion of Cost | R15: 1 | AE15: ** | AF15: State averages based on district averages, weighted by area. | AZ15: Gas Cost | BB15: Natural Gas Cost ($/Mcf) | BD15: Natural Gas Motor | BG15: 3 | BH15: =IF(ISNUMBER(W12),W12,V12) -> 3.75
B16: Irrigation Costs | C16: Default | D16: Value | Q16: Total | S16: =BH32 -> 213077.75 | AZ16: Diesel Cost | BB16: Diesel Cost ($/gal) | BD16: Diesel Motor | BG16: 3.75 | BH16: =IF(ISNUMBER(W12),W12,V12) -> 3.75
B17: Application Efficiency | C17: 0.75 | AZ17: Propane Cost | BB17: Propane Cost ($/gal) | BD17: Propane Motor | BG17: 4 | BH17: =IF(ISNUMBER(W12),W12,V12) -> 3.75
Q18: For additional information, see: | AF18: For more information: | AZ18: TDH | BG18: =BH11+(BH12*2.31) -> 330.85 | BH18: =BG18 -> 330.85
B19: Inches of water required by crop | C19: 23 | Q19: BAE-1204 Comparative Energy Costs for Irrigation Pumping | AF19: Oklahoma Agricultural Statistics | AZ19: HP | BG19: =BH13*BH18/3960/0.8 -> 116.9671717 | BI19: improved efficiency
B20: Inches provided by rainfall | C20: 13 | Q20: View these and other OSU Publications at:
B21: Inches required from irrigation | D21: =IF(IF(ISNUMBER(D19),D19,C19)-IF(ISNUMBER(D20),D20,C20)<0,0, IF(ISNUMBER(D19),D19,C19)-IF(ISNUMBER(D20),D20,C20)) -> 10 | Q21: OSU Fact Sheets | BA21: Electricity | BB21: Ngas | BC21: Diesel | BD21: Propane
B22: Inches required with efficiency | D22: =+IF(BH2=0,0,IF(ISNUMBER(BH2),D21/BH2,0)) -> 13.33333333 | AF22: Oklahoma Agricultural Statistic Districts | AZ22: Cost per acre inch of water | BA22: =8.448*BH18*BH14/65 -> 161.2512 | BB22: =BH18*BH15/34.691/16 -> 2.235247434 | BC22: =BH18*BH16/4.856/18 -> 14.19420991 | BD22: =BH18*BH17/3.278/16 -> 23.65557314 | BG22: =IF(BB36="Electric",BA22,IF(BB36="Natural Gas",BB22,IF(BB36="Propane",BC22,IF(BB36="Diesel",BD22)))) -> 23.65557314 | BH22: =IF(ISNUMBER(D24),D24,C24) -> 23.65557314
B23: Variable Cost ($/acre)
B24: Cost per acre inch of water | C24: 23.65557314 | F24: Variable | BA24: CP-15 | BB24: CP-Low | BC24: Lateral Move | BD24: Sroll
B25: Percent of cost related to repairs | C25: 0.4 | F25: Cost Share | AZ25: Sprinkler system | BA25: 120000 | BB25: 120000 | BC25: 206000 | BD25: 133000 | BE25: 0 | BG25: 120000 | BH25: =IF(ISNUMBER(S9),S9,R9) -> 120000
B26: Total | D26: =IF(ISNUMBER(D24),D24,C24)*D22 -> 315.4076419 | F26: 1
B27: Fixed Cost ($/acre) | AZ27: Pump | BG27: 20047.75 | BH27: =IF(ISNUMBER(S10),S10,R10) -> 20047.75
B28: Depreciation | C28: 88.82678703 | AZ28: Motor cost | BG28: 28630 | BH28: =IF(ISNUMBER(S11),S11,R11) -> 28630 | BI28: pipe and fittings | BJ28: pipe trailer
B29: Insurance | C29: 11.31975547 | AZ29: other expense | BE29: =(+Budget!$BB$13*125)+BI29+BJ29 -> 39230 | BG29: =IF(BB35=BA41,BE29,0) -> 0 | BH29: =IF(ISNUMBER(S14),S14,R14) -> 0 | BI29: =11900*1.5 -> 17850 | BJ29: =920*1.5 -> 1380
B30: Taxes | C30: 13.31735938 | F30: Fixed | AZ30: Well | BG30: =+IF(BH11<=250,87.5*BH11*1.2,125*BH11*1.2) -> 26250 | BH30: =IF(ISNUMBER(S12),S12,R12) -> 26250
B31: Interest | C31: 113.1975547 | F31: Cost Share | AZ31: Column Pipe | BG31: =IF(BH13<=600,54*BH11*1.1,66*BH11*1.1) -> 18150 | BH31: =IF(ISNUMBER(S13),S13,R13) -> 18150
B32: Total | D32: =IF(ISNUMBER(D28),D28,C28)+IF(ISNUMBER(D29),D29,C29)+IF(ISNUMBER(D30),D30,C30)+IF(ISNUMBER(D31),D31,C31) -> 226.6614566 | F32: 0 | AZ32: Total | BH32: =(BH25+SUM(BH27:BH31))*IF(ISNUMBER(S15),S15,R15) -> 213077.75
BG33: Per acre | BH33: =BH32/Budget!$BB$13 -> 1331.735938
B34: Hours of irrigation labor per acre | C34: =+IF(BB34,BG4,0) -> 0.1333333333 | F34: Labor Share | BA34: Irrigated? | BB34: =+IF(Budget!BB3,"FALSE","TRUE") -> TRUE | BF34: Depreciation | BG34: =IF(BB35=BA42,BH33*0.0537,BH33*0.0667) -> 88.82678703 | BH34: =IF(ISNUMBER(D28),D28,C28) -> 88.82678703
B35: Labor cost per acre | D35: =IF(ISNUMBER(D34),D34,C34)*Parameters!P8 -> 2.433333333 | F35: 1 | BA35: Irrigation System | BB35: CP: 15 psi Drops | BF35: Insurance | BG35: =BH33*Parameters!$P$13 -> 11.31975547 | BH35: =IF(ISNUMBER(D29),D29,C29) -> 11.31975547
B36: Total irrigation costs | D36: =+D26+D32+D35 -> 544.5024318 | BA36: Pump Power | BB36: Diesel | BF36: Taxes | BG36: =BH33*Parameters!$P$12 -> 13.31735938 | BH36: =IF(ISNUMBER(D30),D30,C30) -> 13.31735938
BF37: Interest | BG37: =BH33*Parameters!$P$11 -> 113.1975547 | BH37: =IF(ISNUMBER(D31),D31,C31) -> 113.1975547
D38: Your | BA38: CP: 15 psi Drops | BC38: Electric
B39: Monthly Water Application | C39: Default | D39: Value | BA39: CP: Low Drift Nozzles | BC39: Natural Gas
B40: January | C40: 0 | BA40: Lateral Move w/ Drag Hose | BC40: Propane | BH40: =+IF(ISNUMBER(D40),D40,C40) -> 0
B41: February | C41: 0 | BA41: Side Roll | BC41: Diesel | BH41: 0
B42: March | C42: 0 | BA42: Surface-Furrow | BH42: 0
B43: April | C43: =0.35*D22 -> 4.666666667 | BA43: CP: 15 psi Drops | BC43: Diesel | BH43: 4.666666667
B44: May | C44: 0 | BH44: 0
B45: June | C45: =0.2*D22 -> 2.666666667 | BH45: 2.666666667
B46: July | C46: =0.2*D22 -> 2.666666667 | BH46: 2.666666667
B47: August | C47: =0.25*D22 -> 3.333333333 | BH47: 3.333333333
B48: September | C48: 0 | BH48: 0
B49: October | C49: 0 | BH49: 0
B50: November | C50: 0 | BH50: 0
B51: December | C51: 0 | BH51: 0
B52: Annual Total: | D52: =+IF(D40="",C40,D40)+IF(D41="",C41,D41)+IF(D42="",C42,D42)+IF(D43="",C43,D43)+IF(D44="",C44,D44)+IF(D45="",C45,D45)+IF(D46="",C46,D46)+IF(D47="",C47,D47)+IF(D48="",C48,D48)+IF(D49="",C49,D49)+IF(D50="",C50,D50)+IF(D51="",C51,D51) -> 13.33333333 | BH52: =+SUM(BH40:BH51) -> 13.33333333
B53: Your gross annual value: | D53: =+D22 -> 13.33333333
AZ54: Taxes | BA54: Monthly allocation of expenditures(%)
AZ55: Allocation | BA55: 1 | BB55: 2 | BC55: 3 | BD55: 4 | BE55: 5 | BF55: 6 | BG55: 7 | BH55: 8 | BI55: 9 | BJ55: 10 | BK55: 11 | BL55: 12
BA56: 100 | BB56: 0 | BC56: 0 | BD56: 0 | BE56: 0 | BF56: 0 | BG56: 0 | BH56: 0 | BI56: 0 | BJ56: 0 | BK56: 0 | BL56: 0
AZ59: Insurance | BA59: Monthly allocation of expenditures(%)
AZ60: Allocation | BA60: 1 | BB60: 2 | BC60: 3 | BD60: 4 | BE60: 5 | BF60: 6 | BG60: 7 | BH60: 8 | BI60: 9 | BJ60: 10 | BK60: 11 | BL60: 12
BA61: 100 | BB61: 0 | BC61: 0 | BD61: 0 | BE61: 0 | BF61: 0 | BG61: 0 | BH61: 0 | BI61: 0 | BJ61: 0 | BK61: 0 | BL61: 0

Sheet CRent (hidden)
B1: Use the "Adjust Rental Amount" to adjust monthly values.
B3: Rental Amount | C3: =+Budget!BB6 -> 0
B5: Month | C5: % Paid
B6: January | C6: 0
B7: February | C7: 0
B8: March | C8: 0
B9: April | C9: 0
B10: May | C10: 0
B11: June | C11: 0
B12: July | C12: 0
B13: August | C13: 0 | E13: For more information:
B14: September | C14: 0 | E14: CR-230 Oklahoma Cropland Rental Rates
B15: October | C15: 1
B16: November | C16: 0
B17: December | C17: 0

Sheet Oper_Int (hidden)
A1: Share Expenses | C1: 1 | D1: 2 | E1: 3 | F1: 4 | G1: 5 | H1: 6 | I1: 7 | J1: 8 | K1: 9 | L1: 10 | M1: 11 | N1: 12 | AA1: All Expenses | AC1: 1 | AD1: 2 | AE1: 3 | AF1: 4 | AG1: 5 | AH1: 6 | AI1: 7 | AJ1: 8 | AK1: 9 | AL1: 10 | AM1: 11 | AN1: 12
B2: Total | C2: Jan | D2: Feb | E2: March | F2: April | G2: May | H2: June | I2: July | J2: Aug | K2: Sept | L2: Oct | M2: Nov | N2: Dec | AB2: Total | AC2: Jan | AD2: Feb | AE2: March | AF2: April | AG2: May | AH2: June | AI2: July | AJ2: Aug | AK2: Sept | AL2: Oct | AM2: Nov | AN2: Dec
A3: Income | AA3: Income
A4: Grain Sorghum | B4: =IF(Budget!BB$5="share",Budget!H9,Budget!G9) -> 380 | C4: =+Yield!$AH3/100*$B4 -> 0 | D4: =+Yield!$AH4/100*$B4 -> 0 | E4: =+Yield!$AH5/100*$B4 -> 0 | F4: =+Yield!$AH6/100*$B4 -> 0 | G4: =+Yield!$AH7/100*$B4 -> 0 | H4: =+Yield!$AH8/100*$B4 -> 0 | I4: =+Yield!$AH9/100*$B4 -> 0 | J4: =+Yield!$AH10/100*$B4 -> 0 | K4: =+Yield!$AH11/100*$B4 -> 0 | L4: =+Yield!$AH12/100*$B4 -> 380 | M4: =+Yield!$AH13/100*$B4 -> 0 | N4: =+Yield!$AH14/100*$B4 -> 0 | O4: =SUM(C4:N4) -> 380 | AA4: Grain Sorghum | AB4: =Budget!G9 -> 380 | AC4: =+Yield!$AH3/100*$AB4 -> 0 | AD4: =+Yield!$AH4/100*$AB4 -> 0 | AE4: =+Yield!$AH5/100*$AB4 -> 0 | AF4: =+Yield!$AH6/100*$AB4 -> 0 | AG4: =+Yield!$AH7/100*$AB4 -> 0 | AH4: =+Yield!$AH8/100*$AB4 -> 0 | AI4: =+Yield!$AH9/100*$AB4 -> 0 | AJ4: =+Yield!$AH10/100*$AB4 -> 0 | AK4: =+Yield!$AH11/100*$AB4 -> 0 | AL4: =+Yield!$AH12/100*$AB4 -> 380 | AM4: =+Yield!$AH13/100*$AB4 -> 0 | AN4: =+Yield!$AH14/100*$AB4 -> 0 | AO4: =SUM(AC4:AN4) -> 380
O5: =SUM(C5:N5) -> 0 | AO5: =SUM(AC5:AN5) -> 0
A6: =IF('Other Inc'!B9="","Other Income",'Other Inc'!B9) -> Other Income | B6: =IF('Other Inc'!D9=0,0,'Other Inc'!F9) -> 0 | C6: =IF('Other Inc'!$C9=Oper_Int!C$1,'Other Inc'!$F9,0) -> 0 | D6: =IF('Other Inc'!$C9=Oper_Int!D$1,'Other Inc'!$F9,0) -> 0 | E6: =IF('Other Inc'!$C9=Oper_Int!E$1,'Other Inc'!$F9,0) -> 0 | F6: =IF('Other Inc'!$C9=Oper_Int!F$1,'Other Inc'!$F9,0) -> 0 | G6: =IF('Other Inc'!$C9=Oper_Int!G$1,'Other Inc'!$F9,0) -> 0 | H6: =IF('Other Inc'!$C9=Oper_Int!H$1,'Other Inc'!$F9,0) -> 0 | I6: =IF('Other Inc'!$C9=Oper_Int!I$1,'Other Inc'!$F9,0) -> 0 | J6: =IF('Other Inc'!$C9=Oper_Int!J$1,'Other Inc'!$F9,0) -> 0 | K6: =IF('Other Inc'!$C9=Oper_Int!K$1,'Other Inc'!$F9,0) -> 0 | L6: =IF('Other Inc'!$C9=Oper_Int!L$1,'Other Inc'!$F9,0) -> 0 | M6: =IF('Other Inc'!$C9=Oper_Int!M$1,'Other Inc'!$F9,0) -> 0 | N6: =IF('Other Inc'!$C9=Oper_Int!N$1,'Other Inc'!$F9,0) -> 0 | O6: 0 | AA6: =IF('Other Inc'!B9="","Other Income",'Other Inc'!B9) -> Other Income | AB6: =IF('Other Inc'!D9=0,"N/A",'Other Inc'!D9) -> N/A | AC6: =IF('Other Inc'!$C9=Oper_Int!AC$1,'Other Inc'!$D9,0) -> 0 | AD6: =IF('Other Inc'!$C9=Oper_Int!AD$1,'Other Inc'!$D9,0) -> 0 | AE6: =IF('Other Inc'!$C9=Oper_Int!AE$1,'Other Inc'!$D9,0) -> 0 | AF6: =IF('Other Inc'!$C9=Oper_Int!AF$1,'Other Inc'!$D9,0) -> 0 | AG6: =IF('Other Inc'!$C9=Oper_Int!AG$1,'Other Inc'!$D9,0) -> 0 | AH6: =IF('Other Inc'!$C9=Oper_Int!AH$1,'Other Inc'!$D9,0) -> 0 | AI6: =IF('Other Inc'!$C9=Oper_Int!AI$1,'Other Inc'!$D9,0) -> 0 | AJ6: =IF('Other Inc'!$C9=Oper_Int!AJ$1,'Other Inc'!$D9,0) -> 0 | AK6: =IF('Other Inc'!$C9=Oper_Int!AK$1,'Other Inc'!$D9,0) -> 0 | AL6: =IF('Other Inc'!$C9=Oper_Int!AL$1,'Other Inc'!$D9,0) -> 0 | AM6: =IF('Other Inc'!$C9=Oper_Int!AM$1,'Other Inc'!$D9,0) -> 0 | AN6: =IF('Other Inc'!$C9=Oper_Int!AN$1,'Other Inc'!$D9,0) -> 0 | AO6: 0
A7: =IF('Other Inc'!B10="","Other Income",'Other Inc'!B10) -> Other Income | B7: =IF('Other Inc'!F10=0,"N/A",'Other Inc'!F10) -> N/A | C7: =IF('Other Inc'!$C10=Oper_Int!C$1,'Other Inc'!$F10,0) -> 0 | D7: =IF('Other Inc'!$C10=Oper_Int!D$1,'Other Inc'!$F10,0) -> 0 | E7: =IF('Other Inc'!$C10=Oper_Int!E$1,'Other Inc'!$F10,0) -> 0 | F7: =IF('Other Inc'!$C10=Oper_Int!F$1,'Other Inc'!$F10,0) -> 0 | G7: =IF('Other Inc'!$C10=Oper_Int!G$1,'Other Inc'!$F10,0) -> 0 | H7: =IF('Other Inc'!$C10=Oper_Int!H$1,'Other Inc'!$F10,0) -> 0 | I7: =IF('Other Inc'!$C10=Oper_Int!I$1,'Other Inc'!$F10,0) -> 0 | J7: =IF('Other Inc'!$C10=Oper_Int!J$1,'Other Inc'!$F10,0) -> 0 | K7: =IF('Other Inc'!$C10=Oper_Int!K$1,'Other Inc'!$F10,0) -> 0 | L7: =IF('Other Inc'!$C10=Oper_Int!L$1,'Other Inc'!$F10,0) -> 0 | M7: =IF('Other Inc'!$C10=Oper_Int!M$1,'Other Inc'!$F10,0) -> 0 | N7: =IF('Other Inc'!$C10=Oper_Int!N$1,'Other Inc'!$F10,0) -> 0 | O7: 0 | AA7: =IF('Other Inc'!B10="","Other Income",'Other Inc'!B10) -> Other Income | AB7: =IF('Other Inc'!D10=0,"N/A",'Other Inc'!D10) -> N/A | AC7: =IF('Other Inc'!$C10=Oper_Int!AC$1,'Other Inc'!$D10,0) -> 0 | AD7: =IF('Other Inc'!$C10=Oper_Int!AD$1,'Other Inc'!$D10,0) -> 0 | AE7: =IF('Other Inc'!$C10=Oper_Int!AE$1,'Other Inc'!$D10,0) -> 0 | AF7: =IF('Other Inc'!$C10=Oper_Int!AF$1,'Other Inc'!$D10,0) -> 0 | AG7: =IF('Other Inc'!$C10=Oper_Int!AG$1,'Other Inc'!$D10,0) -> 0 | AH7: =IF('Other Inc'!$C10=Oper_Int!AH$1,'Other Inc'!$D10,0) -> 0 | AI7: =IF('Other Inc'!$C10=Oper_Int!AI$1,'Other Inc'!$D10,0) -> 0 | AJ7: =IF('Other Inc'!$C10=Oper_Int!AJ$1,'Other Inc'!$D10,0) -> 0 | AK7: =IF('Other Inc'!$C10=Oper_Int!AK$1,'Other Inc'!$D10,0) -> 0 | AL7: =IF('Other Inc'!$C10=Oper_Int!AL$1,'Other Inc'!$D10,0) -> 0 | AM7: =IF('Other Inc'!$C10=Oper_Int!AM$1,'Other Inc'!$D10,0) -> 0 | AN7: =IF('Other Inc'!$C10=Oper_Int!AN$1,'Other Inc'!$D10,0) -> 0 | AO7: 0
A8: =IF('Other Inc'!B11="","Other Income",'Other Inc'!B11) -> Other Income | B8: =IF('Other Inc'!F11=0,"N/A",'Other Inc'!F11) -> N/A | C8: =IF('Other Inc'!$C11=Oper_Int!C$1,'Other Inc'!$F11,0) -> 0 | D8: =IF('Other Inc'!$C11=Oper_Int!D$1,'Other Inc'!$F11,0) -> 0 | E8: =IF('Other Inc'!$C11=Oper_Int!E$1,'Other Inc'!$F11,0) -> 0 | F8: =IF('Other Inc'!$C11=Oper_Int!F$1,'Other Inc'!$F11,0) -> 0 | G8: =IF('Other Inc'!$C11=Oper_Int!G$1,'Other Inc'!$F11,0) -> 0 | H8: =IF('Other Inc'!$C11=Oper_Int!H$1,'Other Inc'!$F11,0) -> 0 | I8: =IF('Other Inc'!$C11=Oper_Int!I$1,'Other Inc'!$F11,0) -> 0 | J8: =IF('Other Inc'!$C11=Oper_Int!J$1,'Other Inc'!$F11,0) -> 0 | K8: =IF('Other Inc'!$C11=Oper_Int!K$1,'Other Inc'!$F11,0) -> 0 | L8: =IF('Other Inc'!$C11=Oper_Int!L$1,'Other Inc'!$F11,0) -> 0 | M8: =IF('Other Inc'!$C11=Oper_Int!M$1,'Other Inc'!$F11,0) -> 0 | N8: =IF('Other Inc'!$C11=Oper_Int!N$1,'Other Inc'!$F11,0) -> 0 | O8: 0 | AA8: =IF('Other Inc'!B11="","Other Income",'Other Inc'!B11) -> Other Income | AB8: =IF('Other Inc'!D11=0,"N/A",'Other Inc'!D11) -> N/A | AC8: =IF('Other Inc'!$C11=Oper_Int!AC$1,'Other Inc'!$D11,0) -> 0 | AD8: =IF('Other Inc'!$C11=Oper_Int!AD$1,'Other Inc'!$D11,0) -> 0 | AE8: =IF('Other Inc'!$C11=Oper_Int!AE$1,'Other Inc'!$D11,0) -> 0 | AF8: =IF('Other Inc'!$C11=Oper_Int!AF$1,'Other Inc'!$D11,0) -> 0 | AG8: =IF('Other Inc'!$C11=Oper_Int!AG$1,'Other Inc'!$D11,0) -> 0 | AH8: =IF('Other Inc'!$C11=Oper_Int!AH$1,'Other Inc'!$D11,0) -> 0 | AI8: =IF('Other Inc'!$C11=Oper_Int!AI$1,'Other Inc'!$D11,0) -> 0 | AJ8: =IF('Other Inc'!$C11=Oper_Int!AJ$1,'Other Inc'!$D11,0) -> 0 | AK8: =IF('Other Inc'!$C11=Oper_Int!AK$1,'Other Inc'!$D11,0) -> 0 | AL8: =IF('Other Inc'!$C11=Oper_Int!AL$1,'Other Inc'!$D11,0) -> 0 | AM8: =IF('Other Inc'!$C11=Oper_Int!AM$1,'Other Inc'!$D11,0) -> 0 | AN8: =IF('Other Inc'!$C11=Oper_Int!AN$1,'Other Inc'!$D11,0) -> 0 | AO8: 0
A9: =IF('Other Inc'!B12="","Other Income",'Other Inc'!B12) -> Other Income | B9: =IF('Other Inc'!F12=0,"N/A",'Other Inc'!F12) -> N/A | C9: =IF('Other Inc'!$C12=Oper_Int!C$1,'Other Inc'!$F12,0) -> 0 | D9: =IF('Other Inc'!$C12=Oper_Int!D$1,'Other Inc'!$F12,0) -> 0 | E9: =IF('Other Inc'!$C12=Oper_Int!E$1,'Other Inc'!$F12,0) -> 0 | F9: =IF('Other Inc'!$C12=Oper_Int!F$1,'Other Inc'!$F12,0) -> 0 | G9: =IF('Other Inc'!$C12=Oper_Int!G$1,'Other Inc'!$F12,0) -> 0 | H9: =IF('Other Inc'!$C12=Oper_Int!H$1,'Other Inc'!$F12,0) -> 0 | I9: =IF('Other Inc'!$C12=Oper_Int!I$1,'Other Inc'!$F12,0) -> 0 | J9: =IF('Other Inc'!$C12=Oper_Int!J$1,'Other Inc'!$F12,0) -> 0 | K9: =IF('Other Inc'!$C12=Oper_Int!K$1,'Other Inc'!$F12,0) -> 0 | L9: =IF('Other Inc'!$C12=Oper_Int!L$1,'Other Inc'!$F12,0) -> 0 | M9: =IF('Other Inc'!$C12=Oper_Int!M$1,'Other Inc'!$F12,0) -> 0 | N9: =IF('Other Inc'!$C12=Oper_Int!N$1,'Other Inc'!$F12,0) -> 0 | O9: 0 | AA9: =IF('Other Inc'!B12="","Other Income",'Other Inc'!B12) -> Other Income | AB9: =IF('Other Inc'!D12=0,"N/A",'Other Inc'!D12) -> N/A | AC9: =IF('Other Inc'!$C12=Oper_Int!AC$1,'Other Inc'!$D12,0) -> 0 | AD9: =IF('Other Inc'!$C12=Oper_Int!AD$1,'Other Inc'!$D12,0) -> 0 | AE9: =IF('Other Inc'!$C12=Oper_Int!AE$1,'Other Inc'!$D12,0) -> 0 | AF9: =IF('Other Inc'!$C12=Oper_Int!AF$1,'Other Inc'!$D12,0) -> 0 | AG9: =IF('Other Inc'!$C12=Oper_Int!AG$1,'Other Inc'!$D12,0) -> 0 | AH9: =IF('Other Inc'!$C12=Oper_Int!AH$1,'Other Inc'!$D12,0) -> 0 | AI9: =IF('Other Inc'!$C12=Oper_Int!AI$1,'Other Inc'!$D12,0) -> 0 | AJ9: =IF('Other Inc'!$C12=Oper_Int!AJ$1,'Other Inc'!$D12,0) -> 0 | AK9: =IF('Other Inc'!$C12=Oper_Int!AK$1,'Other Inc'!$D12,0) -> 0 | AL9: =IF('Other Inc'!$C12=Oper_Int!AL$1,'Other Inc'!$D12,0) -> 0 | AM9: =IF('Other Inc'!$C12=Oper_Int!AM$1,'Other Inc'!$D12,0) -> 0 | AN9: =IF('Other Inc'!$C12=Oper_Int!AN$1,'Other Inc'!$D12,0) -> 0 | AO9: 0
A10: =IF('Other Inc'!B13="","Other Income",'Other Inc'!B13) -> Other Income | B10: =IF('Other Inc'!F13=0,"N/A",'Other Inc'!F13) -> N/A | C10: =IF('Other Inc'!$C13=Oper_Int!C$1,'Other Inc'!$F13,0) -> 0 | D10: =IF('Other Inc'!$C13=Oper_Int!D$1,'Other Inc'!$F13,0) -> 0 | E10: =IF('Other Inc'!$C13=Oper_Int!E$1,'Other Inc'!$F13,0) -> 0 | F10: =IF('Other Inc'!$C13=Oper_Int!F$1,'Other Inc'!$F13,0) -> 0 | G10: =IF('Other Inc'!$C13=Oper_Int!G$1,'Other Inc'!$F13,0) -> 0 | H10: =IF('Other Inc'!$C13=Oper_Int!H$1,'Other Inc'!$F13,0) -> 0 | I10: =IF('Other Inc'!$C13=Oper_Int!I$1,'Other Inc'!$F13,0) -> 0 | J10: =IF('Other Inc'!$C13=Oper_Int!J$1,'Other Inc'!$F13,0) -> 0 | K10: =IF('Other Inc'!$C13=Oper_Int!K$1,'Other Inc'!$F13,0) -> 0 | L10: =IF('Other Inc'!$C13=Oper_Int!L$1,'Other Inc'!$F13,0) -> 0 | M10: =IF('Other Inc'!$C13=Oper_Int!M$1,'Other Inc'!$F13,0) -> 0 | N10: =IF('Other Inc'!$C13=Oper_Int!N$1,'Other Inc'!$F13,0) -> 0 | O10: 0 | AA10: =IF('Other Inc'!B13="","Other Income",'Other Inc'!B13) -> Other Income | AB10: =IF('Other Inc'!D13=0,"N/A",'Other Inc'!D13) -> N/A | AC10: =IF('Other Inc'!$C13=Oper_Int!AC$1,'Other Inc'!$D13,0) -> 0 | AD10: =IF('Other Inc'!$C13=Oper_Int!AD$1,'Other Inc'!$D13,0) -> 0 | AE10: =IF('Other Inc'!$C13=Oper_Int!AE$1,'Other Inc'!$D13,0) -> 0 | AF10: =IF('Other Inc'!$C13=Oper_Int!AF$1,'Other Inc'!$D13,0) -> 0 | AG10: =IF('Other Inc'!$C13=Oper_Int!AG$1,'Other Inc'!$D13,0) -> 0 | AH10: =IF('Other Inc'!$C13=Oper_Int!AH$1,'Other Inc'!$D13,0) -> 0 | AI10: =IF('Other Inc'!$C13=Oper_Int!AI$1,'Other Inc'!$D13,0) -> 0 | AJ10: =IF('Other Inc'!$C13=Oper_Int!AJ$1,'Other Inc'!$D13,0) -> 0 | AK10: =IF('Other Inc'!$C13=Oper_Int!AK$1,'Other Inc'!$D13,0) -> 0 | AL10: =IF('Other Inc'!$C13=Oper_Int!AL$1,'Other Inc'!$D13,0) -> 0 | AM10: =IF('Other Inc'!$C13=Oper_Int!AM$1,'Other Inc'!$D13,0) -> 0 | AN10: =IF('Other Inc'!$C13=Oper_Int!AN$1,'Other Inc'!$D13,0) -> 0 | AO10: 0
A11: =IF('Other Inc'!B14="","Other Income",'Other Inc'!B14) -> Other Income | B11: =IF('Other Inc'!F14=0,"N/A",'Other Inc'!F14) -> N/A | C11: =IF('Other Inc'!$C14=Oper_Int!C$1,'Other Inc'!$F14,0) -> 0 | D11: =IF('Other Inc'!$C14=Oper_Int!D$1,'Other Inc'!$F14,0) -> 0 | E11: =IF('Other Inc'!$C14=Oper_Int!E$1,'Other Inc'!$F14,0) -> 0 | F11: =IF('Other Inc'!$C14=Oper_Int!F$1,'Other Inc'!$F14,0) -> 0 | G11: =IF('Other Inc'!$C14=Oper_Int!G$1,'Other Inc'!$F14,0) -> 0 | H11: =IF('Other Inc'!$C14=Oper_Int!H$1,'Other Inc'!$F14,0) -> 0 | I11: =IF('Other Inc'!$C14=Oper_Int!I$1,'Other Inc'!$F14,0) -> 0 | J11: =IF('Other Inc'!$C14=Oper_Int!J$1,'Other Inc'!$F14,0) -> 0 | K11: =IF('Other Inc'!$C14=Oper_Int!K$1,'Other Inc'!$F14,0) -> 0 | L11: =IF('Other Inc'!$C14=Oper_Int!L$1,'Other Inc'!$F14,0) -> 0 | M11: =IF('Other Inc'!$C14=Oper_Int!M$1,'Other Inc'!$F14,0) -> 0 | N11: =IF('Other Inc'!$C14=Oper_Int!N$1,'Other Inc'!$F14,0) -> 0 | O11: 0 | AA11: =IF('Other Inc'!B14="","Other Income",'Other Inc'!B14) -> Other Income | AB11: =IF('Other Inc'!D14=0,"N/A",'Other Inc'!D14) -> N/A | AC11: =IF('Other Inc'!$C14=Oper_Int!AC$1,'Other Inc'!$D14,0) -> 0 | AD11: =IF('Other Inc'!$C14=Oper_Int!AD$1,'Other Inc'!$D14,0) -> 0 | AE11: =IF('Other Inc'!$C14=Oper_Int!AE$1,'Other Inc'!$D14,0) -> 0 | AF11: =IF('Other Inc'!$C14=Oper_Int!AF$1,'Other Inc'!$D14,0) -> 0 | AG11: =IF('Other Inc'!$C14=Oper_Int!AG$1,'Other Inc'!$D14,0) -> 0 | AH11: =IF('Other Inc'!$C14=Oper_Int!AH$1,'Other Inc'!$D14,0) -> 0 | AI11: =IF('Other Inc'!$C14=Oper_Int!AI$1,'Other Inc'!$D14,0) -> 0 | AJ11: =IF('Other Inc'!$C14=Oper_Int!AJ$1,'Other Inc'!$D14,0) -> 0 | AK11: =IF('Other Inc'!$C14=Oper_Int!AK$1,'Other Inc'!$D14,0) -> 0 | AL11: =IF('Other Inc'!$C14=Oper_Int!AL$1,'Other Inc'!$D14,0) -> 0 | AM11: =IF('Other Inc'!$C14=Oper_Int!AM$1,'Other Inc'!$D14,0) -> 0 | AN11: =IF('Other Inc'!$C14=Oper_Int!AN$1,'Other Inc'!$D14,0) -> 0 | AO11: 0
A12: =IF('Other Inc'!B15="","Other Income",'Other Inc'!B15) -> Other Income | B12: =IF('Other Inc'!F15=0,"N/A",'Other Inc'!F15) -> N/A | C12: =IF('Other Inc'!$C15=Oper_Int!C$1,'Other Inc'!$F15,0) -> 0 | D12: =IF('Other Inc'!$C15=Oper_Int!D$1,'Other Inc'!$F15,0) -> 0 | E12: =IF('Other Inc'!$C15=Oper_Int!E$1,'Other Inc'!$F15,0) -> 0 | F12: =IF('Other Inc'!$C15=Oper_Int!F$1,'Other Inc'!$F15,0) -> 0 | G12: =IF('Other Inc'!$C15=Oper_Int!G$1,'Other Inc'!$F15,0) -> 0 | H12: =IF('Other Inc'!$C15=Oper_Int!H$1,'Other Inc'!$F15,0) -> 0 | I12: =IF('Other Inc'!$C15=Oper_Int!I$1,'Other Inc'!$F15,0) -> 0 | J12: =IF('Other Inc'!$C15=Oper_Int!J$1,'Other Inc'!$F15,0) -> 0 | K12: =IF('Other Inc'!$C15=Oper_Int!K$1,'Other Inc'!$F15,0) -> 0 | L12: =IF('Other Inc'!$C15=Oper_Int!L$1,'Other Inc'!$F15,0) -> 0 | M12: =IF('Other Inc'!$C15=Oper_Int!M$1,'Other Inc'!$F15,0) -> 0 | N12: =IF('Other Inc'!$C15=Oper_Int!N$1,'Other Inc'!$F15,0) -> 0 | O12: 0 | AA12: =IF('Other Inc'!B15="","Other Income",'Other Inc'!B15) -> Other Income | AB12: =IF('Other Inc'!D15=0,"N/A",'Other Inc'!D15) -> N/A | AC12: =IF('Other Inc'!$C15=Oper_Int!AC$1,'Other Inc'!$D15,0) -> 0 | AD12: =IF('Other Inc'!$C15=Oper_Int!AD$1,'Other Inc'!$D15,0) -> 0 | AE12: =IF('Other Inc'!$C15=Oper_Int!AE$1,'Other Inc'!$D15,0) -> 0 | AF12: =IF('Other Inc'!$C15=Oper_Int!AF$1,'Other Inc'!$D15,0) -> 0 | AG12: =IF('Other Inc'!$C15=Oper_Int!AG$1,'Other Inc'!$D15,0) -> 0 | AH12: =IF('Other Inc'!$C15=Oper_Int!AH$1,'Other Inc'!$D15,0) -> 0 | AI12: =IF('Other Inc'!$C15=Oper_Int!AI$1,'Other Inc'!$D15,0) -> 0 | AJ12: =IF('Other Inc'!$C15=Oper_Int!AJ$1,'Other Inc'!$D15,0) -> 0 | AK12: =IF('Other Inc'!$C15=Oper_Int!AK$1,'Other Inc'!$D15,0) -> 0 | AL12: =IF('Other Inc'!$C15=Oper_Int!AL$1,'Other Inc'!$D15,0) -> 0 | AM12: =IF('Other Inc'!$C15=Oper_Int!AM$1,'Other Inc'!$D15,0) -> 0 | AN12: =IF('Other Inc'!$C15=Oper_Int!AN$1,'Other Inc'!$D15,0) -> 0 | AO12: 0
A13: =IF('Other Inc'!B16="","Other Income",'Other Inc'!B16) -> Other Income | B13: =IF('Other Inc'!F16=0,"N/A",'Other Inc'!F16) -> N/A | C13: =IF('Other Inc'!$C16=Oper_Int!C$1,'Other Inc'!$F16,0) -> 0 | D13: =IF('Other Inc'!$C16=Oper_Int!D$1,'Other Inc'!$F16,0) -> 0 | E13: =IF('Other Inc'!$C16=Oper_Int!E$1,'Other Inc'!$F16,0) -> 0 | F13: =IF('Other Inc'!$C16=Oper_Int!F$1,'Other Inc'!$F16,0) -> 0 | G13: =IF('Other Inc'!$C16=Oper_Int!G$1,'Other Inc'!$F16,0) -> 0 | H13: =IF('Other Inc'!$C16=Oper_Int!H$1,'Other Inc'!$F16,0) -> 0 | I13: =IF('Other Inc'!$C16=Oper_Int!I$1,'Other Inc'!$F16,0) -> 0 | J13: =IF('Other Inc'!$C16=Oper_Int!J$1,'Other Inc'!$F16,0) -> 0 | K13: =IF('Other Inc'!$C16=Oper_Int!K$1,'Other Inc'!$F16,0) -> 0 | L13: =IF('Other Inc'!$C16=Oper_Int!L$1,'Other Inc'!$F16,0) -> 0 | M13: =IF('Other Inc'!$C16=Oper_Int!M$1,'Other Inc'!$F16,0) -> 0 | N13: =IF('Other Inc'!$C16=Oper_Int!N$1,'Other Inc'!$F16,0) -> 0 | O13: 0 | AA13: =IF('Other Inc'!B16="","Other Income",'Other Inc'!B16) -> Other Income | AB13: =IF('Other Inc'!D16=0,"N/A",'Other Inc'!D16) -> N/A | AC13: =IF('Other Inc'!$C16=Oper_Int!AC$1,'Other Inc'!$D16,0) -> 0 | AD13: =IF('Other Inc'!$C16=Oper_Int!AD$1,'Other Inc'!$D16,0) -> 0 | AE13: =IF('Other Inc'!$C16=Oper_Int!AE$1,'Other Inc'!$D16,0) -> 0 | AF13: =IF('Other Inc'!$C16=Oper_Int!AF$1,'Other Inc'!$D16,0) -> 0 | AG13: =IF('Other Inc'!$C16=Oper_Int!AG$1,'Other Inc'!$D16,0) -> 0 | AH13: =IF('Other Inc'!$C16=Oper_Int!AH$1,'Other Inc'!$D16,0) -> 0 | AI13: =IF('Other Inc'!$C16=Oper_Int!AI$1,'Other Inc'!$D16,0) -> 0 | AJ13: =IF('Other Inc'!$C16=Oper_Int!AJ$1,'Other Inc'!$D16,0) -> 0 | AK13: =IF('Other Inc'!$C16=Oper_Int!AK$1,'Other Inc'!$D16,0) -> 0 | AL13: =IF('Other Inc'!$C16=Oper_Int!AL$1,'Other Inc'!$D16,0) -> 0 | AM13: =IF('Other Inc'!$C16=Oper_Int!AM$1,'Other Inc'!$D16,0) -> 0 | AN13: =IF('Other Inc'!$C16=Oper_Int!AN$1,'Other Inc'!$D16,0) -> 0 | AO13: 0
A14: Expense | O14: 0 | AA14: Expense | AO14: 0
A15: Seed | B15: =IF(Budget!BB$5="share",Budget!H15,Budget!G15) -> 22.67 | C15: =IF(Seed!$P$10=C1,$B15,0) -> 0 | D15: =IF(Seed!$P$10=D1,$B15,0) -> 0 | E15: =IF(Seed!$P$10=E1,$B15,0) -> 0 | F15: =IF(Seed!$P$10=F1,$B15,0) -> 0 | G15: =IF(Seed!$P$10=G1,$B15,0) -> 22.67 | H15: =IF(Seed!$P$10=H1,$B15,0) -> 0 | I15: =IF(Seed!$P$10=I1,$B15,0) -> 0 | J15: =IF(Seed!$P$10=J1,$B15,0) -> 0 | K15: =IF(Seed!$P$10=K1,$B15,0) -> 0 | L15: =IF(Seed!$P$10=L1,$B15,0) -> 0 | M15: =IF(Seed!$P$10=M1,$B15,0) -> 0 | N15: =IF(Seed!$P$10=N1,$B15,0) -> 0 | O15: 22.67 | AA15: Seed | AB15: =Budget!G15 -> 22.67 | AC15: =IF(Seed!$P$10=AC1,Budget!$G$15,0) -> 0 | AD15: =IF(Seed!$P$10=AD1,Budget!$G$15,0) -> 0 | AE15: =IF(Seed!$P$10=AE1,Budget!$G$15,0) -> 0 | AF15: =IF(Seed!$P$10=AF1,Budget!$G$15,0) -> 0 | AG15: =IF(Seed!$P$10=AG1,Budget!$G$15,0) -> 22.67 | AH15: =IF(Seed!$P$10=AH1,Budget!$G$15,0) -> 0 | AI15: =IF(Seed!$P$10=AI1,Budget!$G$15,0) -> 0 | AJ15: =IF(Seed!$P$10=AJ1,Budget!$G$15,0) -> 0 | AK15: =IF(Seed!$P$10=AK1,Budget!$G$15,0) -> 0 | AL15: =IF(Seed!$P$10=AL1,Budget!$G$15,0) -> 0 | AM15: =IF(Seed!$P$10=AM1,Budget!$G$15,0) -> 0 | AN15: =IF(Seed!$P$10=AN1,Budget!$G$15,0) -> 0 | AO15: 22.67
A16: =IF(Fertilizer!B9="","Fertilizer",Fertilizer!B9) -> Anhydrous Ammonia | B16: =IF(Fertilizer!D9="","N/A",(Fertilizer!D9*Fertilizer!M9)*Fertilizer!K9) -> 35.69155 | C16: =IF(Fertilizer!$C9=Oper_Int!C$1,$B16,0) -> 0 | D16: =IF(Fertilizer!$C9=Oper_Int!D$1,$B16,0) -> 0 | E16: =IF(Fertilizer!$C9=Oper_Int!E$1,$B16,0) -> 0 | F16: =IF(Fertilizer!$C9=Oper_Int!F$1,$B16,0) -> 35.69155 | G16: =IF(Fertilizer!$C9=Oper_Int!G$1,$B16,0) -> 0 | H16: =IF(Fertilizer!$C9=Oper_Int!H$1,$B16,0) -> 0 | I16: =IF(Fertilizer!$C9=Oper_Int!I$1,$B16,0) -> 0 | J16: =IF(Fertilizer!$C9=Oper_Int!J$1,$B16,0) -> 0 | K16: =IF(Fertilizer!$C9=Oper_Int!K$1,$B16,0) -> 0 | L16: =IF(Fertilizer!$C9=Oper_Int!L$1,$B16,0) -> 0 | M16: =IF(Fertilizer!$C9=Oper_Int!M$1,$B16,0) -> 0 | N16: =IF(Fertilizer!$C9=Oper_Int!N$1,$B16,0) -> 0 | O16: 35.69155 | AA16: =IF(Fertilizer!B9="","Fertilizer",Fertilizer!B9) -> Anhydrous Ammonia | AB16: =IF(Fertilizer!D9="","N/A",Fertilizer!D9*Fertilizer!M9) -> 35.69155 | AC16: =IF(Fertilizer!$C9=Oper_Int!AC$1,$AB16,0) -> 0 | AD16: =IF(Fertilizer!$C9=Oper_Int!AD$1,$AB16,0) -> 0 | AE16: =IF(Fertilizer!$C9=Oper_Int!AE$1,$AB16,0) -> 0 | AF16: =IF(Fertilizer!$C9=Oper_Int!AF$1,$AB16,0) -> 35.69155 | AG16: =IF(Fertilizer!$C9=Oper_Int!AG$1,$AB16,0) -> 0 | AH16: =IF(Fertilizer!$C9=Oper_Int!AH$1,$AB16,0) -> 0 | AI16: =IF(Fertilizer!$C9=Oper_Int!AI$1,$AB16,0) -> 0 | AJ16: =IF(Fertilizer!$C9=Oper_Int!AJ$1,$AB16,0) -> 0 | AK16: =IF(Fertilizer!$C9=Oper_Int!AK$1,$AB16,0) -> 0 | AL16: =IF(Fertilizer!$C9=Oper_Int!AL$1,$AB16,0) -> 0 | AM16: =IF(Fertilizer!$C9=Oper_Int!AM$1,$AB16,0) -> 0 | AN16: =IF(Fertilizer!$C9=Oper_Int!AN$1,$AB16,0) -> 0 | AO16: 35.69155
A17: =IF(Fertilizer!B10="","Fertilizer",Fertilizer!B10) -> Diammonium Phosphate | B17: =IF(Fertilizer!D10="","N/A",(Fertilizer!D10*Fertilizer!M10)*Fertilizer!K10) -> 22.58825 | C17: =IF(Fertilizer!$C10=Oper_Int!C$1,$B17,0) -> 0 | D17: =IF(Fertilizer!$C10=Oper_Int!D$1,$B17,0) -> 0 | E17: =IF(Fertilizer!$C10=Oper_Int!E$1,$B17,0) -> 0 | F17: =IF(Fertilizer!$C10=Oper_Int!F$1,$B17,0) -> 22.58825 | G17: =IF(Fertilizer!$C10=Oper_Int!G$1,$B17,0) -> 0 | H17: =IF(Fertilizer!$C10=Oper_Int!H$1,$B17,0) -> 0 | I17: =IF(Fertilizer!$C10=Oper_Int!I$1,$B17,0) -> 0 | J17: =IF(Fertilizer!$C10=Oper_Int!J$1,$B17,0) -> 0 | K17: =IF(Fertilizer!$C10=Oper_Int!K$1,$B17,0) -> 0 | L17: =IF(Fertilizer!$C10=Oper_Int!L$1,$B17,0) -> 0 | M17: =IF(Fertilizer!$C10=Oper_Int!M$1,$B17,0) -> 0 | N17: =IF(Fertilizer!$C10=Oper_Int!N$1,$B17,0) -> 0 | O17: 22.58825 | AA17: =IF(Fertilizer!B10="","Fertilizer",Fertilizer!B10) -> Diammonium Phosphate | AB17: =IF(Fertilizer!D10="","N/A",Fertilizer!D10*Fertilizer!M10) -> 22.58825 | AC17: =IF(Fertilizer!$C10=Oper_Int!AC$1,$AB17,0) -> 0 | AD17: =IF(Fertilizer!$C10=Oper_Int!AD$1,$AB17,0) -> 0 | AE17: =IF(Fertilizer!$C10=Oper_Int!AE$1,$AB17,0) -> 0 | AF17: =IF(Fertilizer!$C10=Oper_Int!AF$1,$AB17,0) -> 22.58825 | AG17: =IF(Fertilizer!$C10=Oper_Int!AG$1,$AB17,0) -> 0 | AH17: =IF(Fertilizer!$C10=Oper_Int!AH$1,$AB17,0) -> 0 | AI17: =IF(Fertilizer!$C10=Oper_Int!AI$1,$AB17,0) -> 0 | AJ17: =IF(Fertilizer!$C10=Oper_Int!AJ$1,$AB17,0) -> 0 | AK17: =IF(Fertilizer!$C10=Oper_Int!AK$1,$AB17,0) -> 0 | AL17: =IF(Fertilizer!$C10=Oper_Int!AL$1,$AB17,0) -> 0 | AM17: =IF(Fertilizer!$C10=Oper_Int!AM$1,$AB17,0) -> 0 | AN17: =IF(Fertilizer!$C10=Oper_Int!AN$1,$AB17,0) -> 0 | AO17: 22.58825
A18: =IF(Fertilizer!B11="","Fertilizer",Fertilizer!B11) -> Urea | B18: =IF(Fertilizer!D11="","N/A",(Fertilizer!D11*Fertilizer!M11)*Fertilizer!K11) -> 25.02189 | C18: =IF(Fertilizer!$C11=Oper_Int!C$1,$B18,0) -> 0 | D18: =IF(Fertilizer!$C11=Oper_Int!D$1,$B18,0) -> 0 | E18: =IF(Fertilizer!$C11=Oper_Int!E$1,$B18,0) -> 0 | F18: =IF(Fertilizer!$C11=Oper_Int!F$1,$B18,0) -> 25.02189 | G18: =IF(Fertilizer!$C11=Oper_Int!G$1,$B18,0) -> 0 | H18: =IF(Fertilizer!$C11=Oper_Int!H$1,$B18,0) -> 0 | I18: =IF(Fertilizer!$C11=Oper_Int!I$1,$B18,0) -> 0 | J18: =IF(Fertilizer!$C11=Oper_Int!J$1,$B18,0) -> 0 | K18: =IF(Fertilizer!$C11=Oper_Int!K$1,$B18,0) -> 0 | L18: =IF(Fertilizer!$C11=Oper_Int!L$1,$B18,0) -> 0 | M18: =IF(Fertilizer!$C11=Oper_Int!M$1,$B18,0) -> 0 | N18: =IF(Fertilizer!$C11=Oper_Int!N$1,$B18,0) -> 0 | O18: 25.02189 | AA18: =IF(Fertilizer!B11="","Fertilizer",Fertilizer!B11) -> Urea | AB18: =IF(Fertilizer!D11="","N/A",Fertilizer!D11*Fertilizer!M11) -> 25.02189 | AC18: =IF(Fertilizer!$C11=Oper_Int!AC$1,$AB18,0) -> 0 | AD18: =IF(Fertilizer!$C11=Oper_Int!AD$1,$AB18,0) -> 0 | AE18: =IF(Fertilizer!$C11=Oper_Int!AE$1,$AB18,0) -> 0 | AF18: =IF(Fertilizer!$C11=Oper_Int!AF$1,$AB18,0) -> 25.02189 | AG18: =IF(Fertilizer!$C11=Oper_Int!AG$1,$AB18,0) -> 0 | AH18: =IF(Fertilizer!$C11=Oper_Int!AH$1,$AB18,0) -> 0 | AI18: =IF(Fertilizer!$C11=Oper_Int!AI$1,$AB18,0) -> 0 | AJ18: =IF(Fertilizer!$C11=Oper_Int!AJ$1,$AB18,0) -> 0 | AK18: =IF(Fertilizer!$C11=Oper_Int!AK$1,$AB18,0) -> 0 | AL18: =IF(Fertilizer!$C11=Oper_Int!AL$1,$AB18,0) -> 0 | AM18: =IF(Fertilizer!$C11=Oper_Int!AM$1,$AB18,0) -> 0 | AN18: =IF(Fertilizer!$C11=Oper_Int!AN$1,$AB18,0) -> 0 | AO18: 25.02189
A19: =IF(Fertilizer!B12="","Fertilizer",Fertilizer!B12) -> Fertilizer | B19: =IF(Fertilizer!D12="","N/A",(Fertilizer!D12*Fertilizer!M12)*Fertilizer!K12) -> N/A | C19: =IF(Fertilizer!$C12=Oper_Int!C$1,$B19,0) -> 0 | D19: =IF(Fertilizer!$C12=Oper_Int!D$1,$B19,0) -> 0 | E19: =IF(Fertilizer!$C12=Oper_Int!E$1,$B19,0) -> 0 | F19: =IF(Fertilizer!$C12=Oper_Int!F$1,$B19,0) -> 0 | G19: =IF(Fertilizer!$C12=Oper_Int!G$1,$B19,0) -> 0 | H19: =IF(Fertilizer!$C12=Oper_Int!H$1,$B19,0) -> 0 | I19: =IF(Fertilizer!$C12=Oper_Int!I$1,$B19,0) -> 0 | J19: =IF(Fertilizer!$C12=Oper_Int!J$1,$B19,0) -> 0 | K19: =IF(Fertilizer!$C12=Oper_Int!K$1,$B19,0) -> 0 | L19: =IF(Fertilizer!$C12=Oper_Int!L$1,$B19,0) -> 0 | M19: =IF(Fertilizer!$C12=Oper_Int!M$1,$B19,0) -> 0 | N19: =IF(Fertilizer!$C12=Oper_Int!N$1,$B19,0) -> 0 | O19: 0 | AA19: =IF(Fertilizer!B12="","Fertilizer",Fertilizer!B12) -> Fertilizer | AB19: =IF(Fertilizer!D12="","N/A",Fertilizer!D12*Fertilizer!M12) -> N/A | AC19: =IF(Fertilizer!$C12=Oper_Int!AC$1,$AB19,0) -> 0 | AD19: =IF(Fertilizer!$C12=Oper_Int!AD$1,$AB19,0) -> 0 | AE19: =IF(Fertilizer!$C12=Oper_Int!AE$1,$AB19,0) -> 0 | AF19: =IF(Fertilizer!$C12=Oper_Int!AF$1,$AB19,0) -> 0 | AG19: =IF(Fertilizer!$C12=Oper_Int!AG$1,$AB19,0) -> 0 | AH19: =IF(Fertilizer!$C12=Oper_Int!AH$1,$AB19,0) -> 0 | AI19: =IF(Fertilizer!$C12=Oper_Int!AI$1,$AB19,0) -> 0 | AJ19: =IF(Fertilizer!$C12=Oper_Int!AJ$1,$AB19,0) -> 0 | AK19: =IF(Fertilizer!$C12=Oper_Int!AK$1,$AB19,0) -> 0 | AL19: =IF(Fertilizer!$C12=Oper_Int!AL$1,$AB19,0) -> 0 | AM19: =IF(Fertilizer!$C12=Oper_Int!AM$1,$AB19,0) -> 0 | AN19: =IF(Fertilizer!$C12=Oper_Int!AN$1,$AB19,0) -> 0 | AO19: 0
A20: =IF(Fertilizer!B13="","Fertilizer",Fertilizer!B13) -> Fertilizer | B20: =IF(Fertilizer!D13="","N/A",(Fertilizer!D13*Fertilizer!M13)*Fertilizer!K13) -> N/A | C20: =IF(Fertilizer!$C13=Oper_Int!C$1,$B20,0) -> 0 | D20: =IF(Fertilizer!$C13=Oper_Int!D$1,$B20,0) -> 0 | E20: =IF(Fertilizer!$C13=Oper_Int!E$1,$B20,0) -> 0 | F20: =IF(Fertilizer!$C13=Oper_Int!F$1,$B20,0) -> 0 | G20: =IF(Fertilizer!$C13=Oper_Int!G$1,$B20,0) -> 0 | H20: =IF(Fertilizer!$C13=Oper_Int!H$1,$B20,0) -> 0 | I20: =IF(Fertilizer!$C13=Oper_Int!I$1,$B20,0) -> 0 | J20: =IF(Fertilizer!$C13=Oper_Int!J$1,$B20,0) -> 0 | K20: =IF(Fertilizer!$C13=Oper_Int!K$1,$B20,0) -> 0 | L20: =IF(Fertilizer!$C13=Oper_Int!L$1,$B20,0) -> 0 | M20: =IF(Fertilizer!$C13=Oper_Int!M$1,$B20,0) -> 0 | N20: =IF(Fertilizer!$C13=Oper_Int!N$1,$B20,0) -> 0 | O20: 0 | AA20: =IF(Fertilizer!B13="","Fertilizer",Fertilizer!B13) -> Fertilizer | AB20: =IF(Fertilizer!D13="","N/A",Fertilizer!D13*Fertilizer!M13) -> N/A | AC20: =IF(Fertilizer!$C13=Oper_Int!AC$1,$AB20,0) -> 0 | AD20: =IF(Fertilizer!$C13=Oper_Int!AD$1,$AB20,0) -> 0 | AE20: =IF(Fertilizer!$C13=Oper_Int!AE$1,$AB20,0) -> 0 | AF20: =IF(Fertilizer!$C13=Oper_Int!AF$1,$AB20,0) -> 0 | AG20: =IF(Fertilizer!$C13=Oper_Int!AG$1,$AB20,0) -> 0 | AH20: =IF(Fertilizer!$C13=Oper_Int!AH$1,$AB20,0) -> 0 | AI20: =IF(Fertilizer!$C13=Oper_Int!AI$1,$AB20,0) -> 0 | AJ20: =IF(Fertilizer!$C13=Oper_Int!AJ$1,$AB20,0) -> 0 | AK20: =IF(Fertilizer!$C13=Oper_Int!AK$1,$AB20,0) -> 0 | AL20: =IF(Fertilizer!$C13=Oper_Int!AL$1,$AB20,0) -> 0 | AM20: =IF(Fertilizer!$C13=Oper_Int!AM$1,$AB20,0) -> 0 | AN20: =IF(Fertilizer!$C13=Oper_Int!AN$1,$AB20,0) -> 0 | AO20: 0
A21: =IF(Fertilizer!B14="","Fertilizer",Fertilizer!B14) -> Fertilizer | B21: =IF(Fertilizer!D14="","N/A",(Fertilizer!D14*Fertilizer!M14)*Fertilizer!K14) -> N/A | C21: =IF(Fertilizer!$C14=Oper_Int!C$1,$B21,0) -> 0 | D21: =IF(Fertilizer!$C14=Oper_Int!D$1,$B21,0) -> 0 | E21: =IF(Fertilizer!$C14=Oper_Int!E$1,$B21,0) -> 0 | F21: =IF(Fertilizer!$C14=Oper_Int!F$1,$B21,0) -> 0 | G21: =IF(Fertilizer!$C14=Oper_Int!G$1,$B21,0) -> 0 | H21: =IF(Fertilizer!$C14=Oper_Int!H$1,$B21,0) -> 0 | I21: =IF(Fertilizer!$C14=Oper_Int!I$1,$B21,0) -> 0 | J21: =IF(Fertilizer!$C14=Oper_Int!J$1,$B21,0) -> 0 | K21: =IF(Fertilizer!$C14=Oper_Int!K$1,$B21,0) -> 0 | L21: =IF(Fertilizer!$C14=Oper_Int!L$1,$B21,0) -> 0 | M21: =IF(Fertilizer!$C14=Oper_Int!M$1,$B21,0) -> 0 | N21: =IF(Fertilizer!$C14=Oper_Int!N$1,$B21,0) -> 0 | O21: 0 | AA21: =IF(Fertilizer!B14="","Fertilizer",Fertilizer!B14) -> Fertilizer | AB21: =IF(Fertilizer!D14="","N/A",Fertilizer!D14*Fertilizer!M14) -> N/A | AC21: =IF(Fertilizer!$C14=Oper_Int!AC$1,$AB21,0) -> 0 | AD21: =IF(Fertilizer!$C14=Oper_Int!AD$1,$AB21,0) -> 0 | AE21: =IF(Fertilizer!$C14=Oper_Int!AE$1,$AB21,0) -> 0 | AF21: =IF(Fertilizer!$C14=Oper_Int!AF$1,$AB21,0) -> 0 | AG21: =IF(Fertilizer!$C14=Oper_Int!AG$1,$AB21,0) -> 0 | AH21: =IF(Fertilizer!$C14=Oper_Int!AH$1,$AB21,0) -> 0 | AI21: =IF(Fertilizer!$C14=Oper_Int!AI$1,$AB21,0) -> 0 | AJ21: =IF(Fertilizer!$C14=Oper_Int!AJ$1,$AB21,0) -> 0 | AK21: =IF(Fertilizer!$C14=Oper_Int!AK$1,$AB21,0) -> 0 | AL21: =IF(Fertilizer!$C14=Oper_Int!AL$1,$AB21,0) -> 0 | AM21: =IF(Fertilizer!$C14=Oper_Int!AM$1,$AB21,0) -> 0 | AN21: =IF(Fertilizer!$C14=Oper_Int!AN$1,$AB21,0) -> 0 | AO21: 0
A22: =IF(Fertilizer!B15="","Fertilizer",Fertilizer!B15) -> Fertilizer | B22: =IF(Fertilizer!D15="","N/A",(Fertilizer!D15*Fertilizer!M15)*Fertilizer!K15) -> N/A | C22: =IF(Fertilizer!$C15=Oper_Int!C$1,$B22,0) -> 0 | D22: =IF(Fertilizer!$C15=Oper_Int!D$1,$B22,0) -> 0 | E22: =IF(Fertilizer!$C15=Oper_Int!E$1,$B22,0) -> 0 | F22: =IF(Fertilizer!$C15=Oper_Int!F$1,$B22,0) -> 0 | G22: =IF(Fertilizer!$C15=Oper_Int!G$1,$B22,0) -> 0 | H22: =IF(Fertilizer!$C15=Oper_Int!H$1,$B22,0) -> 0 | I22: =IF(Fertilizer!$C15=Oper_Int!I$1,$B22,0) -> 0 | J22: =IF(Fertilizer!$C15=Oper_Int!J$1,$B22,0) -> 0 | K22: =IF(Fertilizer!$C15=Oper_Int!K$1,$B22,0) -> 0 | L22: =IF(Fertilizer!$C15=Oper_Int!L$1,$B22,0) -> 0 | M22: =IF(Fertilizer!$C15=Oper_Int!M$1,$B22,0) -> 0 | N22: =IF(Fertilizer!$C15=Oper_Int!N$1,$B22,0) -> 0 | O22: 0 | AA22: =IF(Fertilizer!B15="","Fertilizer",Fertilizer!B15) -> Fertilizer | AB22: =IF(Fertilizer!D15="","N/A",Fertilizer!D15*Fertilizer!M15) -> N/A | AC22: =IF(Fertilizer!$C15=Oper_Int!AC$1,$AB22,0) -> 0 | AD22: =IF(Fertilizer!$C15=Oper_Int!AD$1,$AB22,0) -> 0 | AE22: =IF(Fertilizer!$C15=Oper_Int!AE$1,$AB22,0) -> 0 | AF22: =IF(Fertilizer!$C15=Oper_Int!AF$1,$AB22,0) -> 0 | AG22: =IF(Fertilizer!$C15=Oper_Int!AG$1,$AB22,0) -> 0 | AH22: =IF(Fertilizer!$C15=Oper_Int!AH$1,$AB22,0) -> 0 | AI22: =IF(Fertilizer!$C15=Oper_Int!AI$1,$AB22,0) -> 0 | AJ22: =IF(Fertilizer!$C15=Oper_Int!AJ$1,$AB22,0) -> 0 | AK22: =IF(Fertilizer!$C15=Oper_Int!AK$1,$AB22,0) -> 0 | AL22: =IF(Fertilizer!$C15=Oper_Int!AL$1,$AB22,0) -> 0 | AM22: =IF(Fertilizer!$C15=Oper_Int!AM$1,$AB22,0) -> 0 | AN22: =IF(Fertilizer!$C15=Oper_Int!AN$1,$AB22,0) -> 0 | AO22: 0
A23: =IF(Fertilizer!B16="","Fertilizer",Fertilizer!B16) -> Fertilizer | B23: =IF(Fertilizer!D16="","N/A",(Fertilizer!D16*Fertilizer!M16)*Fertilizer!K16) -> N/A | C23: =IF(Fertilizer!$C16=Oper_Int!C$1,$B23,0) -> 0 | D23: =IF(Fertilizer!$C16=Oper_Int!D$1,$B23,0) -> 0 | E23: =IF(Fertilizer!$C16=Oper_Int!E$1,$B23,0) -> 0 | F23: =IF(Fertilizer!$C16=Oper_Int!F$1,$B23,0) -> 0 | G23: =IF(Fertilizer!$C16=Oper_Int!G$1,$B23,0) -> 0 | H23: =IF(Fertilizer!$C16=Oper_Int!H$1,$B23,0) -> 0 | I23: =IF(Fertilizer!$C16=Oper_Int!I$1,$B23,0) -> 0 | J23: =IF(Fertilizer!$C16=Oper_Int!J$1,$B23,0) -> 0 | K23: =IF(Fertilizer!$C16=Oper_Int!K$1,$B23,0) -> 0 | L23: =IF(Fertilizer!$C16=Oper_Int!L$1,$B23,0) -> 0 | M23: =IF(Fertilizer!$C16=Oper_Int!M$1,$B23,0) -> 0 | N23: =IF(Fertilizer!$C16=Oper_Int!N$1,$B23,0) -> 0 | O23: 0 | AA23: =IF(Fertilizer!B16="","Fertilizer",Fertilizer!B16) -> Fertilizer | AB23: =IF(Fertilizer!D16="","N/A",Fertilizer!D16*Fertilizer!M16) -> N/A | AC23: =IF(Fertilizer!$C16=Oper_Int!AC$1,$AB23,0) -> 0 | AD23: =IF(Fertilizer!$C16=Oper_Int!AD$1,$AB23,0) -> 0 | AE23: =IF(Fertilizer!$C16=Oper_Int!AE$1,$AB23,0) -> 0 | AF23: =IF(Fertilizer!$C16=Oper_Int!AF$1,$AB23,0) -> 0 | AG23: =IF(Fertilizer!$C16=Oper_Int!AG$1,$AB23,0) -> 0 | AH23: =IF(Fertilizer!$C16=Oper_Int!AH$1,$AB23,0) -> 0 | AI23: =IF(Fertilizer!$C16=Oper_Int!AI$1,$AB23,0) -> 0 | AJ23: =IF(Fertilizer!$C16=Oper_Int!AJ$1,$AB23,0) -> 0 | AK23: =IF(Fertilizer!$C16=Oper_Int!AK$1,$AB23,0) -> 0 | AL23: =IF(Fertilizer!$C16=Oper_Int!AL$1,$AB23,0) -> 0 | AM23: =IF(Fertilizer!$C16=Oper_Int!AM$1,$AB23,0) -> 0 | AN23: =IF(Fertilizer!$C16=Oper_Int!AN$1,$AB23,0) -> 0 | AO23: 0
A24: Lime Application | B24: =IF(Fertilizer!AW10=0,0,Fertilizer!AW10*Fertilizer!BA8)*IF(Budget!BB29,1,0) -> 0 | C24: =IF(Fertilizer!$AT$8=Oper_Int!C$1,$B$24,0) -> 0 | D24: =IF(Fertilizer!$AT$8=Oper_Int!D$1,$B$24,0) -> 0 | E24: =IF(Fertilizer!$AT$8=Oper_Int!E$1,$B$24,0) -> 0 | F24: =IF(Fertilizer!$AT$8=Oper_Int!F$1,$B$24,0) -> 0 | G24: =IF(Fertilizer!$AT$8=Oper_Int!G$1,$B$24,0) -> 0 | H24: =IF(Fertilizer!$AT$8=Oper_Int!H$1,$B$24,0) -> 0 | I24: =IF(Fertilizer!$AT$8=Oper_Int!I$1,$B$24,0) -> 0 | J24: =IF(Fertilizer!$AT$8=Oper_Int!J$1,$B$24,0) -> 0 | K24: =IF(Fertilizer!$AT$8=Oper_Int!K$1,$B$24,0) -> 0 | L24: =IF(Fertilizer!$AT$8=Oper_Int!L$1,$B$24,0) -> 0 | M24: =IF(Fertilizer!$AT$8=Oper_Int!M$1,$B$24,0) -> 0 | N24: =IF(Fertilizer!$AT$8=Oper_Int!N$1,$B$24,0) -> 0 | O24: 0 | AA24: Lime Application | AB24: =IF(Fertilizer!AW10=0,0,Fertilizer!AW10)*IF(Budget!BB29,1,0) -> 0 | AC24: =IF(Fertilizer!$AT$8=Oper_Int!AC$1,$AB$24,0) -> 0 | AD24: =IF(Fertilizer!$AT$8=Oper_Int!AD$1,$AB$24,0) -> 0 | AE24: =IF(Fertilizer!$AT$8=Oper_Int!AE$1,$AB$24,0) -> 0 | AF24: =IF(Fertilizer!$AT$8=Oper_Int!AF$1,$AB$24,0) -> 0 | AG24: =IF(Fertilizer!$AT$8=Oper_Int!AG$1,$AB$24,0) -> 0 | AH24: =IF(Fertilizer!$AT$8=Oper_Int!AH$1,$AB$24,0) -> 0 | AI24: =IF(Fertilizer!$AT$8=Oper_Int!AI$1,$AB$24,0) -> 0 | AJ24: =IF(Fertilizer!$AT$8=Oper_Int!AJ$1,$AB$24,0) -> 0 | AK24: =IF(Fertilizer!$AT$8=Oper_Int!AK$1,$AB$24,0) -> 0 | AL24: =IF(Fertilizer!$AT$8=Oper_Int!AL$1,$AB$24,0) -> 0 | AM24: =IF(Fertilizer!$AT$8=Oper_Int!AM$1,$AB$24,0) -> 0 | AN24: =IF(Fertilizer!$AT$8=Oper_Int!AN$1,$AB$24,0) -> 0 | AO24: 0
A25: Custom Harvest | B25: =IF(Budget!BB$5="share",Budget!H17,Budget!G17) -> 0 | C25: =IF(Yield!$P$10=Oper_Int!C$1,$B$25,0) -> 0 | D25: =IF(Yield!$P$10=Oper_Int!D$1,$B$25,0) -> 0 | E25: =IF(Yield!$P$10=Oper_Int!E$1,$B$25,0) -> 0 | F25: =IF(Yield!$P$10=Oper_Int!F$1,$B$25,0) -> 0 | G25: =IF(Yield!$P$10=Oper_Int!G$1,$B$25,0) -> 0 | H25: =IF(Yield!$P$10=Oper_Int!H$1,$B$25,0) -> 0 | I25: =IF(Yield!$P$10=Oper_Int!I$1,$B$25,0) -> 0 | J25: =IF(Yield!$P$10=Oper_Int!J$1,$B$25,0) -> 0 | K25: =IF(Yield!$P$10=Oper_Int!K$1,$B$25,0) -> 0 | L25: =IF(Yield!$P$10=Oper_Int!L$1,$B$25,0) -> 0 | M25: =IF(Yield!$P$10=Oper_Int!M$1,$B$25,0) -> 0 | N25: =IF(Yield!$P$10=Oper_Int!N$1,$B$25,0) -> 0 | O25: 0 | AA25: Custom Harvest | AB25: =Budget!G17 -> 0 | AC25: =IF(Yield!$P$10=Oper_Int!AC$1,$AB$25,0) -> 0 | AD25: =IF(Yield!$P$10=Oper_Int!AD$1,$AB$25,0) -> 0 | AE25: =IF(Yield!$P$10=Oper_Int!AE$1,$AB$25,0) -> 0 | AF25: =IF(Yield!$P$10=Oper_Int!AF$1,$AB$25,0) -> 0 | AG25: =IF(Yield!$P$10=Oper_Int!AG$1,$AB$25,0) -> 0 | AH25: =IF(Yield!$P$10=Oper_Int!AH$1,$AB$25,0) -> 0 | AI25: =IF(Yield!$P$10=Oper_Int!AI$1,$AB$25,0) -> 0 | AJ25: =IF(Yield!$P$10=Oper_Int!AJ$1,$AB$25,0) -> 0 | AK25: =IF(Yield!$P$10=Oper_Int!AK$1,$AB$25,0) -> 0 | AL25: =IF(Yield!$P$10=Oper_Int!AL$1,$AB$25,0) -> 0 | AM25: =IF(Yield!$P$10=Oper_Int!AM$1,$AB$25,0) -> 0 | AN25: =IF(Yield!$P$10=Oper_Int!AN$1,$AB$25,0) -> 0 | AO25: 0
A26: Custom Hire | B26: =IF(Budget!BB$5="share",Budget!BC23,Budget!BB23)-Fertilizer!BH16+IF(Budget!BB29,Fertilizer!BH15,0) -> 9.63 | C26: =(IF(Budget!$BB5="share",((Fertilizer!BK18+Pesticide!AN18)+IF(Machinery!$V$32,Machinery!D65,0)+IF(Machinery!$V$33,Machinery!D66,0))*Machinery!$J$13+IF(Budget!$BB29,Fertilizer!BK24*Machinery!$J$13,0),AC26)) -> 0 | D26: =(IF(Budget!$BB5="share",((Fertilizer!BL18+Pesticide!AO18)+IF(Machinery!$V$32,Machinery!E65,0)+IF(Machinery!$V$33,Machinery!E66,0))*Machinery!$J$13+IF(Budget!$BB29,Fertilizer!BL24*Machinery!$J$13,0),AD26)) -> 0 | E26: =(IF(Budget!$BB5="share",((Fertilizer!BM18+Pesticide!AP18)+IF(Machinery!$V$32,Machinery!F65,0)+IF(Machinery!$V$33,Machinery!F66,0))*Machinery!$J$13+IF(Budget!$BB29,Fertilizer!BM24*Machinery!$J$13,0),AE26)) -> 0 | F26: =(IF(Budget!$BB5="share",((Fertilizer!BN18+Pesticide!AQ18)+IF(Machinery!$V$32,Machinery!G65,0)+IF(Machinery!$V$33,Machinery!G66,0))*Machinery!$J$13+IF(Budget!$BB29,Fertilizer!BN24*Machinery!$J$13,0),AF26)) -> 4 | G26: =(IF(Budget!$BB5="share",((Fertilizer!BO18+Pesticide!AR18)+IF(Machinery!$V$32,Machinery!H65,0)+IF(Machinery!$V$33,Machinery!H66,0))*Machinery!$J$13+IF(Budget!$BB29,Fertilizer!BO24*Machinery!$J$13,0),AG26)) -> 0 | H26: =(IF(Budget!$BB5="share",((Fertilizer!BP18+Pesticide!AS18)+IF(Machinery!$V$32,Machinery!I65,0)+IF(Machinery!$V$33,Machinery!I66,0))*Machinery!$J$13+IF(Budget!$BB29,Fertilizer!BP24*Machinery!$J$13,0),AH26)) -> 0 | I26: =(IF(Budget!$BB5="share",((Fertilizer!BQ18+Pesticide!AT18)+IF(Machinery!$V$32,Machinery!J65,0)+IF(Machinery!$V$33,Machinery!J66,0))*Machinery!$J$13+IF(Budget!$BB29,Fertilizer!BQ24*Machinery!$J$13,0),AI26)) -> 0 | J26: =(IF(Budget!$BB5="share",((Fertilizer!BR18+Pesticide!AU18)+IF(Machinery!$V$32,Machinery!K65,0)+IF(Machinery!$V$33,Machinery!K66,0))*Machinery!$J$13+IF(Budget!$BB29,Fertilizer!BR24*Machinery!$J$13,0),AJ26)) -> 5.63 | K26: =(IF(Budget!$BB5="share",((Fertilizer!BS18+Pesticide!AV18)+IF(Machinery!$V$32,Machinery!L65,0)+IF(Machinery!$V$33,Machinery!L66,0))*Machinery!$J$13+IF(Budget!$BB29,Fertilizer!BS24*Machinery!$J$13,0),AK26)) -> 0 | L26: =(IF(Budget!$BB5="share",((Fertilizer!BT18+Pesticide!AW18)+IF(Machinery!$V$32,Machinery!M65,0)+IF(Machinery!$V$33,Machinery!M66,0))*Machinery!$J$13+IF(Budget!$BB29,Fertilizer!BT24*Machinery!$J$13,0),AL26)) -> 0 | M26: =(IF(Budget!$BB5="share",((Fertilizer!BU18+Pesticide!AX18)+IF(Machinery!$V$32,Machinery!N65,0)+IF(Machinery!$V$33,Machinery!N66,0))*Machinery!$J$13+IF(Budget!$BB29,Fertilizer!BU24*Machinery!$J$13,0),AM26)) -> 0 | N26: =(IF(Budget!$BB5="share",((Fertilizer!BV18+Pesticide!AY18)+IF(Machinery!$V$32,Machinery!O65,0)+IF(Machinery!$V$33,Machinery!O66,0))*Machinery!$J$13+IF(Budget!$BB29,Fertilizer!BV24*Machinery!$J$13,0),AN26)) -> 0 | O26: 9.63 | P26: 2021 edit | AA26: Custom Hire | AB26: =Budget!BB23-Fertilizer!BH13+Fertilizer!BH14-IF(Budget!BB29,0,Fertilizer!BW24) -> 9.63 | AC26: =IF(Machinery!$V$32,Machinery!D65,0)+IF(Machinery!$V$33,Machinery!D66,0)+Fertilizer!BK18+IF(Budget!$BB29,Fertilizer!BK24,0)+Pesticide!AN18 -> 0 | AD26: =IF(Machinery!$V$32,Machinery!E65,0)+IF(Machinery!$V$33,Machinery!E66,0)+Fertilizer!BL18+IF(Budget!$BB29,Fertilizer!BL24,0)+Pesticide!AO18 -> 0 | AE26: =IF(Machinery!$V$32,Machinery!F65,0)+IF(Machinery!$V$33,Machinery!F66,0)+Fertilizer!BM18+IF(Budget!$BB29,Fertilizer!BM24,0)+Pesticide!AP18 -> 0 | AF26: =IF(Machinery!$V$32,Machinery!G65,0)+IF(Machinery!$V$33,Machinery!G66,0)+Fertilizer!BN18+IF(Budget!$BB29,Fertilizer!BN24,0)+Pesticide!AQ18 -> 4 | AG26: =IF(Machinery!$V$32,Machinery!H65,0)+IF(Machinery!$V$33,Machinery!H66,0)+Fertilizer!BO18+IF(Budget!$BB29,Fertilizer!BO24,0)+Pesticide!AR18 -> 0 | AH26: =IF(Machinery!$V$32,Machinery!I65,0)+IF(Machinery!$V$33,Machinery!I66,0)+Fertilizer!BP18+IF(Budget!$BB29,Fertilizer!BP24,0)+Pesticide!AS18 -> 0 | AI26: =IF(Machinery!$V$32,Machinery!J65,0)+IF(Machinery!$V$33,Machinery!J66,0)+Fertilizer!BQ18+IF(Budget!$BB29,Fertilizer!BQ24,0)+Pesticide!AT18 -> 0 | AJ26: =IF(Machinery!$V$32,Machinery!K65,0)+IF(Machinery!$V$33,Machinery!K66,0)+Fertilizer!BR18+IF(Budget!$BB29,Fertilizer!BR24,0)+Pesticide!AU18 -> 5.63 | AK26: =IF(Machinery!$V$32,Machinery!L65,0)+IF(Machinery!$V$33,Machinery!L66,0)+Fertilizer!BS18+IF(Budget!$BB29,Fertilizer!BS24,0)+Pesticide!AV18 -> 0 | AL26: =IF(Machinery!$V$32,Machinery!M65,0)+IF(Machinery!$V$33,Machinery!M66,0)+Fertilizer!BT18+IF(Budget!$BB29,Fertilizer!BT24,0)+Pesticide!AW18 -> 0 | AM26: =IF(Machinery!$V$32,Machinery!N65,0)+IF(Machinery!$V$33,Machinery!N66,0)+Fertilizer!BU18+IF(Budget!$BB29,Fertilizer!BU24,0)+Pesticide!AX18 -> 0 | AN26: =IF(Machinery!$V$32,Machinery!O65,0)+IF(Machinery!$V$33,Machinery!O66,0)+Fertilizer!BV18+IF(Budget!$BB29,Fertilizer!BV24,0)+Pesticide!AY18 -> 0 | AO26: 9.63 | AP26: 2021 edit
A27: =IF(Pesticide!B9="","Pest-N/A",Pesticide!B9) -> Bicep Lite II Magnum | B27: =IF(Pesticide!K9=0,"N/A",Pesticide!I9*Pesticide!J9) -> 15.36 | C27: =IF(Pesticide!$C$9=Oper_Int!C$1,$B27,0) -> 0 | D27: =IF(Pesticide!$C9=Oper_Int!D$1,$B27,0) -> 0 | E27: =IF(Pesticide!$C9=Oper_Int!E$1,$B27,0) -> 0 | F27: =IF(Pesticide!$C9=Oper_Int!F$1,$B27,0) -> 0 | G27: =IF(Pesticide!$C9=Oper_Int!G$1,$B27,0) -> 15.36 | H27: =IF(Pesticide!$C9=Oper_Int!H$1,$B27,0) -> 0 | I27: =IF(Pesticide!$C9=Oper_Int!I$1,$B27,0) -> 0 | J27: =IF(Pesticide!$C9=Oper_Int!J$1,$B27,0) -> 0 | K27: =IF(Pesticide!$C9=Oper_Int!K$1,$B27,0) -> 0 | L27: =IF(Pesticide!$C9=Oper_Int!L$1,$B27,0) -> 0 | M27: =IF(Pesticide!$C9=Oper_Int!M$1,$B27,0) -> 0 | N27: =IF(Pesticide!$C9=Oper_Int!N$1,$B27,0) -> 0 | O27: 15.36 | AA27: =IF(Pesticide!B9="","Pest-N/A",Pesticide!B9) -> Bicep Lite II Magnum | AB27: =IF(Pesticide!K9=0,"N/A",Pesticide!J9) -> 15.36 | AC27: =IF(Pesticide!$C$9=Oper_Int!AC$1,$AB27,0) -> 0 | AD27: =IF(Pesticide!$C9=Oper_Int!AD$1,$AB27,0) -> 0 | AE27: =IF(Pesticide!$C9=Oper_Int!AE$1,$AB27,0) -> 0 | AF27: =IF(Pesticide!$C9=Oper_Int!AF$1,$AB27,0) -> 0 | AG27: =IF(Pesticide!$C9=Oper_Int!AG$1,$AB27,0) -> 15.36 | AH27: =IF(Pesticide!$C9=Oper_Int!AH$1,$AB27,0) -> 0 | AI27: =IF(Pesticide!$C9=Oper_Int!AI$1,$AB27,0) -> 0 | AJ27: =IF(Pesticide!$C9=Oper_Int!AJ$1,$AB27,0) -> 0 | AK27: =IF(Pesticide!$C9=Oper_Int!AK$1,$AB27,0) -> 0 | AL27: =IF(Pesticide!$C9=Oper_Int!AL$1,$AB27,0) -> 0 | AM27: =IF(Pesticide!$C9=Oper_Int!AM$1,$AB27,0) -> 0 | AN27: =IF(Pesticide!$C9=Oper_Int!AN$1,$AB27,0) -> 0 | AO27: 15.36
A28: =IF(Pesticide!B10="","Pest-N/A",Pesticide!B10) -> Huskie | B28: =IF(Pesticide!K10=0,"N/A",Pesticide!I10*Pesticide!J10) -> 15.84 | C28: =IF(Pesticide!$C10=Oper_Int!C$1,$B28,0) -> 0 | D28: =IF(Pesticide!$C10=Oper_Int!D$1,$B28,0) -> 0 | E28: =IF(Pesticide!$C10=Oper_Int!E$1,$B28,0) -> 0 | F28: =IF(Pesticide!$C10=Oper_Int!F$1,$B28,0) -> 0 | G28: =IF(Pesticide!$C10=Oper_Int!G$1,$B28,0) -> 0 | H28: =IF(Pesticide!$C10=Oper_Int!H$1,$B28,0) -> 15.84 | I28: =IF(Pesticide!$C10=Oper_Int!I$1,$B28,0) -> 0 | J28: =IF(Pesticide!$C10=Oper_Int!J$1,$B28,0) -> 0 | K28: =IF(Pesticide!$C10=Oper_Int!K$1,$B28,0) -> 0 | L28: =IF(Pesticide!$C10=Oper_Int!L$1,$B28,0) -> 0 | M28: =IF(Pesticide!$C10=Oper_Int!M$1,$B28,0) -> 0 | N28: =IF(Pesticide!$C10=Oper_Int!N$1,$B28,0) -> 0 | O28: 15.84 | AA28: =IF(Pesticide!B10="","Pest-N/A",Pesticide!B10) -> Huskie | AB28: =IF(Pesticide!K10=0,"N/A",Pesticide!J10) -> 15.84 | AC28: =IF(Pesticide!$C10=Oper_Int!AC$1,$AB28,0) -> 0 | AD28: =IF(Pesticide!$C10=Oper_Int!AD$1,$AB28,0) -> 0 | AE28: =IF(Pesticide!$C10=Oper_Int!AE$1,$AB28,0) -> 0 | AF28: =IF(Pesticide!$C10=Oper_Int!AF$1,$AB28,0) -> 0 | AG28: =IF(Pesticide!$C10=Oper_Int!AG$1,$AB28,0) -> 0 | AH28: =IF(Pesticide!$C10=Oper_Int!AH$1,$AB28,0) -> 15.84 | AI28: =IF(Pesticide!$C10=Oper_Int!AI$1,$AB28,0) -> 0 | AJ28: =IF(Pesticide!$C10=Oper_Int!AJ$1,$AB28,0) -> 0 | AK28: =IF(Pesticide!$C10=Oper_Int!AK$1,$AB28,0) -> 0 | AL28: =IF(Pesticide!$C10=Oper_Int!AL$1,$AB28,0) -> 0 | AM28: =IF(Pesticide!$C10=Oper_Int!AM$1,$AB28,0) -> 0 | AN28: =IF(Pesticide!$C10=Oper_Int!AN$1,$AB28,0) -> 0 | AO28: 15.84
A29: =IF(Pesticide!B11="","Pest-N/A",Pesticide!B11) -> Atrazine 4L | B29: =IF(Pesticide!K11=0,"N/A",Pesticide!I11*Pesticide!J11) -> 2.4 | C29: =IF(Pesticide!$C11=Oper_Int!C$1,$B29,0) -> 0 | D29: =IF(Pesticide!$C11=Oper_Int!D$1,$B29,0) -> 0 | E29: =IF(Pesticide!$C11=Oper_Int!E$1,$B29,0) -> 0 | F29: =IF(Pesticide!$C11=Oper_Int!F$1,$B29,0) -> 0 | G29: =IF(Pesticide!$C11=Oper_Int!G$1,$B29,0) -> 0 | H29: =IF(Pesticide!$C11=Oper_Int!H$1,$B29,0) -> 2.4 | I29: =IF(Pesticide!$C11=Oper_Int!I$1,$B29,0) -> 0 | J29: =IF(Pesticide!$C11=Oper_Int!J$1,$B29,0) -> 0 | K29: =IF(Pesticide!$C11=Oper_Int!K$1,$B29,0) -> 0 | L29: =IF(Pesticide!$C11=Oper_Int!L$1,$B29,0) -> 0 | M29: =IF(Pesticide!$C11=Oper_Int!M$1,$B29,0) -> 0 | N29: =IF(Pesticide!$C11=Oper_Int!N$1,$B29,0) -> 0 | O29: 2.4 | AA29: =IF(Pesticide!B11="","Pest-N/A",Pesticide!B11) -> Atrazine 4L | AB29: =IF(Pesticide!K11=0,"N/A",Pesticide!J11) -> 2.4 | AC29: =IF(Pesticide!$C11=Oper_Int!AC$1,$AB29,0) -> 0 | AD29: =IF(Pesticide!$C11=Oper_Int!AD$1,$AB29,0) -> 0 | AE29: =IF(Pesticide!$C11=Oper_Int!AE$1,$AB29,0) -> 0 | AF29: =IF(Pesticide!$C11=Oper_Int!AF$1,$AB29,0) -> 0 | AG29: =IF(Pesticide!$C11=Oper_Int!AG$1,$AB29,0) -> 0 | AH29: =IF(Pesticide!$C11=Oper_Int!AH$1,$AB29,0) -> 2.4 | AI29: =IF(Pesticide!$C11=Oper_Int!AI$1,$AB29,0) -> 0 | AJ29: =IF(Pesticide!$C11=Oper_Int!AJ$1,$AB29,0) -> 0 | AK29: =IF(Pesticide!$C11=Oper_Int!AK$1,$AB29,0) -> 0 | AL29: =IF(Pesticide!$C11=Oper_Int!AL$1,$AB29,0) -> 0 | AM29: =IF(Pesticide!$C11=Oper_Int!AM$1,$AB29,0) -> 0 | AN29: =IF(Pesticide!$C11=Oper_Int!AN$1,$AB29,0) -> 0 | AO29: 2.4
A30: =IF(Pesticide!B12="","Pest-N/A",Pesticide!B12) -> Sivanto 200 SL | B30: =IF(Pesticide!K12=0,"N/A",Pesticide!I12*Pesticide!J12) -> 13.915 | C30: =IF(Pesticide!$C12=Oper_Int!C$1,$B30,0) -> 0 | D30: =IF(Pesticide!$C12=Oper_Int!D$1,$B30,0) -> 0 | E30: =IF(Pesticide!$C12=Oper_Int!E$1,$B30,0) -> 0 | F30: =IF(Pesticide!$C12=Oper_Int!F$1,$B30,0) -> 0 | G30: =IF(Pesticide!$C12=Oper_Int!G$1,$B30,0) -> 0 | H30: =IF(Pesticide!$C12=Oper_Int!H$1,$B30,0) -> 0 | I30: =IF(Pesticide!$C12=Oper_Int!I$1,$B30,0) -> 0 | J30: =IF(Pesticide!$C12=Oper_Int!J$1,$B30,0) -> 13.915 | K30: =IF(Pesticide!$C12=Oper_Int!K$1,$B30,0) -> 0 | L30: =IF(Pesticide!$C12=Oper_Int!L$1,$B30,0) -> 0 | M30: =IF(Pesticide!$C12=Oper_Int!M$1,$B30,0) -> 0 | N30: =IF(Pesticide!$C12=Oper_Int!N$1,$B30,0) -> 0 | O30: 13.915 | AA30: =IF(Pesticide!B12="","Pest-N/A",Pesticide!B12) -> Sivanto 200 SL | AB30: =IF(Pesticide!K12=0,"N/A",Pesticide!J12) -> 13.915 | AC30: =IF(Pesticide!$C12=Oper_Int!AC$1,$AB30,0) -> 0 | AD30: =IF(Pesticide!$C12=Oper_Int!AD$1,$AB30,0) -> 0 | AE30: =IF(Pesticide!$C12=Oper_Int!AE$1,$AB30,0) -> 0 | AF30: =IF(Pesticide!$C12=Oper_Int!AF$1,$AB30,0) -> 0 | AG30: =IF(Pesticide!$C12=Oper_Int!AG$1,$AB30,0) -> 0 | AH30: =IF(Pesticide!$C12=Oper_Int!AH$1,$AB30,0) -> 0 | AI30: =IF(Pesticide!$C12=Oper_Int!AI$1,$AB30,0) -> 0 | AJ30: =IF(Pesticide!$C12=Oper_Int!AJ$1,$AB30,0) -> 13.915 | AK30: =IF(Pesticide!$C12=Oper_Int!AK$1,$AB30,0) -> 0 | AL30: =IF(Pesticide!$C12=Oper_Int!AL$1,$AB30,0) -> 0 | AM30: =IF(Pesticide!$C12=Oper_Int!AM$1,$AB30,0) -> 0 | AN30: =IF(Pesticide!$C12=Oper_Int!AN$1,$AB30,0) -> 0 | AO30: 13.915
A31: =IF(Pesticide!B13="","Pest-N/A",Pesticide!B13) -> Pest-N/A | B31: =IF(Pesticide!K13=0,"N/A",Pesticide!I13*Pesticide!J13) -> N/A | C31: =IF(Pesticide!$C13=Oper_Int!C$1,$B31,0) -> 0 | D31: =IF(Pesticide!$C13=Oper_Int!D$1,$B31,0) -> 0 | E31: =IF(Pesticide!$C13=Oper_Int!E$1,$B31,0) -> 0 | F31: =IF(Pesticide!$C13=Oper_Int!F$1,$B31,0) -> 0 | G31: =IF(Pesticide!$C13=Oper_Int!G$1,$B31,0) -> 0 | H31: =IF(Pesticide!$C13=Oper_Int!H$1,$B31,0) -> 0 | I31: =IF(Pesticide!$C13=Oper_Int!I$1,$B31,0) -> 0 | J31: =IF(Pesticide!$C13=Oper_Int!J$1,$B31,0) -> 0 | K31: =IF(Pesticide!$C13=Oper_Int!K$1,$B31,0) -> 0 | L31: =IF(Pesticide!$C13=Oper_Int!L$1,$B31,0) -> 0 | M31: =IF(Pesticide!$C13=Oper_Int!M$1,$B31,0) -> 0 | N31: =IF(Pesticide!$C13=Oper_Int!N$1,$B31,0) -> 0 | O31: 0 | AA31: =IF(Pesticide!B13="","Pest-N/A",Pesticide!B13) -> Pest-N/A | AB31: =IF(Pesticide!K13=0,"N/A",Pesticide!J13) -> N/A | AC31: =IF(Pesticide!$C13=Oper_Int!AC$1,$AB31,0) -> 0 | AD31: =IF(Pesticide!$C13=Oper_Int!AD$1,$AB31,0) -> 0 | AE31: =IF(Pesticide!$C13=Oper_Int!AE$1,$AB31,0) -> 0 | AF31: =IF(Pesticide!$C13=Oper_Int!AF$1,$AB31,0) -> 0 | AG31: =IF(Pesticide!$C13=Oper_Int!AG$1,$AB31,0) -> 0 | AH31: =IF(Pesticide!$C13=Oper_Int!AH$1,$AB31,0) -> 0 | AI31: =IF(Pesticide!$C13=Oper_Int!AI$1,$AB31,0) -> 0 | AJ31: =IF(Pesticide!$C13=Oper_Int!AJ$1,$AB31,0) -> 0 | AK31: =IF(Pesticide!$C13=Oper_Int!AK$1,$AB31,0) -> 0 | AL31: =IF(Pesticide!$C13=Oper_Int!AL$1,$AB31,0) -> 0 | AM31: =IF(Pesticide!$C13=Oper_Int!AM$1,$AB31,0) -> 0 | AN31: =IF(Pesticide!$C13=Oper_Int!AN$1,$AB31,0) -> 0 | AO31: 0
A32: =IF(Pesticide!B14="","Pest-N/A",Pesticide!B14) -> Pest-N/A | B32: =IF(Pesticide!K14=0,"N/A",Pesticide!I14*Pesticide!J14) -> N/A | C32: =IF(Pesticide!$C14=Oper_Int!C$1,$B32,0) -> 0 | D32: =IF(Pesticide!$C14=Oper_Int!D$1,$B32,0) -> 0 | E32: =IF(Pesticide!$C14=Oper_Int!E$1,$B32,0) -> 0 | F32: =IF(Pesticide!$C14=Oper_Int!F$1,$B32,0) -> 0 | G32: =IF(Pesticide!$C14=Oper_Int!G$1,$B32,0) -> 0 | H32: =IF(Pesticide!$C14=Oper_Int!H$1,$B32,0) -> 0 | I32: =IF(Pesticide!$C14=Oper_Int!I$1,$B32,0) -> 0 | J32: =IF(Pesticide!$C14=Oper_Int!J$1,$B32,0) -> 0 | K32: =IF(Pesticide!$C14=Oper_Int!K$1,$B32,0) -> 0 | L32: =IF(Pesticide!$C14=Oper_Int!L$1,$B32,0) -> 0 | M32: =IF(Pesticide!$C14=Oper_Int!M$1,$B32,0) -> 0 | N32: =IF(Pesticide!$C14=Oper_Int!N$1,$B32,0) -> 0 | O32: 0 | AA32: =IF(Pesticide!B14="","Pest-N/A",Pesticide!B14) -> Pest-N/A | AB32: =IF(Pesticide!K14=0,"N/A",Pesticide!J14) -> N/A | AC32: =IF(Pesticide!$C14=Oper_Int!AC$1,$AB32,0) -> 0 | AD32: =IF(Pesticide!$C14=Oper_Int!AD$1,$AB32,0) -> 0 | AE32: =IF(Pesticide!$C14=Oper_Int!AE$1,$AB32,0) -> 0 | AF32: =IF(Pesticide!$C14=Oper_Int!AF$1,$AB32,0) -> 0 | AG32: =IF(Pesticide!$C14=Oper_Int!AG$1,$AB32,0) -> 0 | AH32: =IF(Pesticide!$C14=Oper_Int!AH$1,$AB32,0) -> 0 | AI32: =IF(Pesticide!$C14=Oper_Int!AI$1,$AB32,0) -> 0 | AJ32: =IF(Pesticide!$C14=Oper_Int!AJ$1,$AB32,0) -> 0 | AK32: =IF(Pesticide!$C14=Oper_Int!AK$1,$AB32,0) -> 0 | AL32: =IF(Pesticide!$C14=Oper_Int!AL$1,$AB32,0) -> 0 | AM32: =IF(Pesticide!$C14=Oper_Int!AM$1,$AB32,0) -> 0 | AN32: =IF(Pesticide!$C14=Oper_Int!AN$1,$AB32,0) -> 0 | AO32: 0
A33: =IF(Pesticide!B15="","Pest-N/A",Pesticide!B15) -> Pest-N/A | B33: =IF(Pesticide!K15=0,"N/A",Pesticide!I15*Pesticide!J15) -> N/A | C33: =IF(Pesticide!$C15=Oper_Int!C$1,$B33,0) -> 0 | D33: =IF(Pesticide!$C15=Oper_Int!D$1,$B33,0) -> 0 | E33: =IF(Pesticide!$C15=Oper_Int!E$1,$B33,0) -> 0 | F33: =IF(Pesticide!$C15=Oper_Int!F$1,$B33,0) -> 0 | G33: =IF(Pesticide!$C15=Oper_Int!G$1,$B33,0) -> 0 | H33: =IF(Pesticide!$C15=Oper_Int!H$1,$B33,0) -> 0 | I33: =IF(Pesticide!$C15=Oper_Int!I$1,$B33,0) -> 0 | J33: =IF(Pesticide!$C15=Oper_Int!J$1,$B33,0) -> 0 | K33: =IF(Pesticide!$C15=Oper_Int!K$1,$B33,0) -> 0 | L33: =IF(Pesticide!$C15=Oper_Int!L$1,$B33,0) -> 0 | M33: =IF(Pesticide!$C15=Oper_Int!M$1,$B33,0) -> 0 | N33: =IF(Pesticide!$C15=Oper_Int!N$1,$B33,0) -> 0 | O33: 0 | AA33: =IF(Pesticide!B15="","Pest-N/A",Pesticide!B15) -> Pest-N/A | AB33: =IF(Pesticide!K15=0,"N/A",Pesticide!J15) -> N/A | AC33: =IF(Pesticide!$C15=Oper_Int!AC$1,$AB33,0) -> 0 | AD33: =IF(Pesticide!$C15=Oper_Int!AD$1,$AB33,0) -> 0 | AE33: =IF(Pesticide!$C15=Oper_Int!AE$1,$AB33,0) -> 0 | AF33: =IF(Pesticide!$C15=Oper_Int!AF$1,$AB33,0) -> 0 | AG33: =IF(Pesticide!$C15=Oper_Int!AG$1,$AB33,0) -> 0 | AH33: =IF(Pesticide!$C15=Oper_Int!AH$1,$AB33,0) -> 0 | AI33: =IF(Pesticide!$C15=Oper_Int!AI$1,$AB33,0) -> 0 | AJ33: =IF(Pesticide!$C15=Oper_Int!AJ$1,$AB33,0) -> 0 | AK33: =IF(Pesticide!$C15=Oper_Int!AK$1,$AB33,0) -> 0 | AL33: =IF(Pesticide!$C15=Oper_Int!AL$1,$AB33,0) -> 0 | AM33: =IF(Pesticide!$C15=Oper_Int!AM$1,$AB33,0) -> 0 | AN33: =IF(Pesticide!$C15=Oper_Int!AN$1,$AB33,0) -> 0 | AO33: 0
A34: =IF(Pesticide!B16="","Pest-N/A",Pesticide!B16) -> Pest-N/A | B34: =IF(Pesticide!K16=0,"N/A",Pesticide!I16*Pesticide!J16) -> N/A | C34: =IF(Pesticide!$C16=Oper_Int!C$1,$B34,0) -> 0 | D34: =IF(Pesticide!$C16=Oper_Int!D$1,$B34,0) -> 0 | E34: =IF(Pesticide!$C16=Oper_Int!E$1,$B34,0) -> 0 | F34: =IF(Pesticide!$C16=Oper_Int!F$1,$B34,0) -> 0 | G34: =IF(Pesticide!$C16=Oper_Int!G$1,$B34,0) -> 0 | H34: =IF(Pesticide!$C16=Oper_Int!H$1,$B34,0) -> 0 | I34: =IF(Pesticide!$C16=Oper_Int!I$1,$B34,0) -> 0 | J34: =IF(Pesticide!$C16=Oper_Int!J$1,$B34,0) -> 0 | K34: =IF(Pesticide!$C16=Oper_Int!K$1,$B34,0) -> 0 | L34: =IF(Pesticide!$C16=Oper_Int!L$1,$B34,0) -> 0 | M34: =IF(Pesticide!$C16=Oper_Int!M$1,$B34,0) -> 0 | N34: =IF(Pesticide!$C16=Oper_Int!N$1,$B34,0) -> 0 | O34: 0 | AA34: =IF(Pesticide!B16="","Pest-N/A",Pesticide!B16) -> Pest-N/A | AB34: =IF(Pesticide!K16=0,"N/A",Pesticide!J16) -> N/A | AC34: =IF(Pesticide!$C16=Oper_Int!AC$1,$AB34,0) -> 0 | AD34: =IF(Pesticide!$C16=Oper_Int!AD$1,$AB34,0) -> 0 | AE34: =IF(Pesticide!$C16=Oper_Int!AE$1,$AB34,0) -> 0 | AF34: =IF(Pesticide!$C16=Oper_Int!AF$1,$AB34,0) -> 0 | AG34: =IF(Pesticide!$C16=Oper_Int!AG$1,$AB34,0) -> 0 | AH34: =IF(Pesticide!$C16=Oper_Int!AH$1,$AB34,0) -> 0 | AI34: =IF(Pesticide!$C16=Oper_Int!AI$1,$AB34,0) -> 0 | AJ34: =IF(Pesticide!$C16=Oper_Int!AJ$1,$AB34,0) -> 0 | AK34: =IF(Pesticide!$C16=Oper_Int!AK$1,$AB34,0) -> 0 | AL34: =IF(Pesticide!$C16=Oper_Int!AL$1,$AB34,0) -> 0 | AM34: =IF(Pesticide!$C16=Oper_Int!AM$1,$AB34,0) -> 0 | AN34: =IF(Pesticide!$C16=Oper_Int!AN$1,$AB34,0) -> 0 | AO34: 0
A35: Irrig. Labor | B35: =IF(Budget!BB$5="share",Budget!H22,Budget!G22) -> 2.37 | C35: =IF(Irrig!$BH40<=0,0,Irrig!$BH40/Irrig!$BH52)*$B35 -> 0 | D35: =IF(Irrig!$BH41<=0,0,Irrig!$BH41/Irrig!$BH52)*$B35 -> 0 | E35: =IF(Irrig!$BH42<=0,0,Irrig!$BH42/Irrig!$BH$52)*$B35 -> 0 | F35: =IF(Irrig!$BH43<=0,0,Irrig!$BH43/Irrig!$BH$52)*$B35 -> 0.8295 | G35: =IF(Irrig!$BH44<=0,0,Irrig!$BH44/Irrig!$BH$52)*$B35 -> 0 | H35: =IF(Irrig!$BH45<=0,0,Irrig!$BH45/Irrig!$BH$52)*$B35 -> 0.474 | I35: =IF(Irrig!$BH46<=0,0,Irrig!$BH46/Irrig!$BH$52)*$B35 -> 0.474 | J35: =IF(Irrig!$BH47<=0,0,Irrig!$BH47/Irrig!$BH$52)*$B35 -> 0.5925 | K35: =IF(Irrig!$BH48<=0,0,Irrig!$BH48/Irrig!$BH$52)*$B35 -> 0 | L35: =IF(Irrig!$BH49<=0,0,Irrig!$BH49/Irrig!$BH$52)*$B35 -> 0 | M35: =IF(Irrig!$BH50<=0,0,Irrig!$BH50/Irrig!$BH$52)*$B35 -> 0 | N35: =IF(Irrig!$BH51<=0,0,Irrig!$BH51/Irrig!$BH$52)*$B35 -> 0 | O35: 2.37 | AA35: Irrig. Labor | AB35: =Budget!G22 -> 2.37 | AC35: =IF(Irrig!$BH40<=0,0,Irrig!$BH40/Irrig!$BH$52)*$AB35 -> 0 | AD35: =IF(Irrig!$BH41<=0,0,Irrig!$BH41/Irrig!$BH$52)*$AB35 -> 0 | AE35: =IF(Irrig!$BH42<=0,0,Irrig!$BH42/Irrig!$BH$52)*$AB35 -> 0 | AF35: =IF(Irrig!$BH43<=0,0,Irrig!$BH43/Irrig!$BH$52)*$AB35 -> 0.8295 | AG35: =IF(Irrig!$BH44<=0,0,Irrig!$BH44/Irrig!$BH$52)*$AB35 -> 0 | AH35: =IF(Irrig!$BH45<=0,0,Irrig!$BH45/Irrig!$BH$52)*$AB35 -> 0.474 | AI35: =IF(Irrig!$BH46<=0,0,Irrig!$BH46/Irrig!$BH$52)*$AB35 -> 0.474 | AJ35: =IF(Irrig!$BH47<=0,0,Irrig!$BH47/Irrig!$BH$52)*$AB35 -> 0.5925 | AK35: =IF(Irrig!$BH48<=0,0,Irrig!$BH48/Irrig!$BH$52)*$AB35 -> 0 | AL35: =IF(Irrig!$BH49<=0,0,Irrig!$BH49/Irrig!$BH$52)*$AB35 -> 0 | AM35: =IF(Irrig!$BH50<=0,0,Irrig!$BH50/Irrig!$BH$52)*$AB35 -> 0 | AN35: =IF(Irrig!$BH51<=0,0,Irrig!$BH51/Irrig!$BH$52)*$AB35 -> 0 | AO35: 2.37
A36: Irr.Fuel/Rep | B36: =IF(Budget!BB$5="share",Budget!H25,Budget!G25) -> 315.41 | C36: =IF(Irrig!$BH40<=0,0,Irrig!$BH40/Irrig!$BH$52)*$B36 -> 0 | D36: =IF(Irrig!$BH41<=0,0,Irrig!$BH41/Irrig!$BH$52)*$B36 -> 0 | E36: =IF(Irrig!$BH42<=0,0,Irrig!$BH42/Irrig!$BH$52)*$B36 -> 0 | F36: =IF(Irrig!$BH43<=0,0,Irrig!$BH43/Irrig!$BH$52)*$B36 -> 110.3935 | G36: =IF(Irrig!$BH44<=0,0,Irrig!$BH44/Irrig!$BH$52)*$B36 -> 0 | H36: =IF(Irrig!$BH45<=0,0,Irrig!$BH45/Irrig!$BH$52)*$B36 -> 63.082 | I36: =IF(Irrig!$BH46<=0,0,Irrig!$BH46/Irrig!$BH$52)*$B36 -> 63.082 | J36: =IF(Irrig!$BH47<=0,0,Irrig!$BH47/Irrig!$BH$52)*$B36 -> 78.8525 | K36: =IF(Irrig!$BH48<=0,0,Irrig!$BH48/Irrig!$BH$52)*$B36 -> 0 | L36: =IF(Irrig!$BH49<=0,0,Irrig!$BH49/Irrig!$BH$52)*$B36 -> 0 | M36: =IF(Irrig!$BH50<=0,0,Irrig!$BH50/Irrig!$BH$52)*$B36 -> 0 | N36: =IF(Irrig!$BH51<=0,0,Irrig!$BH51/Irrig!$BH$52)*$B36 -> 0 | O36: 315.41 | AA36: Irr.Fuel/Rep | AB36: =Budget!G25 -> 315.41 | AC36: =IF(Irrig!$BH40<=0,0,Irrig!$BH40/Irrig!$BH$52)*$AB36 -> 0 | AD36: =IF(Irrig!$BH41<=0,0,Irrig!$BH41/Irrig!$BH$52)*$AB36 -> 0 | AE36: =IF(Irrig!$BH42<=0,0,Irrig!$BH42/Irrig!$BH$52)*$AB36 -> 0 | AF36: =IF(Irrig!$BH43<=0,0,Irrig!$BH43/Irrig!$BH$52)*$AB36 -> 110.3935 | AG36: =IF(Irrig!$BH44<=0,0,Irrig!$BH44/Irrig!$BH$52)*$AB36 -> 0 | AH36: =IF(Irrig!$BH45<=0,0,Irrig!$BH45/Irrig!$BH$52)*$AB36 -> 63.082 | AI36: =IF(Irrig!$BH46<=0,0,Irrig!$BH46/Irrig!$BH$52)*$AB36 -> 63.082 | AJ36: =IF(Irrig!$BH47<=0,0,Irrig!$BH47/Irrig!$BH$52)*$AB36 -> 78.8525 | AK36: =IF(Irrig!$BH48<=0,0,Irrig!$BH48/Irrig!$BH$52)*$AB36 -> 0 | AL36: =IF(Irrig!$BH49<=0,0,Irrig!$BH49/Irrig!$BH$52)*$AB36 -> 0 | AM36: =IF(Irrig!$BH50<=0,0,Irrig!$BH50/Irrig!$BH$52)*$AB36 -> 0 | AN36: =IF(Irrig!$BH51<=0,0,Irrig!$BH51/Irrig!$BH$52)*$AB36 -> 0 | AO36: 315.41
A37: Mach Lab | B37: =IF(Budget!BB$5="share",Budget!H21,Budget!G21) -> 13.51 | C37: =IF($B37=0,0,IF($B38=0,$B37/12,$B37*(C38/$B38))) -> 0 | D37: =IF($B37=0,0,IF($B38=0,$B37/12,$B37*(D38/$B38))) -> 0 | E37: 1.182087866 | F37: 3.627333573 | G37: 3.307435837 | H37: 0.6376043912 | I37: 0 | J37: 0 | K37: 0 | L37: 4.755538333 | M37: 0 | N37: 0 | O37: 13.51 | AA37: Mach Lab | AB37: =Budget!G21 -> 13.51 | AC37: =IF($AB37=0,0,IF($AB38=0,$AB37/12,$AB37*(AC38/$AB38))) -> 0 | AD37: =IF($AB37=0,0,IF($AB38=0,$AB37/12,$AB37*(AD38/$AB38))) -> 0 | AE37: 1.182087866 | AF37: 3.627333573 | AG37: 3.307435837 | AH37: 0.6376043912 | AI37: 0 | AJ37: 0 | AK37: 0 | AL37: 4.755538333 | AM37: 0 | AN37: 0 | AO37: 13.51
A38: Mach Lub/rep | B38: =IF(Budget!BB$5="share",Machinery!AE22,Budget!E24) -> 61.6985025 | C38: =IF(Budget!$BB5="share",IF(Machinery!$Q$67=0,IF(Machinery!$V$32=FALSE,SUM(Machinery!$AB$19:'Machinery'!$AB$21),0)/12,IF(Machinery!$V$32=FALSE,SUM(Machinery!$AB$19:'Machinery'!$AB$21),0)*(Machinery!D$67/Machinery!$Q$67))+IF(Yield!$P$10=Oper_Int!C$1,SUM(Machinery!$AD$19:$AD$21),0),AC38) -> 0 | D38: =IF(Budget!$BB5="share",IF(Machinery!$Q$67=0,IF(Machinery!$V$32=FALSE,SUM(Machinery!$AB$19:'Machinery'!$AB$21),0)/12,IF(Machinery!$V$32=FALSE,SUM(Machinery!$AB$19:'Machinery'!$AB$21),0)*(Machinery!E$67/Machinery!$Q$67))+IF(Yield!$P$10=Oper_Int!D$1,SUM(Machinery!$AD$19:$AD$21),0),AD38) -> 0 | E38: =IF(Budget!$BB5="share",IF(Machinery!$Q$67=0,IF(Machinery!$V$32=FALSE,SUM(Machinery!$AB$19:'Machinery'!$AB$21),0)/12,IF(Machinery!$V$32=FALSE,SUM(Machinery!$AB$19:'Machinery'!$AB$21),0)*(Machinery!F$67/Machinery!$Q$67))+IF(Yield!$P$10=Oper_Int!E$1,SUM(Machinery!$AD$19:$AD$21),0),AE38) -> 5.398449383 | F38: =IF(Budget!$BB5="share",IF(Machinery!$Q$67=0,IF(Machinery!$V$32=FALSE,SUM(Machinery!$AB$19:'Machinery'!$AB$21),0)/12,IF(Machinery!$V$32=FALSE,SUM(Machinery!$AB$19:'Machinery'!$AB$21),0)*(Machinery!G$67/Machinery!$Q$67))+IF(Yield!$P$10=Oper_Int!F$1,SUM(Machinery!$AD$19:$AD$21),0),AF38) -> 16.56558471 | G38: =IF(Budget!$BB5="share",IF(Machinery!$Q$67=0,IF(Machinery!$V$32=FALSE,SUM(Machinery!$AB$19:'Machinery'!$AB$21),0)/12,IF(Machinery!$V$32=FALSE,SUM(Machinery!$AB$19:'Machinery'!$AB$21),0)*(Machinery!H$67/Machinery!$Q$67))+IF(Yield!$P$10=Oper_Int!G$1,SUM(Machinery!$AD$19:$AD$21),0),AG38) -> 15.10465124 | H38: =IF(Budget!$BB5="share",IF(Machinery!$Q$67=0,IF(Machinery!$V$32=FALSE,SUM(Machinery!$AB$19:'Machinery'!$AB$21),0)/12,IF(Machinery!$V$32=FALSE,SUM(Machinery!$AB$19:'Machinery'!$AB$21),0)*(Machinery!I$67/Machinery!$Q$67))+IF(Yield!$P$10=Oper_Int!H$1,SUM(Machinery!$AD$19:$AD$21),0),AH38) -> 2.911860557 | I38: =IF(Budget!$BB5="share",IF(Machinery!$Q$67=0,IF(Machinery!$V$32=FALSE,SUM(Machinery!$AB$19:'Machinery'!$AB$21),0)/12,IF(Machinery!$V$32=FALSE,SUM(Machinery!$AB$19:'Machinery'!$AB$21),0)*(Machinery!J$67/Machinery!$Q$67))+IF(Yield!$P$10=Oper_Int!I$1,SUM(Machinery!$AD$19:$AD$21),0),AI38) -> 0 | J38: =IF(Budget!$BB5="share",IF(Machinery!$Q$67=0,IF(Machinery!$V$32=FALSE,SUM(Machinery!$AB$19:'Machinery'!$AB$21),0)/12,IF(Machinery!$V$32=FALSE,SUM(Machinery!$AB$19:'Machinery'!$AB$21),0)*(Machinery!K$67/Machinery!$Q$67))+IF(Yield!$P$10=Oper_Int!J$1,SUM(Machinery!$AD$19:$AD$21),0),AJ38) -> 0 | K38: =IF(Budget!$BB5="share",IF(Machinery!$Q$67=0,IF(Machinery!$V$32=FALSE,SUM(Machinery!$AB$19:'Machinery'!$AB$21),0)/12,IF(Machinery!$V$32=FALSE,SUM(Machinery!$AB$19:'Machinery'!$AB$21),0)*(Machinery!L$67/Machinery!$Q$67))+IF(Yield!$P$10=Oper_Int!K$1,SUM(Machinery!$AD$19:$AD$21),0),AK38) -> 0 | L38: =IF(Budget!$BB5="share",IF(Machinery!$Q$67=0,IF(Machinery!$V$32=FALSE,SUM(Machinery!$AB$19:'Machinery'!$AB$21),0)/12,IF(Machinery!$V$32=FALSE,SUM(Machinery!$AB$19:'Machinery'!$AB$21),0)*(Machinery!M$67/Machinery!$Q$67))+IF(Yield!$P$10=Oper_Int!L$1,SUM(Machinery!$AD$19:$AD$21),0),AL38) -> 21.7179566 | M38: =IF(Budget!$BB5="share",IF(Machinery!$Q$67=0,IF(Machinery!$V$32=FALSE,SUM(Machinery!$AB$19:'Machinery'!$AB$21),0)/12,IF(Machinery!$V$32=FALSE,SUM(Machinery!$AB$19:'Machinery'!$AB$21),0)*(Machinery!N$67/Machinery!$Q$67))+IF(Yield!$P$10=Oper_Int!M$1,SUM(Machinery!$AD$19:$AD$21),0),AM38) -> 0 | N38: =IF(Budget!$BB5="share",IF(Machinery!$Q$67=0,IF(Machinery!$V$32=FALSE,SUM(Machinery!$AB$19:'Machinery'!$AB$21),0)/12,IF(Machinery!$V$32=FALSE,SUM(Machinery!$AB$19:'Machinery'!$AB$21),0)*(Machinery!O$67/Machinery!$Q$67))+IF(Yield!$P$10=Oper_Int!N$1,SUM(Machinery!$AD$19:$AD$21),0),AN38) -> 0 | O38: 61.6985025 | AA38: Mach Lub/rep | AB38: =+Budget!E24 -> 61.6985025 | AC38: =IF(Machinery!$Q$67=0,IF(Machinery!$V$32=FALSE,SUM(Machinery!$AF$19:'Machinery'!$AF$21),0)/12,IF(Machinery!$V$32=FALSE,SUM(Machinery!$AF$19:'Machinery'!$AF$21),0)*(Machinery!D$67/Machinery!$Q$67))+IF(Yield!$P$10=Oper_Int!AC$1,SUM(Machinery!$Z$19:$Z$21),0) -> 0 | AD38: =IF(Machinery!$Q$67=0,IF(Machinery!$V$32=FALSE,SUM(Machinery!$AF$19:'Machinery'!$AF$21),0)/12,IF(Machinery!$V$32=FALSE,SUM(Machinery!$AF$19:'Machinery'!$AF$21),0)*(Machinery!E$67/Machinery!$Q$67))+IF(Yield!$P$10=Oper_Int!AD$1,SUM(Machinery!$Z$19:$Z$21),0) -> 0 | AE38: =IF(Machinery!$Q$67=0,IF(Machinery!$V$32=FALSE,SUM(Machinery!$AF$19:'Machinery'!$AF$21),0)/12,IF(Machinery!$V$32=FALSE,SUM(Machinery!$AF$19:'Machinery'!$AF$21),0)*(Machinery!F$67/Machinery!$Q$67))+IF(Yield!$P$10=Oper_Int!AE$1,SUM(Machinery!$Z$19:$Z$21),0) -> 5.398449383 | AF38: =IF(Machinery!$Q$67=0,IF(Machinery!$V$32=FALSE,SUM(Machinery!$AF$19:'Machinery'!$AF$21),0)/12,IF(Machinery!$V$32=FALSE,SUM(Machinery!$AF$19:'Machinery'!$AF$21),0)*(Machinery!G$67/Machinery!$Q$67))+IF(Yield!$P$10=Oper_Int!AF$1,SUM(Machinery!$Z$19:$Z$21),0) -> 16.56558471 | AG38: =IF(Machinery!$Q$67=0,IF(Machinery!$V$32=FALSE,SUM(Machinery!$AF$19:'Machinery'!$AF$21),0)/12,IF(Machinery!$V$32=FALSE,SUM(Machinery!$AF$19:'Machinery'!$AF$21),0)*(Machinery!H$67/Machinery!$Q$67))+IF(Yield!$P$10=Oper_Int!AG$1,SUM(Machinery!$Z$19:$Z$21),0) -> 15.10465124 | AH38: =IF(Machinery!$Q$67=0,IF(Machinery!$V$32=FALSE,SUM(Machinery!$AF$19:'Machinery'!$AF$21),0)/12,IF(Machinery!$V$32=FALSE,SUM(Machinery!$AF$19:'Machinery'!$AF$21),0)*(Machinery!I$67/Machinery!$Q$67))+IF(Yield!$P$10=Oper_Int!AH$1,SUM(Machinery!$Z$19:$Z$21),0) -> 2.911860557 | AI38: =IF(Machinery!$Q$67=0,IF(Machinery!$V$32=FALSE,SUM(Machinery!$AF$19:'Machinery'!$AF$21),0)/12,IF(Machinery!$V$32=FALSE,SUM(Machinery!$AF$19:'Machinery'!$AF$21),0)*(Machinery!J$67/Machinery!$Q$67))+IF(Yield!$P$10=Oper_Int!AI$1,SUM(Machinery!$Z$19:$Z$21),0) -> 0 | AJ38: =IF(Machinery!$Q$67=0,IF(Machinery!$V$32=FALSE,SUM(Machinery!$AF$19:'Machinery'!$AF$21),0)/12,IF(Machinery!$V$32=FALSE,SUM(Machinery!$AF$19:'Machinery'!$AF$21),0)*(Machinery!K$67/Machinery!$Q$67))+IF(Yield!$P$10=Oper_Int!AJ$1,SUM(Machinery!$Z$19:$Z$21),0) -> 0 | AK38: =IF(Machinery!$Q$67=0,IF(Machinery!$V$32=FALSE,SUM(Machinery!$AF$19:'Machinery'!$AF$21),0)/12,IF(Machinery!$V$32=FALSE,SUM(Machinery!$AF$19:'Machinery'!$AF$21),0)*(Machinery!L$67/Machinery!$Q$67))+IF(Yield!$P$10=Oper_Int!AK$1,SUM(Machinery!$Z$19:$Z$21),0) -> 0 | AL38: =IF(Machinery!$Q$67=0,IF(Machinery!$V$32=FALSE,SUM(Machinery!$AF$19:'Machinery'!$AF$21),0)/12,IF(Machinery!$V$32=FALSE,SUM(Machinery!$AF$19:'Machinery'!$AF$21),0)*(Machinery!M$67/Machinery!$Q$67))+IF(Yield!$P$10=Oper_Int!AL$1,SUM(Machinery!$Z$19:$Z$21),0) -> 21.7179566 | AM38: =IF(Machinery!$Q$67=0,IF(Machinery!$V$32=FALSE,SUM(Machinery!$AF$19:'Machinery'!$AF$21),0)/12,IF(Machinery!$V$32=FALSE,SUM(Machinery!$AF$19:'Machinery'!$AF$21),0)*(Machinery!N$67/Machinery!$Q$67))+IF(Yield!$P$10=Oper_Int!AM$1,SUM(Machinery!$Z$19:$Z$21),0) -> 0 | AN38: =IF(Machinery!$Q$67=0,IF(Machinery!$V$32=FALSE,SUM(Machinery!$AF$19:'Machinery'!$AF$21),0)/12,IF(Machinery!$V$32=FALSE,SUM(Machinery!$AF$19:'Machinery'!$AF$21),0)*(Machinery!O$67/Machinery!$Q$67))+IF(Yield!$P$10=Oper_Int!AN$1,SUM(Machinery!$Z$19:$Z$21),0) -> 0 | AO38: 61.6985025
A39: =IF('Other Exp'!B9="","Other Expense",'Other Exp'!B9) -> Utilities | B39: ='Other Exp'!F9 -> 1.7 | C39: =IF('Other Exp'!$C9=Oper_Int!C$1,'Other Exp'!$F9,0) -> 1.7 | D39: =IF('Other Exp'!$C9=Oper_Int!D$1,'Other Exp'!$F9,0) -> 0 | E39: =IF('Other Exp'!$C9=Oper_Int!E$1,'Other Exp'!$F9,0) -> 0 | F39: =IF('Other Exp'!$C9=Oper_Int!F$1,'Other Exp'!$F9,0) -> 0 | G39: =IF('Other Exp'!$C9=Oper_Int!G$1,'Other Exp'!$F9,0) -> 0 | H39: =IF('Other Exp'!$C9=Oper_Int!H$1,'Other Exp'!$F9,0) -> 0 | I39: =IF('Other Exp'!$C9=Oper_Int!I$1,'Other Exp'!$F9,0) -> 0 | J39: =IF('Other Exp'!$C9=Oper_Int!J$1,'Other Exp'!$F9,0) -> 0 | K39: =IF('Other Exp'!$C9=Oper_Int!K$1,'Other Exp'!$F9,0) -> 0 | L39: =IF('Other Exp'!$C9=Oper_Int!L$1,'Other Exp'!$F9,0) -> 0 | M39: =IF('Other Exp'!$C9=Oper_Int!M$1,'Other Exp'!$F9,0) -> 0 | N39: =IF('Other Exp'!$C9=Oper_Int!N$1,'Other Exp'!$D9,0) -> 0 | O39: 1.7 | AA39: =IF('Other Exp'!B9="","Other Expense",'Other Exp'!B9) -> Utilities | AB39: ='Other Exp'!D9 -> 1.7 | AC39: =IF('Other Exp'!$C9=Oper_Int!AC$1,'Other Exp'!$D9,0) -> 1.7 | AD39: =IF('Other Exp'!$C9=Oper_Int!AD$1,'Other Exp'!$D9,0) -> 0 | AE39: =IF('Other Exp'!$C9=Oper_Int!AE$1,'Other Exp'!$D9,0) -> 0 | AF39: =IF('Other Exp'!$C9=Oper_Int!AF$1,'Other Exp'!$D9,0) -> 0 | AG39: =IF('Other Exp'!$C9=Oper_Int!AG$1,'Other Exp'!$D9,0) -> 0 | AH39: =IF('Other Exp'!$C9=Oper_Int!AH$1,'Other Exp'!$D9,0) -> 0 | AI39: =IF('Other Exp'!$C9=Oper_Int!AI$1,'Other Exp'!$D9,0) -> 0 | AJ39: =IF('Other Exp'!$C9=Oper_Int!AJ$1,'Other Exp'!$D9,0) -> 0 | AK39: =IF('Other Exp'!$C9=Oper_Int!AK$1,'Other Exp'!$D9,0) -> 0 | AL39: =IF('Other Exp'!$C9=Oper_Int!AL$1,'Other Exp'!$D9,0) -> 0 | AM39: =IF('Other Exp'!$C9=Oper_Int!AM$1,'Other Exp'!$D9,0) -> 0 | AN39: =IF('Other Exp'!$C9=Oper_Int!AN$1,'Other Exp'!$D9,0) -> 0 | AO39: 1.7
A40: =IF('Other Exp'!B10="","Other Expense",'Other Exp'!B10) -> Fees, publications | B40: ='Other Exp'!F10 -> 2 | C40: =IF('Other Exp'!$C10=Oper_Int!C$1,'Other Exp'!$F10,0) -> 2 | D40: =IF('Other Exp'!$C10=Oper_Int!D$1,'Other Exp'!$F10,0) -> 0 | E40: =IF('Other Exp'!$C10=Oper_Int!E$1,'Other Exp'!$F10,0) -> 0 | F40: =IF('Other Exp'!$C10=Oper_Int!F$1,'Other Exp'!$F10,0) -> 0 | G40: =IF('Other Exp'!$C10=Oper_Int!G$1,'Other Exp'!$F10,0) -> 0 | H40: =IF('Other Exp'!$C10=Oper_Int!H$1,'Other Exp'!$F10,0) -> 0 | I40: =IF('Other Exp'!$C10=Oper_Int!I$1,'Other Exp'!$F10,0) -> 0 | J40: =IF('Other Exp'!$C10=Oper_Int!J$1,'Other Exp'!$F10,0) -> 0 | K40: =IF('Other Exp'!$C10=Oper_Int!K$1,'Other Exp'!$F10,0) -> 0 | L40: =IF('Other Exp'!$C10=Oper_Int!L$1,'Other Exp'!$F10,0) -> 0 | M40: =IF('Other Exp'!$C10=Oper_Int!M$1,'Other Exp'!$F10,0) -> 0 | N40: =IF('Other Exp'!$C10=Oper_Int!N$1,'Other Exp'!$D10,0) -> 0 | O40: 2 | AA40: =IF('Other Exp'!B10="","Other Expense",'Other Exp'!B10) -> Fees, publications | AB40: ='Other Exp'!D10 -> 2 | AC40: =IF('Other Exp'!$C10=Oper_Int!AC$1,'Other Exp'!$D10,0) -> 2 | AD40: =IF('Other Exp'!$C10=Oper_Int!AD$1,'Other Exp'!$D10,0) -> 0 | AE40: =IF('Other Exp'!$C10=Oper_Int!AE$1,'Other Exp'!$D10,0) -> 0 | AF40: =IF('Other Exp'!$C10=Oper_Int!AF$1,'Other Exp'!$D10,0) -> 0 | AG40: =IF('Other Exp'!$C10=Oper_Int!AG$1,'Other Exp'!$D10,0) -> 0 | AH40: =IF('Other Exp'!$C10=Oper_Int!AH$1,'Other Exp'!$D10,0) -> 0 | AI40: =IF('Other Exp'!$C10=Oper_Int!AI$1,'Other Exp'!$D10,0) -> 0 | AJ40: =IF('Other Exp'!$C10=Oper_Int!AJ$1,'Other Exp'!$D10,0) -> 0 | AK40: =IF('Other Exp'!$C10=Oper_Int!AK$1,'Other Exp'!$D10,0) -> 0 | AL40: =IF('Other Exp'!$C10=Oper_Int!AL$1,'Other Exp'!$D10,0) -> 0 | AM40: =IF('Other Exp'!$C10=Oper_Int!AM$1,'Other Exp'!$D10,0) -> 0 | AN40: =IF('Other Exp'!$C10=Oper_Int!AN$1,'Other Exp'!$D10,0) -> 0 | AO40: 2
A41: =IF('Other Exp'!B11="","Other Expense",'Other Exp'!B11) -> Ammonium sulfate | B41: ='Other Exp'!F11 -> 0.45 | C41: =IF('Other Exp'!$C11=Oper_Int!C$1,'Other Exp'!$F11,0) -> 0 | D41: =IF('Other Exp'!$C11=Oper_Int!D$1,'Other Exp'!$F11,0) -> 0 | E41: =IF('Other Exp'!$C11=Oper_Int!E$1,'Other Exp'!$F11,0) -> 0 | F41: =IF('Other Exp'!$C11=Oper_Int!F$1,'Other Exp'!$F11,0) -> 0 | G41: =IF('Other Exp'!$C11=Oper_Int!G$1,'Other Exp'!$F11,0) -> 0 | H41: =IF('Other Exp'!$C11=Oper_Int!H$1,'Other Exp'!$F11,0) -> 0.45 | I41: =IF('Other Exp'!$C11=Oper_Int!I$1,'Other Exp'!$F11,0) -> 0 | J41: =IF('Other Exp'!$C11=Oper_Int!J$1,'Other Exp'!$F11,0) -> 0 | K41: =IF('Other Exp'!$C11=Oper_Int!K$1,'Other Exp'!$F11,0) -> 0 | L41: =IF('Other Exp'!$C11=Oper_Int!L$1,'Other Exp'!$F11,0) -> 0 | M41: =IF('Other Exp'!$C11=Oper_Int!M$1,'Other Exp'!$F11,0) -> 0 | N41: =IF('Other Exp'!$C11=Oper_Int!N$1,'Other Exp'!$D11,0) -> 0 | O41: 0.45 | AA41: =IF('Other Exp'!B11="","Other Expense",'Other Exp'!B11) -> Ammonium sulfate | AB41: ='Other Exp'!D11 -> 0.45 | AC41: =IF('Other Exp'!$C11=Oper_Int!AC$1,'Other Exp'!$D11,0) -> 0 | AD41: =IF('Other Exp'!$C11=Oper_Int!AD$1,'Other Exp'!$D11,0) -> 0 | AE41: =IF('Other Exp'!$C11=Oper_Int!AE$1,'Other Exp'!$D11,0) -> 0 | AF41: =IF('Other Exp'!$C11=Oper_Int!AF$1,'Other Exp'!$D11,0) -> 0 | AG41: =IF('Other Exp'!$C11=Oper_Int!AG$1,'Other Exp'!$D11,0) -> 0 | AH41: =IF('Other Exp'!$C11=Oper_Int!AH$1,'Other Exp'!$D11,0) -> 0.45 | AI41: =IF('Other Exp'!$C11=Oper_Int!AI$1,'Other Exp'!$D11,0) -> 0 | AJ41: =IF('Other Exp'!$C11=Oper_Int!AJ$1,'Other Exp'!$D11,0) -> 0 | AK41: =IF('Other Exp'!$C11=Oper_Int!AK$1,'Other Exp'!$D11,0) -> 0 | AL41: =IF('Other Exp'!$C11=Oper_Int!AL$1,'Other Exp'!$D11,0) -> 0 | AM41: =IF('Other Exp'!$C11=Oper_Int!AM$1,'Other Exp'!$D11,0) -> 0 | AN41: =IF('Other Exp'!$C11=Oper_Int!AN$1,'Other Exp'!$D11,0) -> 0 | AO41: 0.45
A42: =IF('Other Exp'!B12="","Other Expense",'Other Exp'!B12) -> Other Expense | B42: ='Other Exp'!F12 -> 0 | C42: =IF('Other Exp'!$C12=Oper_Int!C$1,'Other Exp'!$F12,0) -> 0 | D42: =IF('Other Exp'!$C12=Oper_Int!D$1,'Other Exp'!$F12,0) -> 0 | E42: =IF('Other Exp'!$C12=Oper_Int!E$1,'Other Exp'!$F12,0) -> 0 | F42: =IF('Other Exp'!$C12=Oper_Int!F$1,'Other Exp'!$F12,0) -> 0 | G42: =IF('Other Exp'!$C12=Oper_Int!G$1,'Other Exp'!$F12,0) -> 0 | H42: =IF('Other Exp'!$C12=Oper_Int!H$1,'Other Exp'!$F12,0) -> 0 | I42: =IF('Other Exp'!$C12=Oper_Int!I$1,'Other Exp'!$F12,0) -> 0 | J42: =IF('Other Exp'!$C12=Oper_Int!J$1,'Other Exp'!$F12,0) -> 0 | K42: =IF('Other Exp'!$C12=Oper_Int!K$1,'Other Exp'!$F12,0) -> 0 | L42: =IF('Other Exp'!$C12=Oper_Int!L$1,'Other Exp'!$F12,0) -> 0 | M42: =IF('Other Exp'!$C12=Oper_Int!M$1,'Other Exp'!$F12,0) -> 0 | N42: =IF('Other Exp'!$C12=Oper_Int!N$1,'Other Exp'!$D12,0) -> 0 | O42: 0 | AA42: =IF('Other Exp'!B12="","Other Expense",'Other Exp'!B12) -> Other Expense | AB42: ='Other Exp'!D12 -> 0 | AC42: =IF('Other Exp'!$C12=Oper_Int!AC$1,'Other Exp'!$D12,0) -> 0 | AD42: =IF('Other Exp'!$C12=Oper_Int!AD$1,'Other Exp'!$D12,0) -> 0 | AE42: =IF('Other Exp'!$C12=Oper_Int!AE$1,'Other Exp'!$D12,0) -> 0 | AF42: =IF('Other Exp'!$C12=Oper_Int!AF$1,'Other Exp'!$D12,0) -> 0 | AG42: =IF('Other Exp'!$C12=Oper_Int!AG$1,'Other Exp'!$D12,0) -> 0 | AH42: =IF('Other Exp'!$C12=Oper_Int!AH$1,'Other Exp'!$D12,0) -> 0 | AI42: =IF('Other Exp'!$C12=Oper_Int!AI$1,'Other Exp'!$D12,0) -> 0 | AJ42: =IF('Other Exp'!$C12=Oper_Int!AJ$1,'Other Exp'!$D12,0) -> 0 | AK42: =IF('Other Exp'!$C12=Oper_Int!AK$1,'Other Exp'!$D12,0) -> 0 | AL42: =IF('Other Exp'!$C12=Oper_Int!AL$1,'Other Exp'!$D12,0) -> 0 | AM42: =IF('Other Exp'!$C12=Oper_Int!AM$1,'Other Exp'!$D12,0) -> 0 | AN42: =IF('Other Exp'!$C12=Oper_Int!AN$1,'Other Exp'!$D12,0) -> 0 | AO42: 0
A43: =IF('Other Exp'!B13="","Other Expense",'Other Exp'!B13) -> Other Expense | B43: ='Other Exp'!F13 -> 0 | C43: =IF('Other Exp'!$C13=Oper_Int!C$1,'Other Exp'!$F13,0) -> 0 | D43: =IF('Other Exp'!$C13=Oper_Int!D$1,'Other Exp'!$F13,0) -> 0 | E43: =IF('Other Exp'!$C13=Oper_Int!E$1,'Other Exp'!$F13,0) -> 0 | F43: =IF('Other Exp'!$C13=Oper_Int!F$1,'Other Exp'!$F13,0) -> 0 | G43: =IF('Other Exp'!$C13=Oper_Int!G$1,'Other Exp'!$F13,0) -> 0 | H43: =IF('Other Exp'!$C13=Oper_Int!H$1,'Other Exp'!$F13,0) -> 0 | I43: =IF('Other Exp'!$C13=Oper_Int!I$1,'Other Exp'!$F13,0) -> 0 | J43: =IF('Other Exp'!$C13=Oper_Int!J$1,'Other Exp'!$F13,0) -> 0 | K43: =IF('Other Exp'!$C13=Oper_Int!K$1,'Other Exp'!$F13,0) -> 0 | L43: =IF('Other Exp'!$C13=Oper_Int!L$1,'Other Exp'!$F13,0) -> 0 | M43: =IF('Other Exp'!$C13=Oper_Int!M$1,'Other Exp'!$F13,0) -> 0 | N43: =IF('Other Exp'!$C13=Oper_Int!N$1,'Other Exp'!$D13,0) -> 0 | O43: 0 | AA43: =IF('Other Exp'!B13="","Other Expense",'Other Exp'!B13) -> Other Expense | AB43: ='Other Exp'!D13 -> 0 | AC43: =IF('Other Exp'!$C13=Oper_Int!AC$1,'Other Exp'!$D13,0) -> 0 | AD43: =IF('Other Exp'!$C13=Oper_Int!AD$1,'Other Exp'!$D13,0) -> 0 | AE43: =IF('Other Exp'!$C13=Oper_Int!AE$1,'Other Exp'!$D13,0) -> 0 | AF43: =IF('Other Exp'!$C13=Oper_Int!AF$1,'Other Exp'!$D13,0) -> 0 | AG43: =IF('Other Exp'!$C13=Oper_Int!AG$1,'Other Exp'!$D13,0) -> 0 | AH43: =IF('Other Exp'!$C13=Oper_Int!AH$1,'Other Exp'!$D13,0) -> 0 | AI43: =IF('Other Exp'!$C13=Oper_Int!AI$1,'Other Exp'!$D13,0) -> 0 | AJ43: =IF('Other Exp'!$C13=Oper_Int!AJ$1,'Other Exp'!$D13,0) -> 0 | AK43: =IF('Other Exp'!$C13=Oper_Int!AK$1,'Other Exp'!$D13,0) -> 0 | AL43: =IF('Other Exp'!$C13=Oper_Int!AL$1,'Other Exp'!$D13,0) -> 0 | AM43: =IF('Other Exp'!$C13=Oper_Int!AM$1,'Other Exp'!$D13,0) -> 0 | AN43: =IF('Other Exp'!$C13=Oper_Int!AN$1,'Other Exp'!$D13,0) -> 0 | AO43: 0
A44: =IF('Other Exp'!B14="","Other Expense",'Other Exp'!B14) -> Other Expense | B44: ='Other Exp'!F14 -> 0 | C44: =IF('Other Exp'!$C14=Oper_Int!C$1,'Other Exp'!$F14,0) -> 0 | D44: =IF('Other Exp'!$C14=Oper_Int!D$1,'Other Exp'!$F14,0) -> 0 | E44: =IF('Other Exp'!$C14=Oper_Int!E$1,'Other Exp'!$F14,0) -> 0 | F44: =IF('Other Exp'!$C14=Oper_Int!F$1,'Other Exp'!$F14,0) -> 0 | G44: =IF('Other Exp'!$C14=Oper_Int!G$1,'Other Exp'!$F14,0) -> 0 | H44: =IF('Other Exp'!$C14=Oper_Int!H$1,'Other Exp'!$F14,0) -> 0 | I44: =IF('Other Exp'!$C14=Oper_Int!I$1,'Other Exp'!$F14,0) -> 0 | J44: =IF('Other Exp'!$C14=Oper_Int!J$1,'Other Exp'!$F14,0) -> 0 | K44: =IF('Other Exp'!$C14=Oper_Int!K$1,'Other Exp'!$F14,0) -> 0 | L44: =IF('Other Exp'!$C14=Oper_Int!L$1,'Other Exp'!$F14,0) -> 0 | M44: =IF('Other Exp'!$C14=Oper_Int!M$1,'Other Exp'!$F14,0) -> 0 | N44: =IF('Other Exp'!$C14=Oper_Int!N$1,'Other Exp'!$D14,0) -> 0 | O44: 0 | AA44: =IF('Other Exp'!B14="","Other Expense",'Other Exp'!B14) -> Other Expense | AB44: ='Other Exp'!D14 -> 0 | AC44: =IF('Other Exp'!$C14=Oper_Int!AC$1,'Other Exp'!$D14,0) -> 0 | AD44: =IF('Other Exp'!$C14=Oper_Int!AD$1,'Other Exp'!$D14,0) -> 0 | AE44: =IF('Other Exp'!$C14=Oper_Int!AE$1,'Other Exp'!$D14,0) -> 0 | AF44: =IF('Other Exp'!$C14=Oper_Int!AF$1,'Other Exp'!$D14,0) -> 0 | AG44: =IF('Other Exp'!$C14=Oper_Int!AG$1,'Other Exp'!$D14,0) -> 0 | AH44: =IF('Other Exp'!$C14=Oper_Int!AH$1,'Other Exp'!$D14,0) -> 0 | AI44: =IF('Other Exp'!$C14=Oper_Int!AI$1,'Other Exp'!$D14,0) -> 0 | AJ44: =IF('Other Exp'!$C14=Oper_Int!AJ$1,'Other Exp'!$D14,0) -> 0 | AK44: =IF('Other Exp'!$C14=Oper_Int!AK$1,'Other Exp'!$D14,0) -> 0 | AL44: =IF('Other Exp'!$C14=Oper_Int!AL$1,'Other Exp'!$D14,0) -> 0 | AM44: =IF('Other Exp'!$C14=Oper_Int!AM$1,'Other Exp'!$D14,0) -> 0 | AN44: =IF('Other Exp'!$C14=Oper_Int!AN$1,'Other Exp'!$D14,0) -> 0 | AO44: 0
A45: =IF('Other Exp'!B15="","Other Expense",'Other Exp'!B15) -> Other Expense | B45: ='Other Exp'!F15 -> 0 | C45: =IF('Other Exp'!$C15=Oper_Int!C$1,'Other Exp'!$F15,0) -> 0 | D45: =IF('Other Exp'!$C15=Oper_Int!D$1,'Other Exp'!$F15,0) -> 0 | E45: =IF('Other Exp'!$C15=Oper_Int!E$1,'Other Exp'!$F15,0) -> 0 | F45: =IF('Other Exp'!$C15=Oper_Int!F$1,'Other Exp'!$F15,0) -> 0 | G45: =IF('Other Exp'!$C15=Oper_Int!G$1,'Other Exp'!$F15,0) -> 0 | H45: =IF('Other Exp'!$C15=Oper_Int!H$1,'Other Exp'!$F15,0) -> 0 | I45: =IF('Other Exp'!$C15=Oper_Int!I$1,'Other Exp'!$F15,0) -> 0 | J45: =IF('Other Exp'!$C15=Oper_Int!J$1,'Other Exp'!$F15,0) -> 0 | K45: =IF('Other Exp'!$C15=Oper_Int!K$1,'Other Exp'!$F15,0) -> 0 | L45: =IF('Other Exp'!$C15=Oper_Int!L$1,'Other Exp'!$F15,0) -> 0 | M45: =IF('Other Exp'!$C15=Oper_Int!M$1,'Other Exp'!$F15,0) -> 0 | N45: =IF('Other Exp'!$C15=Oper_Int!N$1,'Other Exp'!$D15,0) -> 0 | O45: 0 | AA45: =IF('Other Exp'!B15="","Other Expense",'Other Exp'!B15) -> Other Expense | AB45: ='Other Exp'!D15 -> 0 | AC45: =IF('Other Exp'!$C15=Oper_Int!AC$1,'Other Exp'!$D15,0) -> 0 | AD45: =IF('Other Exp'!$C15=Oper_Int!AD$1,'Other Exp'!$D15,0) -> 0 | AE45: =IF('Other Exp'!$C15=Oper_Int!AE$1,'Other Exp'!$D15,0) -> 0 | AF45: =IF('Other Exp'!$C15=Oper_Int!AF$1,'Other Exp'!$D15,0) -> 0 | AG45: =IF('Other Exp'!$C15=Oper_Int!AG$1,'Other Exp'!$D15,0) -> 0 | AH45: =IF('Other Exp'!$C15=Oper_Int!AH$1,'Other Exp'!$D15,0) -> 0 | AI45: =IF('Other Exp'!$C15=Oper_Int!AI$1,'Other Exp'!$D15,0) -> 0 | AJ45: =IF('Other Exp'!$C15=Oper_Int!AJ$1,'Other Exp'!$D15,0) -> 0 | AK45: =IF('Other Exp'!$C15=Oper_Int!AK$1,'Other Exp'!$D15,0) -> 0 | AL45: =IF('Other Exp'!$C15=Oper_Int!AL$1,'Other Exp'!$D15,0) -> 0 | AM45: =IF('Other Exp'!$C15=Oper_Int!AM$1,'Other Exp'!$D15,0) -> 0 | AN45: =IF('Other Exp'!$C15=Oper_Int!AN$1,'Other Exp'!$D15,0) -> 0 | AO45: 0
A46: =IF('Other Exp'!B16="","Other Expense",'Other Exp'!B16) -> Other Expense | B46: ='Other Exp'!F16 -> 0 | C46: =IF('Other Exp'!$C16=Oper_Int!C$1,'Other Exp'!$F16,0) -> 0 | D46: =IF('Other Exp'!$C16=Oper_Int!D$1,'Other Exp'!$F16,0) -> 0 | E46: =IF('Other Exp'!$C16=Oper_Int!E$1,'Other Exp'!$F16,0) -> 0 | F46: =IF('Other Exp'!$C16=Oper_Int!F$1,'Other Exp'!$F16,0) -> 0 | G46: =IF('Other Exp'!$C16=Oper_Int!G$1,'Other Exp'!$F16,0) -> 0 | H46: =IF('Other Exp'!$C16=Oper_Int!H$1,'Other Exp'!$F16,0) -> 0 | I46: =IF('Other Exp'!$C16=Oper_Int!I$1,'Other Exp'!$F16,0) -> 0 | J46: =IF('Other Exp'!$C16=Oper_Int!J$1,'Other Exp'!$F16,0) -> 0 | K46: =IF('Other Exp'!$C16=Oper_Int!K$1,'Other Exp'!$F16,0) -> 0 | L46: =IF('Other Exp'!$C16=Oper_Int!L$1,'Other Exp'!$F16,0) -> 0 | M46: =IF('Other Exp'!$C16=Oper_Int!M$1,'Other Exp'!$F16,0) -> 0 | N46: =IF('Other Exp'!$C16=Oper_Int!N$1,'Other Exp'!$D16,0) -> 0 | O46: 0 | AA46: =IF('Other Exp'!B16="","Other Expense",'Other Exp'!B16) -> Other Expense | AB46: ='Other Exp'!D16 -> 0 | AC46: =IF('Other Exp'!$C16=Oper_Int!AC$1,'Other Exp'!$D16,0) -> 0 | AD46: =IF('Other Exp'!$C16=Oper_Int!AD$1,'Other Exp'!$D16,0) -> 0 | AE46: =IF('Other Exp'!$C16=Oper_Int!AE$1,'Other Exp'!$D16,0) -> 0 | AF46: =IF('Other Exp'!$C16=Oper_Int!AF$1,'Other Exp'!$D16,0) -> 0 | AG46: =IF('Other Exp'!$C16=Oper_Int!AG$1,'Other Exp'!$D16,0) -> 0 | AH46: =IF('Other Exp'!$C16=Oper_Int!AH$1,'Other Exp'!$D16,0) -> 0 | AI46: =IF('Other Exp'!$C16=Oper_Int!AI$1,'Other Exp'!$D16,0) -> 0 | AJ46: =IF('Other Exp'!$C16=Oper_Int!AJ$1,'Other Exp'!$D16,0) -> 0 | AK46: =IF('Other Exp'!$C16=Oper_Int!AK$1,'Other Exp'!$D16,0) -> 0 | AL46: =IF('Other Exp'!$C16=Oper_Int!AL$1,'Other Exp'!$D16,0) -> 0 | AM46: =IF('Other Exp'!$C16=Oper_Int!AM$1,'Other Exp'!$D16,0) -> 0 | AN46: =IF('Other Exp'!$C16=Oper_Int!AN$1,'Other Exp'!$D16,0) -> 0 | AO46: 0
A47: Crop Insurance | B47: =Ins!C15 -> 20 | C47: =IF(Ins!$C$12=Oper_Int!C$1,Ins!$C$15,0) -> 0 | D47: =IF(Ins!$C$12=Oper_Int!D$1,Ins!$C$15,0) -> 0 | E47: =IF(Ins!$C$12=Oper_Int!E$1,Ins!$C$15,0) -> 0 | F47: =IF(Ins!$C$12=Oper_Int!F$1,Ins!$C$15,0) -> 0 | G47: =IF(Ins!$C$12=Oper_Int!G$1,Ins!$C$15,0) -> 0 | H47: =IF(Ins!$C$12=Oper_Int!H$1,Ins!$C$15,0) -> 0 | I47: =IF(Ins!$C$12=Oper_Int!I$1,Ins!$C$15,0) -> 0 | J47: =IF(Ins!$C$12=Oper_Int!J$1,Ins!$C$15,0) -> 0 | K47: =IF(Ins!$C$12=Oper_Int!K$1,Ins!$C$15,0) -> 0 | L47: =IF(Ins!$C$12=Oper_Int!L$1,Ins!$C$15,0) -> 20 | M47: =IF(Ins!$C$12=Oper_Int!M$1,Ins!$C$15,0) -> 0 | N47: =IF(Ins!$C$12=Oper_Int!N$1,Ins!$C$15,0) -> 0 | O47: 20 | AA47: Crop Insurance | AB47: =Ins!C13 -> 20 | AC47: =IF(Ins!$C$12=Oper_Int!AC$1,Ins!$C$13,0) -> 0 | AD47: =IF(Ins!$C$12=Oper_Int!AD$1,Ins!$C$13,0) -> 0 | AE47: =IF(Ins!$C$12=Oper_Int!AE$1,Ins!$C$13,0) -> 0 | AF47: =IF(Ins!$C$12=Oper_Int!AF$1,Ins!$C$13,0) -> 0 | AG47: =IF(Ins!$C$12=Oper_Int!AG$1,Ins!$C$13,0) -> 0 | AH47: =IF(Ins!$C$12=Oper_Int!AH$1,Ins!$C$13,0) -> 0 | AI47: =IF(Ins!$C$12=Oper_Int!AI$1,Ins!$C$13,0) -> 0 | AJ47: =IF(Ins!$C$12=Oper_Int!AJ$1,Ins!$C$13,0) -> 0 | AK47: =IF(Ins!$C$12=Oper_Int!AK$1,Ins!$C$13,0) -> 0 | AL47: =IF(Ins!$C$12=Oper_Int!AL$1,Ins!$C$13,0) -> 20 | AM47: =IF(Ins!$C$12=Oper_Int!AM$1,Ins!$C$13,0) -> 0 | AN47: =IF(Ins!$C$12=Oper_Int!AN$1,Ins!$C$13,0) -> 0 | AO47: 20
A48: Rent | B48: =Budget!BB6 -> 0 | C48: =$B$48*CRent!$C6 -> 0 | D48: =$B$48*CRent!$C7 -> 0 | E48: =$B$48*CRent!$C8 -> 0 | F48: =$B$48*CRent!$C9 -> 0 | G48: =$B$48*CRent!$C10 -> 0 | H48: =$B$48*CRent!$C11 -> 0 | I48: =$B$48*CRent!$C12 -> 0 | J48: =$B$48*CRent!$C13 -> 0 | K48: =$B$48*CRent!$C14 -> 0 | L48: =$B$48*CRent!$C15 -> 0 | M48: =$B$48*CRent!$C16 -> 0 | N48: =$B$48*CRent!$C17 -> 0 | O48: 0 | AA48: Rent | AB48: =Budget!BB6 -> 0 | AC48: =$B$48*CRent!$C6 -> 0 | AD48: =$B$48*CRent!$C7 -> 0 | AE48: =$B$48*CRent!$C8 -> 0 | AF48: =$B$48*CRent!$C9 -> 0 | AG48: =$B$48*CRent!$C10 -> 0 | AH48: =$B$48*CRent!$C11 -> 0 | AI48: =$B$48*CRent!$C12 -> 0 | AJ48: =$B$48*CRent!$C13 -> 0 | AK48: =$B$48*CRent!$C14 -> 0 | AL48: =$B$48*CRent!$C15 -> 0 | AM48: =$B$48*CRent!$C16 -> 0 | AN48: =$B$48*CRent!$C17 -> 0 | AO48: 0
A49: Total | B49: =SUM(B15:B48)-SUM(B4:B13) -> 200.2551925 | C49: =SUM(C15:C48)-SUM(C4:C13) -> 3.7 | D49: =SUM(D15:D48)-SUM(D4:D13) -> 0 | E49: 6.580537249 | F49: 218.7176083 | G49: 56.44208708 | H49: 85.79546495 | I49: 63.556 | J49: 98.99 | K49: 0 | L49: -333.5265051 | M49: 0 | N49: 0 | P49: Ttl Oper | AA49: Total | AB49: =SUM(AB15:AB48)-SUM(AB4:AB13) -> 200.2551925 | AC49: 3.7 | AD49: 0 | AE49: 6.580537249 | AF49: 218.7176083 | AG49: 56.44208708 | AH49: 85.79546495 | AI49: 63.556 | AJ49: 98.99 | AK49: 0 | AL49: -333.5265051 | AM49: 0 | AN49: 0 | AP49: Ttl Oper
A50: Part of year | C50: =C49*IF(C49<0,0,C51)/12 -> 2.775 | D50: =D49*IF(D49<0,0,D51)/12 -> 0 | E50: 3.838646729 | F50: 109.3588041 | G50: 23.51753628 | H50: 28.59848832 | I50: 15.889 | J50: 16.49833333 | K50: 0 | L50: 0 | M50: 0 | N50: 0 | P50: =SUM(C50:N50) -> 200.4758088 | AA50: Part of year | AC50: =AC49*IF(AC49<0,0,AC51)/12 -> 2.775 | AD50: =AD49*IF(AD49<0,0,AD51)/12 -> 0 | AE50: 3.838646729 | AF50: 109.3588041 | AG50: 23.51753628 | AH50: 28.59848832 | AI50: 15.889 | AJ50: 16.49833333 | AK50: 0 | AL50: 0 | AM50: 0 | AN50: 0 | AP50: =SUM(AC50:AN50) -> 200.4758088
C51: =+C64 -> 9 | D51: =+D64 -> 8 | E51: 7 | F51: 6 | G51: 5 | H51: 4 | I51: 3 | J51: 2 | K51: 1 | L51: 0 | M51: 11 | N51: 10 | AC51: =+C51 -> 9 | AD51: =+D51 -> 8 | AE51: 7 | AF51: 6 | AG51: 5 | AH51: 4 | AI51: 3 | AJ51: 2 | AK51: 1 | AL51: 0 | AM51: 11 | AN51: 10
C52: =+IF(Parameters!$P$14=C1,0,"") ->  | D52: =+IF(Parameters!$P$14=D1,0,"") ->  | E52: =+IF(Parameters!$P$14=E1,0,"") ->  | F52: =+IF(Parameters!$P$14=F1,0,"") ->  | G52: =+IF(Parameters!$P$14=G1,0,"") ->  | H52: =+IF(Parameters!$P$14=H1,0,"") ->  | I52: =+IF(Parameters!$P$14=I1,0,"") ->  | J52: =+IF(Parameters!$P$14=J1,0,"") ->  | K52: =+IF(Parameters!$P$14=K1,0,"") ->  | L52: =+IF(Parameters!$P$14=L1,0,"") -> 0 | M52: =+IF(Parameters!$P$14=M1,0,"") ->  | N52: =+IF(Parameters!$P$14=N1,0,"") -> 
C53: =+IF(N52=0,11,"") ->  | D53: =+IF(C52=0,11,"") ->  | E53: =+IF(D52=0,11,"") ->  | M53: 11
C54: =+IF(N53=11,10,"") ->  | D54: =+IF(C53=11,10,"") ->  | E54: =+IF(D53=11,10,"") ->  | N54: 10
C55: =+IF(N54=10,9,"") -> 9 | D55: =+IF(C54=10,9,"") ->  | E55: =+IF(D54=10,9,"") -> 
C56: =+IF(N55=9,8,"") ->  | D56: =+IF(C55=9,8,"") -> 8 | E56: =+IF(D55=9,8,"") -> 
C57: =+IF(N56=8,7,"") ->  | D57: =+IF(C56=8,7,"") ->  | E57: =+IF(D56=8,7,"") -> 7
C58: =+IF(N57=7,6,"") ->  | D58: =+IF(C57=7,6,"") ->  | E58: =+IF(D57=7,6,"") ->  | F58: 6
C59: =+IF(N58=6,5,"") ->  | D59: =+IF(C58=6,5,"") ->  | E59: =+IF(D58=6,5,"") ->  | G59: 5
C60: =+IF(N59=5,4,"") ->  | D60: =+IF(C59=5,4,"") ->  | E60: =+IF(D59=5,4,"") ->  | H60: 4
C61: =+IF(N60=4,3,"") ->  | D61: =+IF(C60=4,3,"") ->  | E61: =+IF(D60=4,3,"") ->  | I61: 3
C62: =+IF(N61=3,2,"") ->  | D62: =+IF(C61=3,2,"") ->  | E62: =+IF(D61=3,2,"") ->  | J62: 2
C63: =+IF(N62=2,1,"") ->  | D63: =+IF(C62=2,1,"") ->  | E63: =+IF(D62=2,1,"") ->  | K63: 1
C64: =+SUM(C52:C63) -> 9 | D64: =+SUM(D52:D63) -> 8 | E64: 7 | F64: 6 | G64: 5 | H64: 4 | I64: 3 | J64: 2 | K64: 1 | L64: 0 | M64: 11 | N64: 10
B68: 0 | O68: =SUM(C68:N68) -> 0
A69: machinery ins | B69: =+IF(Budget!BB$5="share",Machinery!AB25+Machinery!AD25,Machinery!AF25+Machinery!Z25)*IF(Budget!BB$32,1,0) -> 3.258451882 | C69: =+$B69*Machinery!V50/100 -> 3.258451882 | D69: =+$B69*Machinery!W50/100 -> 0 | E69: =+$B69*Machinery!X50/100 -> 0 | F69: =+$B69*Machinery!Y50/100 -> 0 | G69: =+$B69*Machinery!Z50/100 -> 0 | H69: =+$B69*Machinery!AA50/100 -> 0 | I69: =+$B69*Machinery!AB50/100 -> 0 | J69: =+$B69*Machinery!AC50/100 -> 0 | K69: =+$B69*Machinery!AD50/100 -> 0 | L69: =+$B69*Machinery!AE50/100 -> 0 | M69: =+$B69*Machinery!AF50/100 -> 0 | N69: =+$B69*Machinery!AG50/100 -> 0 | O69: 3.258451882
A70: irrig ins | B70: =+IF(Budget!BB$5="share",Machinery!AC25,Machinery!Y25)*IF(Budget!BB$32,1,0) -> 11.31975547 | C70: =+$B70*Irrig!BA61/100 -> 11.31975547 | D70: =+$B70*Irrig!BB61/100 -> 0 | E70: =+$B70*Irrig!BC61/100 -> 0 | F70: =+$B70*Irrig!BD61/100 -> 0 | G70: =+$B70*Irrig!BE61/100 -> 0 | H70: =+$B70*Irrig!BF61/100 -> 0 | I70: =+$B70*Irrig!BG61/100 -> 0 | J70: =+$B70*Irrig!BH61/100 -> 0 | K70: =+$B70*Irrig!BI61/100 -> 0 | L70: =+$B70*Irrig!BJ61/100 -> 0 | M70: =+$B70*Irrig!BK61/100 -> 0 | N70: =+$B70*Irrig!BL61/100 -> 0 | O70: 11.31975547
B71: 0 | O71: 0
A72: machinery tax | B72: =+IF(Budget!BB$5="share",Machinery!AB26+Machinery!AD26,Machinery!AF26+Machinery!Z26)*IF(Budget!BB$30,1,0) -> 5.853808193 | C72: =+$B72*Machinery!V45/100 -> 5.853808193 | D72: =+$B72*Machinery!W45/100 -> 0 | E72: =+$B72*Machinery!X45/100 -> 0 | F72: =+$B72*Machinery!Y45/100 -> 0 | G72: =+$B72*Machinery!Z45/100 -> 0 | H72: =+$B72*Machinery!AA45/100 -> 0 | I72: =+$B72*Machinery!AB45/100 -> 0 | J72: =+$B72*Machinery!AC45/100 -> 0 | K72: =+$B72*Machinery!AD45/100 -> 0 | L72: =+$B72*Machinery!AE45/100 -> 0 | M72: =+$B72*Machinery!AF45/100 -> 0 | N72: =+$B72*Machinery!AG45/100 -> 0 | O72: 5.853808193
A73: irrig tax | B73: =+IF(Budget!BB$5="share",Machinery!AC26,Machinery!Y26)*IF(Budget!BB$30,1,0) -> 13.31735938 | C73: =+$B73*Irrig!BA56/100 -> 13.31735938 | D73: =+$B73*Irrig!BB56/100 -> 0 | E73: =+$B73*Irrig!BC56/100 -> 0 | F73: =+$B73*Irrig!BD56/100 -> 0 | G73: =+$B73*Irrig!BE56/100 -> 0 | H73: =+$B73*Irrig!BF56/100 -> 0 | I73: =+$B73*Irrig!BG56/100 -> 0 | J73: =+$B73*Irrig!BH56/100 -> 0 | K73: =+$B73*Irrig!BI56/100 -> 0 | L73: =+$B73*Irrig!BJ56/100 -> 0 | M73: =+$B73*Irrig!BK56/100 -> 0 | N73: =+$B73*Irrig!BL56/100 -> 0 | O73: 13.31735938
A74: land tax | B74: =+IF(Budget!$BB$5="share",Budget!$H$38,Budget!$G$38)*IF(Budget!$BB$31,1,0) -> 0.3 | C74: =+$B74*Parameters!P24/100 -> 0.3 | D74: =+$B74*Parameters!Q24/100 -> 0 | E74: =+$B74*Parameters!R24/100 -> 0 | F74: =+$B74*Parameters!S24/100 -> 0 | G74: =+$B74*Parameters!T24/100 -> 0 | H74: =+$B74*Parameters!U24/100 -> 0 | I74: =+$B74*Parameters!V24/100 -> 0 | J74: =+$B74*Parameters!W24/100 -> 0 | K74: =+$B74*Parameters!X24/100 -> 0 | L74: =+$B74*Parameters!Y24/100 -> 0 | M74: =+$B74*Parameters!Z24/100 -> 0 | N74: =+$B74*Parameters!AA24/100 -> 0 | O74: 0.3
B75: =+SUM(B68:B74) -> 34.04937492

Sheet Other Exp
B1: Other Expenses
B7: Other | C7: Month of | D7: Cost | E7: Share | F7: Share
B8: Expense | C8: Expense | D8: per Acre | E8: Amount | F8: Expense
B9: Utilities | C9: 1 | D9: 1.7 | E9: 1 | F9: =D9*E9 -> 1.7
B10: Fees, publications | C10: 1 | D10: 2 | E10: 1 | F10: =D10*E10 -> 2
B11: Ammonium sulfate | C11: 6 | D11: 0.45 | E11: 1 | F11: 0.45
E12: 1 | F12: 0
E13: 1 | F13: 0
E14: 1 | F14: 0
E15: 1 | F15: 0
E16: 1 | F16: 0
C17: Total Cost: | D17: =SUM(D9:D16) -> 4.15 | F17: =SUM(F9:F16) -> 4.15

Sheet Other Inc
B1: Other Income
B7: Other | C7: Month of | D7: Income | E7: Share | F7: Share
B8: Income | C8: Income | D8: per Acre | E8: Amount | F8: Income
E9: 1 | F9: =D9*E9 -> 0
E10: 1 | F10: =D10*E10 -> 0
E11: 1 | F11: 0
E12: 1 | F12: 0
E13: 1 | F13: 0
E14: 1 | F14: 0
E15: 1 | F15: 0
E16: 1 | F16: 0
C17: Total Other Income: | D17: =SUM(D9:D16) -> 0 | F17: =SUM(F9:F16) -> 0

Sheet IFFS (hidden)
A1: ENTERPRISE BUDGET WORKSHEET | G1: NAME: | K1: DATE: | N1: FIELD: | R1: File: | S1: GSorghumIffs | BA1: Save
C2: Enterprise: | E2: Dryland Grain Sorghum Enterprise Budget
B4: Number of acres: | E4: 160 | G4: Quantity stored: | I4: =0*E4 -> 0 | J4: bu.
B5: Acres Harvested | E5: 160
B6: Yield: per acre | E6: 60 | F6: bu/ac.
B7: Price: $/bushel $ | E7: 4.45 | F7: /bu | O7: Percent change in costs | S7: 0 | T7: %
B8: Operator's share | E8: 100 | F8: %
G9: Interest rate | I9: 8.5 | J9: % | R9: Error Check | T9: =IF(MAX(ABS(MIN(U18:U55)),MAX(U18:U55))<0.5,0,MAX(ABS(MIN(U18:U55)),MAX(U18:U55))) -> 0
G10: Interest Starting Month: January | AC10: Percent Allocation
G11: PER | U11: Error
G12: UNIT | H12: TOTAL | I12: JAN | J12: FEB | K12: MAR | L12: APR | M12: MAY | N12: JUN | O12: JUL | P12: AUG | Q12: SEP | R12: OCT | S12: NOV | T12: DEC | U12: Check | X12: JAN | Y12: FEB | Z12: MAR | AA12: APR | AB12: MAY | AC12: JUN | AD12: JUL | AE12: AUG | AF12: SEP | AG12: OCT | AH12: NOV | AI12: DEC | AJ12: Per Unit | AN12: JAN | AO12: FEB | AP12: MAR | AQ12: APR | AR12: MAY | AS12: JUN | AT12: JUL | AU12: AUG | AV12: SEP | AW12: OCT | AX12: NOV | AY12: DEC
B14: << OPERATING RECEIPTS >>
B15: Livestock sales:
B16: Description | D16: unit | E16: price | F16: quan.
B17: - | C17: ---- | D17: ---- | E17: ----- | F17: -----
A18: > | G18: =E18*F18 -> 0 | H18: =(G18*E4) -> 0 | U18: =SUM(I18:T18)-H18 -> 0
A19: > | G19: =E19*F19 -> 0 | H19: =(G19*E4) -> 0 | U19: =SUM(I19:T19)-H19 -> 0
A20: > | G20: =E20*F20 -> 0 | H20: =(G20*E4) -> 0 | U20: =SUM(I20:T20)-H20 -> 0
A21: > | G21: =E21*F21 -> 0 | H21: =(G21*E4) -> 0 | U21: =SUM(I21:T21)-H21 -> 0
B22: Crop sales:
B23: Description | D23: unit | E23: price | F23: quan.
B24: - | C24: ---- | D24: ---- | E24: ----- | F24: -----
A25: > | B25: Grain Sorghum | D25: bu | E25: =($E$7) -> 4.45 | F25: =($E$6) -> 60 | G25: =(($E$25*$F$25)*($E$8/100)*($E$5/$E$4))-($I$4*$E$7/$E$4) -> 267 | H25: =($G$25*$E$4) -> 42720 | R25: =$H25/100*100 -> 42720 | U25: =SUM(I25:T25)-H25 -> 0 | X25: =IF(Oper_Int!$B4<>0,Oper_Int!C4/Oper_Int!$B$4,0) -> 0 | Y25: =IF(Oper_Int!$B4<>0,Oper_Int!D4/Oper_Int!$B$4,0) -> 0 | Z25: =IF(Oper_Int!$B4<>0,Oper_Int!E4/Oper_Int!$B$4,0) -> 0 | AA25: =IF(Oper_Int!$B4<>0,Oper_Int!F4/Oper_Int!$B$4,0) -> 0 | AB25: =IF(Oper_Int!$B4<>0,Oper_Int!G4/Oper_Int!$B$4,0) -> 0 | AC25: =IF(Oper_Int!$B4<>0,Oper_Int!H4/Oper_Int!$B$4,0) -> 0 | AD25: =IF(Oper_Int!$B4<>0,Oper_Int!I4/Oper_Int!$B$4,0) -> 0 | AE25: =IF(Oper_Int!$B4<>0,Oper_Int!J4/Oper_Int!$B$4,0) -> 0 | AF25: =IF(Oper_Int!$B4<>0,Oper_Int!K4/Oper_Int!$B$4,0) -> 0 | AG25: =IF(Oper_Int!$B4<>0,Oper_Int!L4/Oper_Int!$B$4,0) -> 1 | AH25: =IF(Oper_Int!$B4<>0,Oper_Int!M4/Oper_Int!$B$4,0) -> 0 | AI25: =IF(Oper_Int!$B4<>0,Oper_Int!N4/Oper_Int!$B$4,0) -> 0 | AJ25: xxx | AW25: =$H25/100*100 -> 42720
A26: > | G26: =E26*F26 -> 0 | H26: =(G26*$E$4) -> 0 | U26: =SUM(I26:T26)-H26 -> 0 | AJ26: xxx
A27: > | B27: Government payments | E27: (totals) | G27: 0 | H27: =(G27*$E$4) -> 0 | U27: =SUM(I27:T27)-H27 -> 0 | X27: =IF(SUM(Oper_Int!$B$6:$B$7)<>0,SUM(Oper_Int!C6:C7)/SUM(Oper_Int!$B$6:$B$7),0) -> 0 | Y27: =IF(SUM(Oper_Int!$B$6:$B$7)<>0,SUM(Oper_Int!D6:D7)/SUM(Oper_Int!$B$6:$B$7),0) -> 0 | Z27: =IF(SUM(Oper_Int!$B$6:$B$7)<>0,SUM(Oper_Int!E6:E7)/SUM(Oper_Int!$B$6:$B$7),0) -> 0 | AA27: =IF(SUM(Oper_Int!$B$6:$B$7)<>0,SUM(Oper_Int!F6:F7)/SUM(Oper_Int!$B$6:$B$7),0) -> 0 | AB27: =IF(SUM(Oper_Int!$B$6:$B$7)<>0,SUM(Oper_Int!G6:G7)/SUM(Oper_Int!$B$6:$B$7),0) -> 0 | AC27: =IF(SUM(Oper_Int!$B$6:$B$7)<>0,SUM(Oper_Int!H6:H7)/SUM(Oper_Int!$B$6:$B$7),0) -> 0 | AD27: =IF(SUM(Oper_Int!$B$6:$B$7)<>0,SUM(Oper_Int!I6:I7)/SUM(Oper_Int!$B$6:$B$7),0) -> 0 | AE27: =IF(SUM(Oper_Int!$B$6:$B$7)<>0,SUM(Oper_Int!J6:J7)/SUM(Oper_Int!$B$6:$B$7),0) -> 0 | AF27: =IF(SUM(Oper_Int!$B$6:$B$7)<>0,SUM(Oper_Int!K6:K7)/SUM(Oper_Int!$B$6:$B$7),0) -> 0 | AG27: =IF(SUM(Oper_Int!$B$6:$B$7)<>0,SUM(Oper_Int!L6:L7)/SUM(Oper_Int!$B$6:$B$7),0) -> 0 | AH27: =IF(SUM(Oper_Int!$B$6:$B$7)<>0,SUM(Oper_Int!M6:M7)/SUM(Oper_Int!$B$6:$B$7),0) -> 0 | AI27: =IF(SUM(Oper_Int!$B$6:$B$7)<>0,SUM(Oper_Int!N6:N7)/SUM(Oper_Int!$B$6:$B$7),0) -> 0 | AJ27: =SUM(Oper_Int!B6:B7) -> 0
A28: > | B28: Other farm income | E28: (totals) | G28: 0 | H28: =(G28*$E$4) -> 0 | U28: =SUM(I28:T28)-H28 -> 0 | X28: =IF(SUM(Oper_Int!$B$8:$B$13)<>0,SUM(Oper_Int!C8:C13)/SUM(Oper_Int!$B$8:$B$13),0) -> 0 | Y28: =IF(SUM(Oper_Int!$B$8:$B$13)<>0,SUM(Oper_Int!D8:D13)/SUM(Oper_Int!$B$8:$B$13),0) -> 0 | Z28: =IF(SUM(Oper_Int!$B$8:$B$13)<>0,SUM(Oper_Int!E8:E13)/SUM(Oper_Int!$B$8:$B$13),0) -> 0 | AA28: =IF(SUM(Oper_Int!$B$8:$B$13)<>0,SUM(Oper_Int!F8:F13)/SUM(Oper_Int!$B$8:$B$13),0) -> 0 | AB28: =IF(SUM(Oper_Int!$B$8:$B$13)<>0,SUM(Oper_Int!G8:G13)/SUM(Oper_Int!$B$8:$B$13),0) -> 0 | AC28: =IF(SUM(Oper_Int!$B$8:$B$13)<>0,SUM(Oper_Int!H8:H13)/SUM(Oper_Int!$B$8:$B$13),0) -> 0 | AD28: =IF(SUM(Oper_Int!$B$8:$B$13)<>0,SUM(Oper_Int!I8:I13)/SUM(Oper_Int!$B$8:$B$13),0) -> 0 | AE28: =IF(SUM(Oper_Int!$B$8:$B$13)<>0,SUM(Oper_Int!J8:J13)/SUM(Oper_Int!$B$8:$B$13),0) -> 0 | AF28: =IF(SUM(Oper_Int!$B$8:$B$13)<>0,SUM(Oper_Int!K8:K13)/SUM(Oper_Int!$B$8:$B$13),0) -> 0 | AG28: =IF(SUM(Oper_Int!$B$8:$B$13)<>0,SUM(Oper_Int!L8:L13)/SUM(Oper_Int!$B$8:$B$13),0) -> 0 | AH28: =IF(SUM(Oper_Int!$B$8:$B$13)<>0,SUM(Oper_Int!M8:M13)/SUM(Oper_Int!$B$8:$B$13),0) -> 0 | AI28: =IF(SUM(Oper_Int!$B$8:$B$13)<>0,SUM(Oper_Int!N8:N13)/SUM(Oper_Int!$B$8:$B$13),0) -> 0 | AJ28: =SUM(Oper_Int!B8:B13) -> 0
A29: > | E29: (totals) | H29: =(G29*$E$4) -> 0 | U29: =SUM(I29:T29)-H29 -> 0
B30: TOTAL CASH OPERATING RECEIPTS | G30: =SUM(G18:G29) -> 267 | H30: 42720 | I30: 0 | J30: 0 | K30: 0 | L30: 0 | M30: 0 | N30: 0 | O30: 0 | P30: 0 | Q30: 0 | R30: 42720 | S30: 0 | T30: 0 | AN30: =SUM(AN18:AN29) -> 0 | AO30: 0 | AP30: 0 | AQ30: 0 | AR30: 0 | AS30: 0 | AT30: 0 | AU30: 0 | AV30: 0 | AW30: 42720 | AX30: 0 | AY30: 0
B32: << OPERATING EXPENSES >>
B33: Custom Hire (machine work) | G33: 5.63 | H33: =IF(A33<>1,(G33*$E$4),(G33*$E$4)*(100+$S$7)/100) -> 900.8 | P33: =$H33/100*100 -> 900.8 | U33: =SUM(I33:T33)-H33 -> 0 | X33: =IF($AJ$33<>0,(Oper_Int!C25+Oper_Int!C26)/IFFS!$AJ$33*100,0) -> 0 | Y33: =IF($AJ$33<>0,(Oper_Int!D25+Oper_Int!D26)/IFFS!$AJ$33*100,0) -> 0 | Z33: =IF($AJ$33<>0,(Oper_Int!E25+Oper_Int!E26)/IFFS!$AJ$33*100,0) -> 0 | AA33: =IF($AJ$33<>0,(Oper_Int!F25+Oper_Int!F26)/IFFS!$AJ$33*100,0) -> 41.53686397 | AB33: =IF($AJ$33<>0,(Oper_Int!G25+Oper_Int!G26)/IFFS!$AJ$33*100,0) -> 0 | AC33: =IF($AJ$33<>0,(Oper_Int!H25+Oper_Int!H26)/IFFS!$AJ$33*100,0) -> 0 | AD33: =IF($AJ$33<>0,(Oper_Int!I25+Oper_Int!I26)/IFFS!$AJ$33*100,0) -> 0 | AE33: =IF($AJ$33<>0,(Oper_Int!J25+Oper_Int!J26)/IFFS!$AJ$33*100,0) -> 58.46313603 | AF33: =IF($AJ$33<>0,(Oper_Int!K25+Oper_Int!K26)/IFFS!$AJ$33*100,0) -> 0 | AG33: =IF($AJ$33<>0,(Oper_Int!L25+Oper_Int!L26)/IFFS!$AJ$33*100,0) -> 0 | AH33: =IF($AJ$33<>0,(Oper_Int!M25+Oper_Int!M26)/IFFS!$AJ$33*100,0) -> 0 | AI33: =IF($AJ$33<>0,(Oper_Int!N25+Oper_Int!N26)/IFFS!$AJ$33*100,0) -> 0 | AJ33: =Oper_Int!B25+Oper_Int!B26 -> 9.63 | AU33: =$H33/100*100 -> 900.8
B34: Feed Purchased | G34: 0 | H34: 0 | U34: 0 | AJ34: 0
B35: Fertilizer, Lime, Chemicals | G35: 91.13855 | H35: 14582.168 | L35: =$H35/100*47.8650911167667 -> 6979.768 | M35: =$H35/100*16.8534610217082 -> 2457.6 | N35: =$H35/100*20.0134849632784 -> 2918.4 | P35: =$H35/100*15.2679628982467 -> 2226.4 | U35: 0 | X35: =IF($AJ$35<>0,(SUM(Oper_Int!C16:C24)+SUM(Oper_Int!C27:C34))/IFFS!$AJ$35*100,0) -> 0 | Y35: =IF($AJ$35<>0,(SUM(Oper_Int!D16:D24)+SUM(Oper_Int!D27:D34))/IFFS!$AJ$35*100,0) -> 0 | Z35: =IF($AJ$35<>0,(SUM(Oper_Int!E16:E24)+SUM(Oper_Int!E27:E34))/IFFS!$AJ$35*100,0) -> 0 | AA35: =IF($AJ$35<>0,(SUM(Oper_Int!F16:F24)+SUM(Oper_Int!F27:F34))/IFFS!$AJ$35*100,0) -> 63.67818204 | AB35: =IF($AJ$35<>0,(SUM(Oper_Int!G16:G24)+SUM(Oper_Int!G27:G34))/IFFS!$AJ$35*100,0) -> 11.74162104 | AC35: =IF($AJ$35<>0,(SUM(Oper_Int!H16:H24)+SUM(Oper_Int!H27:H34))/IFFS!$AJ$35*100,0) -> 13.94317499 | AD35: =IF($AJ$35<>0,(SUM(Oper_Int!I16:I24)+SUM(Oper_Int!I27:I34))/IFFS!$AJ$35*100,0) -> 0 | AE35: =IF($AJ$35<>0,(SUM(Oper_Int!J16:J24)+SUM(Oper_Int!J27:J34))/IFFS!$AJ$35*100,0) -> 10.63702193 | AF35: =IF($AJ$35<>0,(SUM(Oper_Int!K16:K24)+SUM(Oper_Int!K27:K34))/IFFS!$AJ$35*100,0) -> 0 | AG35: =IF($AJ$35<>0,(SUM(Oper_Int!L16:L24)+SUM(Oper_Int!L27:L34))/IFFS!$AJ$35*100,0) -> 0 | AH35: =IF($AJ$35<>0,(SUM(Oper_Int!M16:M24)+SUM(Oper_Int!M27:M34))/IFFS!$AJ$35*100,0) -> 0 | AI35: =IF($AJ$35<>0,(SUM(Oper_Int!N16:N24)+SUM(Oper_Int!N27:N34))/IFFS!$AJ$35*100,0) -> 0 | AJ35: =SUM(Oper_Int!B16:B24)+SUM(Oper_Int!B27:B34) -> 130.81669 | AQ35: =$H35/100*47.8650911167667 -> 6979.768 | AR35: =$H35/100*16.8534610217082 -> 2457.6 | AS35: =$H35/100*20.0134849632784 -> 2918.4 | AU35: =$H35/100*15.2679628982467 -> 2226.4
B36: Freight, Trucking | G36: 0 | H36: 0 | U36: 0 | AJ36: 0
B37: Fuel, Lubricants | G37: 30.72733456 | H37: 4916.373529 | K37: =$H37/100*8.80981198368623 -> 433.1232644 | L37: =$H37/100*27.0336306561493 -> 1329.074262 | M37: =$H37/100*24.649511009035 -> 1211.862034 | N37: =$H37/100*4.75190970760462 -> 233.621631 | R37: =$H37/100*34.7551366435249 -> 1708.692338 | U37: 0 | X37: =IF(Oper_Int!$B$36+Oper_Int!$B$38<>0,(Oper_Int!C$36+Oper_Int!C$38)/(Oper_Int!$B$36+Oper_Int!$B$38)*100,0) -> 0 | Y37: =IF(Oper_Int!$B$36+Oper_Int!$B$38<>0,(Oper_Int!D$36+Oper_Int!D$38)/(Oper_Int!$B$36+Oper_Int!$B$38)*100,0) -> 0 | Z37: =IF(Oper_Int!$B$36+Oper_Int!$B$38<>0,(Oper_Int!E$36+Oper_Int!E$38)/(Oper_Int!$B$36+Oper_Int!$B$38)*100,0) -> 1.431537435 | AA37: =IF(Oper_Int!$B$36+Oper_Int!$B$38<>0,(Oper_Int!F$36+Oper_Int!F$38)/(Oper_Int!$B$36+Oper_Int!$B$38)*100,0) -> 33.66646041 | AB37: =IF(Oper_Int!$B$36+Oper_Int!$B$38<>0,(Oper_Int!G$36+Oper_Int!G$38)/(Oper_Int!$B$36+Oper_Int!$B$38)*100,0) -> 4.00538602 | AC37: =IF(Oper_Int!$B$36+Oper_Int!$B$38<>0,(Oper_Int!H$36+Oper_Int!H$38)/(Oper_Int!$B$36+Oper_Int!$B$38)*100,0) -> 17.49996622 | AD37: =IF(Oper_Int!$B$36+Oper_Int!$B$38<>0,(Oper_Int!I$36+Oper_Int!I$38)/(Oper_Int!$B$36+Oper_Int!$B$38)*100,0) -> 16.72781165 | AE37: =IF(Oper_Int!$B$36+Oper_Int!$B$38<>0,(Oper_Int!J$36+Oper_Int!J$38)/(Oper_Int!$B$36+Oper_Int!$B$38)*100,0) -> 20.90976456 | AF37: =IF(Oper_Int!$B$36+Oper_Int!$B$38<>0,(Oper_Int!K$36+Oper_Int!K$38)/(Oper_Int!$B$36+Oper_Int!$B$38)*100,0) -> 0 | AG37: =IF(Oper_Int!$B$36+Oper_Int!$B$38<>0,(Oper_Int!L$36+Oper_Int!L$38)/(Oper_Int!$B$36+Oper_Int!$B$38)*100,0) -> 5.759073704 | AH37: =IF(Oper_Int!$B$36+Oper_Int!$B$38<>0,(Oper_Int!M$36+Oper_Int!M$38)/(Oper_Int!$B$36+Oper_Int!$B$38)*100,0) -> 0 | AI37: =IF(Oper_Int!$B$36+Oper_Int!$B$38<>0,(Oper_Int!N$36+Oper_Int!N$38)/(Oper_Int!$B$36+Oper_Int!$B$38)*100,0) -> 0 | AJ37: =IF(Budget!BB5="share",Oper_Int!$B$36*(1-Irrig!BH3)+Oper_Int!$B$38-IF(Machinery!V32=FALSE,Machinery!AB21,0)-Machinery!AD21,Oper_Int!$B$36*(1-Irrig!BH3)+Oper_Int!$B$38-IF(Machinery!V32=FALSE,Machinery!AA21,0)) -> 216.2041149 | AP37: =$H37/100*8.80981198368623 -> 433.1232644 | AQ37: =$H37/100*27.0336306561493 -> 1329.074262 | AR37: =$H37/100*24.649511009035 -> 1211.862034 | AS37: =$H37/100*4.75190970760462 -> 233.621631 | AW37: =$H37/100*34.7551366435249 -> 1708.692338
B38: Insurance | G38: 23.25845188 | H38: 3721.352301 | I38: =$H38/100*14.0097539516753 -> 521.3523011 | R38: =$H38/100*85.9902460483247 -> 3200 | U38: 0 | X38: =IF($AJ$38<>0,(Oper_Int!C47+SUM(Oper_Int!C69:C70))/$AJ$38*100,0) -> 42.1601016 | Y38: =IF($AJ$38<>0,(Oper_Int!D47+SUM(Oper_Int!D69:D70))/$AJ$38*100,0) -> 0 | Z38: =IF($AJ$38<>0,(Oper_Int!E47+SUM(Oper_Int!E69:E70))/$AJ$38*100,0) -> 0 | AA38: =IF($AJ$38<>0,(Oper_Int!F47+SUM(Oper_Int!F69:F70))/$AJ$38*100,0) -> 0 | AB38: =IF($AJ$38<>0,(Oper_Int!G47+SUM(Oper_Int!G69:G70))/$AJ$38*100,0) -> 0 | AC38: =IF($AJ$38<>0,(Oper_Int!H47+SUM(Oper_Int!H69:H70))/$AJ$38*100,0) -> 0 | AD38: =IF($AJ$38<>0,(Oper_Int!I47+SUM(Oper_Int!I69:I70))/$AJ$38*100,0) -> 0 | AE38: =IF($AJ$38<>0,(Oper_Int!J47+SUM(Oper_Int!J69:J70))/$AJ$38*100,0) -> 0 | AF38: =IF($AJ$38<>0,(Oper_Int!K47+SUM(Oper_Int!K69:K70))/$AJ$38*100,0) -> 0 | AG38: =IF($AJ$38<>0,(Oper_Int!L47+SUM(Oper_Int!L69:L70))/$AJ$38*100,0) -> 57.8398984 | AH38: =IF($AJ$38<>0,(Oper_Int!M47+SUM(Oper_Int!M69:M70))/$AJ$38*100,0) -> 0 | AI38: =IF($AJ$38<>0,(Oper_Int!N47+SUM(Oper_Int!N69:N70))/$AJ$38*100,0) -> 0 | AJ38: =Oper_Int!B47+SUM(Oper_Int!B69:B70) -> 34.57820735 | AN38: =$H38/100*14.0097539516753 -> 521.3523011 | AW38: =$H38/100*85.9902460483247 -> 3200
B39: Labor Hired | G39: 13.51 | H39: 2161.6 | K39: =$H39/100*8.80981198368623 -> 190.4328958 | L39: =$H39/100*27.0336306561493 -> 584.3589603 | M39: =$H39/100*24.649511009035 -> 532.82383 | N39: =$H39/100*4.75190970760462 -> 102.7172802 | R39: =$H39/100*34.7551366435249 -> 751.2670337 | U39: 0 | X39: =IF((Oper_Int!$B$37+Oper_Int!$B$35)<>0,(Oper_Int!C37+Oper_Int!C35)/(Oper_Int!$B$37+Oper_Int!$B$35)*100,0) -> 0 | Y39: =IF((Oper_Int!$B$37+Oper_Int!$B$35)<>0,(Oper_Int!D37+Oper_Int!D35)/(Oper_Int!$B$37+Oper_Int!$B$35)*100,0) -> 0 | Z39: =IF((Oper_Int!$B$37+Oper_Int!$B$35)<>0,(Oper_Int!E37+Oper_Int!E35)/(Oper_Int!$B$37+Oper_Int!$B$35)*100,0) -> 7.443878251 | AA39: =IF((Oper_Int!$B$37+Oper_Int!$B$35)<>0,(Oper_Int!F37+Oper_Int!F35)/(Oper_Int!$B$37+Oper_Int!$B$35)*100,0) -> 28.0657026 | AB39: =IF((Oper_Int!$B$37+Oper_Int!$B$35)<>0,(Oper_Int!G37+Oper_Int!G35)/(Oper_Int!$B$37+Oper_Int!$B$35)*100,0) -> 20.82768159 | AC39: =IF((Oper_Int!$B$37+Oper_Int!$B$35)<>0,(Oper_Int!H37+Oper_Int!H35)/(Oper_Int!$B$37+Oper_Int!$B$35)*100,0) -> 7.000027653 | AD39: =IF((Oper_Int!$B$37+Oper_Int!$B$35)<>0,(Oper_Int!I37+Oper_Int!I35)/(Oper_Int!$B$37+Oper_Int!$B$35)*100,0) -> 2.98488665 | AE39: =IF((Oper_Int!$B$37+Oper_Int!$B$35)<>0,(Oper_Int!J37+Oper_Int!J35)/(Oper_Int!$B$37+Oper_Int!$B$35)*100,0) -> 3.731108312 | AF39: =IF((Oper_Int!$B$37+Oper_Int!$B$35)<>0,(Oper_Int!K37+Oper_Int!K35)/(Oper_Int!$B$37+Oper_Int!$B$35)*100,0) -> 0 | AG39: =IF((Oper_Int!$B$37+Oper_Int!$B$35)<>0,(Oper_Int!L37+Oper_Int!L35)/(Oper_Int!$B$37+Oper_Int!$B$35)*100,0) -> 29.94671494 | AH39: =IF((Oper_Int!$B$37+Oper_Int!$B$35)<>0,(Oper_Int!M37+Oper_Int!M35)/(Oper_Int!$B$37+Oper_Int!$B$35)*100,0) -> 0 | AI39: =IF((Oper_Int!$B$37+Oper_Int!$B$35)<>0,(Oper_Int!N37+Oper_Int!N35)/(Oper_Int!$B$37+Oper_Int!$B$35)*100,0) -> 0 | AJ39: =Oper_Int!$B$37+Oper_Int!$B$35 -> 15.88 | AP39: =$H39/100*8.80981198368623 -> 190.4328958 | AQ39: =$H39/100*27.0336306561493 -> 584.3589603 | AR39: =$H39/100*24.649511009035 -> 532.82383 | AS39: =$H39/100*4.75190970760462 -> 102.7172802 | AW39: =$H39/100*34.7551366435249 -> 751.2670337
B40: Rent | G40: 0 | H40: 0 | U40: 0 | X40: =IF(Oper_Int!$B$48<>0,Oper_Int!C48/Oper_Int!$B$48*100,0) -> 0 | Y40: =IF(Oper_Int!$B$48<>0,Oper_Int!D48/Oper_Int!$B$48*100,0) -> 0 | Z40: =IF(Oper_Int!$B$48<>0,Oper_Int!E48/Oper_Int!$B$48*100,0) -> 0 | AA40: =IF(Oper_Int!$B$48<>0,Oper_Int!F48/Oper_Int!$B$48*100,0) -> 0 | AB40: =IF(Oper_Int!$B$48<>0,Oper_Int!G48/Oper_Int!$B$48*100,0) -> 0 | AC40: =IF(Oper_Int!$B$48<>0,Oper_Int!H48/Oper_Int!$B$48*100,0) -> 0 | AD40: =IF(Oper_Int!$B$48<>0,Oper_Int!I48/Oper_Int!$B$48*100,0) -> 0 | AE40: =IF(Oper_Int!$B$48<>0,Oper_Int!J48/Oper_Int!$B$48*100,0) -> 0 | AF40: =IF(Oper_Int!$B$48<>0,Oper_Int!K48/Oper_Int!$B$48*100,0) -> 0 | AG40: =IF(Oper_Int!$B$48<>0,Oper_Int!L48/Oper_Int!$B$48*100,0) -> 0 | AH40: =IF(Oper_Int!$B$48<>0,Oper_Int!M48/Oper_Int!$B$48*100,0) -> 0 | AI40: =IF(Oper_Int!$B$48<>0,Oper_Int!N48/Oper_Int!$B$48*100,0) -> 0 | AJ40: =Oper_Int!B48 -> 0
B41: Repairs, Maintenance | G41: 34.74038764 | H41: 5558.462023 | K41: =$H41/100*8.80981198368623 -> 489.6900534 | L41: =$H41/100*27.0336306561493 -> 1502.654093 | M41: =$H41/100*24.649511009035 -> 1370.133708 | N41: =$H41/100*4.75190970760462 -> 264.1330965 | R41: =$H41/100*34.7551366435249 -> 1931.851071 | U41: 0 | X41: =IF(Oper_Int!$B$36+Oper_Int!$B$38<>0,(Oper_Int!C$36+Oper_Int!C$38)/(Oper_Int!$B$36+Oper_Int!$B$38)*100,0) -> 0 | Y41: =IF(Oper_Int!$B$36+Oper_Int!$B$38<>0,(Oper_Int!D$36+Oper_Int!D$38)/(Oper_Int!$B$36+Oper_Int!$B$38)*100,0) -> 0 | Z41: =IF(Oper_Int!$B$36+Oper_Int!$B$38<>0,(Oper_Int!E$36+Oper_Int!E$38)/(Oper_Int!$B$36+Oper_Int!$B$38)*100,0) -> 1.431537435 | AA41: =IF(Oper_Int!$B$36+Oper_Int!$B$38<>0,(Oper_Int!F$36+Oper_Int!F$38)/(Oper_Int!$B$36+Oper_Int!$B$38)*100,0) -> 33.66646041 | AB41: =IF(Oper_Int!$B$36+Oper_Int!$B$38<>0,(Oper_Int!G$36+Oper_Int!G$38)/(Oper_Int!$B$36+Oper_Int!$B$38)*100,0) -> 4.00538602 | AC41: =IF(Oper_Int!$B$36+Oper_Int!$B$38<>0,(Oper_Int!H$36+Oper_Int!H$38)/(Oper_Int!$B$36+Oper_Int!$B$38)*100,0) -> 17.49996622 | AD41: =IF(Oper_Int!$B$36+Oper_Int!$B$38<>0,(Oper_Int!I$36+Oper_Int!I$38)/(Oper_Int!$B$36+Oper_Int!$B$38)*100,0) -> 16.72781165 | AE41: =IF(Oper_Int!$B$36+Oper_Int!$B$38<>0,(Oper_Int!J$36+Oper_Int!J$38)/(Oper_Int!$B$36+Oper_Int!$B$38)*100,0) -> 20.90976456 | AF41: =IF(Oper_Int!$B$36+Oper_Int!$B$38<>0,(Oper_Int!K$36+Oper_Int!K$38)/(Oper_Int!$B$36+Oper_Int!$B$38)*100,0) -> 0 | AG41: =IF(Oper_Int!$B$36+Oper_Int!$B$38<>0,(Oper_Int!L$36+Oper_Int!L$38)/(Oper_Int!$B$36+Oper_Int!$B$38)*100,0) -> 5.759073704 | AH41: =IF(Oper_Int!$B$36+Oper_Int!$B$38<>0,(Oper_Int!M$36+Oper_Int!M$38)/(Oper_Int!$B$36+Oper_Int!$B$38)*100,0) -> 0 | AI41: =IF(Oper_Int!$B$36+Oper_Int!$B$38<>0,(Oper_Int!N$36+Oper_Int!N$38)/(Oper_Int!$B$36+Oper_Int!$B$38)*100,0) -> 0 | AJ41: =IF(Budget!BB5="share",Oper_Int!$B$36*Irrig!BH3+Oper_Int!$B$38-IF(Machinery!$V$32=FALSE,SUM(Machinery!$AB$19:$AB$20),0)-SUM(Machinery!$AD$19:$AD$20),Oper_Int!$B$36*Irrig!BH3+Oper_Int!$B$38-IF(Machinery!$V$32=FALSE,SUM(Machinery!$AA$19:$AA$20),0)) -> 160.9043876 | AP41: =$H41/100*8.80981198368623 -> 489.6900534 | AQ41: =$H41/100*27.0336306561493 -> 1502.654093 | AR41: =$H41/100*24.649511009035 -> 1370.133708 | AS41: =$H41/100*4.75190970760462 -> 264.1330965 | AW41: =$H41/100*34.7551366435249 -> 1931.851071
B42: Seeds, Plants | G42: 11.33 | H42: 1812.8 | M42: =$H42/100*100 -> 1812.8 | U42: 0 | X42: =IF(Oper_Int!$B$15<>0,Oper_Int!C15/Oper_Int!$B$15*100,0) -> 0 | Y42: =IF(Oper_Int!$B$15<>0,Oper_Int!D15/Oper_Int!$B$15*100,0) -> 0 | Z42: =IF(Oper_Int!$B$15<>0,Oper_Int!E15/Oper_Int!$B$15*100,0) -> 0 | AA42: =IF(Oper_Int!$B$15<>0,Oper_Int!F15/Oper_Int!$B$15*100,0) -> 0 | AB42: =IF(Oper_Int!$B$15<>0,Oper_Int!G15/Oper_Int!$B$15*100,0) -> 100 | AC42: =IF(Oper_Int!$B$15<>0,Oper_Int!H15/Oper_Int!$B$15*100,0) -> 0 | AD42: =IF(Oper_Int!$B$15<>0,Oper_Int!I15/Oper_Int!$B$15*100,0) -> 0 | AE42: =IF(Oper_Int!$B$15<>0,Oper_Int!J15/Oper_Int!$B$15*100,0) -> 0 | AF42: =IF(Oper_Int!$B$15<>0,Oper_Int!K15/Oper_Int!$B$15*100,0) -> 0 | AG42: =IF(Oper_Int!$B$15<>0,Oper_Int!L15/Oper_Int!$B$15*100,0) -> 0 | AH42: =IF(Oper_Int!$B$15<>0,Oper_Int!M15/Oper_Int!$B$15*100,0) -> 0 | AI42: =IF(Oper_Int!$B$15<>0,Oper_Int!N15/Oper_Int!$B$15*100,0) -> 0 | AJ42: =Oper_Int!B15 -> 22.67 | AR42: =$H42/100*100 -> 1812.8
B43: Storage, Warehousing | G43: 0 | H43: 0 | U43: 0 | AJ43: 0
B44: Supplies | G44: 0 | H44: 0 | U44: 0 | AJ44: 0
B45: Taxes | G45: 5.853808193 | H45: 936.6093109 | I45: =$H45/100*100 -> 936.6093109 | U45: 0 | X45: =IF($AJ$45<>0,SUM(Oper_Int!C72:C74)/$AJ$45*100,0) -> 100 | Y45: =IF($AJ$45<>0,SUM(Oper_Int!D72:D74)/$AJ$45*100,0) -> 0 | Z45: =IF($AJ$45<>0,SUM(Oper_Int!E72:E74)/$AJ$45*100,0) -> 0 | AA45: =IF($AJ$45<>0,SUM(Oper_Int!F72:F74)/$AJ$45*100,0) -> 0 | AB45: =IF($AJ$45<>0,SUM(Oper_Int!G72:G74)/$AJ$45*100,0) -> 0 | AC45: =IF($AJ$45<>0,SUM(Oper_Int!H72:H74)/$AJ$45*100,0) -> 0 | AD45: =IF($AJ$45<>0,SUM(Oper_Int!I72:I74)/$AJ$45*100,0) -> 0 | AE45: =IF($AJ$45<>0,SUM(Oper_Int!J72:J74)/$AJ$45*100,0) -> 0 | AF45: =IF($AJ$45<>0,SUM(Oper_Int!K72:K74)/$AJ$45*100,0) -> 0 | AG45: =IF($AJ$45<>0,SUM(Oper_Int!L72:L74)/$AJ$45*100,0) -> 0 | AH45: =IF($AJ$45<>0,SUM(Oper_Int!M72:M74)/$AJ$45*100,0) -> 0 | AI45: =IF($AJ$45<>0,SUM(Oper_Int!N72:N74)/$AJ$45*100,0) -> 0 | AJ45: =SUM(Oper_Int!B72:B74) -> 19.47116757 | AN45: =$H45/100*100 -> 936.6093109
B46: Utilities | G46: 0 | H46: 0 | U46: 0 | AJ46: 0
B47: Veterinary, Medicine | G47: 0 | H47: 0 | U47: 0 | AJ47: 0
B48: Miscellaneous | G48: 4.15 | H48: 664 | I48: =$H48/100*89.1566265060241 -> 592 | N48: =$H48/100*10.8433734939759 -> 72 | U48: 0 | X48: =IF($AJ$48<>0, (SUM(Oper_Int!C39:C46)/SUM(Oper_Int!$B$39:$B$46))*100,0) -> 89.15662651 | Y48: =IF($AJ$48<>0, (SUM(Oper_Int!D39:D46)/SUM(Oper_Int!$B$39:$B$46))*100,0) -> 0 | Z48: =IF($AJ$48<>0, (SUM(Oper_Int!E39:E46)/SUM(Oper_Int!$B$39:$B$46))*100,0) -> 0 | AA48: =IF($AJ$48<>0, (SUM(Oper_Int!F39:F46)/SUM(Oper_Int!$B$39:$B$46))*100,0) -> 0 | AB48: =IF($AJ$48<>0, (SUM(Oper_Int!G39:G46)/SUM(Oper_Int!$B$39:$B$46))*100,0) -> 0 | AC48: =IF($AJ$48<>0, (SUM(Oper_Int!H39:H46)/SUM(Oper_Int!$B$39:$B$46))*100,0) -> 10.84337349 | AD48: =IF($AJ$48<>0, (SUM(Oper_Int!I39:I46)/SUM(Oper_Int!$B$39:$B$46))*100,0) -> 0 | AE48: =IF($AJ$48<>0, (SUM(Oper_Int!J39:J46)/SUM(Oper_Int!$B$39:$B$46))*100,0) -> 0 | AF48: =IF($AJ$48<>0, (SUM(Oper_Int!K39:K46)/SUM(Oper_Int!$B$39:$B$46))*100,0) -> 0 | AG48: =IF($AJ$48<>0, (SUM(Oper_Int!L39:L46)/SUM(Oper_Int!$B$39:$B$46))*100,0) -> 0 | AH48: =IF($AJ$48<>0, (SUM(Oper_Int!M39:M46)/SUM(Oper_Int!$B$39:$B$46))*100,0) -> 0 | AI48: =IF($AJ$48<>0, (SUM(Oper_Int!N39:N46)/SUM(Oper_Int!$B$39:$B$46))*100,0) -> 0 | AJ48: =SUM(Oper_Int!B39:B46) -> 4.15 | AN48: =$H48/100*89.1566265060241 -> 592 | AS48: =$H48/100*10.8433734939759 -> 72
G49: 0 | H49: 0 | U49: 0 | AJ49: 0
G50: 0 | H50: 0 | U50: 0 | AJ50: 0
B51: Livestock purchased for resale
B52: Description | D52: unit | E52: price | F52: quan.
B53: - | C53: ---- | D53: ---- | E53: ----- | F53: -----
A54: > | G54: 0 | H54: =(G54*$E$4) -> 0 | U54: =SUM(I54:T54)-H54 -> 0 | AJ54: 0
A55: > | G55: 0 | H55: =(G55*$E$4) -> 0 | U55: =SUM(I55:T55)-H55 -> 0 | AJ55: 0
B56: TOTAL CASH OPERATING EXPENSES | G56: =SUM(G33:G55) -> 220.3385323 | H56: 35254.16516 | I56: 2049.961612 | J56: 0 | K56: 1113.246214 | L56: 10395.85532 | M56: 7385.219573 | N56: 3590.872008 | O56: 0 | P56: 3127.2 | Q56: 0 | R56: 7591.810443 | S56: 0 | T56: 0 | AN56: =SUM(AN33:AN55) -> 2049.961612 | AO56: 0 | AP56: 1113.246214 | AQ56: 10395.85532 | AR56: 7385.219573 | AS56: 3590.872008 | AT56: 0 | AU56: 3127.2 | AV56: 0 | AW56: 7591.810443 | AX56: 0 | AY56: 0
B57: NET OPERATING (Rec - Exp) | G57: =IF($E$4=0,0,H57/$E$4) -> 46.66146772 | H57: =(H30-H56) -> 7465.834836 | I57: -2049.961612 | J57: 0 | K57: -1113.246214 | L57: -10395.85532 | M57: -7385.219573 | N57: -3590.872008 | O57: 0 | P57: -3127.2 | Q57: 0 | R57: 35128.18956 | S57: 0 | T57: 0 | AN57: =(AN30-AN56) -> -2049.961612 | AO57: 0 | AP57: -1113.246214 | AQ57: -10395.85532 | AR57: -7385.219573 | AS57: -3590.872008 | AT57: 0 | AU57: -3127.2 | AV57: 0 | AW57: 35128.18956 | AX57: 0 | AY57: 0
B59: Operating interest expense | G59: =IF($E$4=0,0,H59/$E$4) -> 6.47069122 | H59: =SUM(I59:T59) -> 1035.310595 | I59: =MAX(-SUM(O82)*($I$9/1200),0) -> 14.52056142 | J59: =MAX(-SUM(O82:P82)*($I$9/1200),0) -> 14.52056142 | K59: =MAX(-SUM(O82:Q82)*($I$9/1200),0) -> 22.40605543 | L59: =MAX(-SUM(O82:R82)*($I$9/1200),0) -> 96.04336391 | M59: =MAX(-SUM(O82:S82)*($I$9/1200),0) -> 148.3553359 | N59: =MAX(-SUM(O82:T82)*($I$9/1200),0) -> 173.7906793 | O59: =MAX(-SUM(O82:U82)*($I$9/1200),0) -> 173.7906793 | P59: =MAX(-SUM(O82:V82)*($I$9/1200),0) -> 195.9416793 | Q59: =MAX(-SUM(O82:W82)*($I$9/1200),0) -> 195.9416793 | R59: =MAX(-SUM(O82:X82)*($I$9/1200),0) -> 0 | S59: =MAX(-SUM(O82:Y82)*($I$9/1200),0) -> 0 | T59: =MAX(-SUM(O82:Z82)*($I$9/1200),0) -> 0 | AN59: =MAX(-SUM(AT82)*($I$9/1200),0) -> 0 | AO59: =MAX(-SUM(AT82:AU82)*($I$9/1200),0) -> 0 | AP59: =MAX(-SUM(AT82:AV82)*($I$9/1200),0) -> 0 | AQ59: =MAX(-SUM(AT82:AW82)*($I$9/1200),0) -> 0 | AR59: =MAX(-SUM(AT82:AX82)*($I$9/1200),0) -> 0 | AS59: =MAX(-SUM(AT82:AY82)*($I$9/1200),0) -> 0 | AT59: =MAX(-SUM(AT82:AZ82)*($I$9/1200),0) -> 0 | AU59: =MAX(-SUM(AT82:BA82)*($I$9/1200),0) -> 0 | AV59: =MAX(-SUM(AT82:BB82)*($I$9/1200),0) -> 0 | AW59: =MAX(-SUM(AT82:BC82)*($I$9/1200),0) -> 0 | AX59: =MAX(-SUM(AT82:BD82)*($I$9/1200),0) -> 0 | AY59: =MAX(-SUM(AT82:BE82)*($I$9/1200),0) -> 0
B60: Net Operating After Interest | G60: =IF($E$4=0,0,H60/$E$4) -> 40.1907765 | H60: =SUM(I60:T60) -> 6430.524241 | I60: =(I57-I59) -> -2064.482173 | J60: -14.52056142 | K60: -1135.652269 | L60: -10491.89868 | M60: -7533.574908 | N60: -3764.662687 | O60: -173.7906793 | P60: -3323.141679 | Q60: -195.9416793 | R60: 35128.18956 | S60: 0 | T60: 0 | AN60: =(AN57-AN59) -> -2049.961612 | AO60: 0 | AP60: -1113.246214 | AQ60: -10395.85532 | AR60: -7385.219573 | AS60: -3590.872008 | AT60: 0 | AU60: -3127.2 | AV60: 0 | AW60: 35128.18956 | AX60: 0 | AY60: 0
B62: Contribut'n to Other Enterprise | H62: =G62*E4 -> 0 | U62: =SUM(I62:T62)-H62 -> 0
B63: Contribut'n of Other Enterprise | G63: 0 | H63: =G63*E4 -> 0 | U63: =SUM(I63:T63)-H63 -> 0 | X63: 0 | Y63: 0 | Z63: 0 | AA63: 0 | AB63: 0 | AC63: 0 | AD63: 0 | AE63: 0 | AF63: 0 | AG63: 0 | AH63: 0 | AI63: 0 | AJ63: 0
B64: Net after contribution | G64: =IF($E$4=0,0,H64/$E$4) -> 40.1907765 | H64: =SUM(I64:T64) -> 6430.524241 | I64: =I60+I62-I63 -> -2064.482173 | J64: -14.52056142 | K64: -1135.652269 | L64: -10491.89868 | M64: -7533.574908 | N64: -3764.662687 | O64: -173.7906793 | P64: -3323.141679 | Q64: -195.9416793 | R64: 35128.18956 | S64: 0 | T64: 0
B65: Land or Other Fixed Charges | G65: 77.12 | H65: =G65*E4 -> 12339.2 | I65: =$H65/12 -> 1028.266667 | J65: 1028.266667 | K65: 1028.266667 | L65: 1028.266667 | M65: 1028.266667 | N65: 1028.266667 | O65: 1028.266667 | P65: 1028.266667 | Q65: 1028.266667 | R65: 1028.266667 | S65: 1028.266667 | T65: 1028.266667 | U65: =SUM(I65:T65)-H65 -> 0 | X65: =1/12*100 -> 8.333333333 | Y65: 8.333333333 | Z65: 8.333333333 | AA65: 8.333333333 | AB65: 8.333333333 | AC65: 8.333333333 | AD65: 8.333333333 | AE65: 8.333333333 | AF65: 8.333333333 | AG65: 8.333333333 | AH65: 8.333333333 | AI65: 8.333333333 | AJ65: =IF(Budget!BB5="share",Budget!H39,ttl_fixed)-Oper_Int!B75 -> 369.1506251
B66: Net After Other Charges | G66: =IF($E$4=0,0,H66/$E$4) -> -36.9292235 | H66: =SUM(I66:T66) -> -5908.675759 | I66: =I64-I65 -> -3092.74884 | J66: -1042.787228 | K66: -2163.918936 | L66: -11520.16535 | M66: -8561.841575 | N66: -4792.929354 | O66: -1202.057346 | P66: -4351.408346 | Q66: -1224.208346 | R66: 34099.92289 | S66: -1028.266667 | T66: -1028.266667
B68: Notes:
B82: JAN | C82: =I57 -> -2049.961612 | D82: 0 | E82: -1113.246214 | F82: -10395.85532 | G82: -7385.219573 | H82: -3590.872008 | I82: 0 | J82: -3127.2 | K82: 0 | L82: 35128.18956 | M82: 0 | N82: 0 | O82: =I57 -> -2049.961612 | P82: 0 | Q82: -1113.246214 | R82: -10395.85532 | S82: -7385.219573 | T82: -3590.872008 | U82: 0 | V82: -3127.2 | W82: 0 | X82: 35128.18956 | Y82: 0 | Z82: 0
B83: 1
B84: JAN
A85: JAN | B85: FEB | C85: MAR | D85: APR | E85: MAY | F85: JUNE | G85: JULY | H85: AUG | I85: SEPT | J85: OCT | K85: NOV | L85: DEC
A86: =MAX(-SUM(G109)*($I$9/1200),0) -> 0 | B86: =MAX(-SUM(G109:H109)*($I$9/1200),0) -> 0 | C86: =MAX(-SUM(G109:I109)*($I$9/1200),0) -> 0 | D86: =MAX(-SUM(G109:J109)*($I$9/1200),0) -> 0 | E86: =MAX(-SUM(G109:K109)*($I$9/1200),0) -> 0 | F86: =MAX(-SUM(G109:L109)*($I$9/1200),0) -> 0 | G86: =MAX(-SUM(G109:M109)*($I$9/1200),0) -> 0 | H86: =MAX(-SUM(G109:N109)*($I$9/1200),0) -> 0 | I86: =MAX(-SUM(G109:O109)*($I$9/1200),0) -> 0 | J86: =MAX(-SUM(G109:P109)*($I$9/1200),0) -> 0 | K86: =MAX(-SUM(G109:Q109)*($I$9/1200),0) -> 0 | L86: =MAX(-SUM(G109:R109)*($I$9/1200),0) -> 0 | M86: =MAX(-SUM(S109)*($I$9/1200),0) -> 0 | N86: =MAX(-SUM(S109:T109)*($I$9/1200),0) -> 0 | O86: =MAX(-SUM(S109:U109)*($I$9/1200),0) -> 0 | P86: =MAX(-SUM(S109:V109)*($I$9/1200),0) -> 0 | Q86: =MAX(-SUM(S109:W109)*($I$9/1200),0) -> 0 | R86: =MAX(-SUM(S109:X109)*($I$9/1200),0) -> 0 | S86: =MAX(-SUM(S109:Y112)*($I$9/1200),0) -> 0 | T86: =MAX(-SUM(S109:Z109)*($I$9/1200),0) -> 0 | U86: =MAX(-SUM(S109:AA109)*($I$9/1200),0) -> 0 | V86: =MAX(-SUM(S109:AB109)*($I$9/1200),0) -> 0 | W86: =MAX(-SUM(S109:AC109)*($I$9/1200),0) -> 0
A98: DIF FILE:
A99: JAN | B99: FEB | C99: MAR | D99: APR | E99: MAY | F99: JUNE | G99: JULY | H99: AUG | I99: SEPT | J99: OCT | K99: NOV | L99: DEC | M99: JAN | N99: FEB | O99: MAR | P99: APR | Q99: MAY | R99: JUNE | S99: JULY | T99: AUG | U99: SEPT | V99: OCT | W99: NOV
A100: - | B100: - | C100: - | D100: - | E100: - | F100: - | G100: - | H100: - | I100: - | J100: - | K100: - | L100: - | M100: - | N100: - | O100: - | P100: - | Q100: - | R100: - | S100: - | T100: - | U100: - | V100: - | W100: -
A101: =AN18+#REF! ->  | B101: =AO18+AO19 -> 0 | C101: 0 | D101: 0 | E101: 0 | F101: 0 | G101: 0 | H101: 0 | I101: 0 | J101: 0 | K101: 0 | L101: 0 | M101: =AN18+AN19 -> 0 | N101: 0 | O101: 0 | P101: 0 | Q101: 0 | R101: 0 | S101: 0 | T101: 0 | U101: 0 | V101: 0 | W101: 0
A102: =AN20 -> 0 | B102: 0 | C102: 0 | D102: 0 | E102: 0 | F102: 0 | G102: 0 | H102: 0 | I102: 0 | J102: 0 | K102: 0 | L102: 0 | M102: =AN20 -> 0 | N102: 0 | O102: 0 | P102: 0 | Q102: 0 | R102: 0 | S102: 0 | T102: 0 | U102: 0 | V102: 0 | W102: 0
A103: 0 | B103: 0 | C103: 0 | D103: 0 | E103: 0 | F103: 0 | G103: 0 | H103: 0 | I103: 0 | J103: 0 | K103: 0 | L103: 0 | M103: 0 | N103: 0 | O103: 0 | P103: 0 | Q103: 0 | R103: 0 | S103: 0 | T103: 0 | U103: 0 | V103: 0 | W103: 0
A104: =AN25 -> 0 | B104: 0 | C104: 0 | D104: 0 | E104: 0 | F104: 0 | G104: 0 | H104: 0 | I104: 0 | J104: 42720 | K104: 0 | L104: 0 | M104: =AN25 -> 0 | N104: 0 | O104: 0 | P104: 0 | Q104: 0 | R104: 0 | S104: 0 | T104: 0 | U104: 0 | V104: 42720 | W104: 0
A105: 0 | B105: 0 | C105: 0 | D105: 0 | E105: 0 | F105: 0 | G105: 0 | H105: 0 | I105: 0 | J105: 0 | K105: 0 | L105: 0 | M105: 0 | N105: 0 | O105: 0 | P105: 0 | Q105: 0 | R105: 0 | S105: 0 | T105: 0 | U105: 0 | V105: 0 | W105: 0
A106: 0 | B106: 0 | C106: 0 | D106: 0 | E106: 0 | F106: 0 | G106: 0 | H106: 0 | I106: 0 | J106: 0 | K106: 0 | L106: 0 | M106: 0 | N106: 0 | O106: 0 | P106: 0 | Q106: 0 | R106: 0 | S106: 0 | T106: 0 | U106: 0 | V106: 0 | W106: 0
A107: 0 | B107: 0 | C107: 0 | D107: 0 | E107: 0 | F107: 0 | G107: 0 | H107: 0 | I107: 0 | J107: 0 | K107: 0 | L107: 0 | M107: 0 | N107: 0 | O107: 0 | P107: 0 | Q107: 0 | R107: 0 | S107: 0 | T107: 0 | U107: 0 | V107: 0 | W107: 0
A108: 0 | B108: 0 | C108: 0 | D108: 0 | E108: 0 | F108: 0 | G108: 0 | H108: 0 | I108: 0 | J108: 0 | K108: 0 | L108: 0 | M108: 0 | N108: 0 | O108: 0 | P108: 0 | Q108: 0 | R108: 0 | S108: 0 | T108: 0 | U108: 0 | V108: 0 | W108: 0
A120: =AN33 -> 0 | B120: =AO33 -> 0 | C120: =AP33 -> 0 | D120: =AQ33 -> 0 | E120: =AR33 -> 0 | F120: =AS33 -> 0 | G120: =AT33 -> 0 | H120: =AU33 -> 900.8 | I120: =AV33 -> 0 | J120: =AW33 -> 0 | K120: =AX33 -> 0 | L120: =AY33 -> 0 | M120: =AN33 -> 0 | N120: =AO33 -> 0 | O120: =AP33 -> 0 | P120: =AQ33 -> 0 | Q120: =AR33 -> 0 | R120: =AS33 -> 0 | S120: =AT33 -> 0 | T120: =AU33 -> 900.8 | U120: =AV33 -> 0 | V120: =AW33 -> 0 | W120: =AX33 -> 0
A121: 0 | B121: 0 | C121: 0 | D121: 0 | E121: 0 | F121: 0 | G121: 0 | H121: 0 | I121: 0 | J121: 0 | K121: 0 | L121: 0 | M121: 0 | N121: 0 | O121: 0 | P121: 0 | Q121: 0 | R121: 0 | S121: 0 | T121: 0 | U121: 0 | V121: 0 | W121: 0
A122: 0 | B122: 0 | C122: 0 | D122: 6979.768 | E122: 2457.6 | F122: 2918.4 | G122: 0 | H122: 2226.4 | I122: 0 | J122: 0 | K122: 0 | L122: 0 | M122: 0 | N122: 0 | O122: 0 | P122: 6979.768 | Q122: 2457.6 | R122: 2918.4 | S122: 0 | T122: 2226.4 | U122: 0 | V122: 0 | W122: 0
A123: 0 | B123: 0 | C123: 0 | D123: 0 | E123: 0 | F123: 0 | G123: 0 | H123: 0 | I123: 0 | J123: 0 | K123: 0 | L123: 0 | M123: 0 | N123: 0 | O123: 0 | P123: 0 | Q123: 0 | R123: 0 | S123: 0 | T123: 0 | U123: 0 | V123: 0 | W123: 0
A124: 0 | B124: 0 | C124: 433.1232644 | D124: 1329.074262 | E124: 1211.862034 | F124: 233.621631 | G124: 0 | H124: 0 | I124: 0 | J124: 1708.692338 | K124: 0 | L124: 0 | M124: 0 | N124: 0 | O124: 433.1232644 | P124: 1329.074262 | Q124: 1211.862034 | R124: 233.621631 | S124: 0 | T124: 0 | U124: 0 | V124: 1708.692338 | W124: 0
A125: 521.3523011 | B125: 0 | C125: 0 | D125: 0 | E125: 0 | F125: 0 | G125: 0 | H125: 0 | I125: 0 | J125: 3200 | K125: 0 | L125: 0 | M125: 521.3523011 | N125: 0 | O125: 0 | P125: 0 | Q125: 0 | R125: 0 | S125: 0 | T125: 0 | U125: 0 | V125: 3200 | W125: 0
A126: 0 | B126: 0 | C126: 190.4328958 | D126: 584.3589603 | E126: 532.82383 | F126: 102.7172802 | G126: 0 | H126: 0 | I126: 0 | J126: 751.2670337 | K126: 0 | L126: 0 | M126: 0 | N126: 0 | O126: 190.4328958 | P126: 584.3589603 | Q126: 532.82383 | R126: 102.7172802 | S126: 0 | T126: 0 | U126: 0 | V126: 751.2670337 | W126: 0
A127: 0 | B127: 0 | C127: 0 | D127: 0 | E127: 0 | F127: 0 | G127: 0 | H127: 0 | I127: 0 | J127: 0 | K127: 0 | L127: 0 | M127: 0 | N127: 0 | O127: 0 | P127: 0 | Q127: 0 | R127: 0 | S127: 0 | T127: 0 | U127: 0 | V127: 0 | W127: 0
A128: 0 | B128: 0 | C128: 489.6900534 | D128: 1502.654093 | E128: 1370.133708 | F128: 264.1330965 | G128: 0 | H128: 0 | I128: 0 | J128: 1931.851071 | K128: 0 | L128: 0 | M128: 0 | N128: 0 | O128: 489.6900534 | P128: 1502.654093 | Q128: 1370.133708 | R128: 264.1330965 | S128: 0 | T128: 0 | U128: 0 | V128: 1931.851071 | W128: 0
A129: 0 | B129: 0 | C129: 0 | D129: 0 | E129: 1812.8 | F129: 0 | G129: 0 | H129: 0 | I129: 0 | J129: 0 | K129: 0 | L129: 0 | M129: 0 | N129: 0 | O129: 0 | P129: 0 | Q129: 1812.8 | R129: 0 | S129: 0 | T129: 0 | U129: 0 | V129: 0 | W129: 0
A130: 0 | B130: 0 | C130: 0 | D130: 0 | E130: 0 | F130: 0 | G130: 0 | H130: 0 | I130: 0 | J130: 0 | K130: 0 | L130: 0 | M130: 0 | N130: 0 | O130: 0 | P130: 0 | Q130: 0 | R130: 0 | S130: 0 | T130: 0 | U130: 0 | V130: 0 | W130: 0
A131: 0 | B131: 0 | C131: 0 | D131: 0 | E131: 0 | F131: 0 | G131: 0 | H131: 0 | I131: 0 | J131: 0 | K131: 0 | L131: 0 | M131: 0 | N131: 0 | O131: 0 | P131: 0 | Q131: 0 | R131: 0 | S131: 0 | T131: 0 | U131: 0 | V131: 0 | W131: 0
A132: 936.6093109 | B132: 0 | C132: 0 | D132: 0 | E132: 0 | F132: 0 | G132: 0 | H132: 0 | I132: 0 | J132: 0 | K132: 0 | L132: 0 | M132: 936.6093109 | N132: 0 | O132: 0 | P132: 0 | Q132: 0 | R132: 0 | S132: 0 | T132: 0 | U132: 0 | V132: 0 | W132: 0
A133: 0 | B133: 0 | C133: 0 | D133: 0 | E133: 0 | F133: 0 | G133: 0 | H133: 0 | I133: 0 | J133: 0 | K133: 0 | L133: 0 | M133: 0 | N133: 0 | O133: 0 | P133: 0 | Q133: 0 | R133: 0 | S133: 0 | T133: 0 | U133: 0 | V133: 0 | W133: 0
A134: 0 | B134: 0 | C134: 0 | D134: 0 | E134: 0 | F134: 0 | G134: 0 | H134: 0 | I134: 0 | J134: 0 | K134: 0 | L134: 0 | M134: 0 | N134: 0 | O134: 0 | P134: 0 | Q134: 0 | R134: 0 | S134: 0 | T134: 0 | U134: 0 | V134: 0 | W134: 0
A135: 592 | B135: 0 | C135: 0 | D135: 0 | E135: 0 | F135: 72 | G135: 0 | H135: 0 | I135: 0 | J135: 0 | K135: 0 | L135: 0 | M135: 592 | N135: 0 | O135: 0 | P135: 0 | Q135: 0 | R135: 72 | S135: 0 | T135: 0 | U135: 0 | V135: 0 | W135: 0
A136: 0 | B136: 0 | C136: 0 | D136: 0 | E136: 0 | F136: 0 | G136: 0 | H136: 0 | I136: 0 | J136: 0 | K136: 0 | L136: 0 | M136: 0 | N136: 0 | O136: 0 | P136: 0 | Q136: 0 | R136: 0 | S136: 0 | T136: 0 | U136: 0 | V136: 0 | W136: 0
A137: 0 | B137: 0 | C137: 0 | D137: 0 | E137: 0 | F137: 0 | G137: 0 | H137: 0 | I137: 0 | J137: 0 | K137: 0 | L137: 0 | M137: 0 | N137: 0 | O137: 0 | P137: 0 | Q137: 0 | R137: 0 | S137: 0 | T137: 0 | U137: 0 | V137: 0 | W137: 0
A138: =AN54+AN55 -> 0 | B138: 0 | C138: 0 | D138: 0 | E138: 0 | F138: 0 | G138: 0 | H138: 0 | I138: 0 | J138: 0 | K138: 0 | L138: 0 | M138: =AN54+AN55 -> 0 | N138: 0 | O138: 0 | P138: 0 | Q138: 0 | R138: 0 | S138: 0 | T138: 0 | U138: 0 | V138: 0 | W138: 0
A150: T
A151: T
A152: T
A153: T
B164: T

Sheet Data1 (hidden)
A1: COUNTY | B1: NASS Reg | C1: Budget Reg | D1: Haying Reg
A2: Adair | B2: East Central | C2: East-Northeast | D2: East
A3: Alfalfa | B3: North Central | C3: North-Central | D3: West
A4: Atoka | B4: South Central | C4: Southeast | D4: Central
A5: Beaver | B5: Panhandle | C5: Panhandle | D5: West
A6: Beckham | B6: West Central | C6: Southwest | D6: West
A7: Blaine | B7: West Central | C7: West-Northwest | D7: West
A8: Bryan | B8: South Central | C8: Southeast | D8: Central
A9: Caddo | B9: Southwest | C9: South-Central | D9: West
A10: Canadian | B10: Central | C10: North-Central | D10: Central
A11: Carter | B11: South Central | C11: South-Central | D11: Central
A12: Cherokee | B12: East Central | C12: East-Northeast | D12: East
A13: Choctaw | B13: Southeast | C13: Southeast | D13: East
A14: Cimarron | B14: Panhandle | C14: Panhandle | D14: West
A15: Cleveland | B15: Central | C15: South-Central | D15: Central
A16: Coal | B16: South Central | C16: Southeast | D16: Central
A17: Comanche | B17: Southwest | C17: Southwest | D17: West
A18: Cotton | B18: Southwest | C18: Southwest | D18: West
A19: Craig | B19: Northeast | C19: Northeast | D19: East
A20: Creek | B20: Central | C20: Northeast | D20: East
A21: Custer | B21: West Central | C21: West-Northwest | D21: West
A22: Delaware | B22: Northeast | C22: East-Northeast | D22: East
A23: Dewey | B23: West Central | C23: West-Northwest | D23: West
A24: Ellis | B24: Panhandle | C24: West-Northwest | D24: West
A25: Garfield | B25: North Central | C25: North-Central | D25: Central
A26: Garvin | B26: South Central | C26: South-Central | D26: Central
A27: Grady | B27: Central | C27: South-Central | D27: Central
A28: Grant | B28: North Central | C28: North-Central | D28: Central
A29: Greer | B29: Southwest | C29: Southwest | D29: West
A30: Harmon | B30: Southwest | C30: Southwest | D30: West
A31: Harper | B31: Panhandle | C31: West-Northwest | D31: West
A32: Haskell | B32: East Central | C32: Southeast | D32: East
A33: Hughes | B33: East Central | C33: Southeast | D33: Central
A34: Jackson | B34: Southwest | C34: Southwest | D34: West
A35: Jefferson | B35: South Central | C35: South-Central | D35: Central
A36: Johnston | B36: South Central | C36: Southeast | D36: Central
A37: Kay | B37: North Central | C37: North-Central | D37: Central
A38: Kingfisher | B38: Central | C38: North-Central | D38: Central
A39: Kiowa | B39: Southwest | C39: Southwest | D39: West
A40: Latimer | B40: Southeast | C40: Southeast | D40: East
A41: Leflore | B41: Southeast | C41: Southeast | D41: East
A42: Lincoln | B42: Central | C42: Northeast | D42: Central
A43: Logan | B43: Central | C43: North-Central | D43: Central
A44: Love | B44: South Central | C44: South-Central | D44: Central
A45: Major | B45: North Central | C45: West-Northwest | D45: West
A46: Marshall | B46: South Central | C46: Southeast | D46: Central
A47: Mayes | B47: Northeast | C47: Northeast | D47: East
A48: McClain | B48: Central | C48: South-Central | D48: Central
A49: McCurtain | B49: Southeast | C49: Southeast | D49: East
A50: McIntosh | B50: East Central | C50: Northeast | D50: East
A51: Murray | B51: South Central | C51: Southeast | D51: Central
A52: Muskogee | B52: East Central | C52: Northeast | D52: East
A53: Noble | B53: North Central | C53: North-Central | D53: Central
A54: Nowata | B54: Northeast | C54: Northeast | D54: East
A55: Okfuskee | B55: Central | C55: Northeast | D55: Central
A56: Oklahoma | B56: Central | C56: North-Central | D56: Central
A57: Okmulgee | B57: East Central | C57: Northeast | D57: East
A58: Osage | B58: Northeast | C58: Northeast | D58: Central
A59: Ottawa | B59: Northeast | C59: Northeast | D59: East
A60: Pawnee | B60: Northeast | C60: Northeast | D60: Central
A61: Payne | B61: Central | C61: North-Central | D61: Central
A62: Pittsburg | B62: East Central | C62: Southeast | D62: East
A63: Pontotoc | B63: South Central | C63: Southeast | D63: Central
A64: Pottawatomie | B64: Central | C64: Northeast | D64: Central
A65: Pushmataha | B65: Southeast | C65: Southeast | D65: East
A66: Roger Mills | B66: West Central | C66: Southwest | D66: West
A67: Rogers | B67: Northeast | C67: Northeast | D67: East
A68: Seminole | B68: Central | C68: Northeast | D68: Central
A69: Sequoyah | B69: East Central | C69: East-Northeast | D69: East
A70: Stephens | B70: South Central | C70: South-Central | D70: Central
A71: Texas | B71: Panhandle | C71: Panhandle | D71: West
A72: Tillman | B72: Southwest | C72: Southwest | D72: West
A73: Tulsa | B73: Northeast | C73: Northeast | D73: East
A74: Wagoner | B74: Northeast | C74: Northeast | D74: East
A75: Washington | B75: Northeast | C75: Northeast | D75: East
A76: Washita | B76: West Central | C76: Southwest | D76: West
A77: Woods | B77: North Central | C77: West-Northwest | D77: West
A78: Woodward | B78: North Central | C78: West-Northwest | D78: West
A79: Other County | B79: State | C79: North-Central | D79: Central

Sheet MachData1 (hidden)
A1: Conventional tillage | D1: Diversified | EB1: Specified monthly field operations, equipment compliment, and Custom Rate costs (Max equipment is 20 items)
A2: Panhandle | B2: 1 | D2: Area | E2: 1 | F2: 1 | G2: 1 | H2: 1 | I2: 1 | J2: 1 | K2: 1 | L2: 1 | M2: 1 | N2: 1 | O2: 1 | P2: 1 | Q2: 1 | R2: 1 | S2: 1 | T2: 2 | U2: 2 | V2: 2 | W2: 2 | X2: 2 | Y2: 2 | Z2: 2 | AA2: 2 | AB2: 2 | AC2: 2 | AD2: 2 | AE2: 2 | AF2: 2 | AG2: 2 | AH2: 2 | AI2: 3 | AJ2: 3 | AK2: 3 | AL2: 3 | AM2: 3 | AN2: 3 | AO2: 3 | AP2: 3 | AQ2: 3 | AR2: 3 | AS2: 3 | AT2: 3 | AU2: 3 | AV2: 3 | AW2: 3 | AX2: 4 | AY2: 4 | AZ2: 4 | BA2: 4 | BB2: 4 | BC2: 4 | BD2: 4 | BE2: 4 | BF2: 4 | BG2: 4 | BH2: 4 | BI2: 4 | BJ2: 4 | BK2: 4 | BL2: 4 | BM2: 5 | BN2: 5 | BO2: 5 | BP2: 5 | BQ2: 5 | BR2: 5 | BS2: 5 | BT2: 5 | BU2: 5 | BV2: 5 | BW2: 5 | BX2: 5 | BY2: 5 | BZ2: 5 | CA2: 5 | CB2: 6 | CC2: 6 | CD2: 6 | CE2: 6 | CF2: 6 | CG2: 6 | CH2: 6 | CI2: 6 | CJ2: 6 | CK2: 6 | CL2: 6 | CM2: 6 | CN2: 6 | CO2: 6 | CP2: 6 | CQ2: 7 | CR2: 7 | CS2: 7 | CT2: 7 | CU2: 7 | CV2: 7 | CW2: 7 | CX2: 7 | CY2: 7 | CZ2: 7 | DA2: 7 | DB2: 7 | DC2: 7 | DD2: 7 | DE2: 7 | DF2: 8 | DG2: 8 | DH2: 8 | DI2: 8 | DJ2: 8 | DK2: 8 | DL2: 8 | DM2: 8 | DN2: 8 | DO2: 8 | DP2: 8 | DQ2: 8 | DR2: 8 | DS2: 8 | DT2: 8 | EN2: Times | EO2: Custom | EP2: Cost/per
A3: West-Northwest | B3: 2 | D3: Farm Size | E3: Small | F3: Small | G3: Small | H3: Small | I3: Small | J3: Medium | K3: Medium | L3: Medium | M3: Medium | N3: Medium | O3: Large | P3: Large | Q3: Large | R3: Large | S3: Large | T3: Small | U3: Small | V3: Small | W3: Small | X3: Small | Y3: Medium | Z3: Medium | AA3: Medium | AB3: Medium | AC3: Medium | AD3: Large | AE3: Large | AF3: Large | AG3: Large | AH3: Large | AI3: Small | AJ3: Small | AK3: Small | AL3: Small | AM3: Small | AN3: Medium | AO3: Medium | AP3: Medium | AQ3: Medium | AR3: Medium | AS3: Large | AT3: Large | AU3: Large | AV3: Large | AW3: Large | AX3: Small | AY3: Small | AZ3: Small | BA3: Small | BB3: Small | BC3: Medium | BD3: Medium | BE3: Medium | BF3: Medium | BG3: Medium | BH3: Large | BI3: Large | BJ3: Large | BK3: Large | BL3: Large | BM3: Small | BN3: Small | BO3: Small | BP3: Small | BQ3: Small | BR3: Medium | BS3: Medium | BT3: Medium | BU3: Medium | BV3: Medium | BW3: Large | BX3: Large | BY3: Large | BZ3: Large | CA3: Large | CB3: Small | CC3: Small | CD3: Small | CE3: Small | CF3: Small | CG3: Medium | CH3: Medium | CI3: Medium | CJ3: Medium | CK3: Medium | CL3: Large | CM3: Large | CN3: Large | CO3: Large | CP3: Large | CQ3: Small | CR3: Small | CS3: Small | CT3: Small | CU3: Small | CV3: Medium | CW3: Medium | CX3: Medium | CY3: Medium | CZ3: Medium | DA3: Large | DB3: Large | DC3: Large | DD3: Large | DE3: Large | DF3: Small | DG3: Small | DH3: Small | DI3: Small | DJ3: Small | DK3: Medium | DL3: Medium | DM3: Medium | DN3: Medium | DO3: Medium | DP3: Large | DQ3: Large | DR3: Large | DS3: Large | DT3: Large | DZ3: Area | EA3: Equipment Desc. | EB3: 1 | EC3: 2 | ED3: 3 | EE3: 4 | EF3: 5 | EG3: 6 | EH3: 7 | EI3: 8 | EJ3: 9 | EK3: 10 | EL3: 11 | EM3: 12 | EN3: Over | EO3: Cost | EP3: Operation
A4: Southwest | B4: 3 | D4: Acres | E4: =499/1.5 -> 332.6666667 | F4: =499/1.5 -> 332.6666667 | G4: =499/1.5 -> 332.6666667 | H4: =499/1.5 -> 332.6666667 | I4: =499/1.5 -> 332.6666667 | J4: =1999/1.5 -> 1332.666667 | K4: =1999/1.5 -> 1332.666667 | L4: =1999/1.5 -> 1332.666667 | M4: =1999/1.5 -> 1332.666667 | N4: =1999/1.5 -> 1332.666667 | O4: 4950 | P4: 4950 | Q4: 4950 | R4: 4950 | S4: 4950 | T4: =259/1.5 -> 172.6666667 | U4: =259/1.5 -> 172.6666667 | V4: =259/1.5 -> 172.6666667 | W4: =259/1.5 -> 172.6666667 | X4: =259/1.5 -> 172.6666667 | Y4: 666 | Z4: 666 | AA4: 666 | AB4: 666 | AC4: 666 | AD4: 2525 | AE4: 2525 | AF4: 2525 | AG4: 2525 | AH4: 2525 | AI4: =179/1.5 -> 119.3333333 | AJ4: =179/1.5 -> 119.3333333 | AK4: =179/1.5 -> 119.3333333 | AL4: =179/1.5 -> 119.3333333 | AM4: =179/1.5 -> 119.3333333 | AN4: 666 | AO4: 666 | AP4: 666 | AQ4: 666 | AR4: 666 | AS4: 2070 | AT4: 2070 | AU4: 2070 | AV4: 2070 | AW4: 2070 | AX4: =179/1.5 -> 119.3333333 | AY4: =179/1.5 -> 119.3333333 | AZ4: =179/1.5 -> 119.3333333 | BA4: =179/1.5 -> 119.3333333 | BB4: =179/1.5 -> 119.3333333 | BC4: 666 | BD4: 666 | BE4: 666 | BF4: 666 | BG4: 666 | BH4: 1900 | BI4: 1900 | BJ4: 1900 | BK4: 1900 | BL4: 1900 | BM4: =139/1.5 -> 92.66666667 | BN4: =139/1.5 -> 92.66666667 | BO4: =139/1.5 -> 92.66666667 | BP4: =139/1.5 -> 92.66666667 | BQ4: =139/1.5 -> 92.66666667 | BR4: 666 | BS4: 666 | BT4: 666 | BU4: 666 | BV4: 666 | BW4: 2140 | BX4: 2140 | BY4: 2140 | BZ4: 2140 | CA4: 2140 | CB4: 66 | CC4: 66 | CD4: 66 | CE4: 66 | CF4: 66 | CG4: 666 | CH4: 666 | CI4: 666 | CJ4: 666 | CK4: 666 | CL4: 2710 | CM4: 2710 | CN4: 2710 | CO4: 2710 | CP4: 2710 | CQ4: 46 | CR4: 46 | CS4: 46 | CT4: 46 | CU4: 46 | CV4: =499/1.5 -> 332.6666667 | CW4: =499/1.5 -> 332.6666667 | CX4: =499/1.5 -> 332.6666667 | CY4: =499/1.5 -> 332.6666667 | CZ4: =499/1.5 -> 332.6666667 | DA4: 1275 | DB4: 1275 | DC4: 1275 | DD4: 1275 | DE4: 1275 | DF4: 66 | DG4: 66 | DH4: 66 | DI4: 66 | DJ4: 66 | DK4: 666 | DL4: 666 | DM4: 666 | DN4: 666 | DO4: 666 | DP4: 2360 | DQ4: 2360 | DR4: 2360 | DS4: 2360 | DT4: 2360 | DZ4: 1 | EA4: Offset Disc | ED4: 1 | EN4: =SUM(EB4:EM4) -> 1 | EO4: =EN4*EP4 -> 10.79 | EP4: 10.79 | ER4: items in black OSU 2021
A5: North-Central | B5: 4 | D5: operation category | E5: 1 | F5: 2 | G5: 3 | H5: 4 | I5: total | J5: 1 | K5: 2 | L5: 3 | M5: 4 | N5: total | O5: 1 | P5: 2 | Q5: 3 | R5: 4 | S5: total | T5: 1 | U5: 2 | V5: 3 | W5: 4 | X5: total | Y5: 1 | Z5: 2 | AA5: 3 | AB5: 4 | AC5: total | AD5: 1 | AE5: 2 | AF5: 3 | AG5: 4 | AH5: total | AI5: 1 | AJ5: 2 | AK5: 3 | AL5: 4 | AM5: total | AN5: 1 | AO5: 2 | AP5: 3 | AQ5: 4 | AR5: total | AS5: 1 | AT5: 2 | AU5: 3 | AV5: 4 | AW5: total | AX5: 1 | AY5: 2 | AZ5: 3 | BA5: 4 | BB5: total | BC5: 1 | BD5: 2 | BE5: 3 | BF5: 4 | BG5: total | BH5: 1 | BI5: 2 | BJ5: 3 | BK5: 4 | BL5: total | BM5: 1 | BN5: 2 | BO5: 3 | BP5: 4 | BQ5: total | BR5: 1 | BS5: 2 | BT5: 3 | BU5: 4 | BV5: total | BW5: 1 | BX5: 2 | BY5: 3 | BZ5: 4 | CA5: total | CB5: 1 | CC5: 2 | CD5: 3 | CE5: 4 | CF5: total | CG5: 1 | CH5: 2 | CI5: 3 | CJ5: 4 | CK5: total | CL5: 1 | CM5: 2 | CN5: 3 | CO5: 4 | CP5: total | CQ5: 1 | CR5: 2 | CS5: 3 | CT5: 4 | CU5: total | CV5: 1 | CW5: 2 | CX5: 3 | CY5: 4 | CZ5: total | DA5: 1 | DB5: 2 | DC5: 3 | DD5: 4 | DE5: total | DF5: 1 | DG5: 2 | DH5: 3 | DI5: 4 | DJ5: total | DK5: 1 | DL5: 2 | DM5: 3 | DN5: 4 | DO5: total | DP5: 1 | DQ5: 2 | DR5: 3 | DS5: 4 | DT5: total | EA5: Chisel | EC5: 1 | EN5: 1 | EO5: 16.64 | EP5: 16.64 | ER5: items in red KSU 2022
A6: South-Central | B6: 5 | D6: Fuel | E6: 3.175 | F6: 0.718 | G6: 0.65 | H6: 0.579 | I6: =+SUM(E6:H6) -> 5.122 | J6: 3.175 | K6: 0.718 | L6: 0.65 | M6: 0.579 | N6: =+SUM(J6:M6) -> 5.122 | S6: =+SUM(O6:R6) -> 0 | T6: 3.175 | U6: 0.718 | V6: 0.65 | W6: 0.579 | X6: =+SUM(T6:W6) -> 5.122 | Y6: 3.175 | Z6: 0.718 | AA6: 0.65 | AB6: 0.579 | AC6: =+SUM(Y6:AB6) -> 5.122 | AD6: 3.175 | AE6: 0.718 | AF6: 0.65 | AG6: 0.579 | AH6: =+SUM(AD6:AG6) -> 5.122 | AI6: 3.175 | AJ6: 0.718 | AK6: 0.65 | AL6: 0.579 | AM6: =+SUM(AI6:AL6) -> 5.122 | AN6: 3.175 | AO6: 0.718 | AP6: 0.65 | AQ6: 0.579 | AR6: =+SUM(AN6:AQ6) -> 5.122 | AS6: 3.175 | AT6: 0.718 | AU6: 0.65 | AV6: 0.579 | AW6: =+SUM(AS6:AV6) -> 5.122 | AX6: 3.634 | AY6: 0.718 | AZ6: 0.65 | BA6: 0.579 | BB6: =+SUM(AX6:BA6) -> 5.581 | BC6: 3.634 | BD6: 0.718 | BE6: 0.65 | BF6: 0.579 | BG6: =+SUM(BC6:BF6) -> 5.581 | BH6: 3.634 | BI6: 0.718 | BJ6: 0.65 | BK6: 0.579 | BL6: =+SUM(BH6:BK6) -> 5.581 | BM6: 3.175 | BN6: 0.718 | BO6: 0.65 | BP6: 0.579 | BQ6: =+SUM(BM6:BP6) -> 5.122 | BR6: 3.175 | BS6: 0.718 | BT6: 0.65 | BU6: 0.579 | BV6: =+SUM(BR6:BU6) -> 5.122 | BW6: 3.175 | BX6: 0.718 | BY6: 0.65 | BZ6: 0.579 | CA6: =+SUM(BW6:BZ6) -> 5.122 | CB6: 4.45 | CC6: 0.718 | CD6: 0.65 | CE6: 0.579 | CF6: =+SUM(CB6:CE6) -> 6.397 | CG6: 4.45 | CH6: 0.718 | CI6: 0.65 | CJ6: 0.579 | CK6: =+SUM(CG6:CJ6) -> 6.397 | CL6: 4.45 | CM6: 0.718 | CN6: 0.65 | CO6: 0.579 | CP6: =+SUM(CL6:CO6) -> 6.397 | CQ6: 4.45 | CR6: 0.718 | CS6: 0.326 | CT6: 0.579 | CU6: =+SUM(CQ6:CT6) -> 6.073 | CV6: 4.45 | CW6: 0.718 | CX6: 0.326 | CY6: 0.579 | CZ6: =+SUM(CV6:CY6) -> 6.073 | DA6: 4.45 | DB6: 0.718 | DC6: 0.326 | DD6: 0.579 | DE6: =+SUM(DA6:DD6) -> 6.073 | DF6: 4.45 | DG6: 0.718 | DH6: 0.326 | DI6: 0.579 | DJ6: =+SUM(DF6:DI6) -> 6.073 | DK6: 4.45 | DL6: 0.718 | DM6: 0.326 | DN6: 0.579 | DO6: =+SUM(DK6:DN6) -> 6.073 | DP6: 4.45 | DQ6: 0.718 | DR6: 0.326 | DS6: 0.579 | DT6: =+SUM(DP6:DS6) -> 6.073 | EA6: Anhy. App. | EE6: 1 | EN6: 1 | EO6: 17.72 | EP6: 17.72
A7: Northeast | B7: 6 | D7: Lube | E7: 0.476 | F7: 0.108 | G7: 0.1 | H7: 0.087 | I7: 0.771 | J7: 0.476 | K7: 0.108 | L7: 0.1 | M7: 0.087 | N7: 0.771 | S7: 0 | T7: 0.476 | U7: 0.108 | V7: 0.1 | W7: 0.087 | X7: 0.771 | Y7: 0.476 | Z7: 0.108 | AA7: 0.1 | AB7: 0.087 | AC7: 0.771 | AD7: 0.476 | AE7: 0.108 | AF7: 0.1 | AG7: 0.087 | AH7: 0.771 | AI7: 0.476 | AJ7: 0.108 | AK7: 0.1 | AL7: 0.087 | AM7: 0.771 | AN7: 0.476 | AO7: 0.108 | AP7: 0.1 | AQ7: 0.087 | AR7: 0.771 | AS7: 0.476 | AT7: 0.108 | AU7: 0.1 | AV7: 0.087 | AW7: 0.771 | AX7: 0.545 | AY7: 0.108 | AZ7: 0.1 | BA7: 0.087 | BB7: 0.84 | BC7: 0.545 | BD7: 0.108 | BE7: 0.1 | BF7: 0.087 | BG7: 0.84 | BH7: 0.545 | BI7: 0.108 | BJ7: 0.1 | BK7: 0.087 | BL7: 0.84 | BM7: 0.476 | BN7: 0.108 | BO7: 0.1 | BP7: 0.087 | BQ7: 0.771 | BR7: 0.476 | BS7: 0.108 | BT7: 0.1 | BU7: 0.087 | BV7: 0.771 | BW7: 0.476 | BX7: 0.108 | BY7: 0.1 | BZ7: 0.087 | CA7: 0.771 | CB7: 0.668 | CC7: 0.108 | CD7: 0.1 | CE7: 0.087 | CF7: 0.963 | CG7: 0.668 | CH7: 0.108 | CI7: 0.1 | CJ7: 0.087 | CK7: 0.963 | CL7: 0.668 | CM7: 0.108 | CN7: 0.1 | CO7: 0.087 | CP7: 0.963 | CQ7: 0.668 | CR7: 0.108 | CS7: 0.049 | CT7: 0.087 | CU7: 0.912 | CV7: 0.668 | CW7: 0.108 | CX7: 0.049 | CY7: 0.087 | CZ7: 0.912 | DA7: 0.668 | DB7: 0.108 | DC7: 0.049 | DD7: 0.087 | DE7: 0.912 | DF7: 0.668 | DG7: 0.108 | DH7: 0.049 | DI7: 0.087 | DJ7: 0.912 | DK7: 0.668 | DL7: 0.108 | DM7: 0.049 | DN7: 0.087 | DO7: 0.912 | DP7: 0.668 | DQ7: 0.108 | DR7: 0.049 | DS7: 0.087 | DT7: 0.912 | EA7: Sweep Plow | EN7: 0 | EO7: 0 | EP7: 13.17
A8: East-Northeast | B8: 7 | D8: Repairs | E8: 12.38672765 | F8: 3.735640342 | G8: 2.629651657 | H8: 4.490716581 | I8: =+SUM(E8:H8) -> 23.24273623 | J8: 14.01113509 | K8: 4.24978765 | L8: 2.557009346 | M8: 4.940285 | N8: =+SUM(J8:M8) -> 25.75821708 | O8: 0 | P8: 0 | Q8: 0 | R8: 0 | S8: 0 | T8: 11.07776325 | U8: 3.447519145 | V8: 2.397196262 | W8: 4.306915128 | X8: 21.22939378 | Y8: 12.46124175 | Z8: 3.753026966 | AA8: 2.644180119 | AB8: 4.515554615 | AC8: 23.37400345 | AD8: 14.3861894 | AE8: 4.16285453 | AF8: 2.760407816 | AG8: 4.84590047 | AH8: 26.15535222 | AI8: 11.00821675 | AJ8: 3.427648718 | AK8: 2.382667799 | AL8: 4.292012308 | AM8: 21.11054558 | AN8: 13.40260325 | AO8: 3.911990385 | AP8: 2.789464741 | AQ8: 4.776353974 | AR8: 24.88041235 | AS8: 17.48100846 | AT8: 5.081861795 | AU8: 2.789464741 | AV8: 5.911452137 | AW8: 31.26378713 | AX8: 14.07074637 | AY8: 3.447519145 | AZ8: 2.397196262 | BA8: 4.309398932 | BB8: 24.22486071 | BC8: 16.76815688 | BD8: 3.919441795 | BE8: 2.774936279 | BF8: 4.662099017 | BG8: 28.12463397 | BH8: 21.15206991 | BI8: 4.373977821 | BJ8: 2.920220901 | BK8: 5.307887906 | BL8: 33.75415654 | BM8: 10.62571103 | BN8: 3.340715598 | BO8: 2.339082413 | BP8: 4.244820043 | BQ8: 20.55032908 | BR8: 11.7707444 | BS8: 3.571709316 | BT8: 2.484367035 | BU8: 4.396332051 | BV8: 22.2231528 | BW8: 14.28683726 | BX8: 4.16285453 | BY8: 2.644180119 | BZ8: 5.02721812 | CA8: 26.12109003 | CB8: 17.32949645 | CC8: 3.358102222 | CD8: 2.324553951 | CE8: 4.25723906 | CF8: 27.26939169 | CG8: 18.17895722 | CH8: 3.437583932 | CI8: 2.397196262 | CJ8: 4.321817949 | CK8: 28.33555536 | CL8: 24.86783983 | CM8: 4.051083376 | CN8: 2.862107052 | CO8: 5.161343504 | CP8: 36.94237376 | CQ8: 17.34439927 | CR8: 3.358102222 | CS8: 1.147517179 | CT8: 4.25723906 | CU8: 26.10725774 | CV8: 17.44126761 | CW8: 3.375488846 | CX8: 1.15496859 | CY8: 4.269658077 | CZ8: 26.24138312 | DA8: 21.09742624 | DB8: 3.760478376 | DC8: 1.15496859 | DD8: 4.691904658 | DE8: 30.70477786 | DF8: 17.32949645 | DG8: 3.358102222 | DH8: 1.147517179 | DI8: 4.25723906 | DJ8: 26.09235491 | DK8: 17.76912966 | DL8: 3.417713504 | DM8: 1.167387607 | DN8: 4.321817949 | DO8: 26.67604872 | DP8: 20.95584944 | DQ8: 3.86479812 | DR8: 1.241901709 | DS8: 4.806159615 | DT8: 30.86870889 | EA8: M.B. Plow | EN8: 0 | EO8: 0 | EP8: 21.8
A9: Southeast | B9: 8 | D9: Depreciation | E9: 23.27820564 | F9: 5.302920299 | G9: 3.806457094 | H9: 24.52010735 | I9: 56.90769038 | J9: 14.13780906 | K9: 2.431643547 | L9: 3.544944775 | M9: 10.17862641 | N9: 30.29302379 | O9: 0 | P9: 0 | Q9: 0 | R9: 0 | S9: 0 | T9: 48.52606739 | U9: 13.21383419 | V9: 9.254630416 | W9: 29.8627685 | X9: 100.8573005 | Y9: 24.97464338 | Z9: 5.548816838 | AA9: 4.256839422 | AB9: 24.38598197 | AC9: 59.1662816 | AD9: 11.23175906 | AE9: 2.381967479 | AF9: 3.021920136 | AG9: 7.108645385 | AH9: 23.74429206 | AI9: 45.59269556 | AJ9: 14.41102744 | AK9: 10.85276126 | AL9: 30.42907568 | AM9: 101.2855599 | AN9: 12.31966496 | AO9: 4.470846154 | AP9: 2.905692438 | AQ9: 10.67041949 | AR9: 30.36662304 | AS9: 6.087802179 | AT9: 1.321383419 | AU9: 1.961342396 | AV9: 3.882184744 | AW9: 13.25271274 | AX9: 54.20652581 | AY9: 13.60875893 | AZ9: 10.38785047 | BA9: 29.78080299 | BB9: 107.9839382 | BC9: 19.96977949 | BD9: 4.287044701 | BE9: 3.327017842 | BF9: 18.27085795 | BG9: 45.85469998 | BH9: 7.915881496 | BI9: 1.900109615 | BJ9: 2.644180119 | BK9: 4.609939145 | BL9: 17.07011038 | BM9: 86.18797863 | BN9: 28.00985115 | BO9: 16.09753611 | BP9: 34.56709218 | BQ9: 164.8624581 | BR9: 26.64127547 | BS9: 9.450872009 | BT9: 7.816312659 | BU9: 28.05455962 | BV9: 71.96301975 | BW9: 9.840829145 | BX9: 2.953242265 | BY9: 2.949277825 | BZ9: 7.501086325 | CA9: 23.24443556 | CB9: 105.8472827 | CC9: 26.05509786 | CD9: 17.8700085 | CE9: 32.99236081 | CF9: 182.7647499 | CG9: 59.58644402 | CH9: 21.62150876 | CI9: 12.08768054 | CJ9: 29.4206515 | CK9: 122.7162848 | CL9: 12.47614457 | CM9: 3.944279829 | CN9: 2.092098556 | CO9: 5.409723846 | CP9: 23.9222468 | CQ9: 104.5010612 | CR9: 25.83900697 | CS9: 14.95746419 | CT9: 32.81849457 | CU9: 178.116027 | CV9: 95.98906692 | CW9: 24.46546368 | CX9: 12.9306806 | CY9: 31.71071825 | CZ9: 165.0959294 | DA9: 22.63738436 | DB9: 15.15616846 | DC9: 12.9306806 | DD9: 12.69471927 | DE9: 63.41895269 | DF9: 105.8472827 | DG9: 26.05509786 | DH9: 15.19590932 | DI9: 32.99236081 | DJ9: 180.0906507 | DK9: 74.00989047 | DL9: 19.12280252 | DM9: 9.818474915 | DN9: 25.00693282 | DO9: 127.9581007 | DP9: 21.26135726 | DQ9: 6.656593162 | DR9: 2.379483675 | DS9: 9.711671368 | DT9: 40.00910547 | EA9: Field Cultivator | EN9: 0 | EO9: 0 | EP9: 15.39
A10: small machinery | D10: Insurance | E10: 209.5435916 | F10: 47.69399325 | G10: 35.02812234 | H10: 202.1517926 | I10: 494.4174999 | J10: 133.3678246 | K10: 22.04127154 | L10: 34.78113849 | M10: 84.21832252 | N10: 274.4085571 | O10: 0 | P10: 0 | Q10: 0 | R10: 0 | S10: 0 | T10: 444.3449802 | U10: 118.5891942 | V10: 85.13678845 | W10: 250.9361756 | X10: 899.0071385 | Y10: 221.5950058 | Z10: 49.30101406 | AA10: 38.39872557 | AB10: 200.7484437 | AC10: 510.0431892 | AD10: 106.3440434 | AE10: 22.72928509 | AF10: 27.48785047 | AG10: 60.99227675 | AH10: 217.5534557 | AI10: 427.5644043 | AJ10: 129.8532427 | AK10: 99.01146984 | AL10: 256.768146 | AM10: 913.1972629 | AN10: 114.0786072 | AO10: 39.41299265 | AP10: 26.35463042 | AQ10: 88.9226462 | AR10: 268.7688765 | AS10: 58.65253393 | AT10: 11.94957825 | AU10: 19.2502124 | AV10: 32.4012156 | AW10: 122.2535402 | AX10: 496.6340098 | AY10: 121.5623069 | AZ10: 94.15896347 | BA10: 250.0867148 | BB10: 962.441995 | BC10: 178.0762861 | BD10: 37.94009722 | BE10: 29.8559898 | BF10: 150.3719428 | BG10: 396.2443159 | BH10: 75.32133868 | BI10: 18.09947551 | BJ10: 23.5942226 | BK10: 39.25651303 | BL10: 156.2715498 | BM10: 806.6772553 | BN10: 251.3112299 | BO10: 149.9337298 | BP10: 299.5094353 | BQ10: 1507.43165 | BR10: 245.143946 | BS10: 83.14035184 | BT10: 69.0537808 | BU10: 232.2530063 | BV10: 629.5910849 | BW10: 93.74122483 | BX10: 26.34073526 | BY10: 28.1271028 | BZ10: 62.62910321 | CA10: 210.8381661 | CB10: 982.5926325 | CC10: 231.1352947 | CD10: 168.1233645 | CE10: 283.2504581 | CF10: 1665.10175 | CG10: 547.0105107 | CH10: 185.3513463 | CI10: 108.5276126 | CJ10: 246.3560421 | CK10: 1087.245512 | CL10: 118.1520448 | CM10: 34.54722175 | CN10: 19.5988955 | CO10: 45.88081675 | CP10: 218.1789788 | CQ10: 968.7081714 | CR10: 228.8949041 | CS10: 138.1243081 | CT10: 281.444733 | CU10: 1617.172117 | CV10: 880.8088522 | CW10: 214.7099027 | CX10: 117.1808777 | CY10: 270.0366239 | CZ10: 1482.736256 | DA10: 205.4751216 | DB10: 126.1623109 | DC10: 117.1808777 | DD10: 105.5641291 | DE10: 554.3824393 | DF10: 982.5926325 | DG10: 231.1352947 | DH10: 140.5683707 | DI10: 283.2504581 | DJ10: 1637.546756 | DK10: 675.922392 | DL10: 167.1326482 | DM10: 88.30417915 | DN10: 212.2757754 | DO10: 1143.634995 | DP10: 197.5368859 | DQ10: 57.06041594 | DR10: 22.99008444 | DS10: 81.13840628 | DT10: 358.7257926 | EA10: Cultipacker | EN10: 0 | EO10: 0
A11: medium machinery | D11: Taxes | E11: 325.9346198 | F11: 74.20362714 | G11: 25.00348343 | H11: 324.757297 | I11: 749.8990274 | J11: 204.0593537 | K11: 34.19700547 | L11: 52.50586236 | M11: 135.1114546 | N11: 425.8736761 | O11: 0 | P11: 0 | Q11: 0 | R11: 0 | S11: 0 | T11: 686.9753172 | U11: 184.6533976 | V11: 131.424469 | W11: 400.2525019 | X11: 1403.305686 | Y11: 346.4707065 | Z11: 77.04013064 | AA11: 59.68292268 | AB11: 322.6733859 | AC11: 805.8671458 | AD11: 162.5053225 | AE11: 34.64160628 | AF11: 42.56839422 | AG11: 96.53798748 | AH11: 336.2533105 | AI11: 655.5253983 | AJ11: 201.9108637 | AK11: 153.2752761 | AL11: 408.9110406 | AM11: 1419.622579 | AN11: 175.676932 | AO11: 61.76225581 | AP11: 40.85403568 | AQ11: 142.2797112 | AR11: 420.5729347 | AS11: 89.08906103 | AT11: 18.56146295 | AU11: 29.08598131 | AV11: 51.80965551 | AW11: 188.5461608 | AX11: 767.6691226 | AY11: 189.6061016 | AZ11: 146.0836873 | BA11: 398.9956974 | BB11: 1502.354609 | BC11: 277.9202159 | BD11: 59.37283692 | BE11: 46.50560748 | BF11: 241.7237487 | BG11: 625.5224091 | BH11: 114.8957785 | BI11: 27.59257218 | BJ11: 36.84418012 | BK11: 62.30869256 | BL11: 241.6412234 | BM11: 1237.617149 | BN11: 391.3629695 | BO11: 230.4359388 | BP11: 472.3498638 | BQ11: 2331.765921 | BR11: 378.3453558 | BS11: 130.3922281 | BT11: 108.1208156 | BU11: 372.5233206 | BV11: 989.38172 | BW11: 142.9428868 | BX11: 41.10694658 | BY11: 42.90254885 | BZ11: 100.132051 | CA11: 327.0844332 | CB11: 1511.824078 | CC11: 361.4157517 | CD11: 257.44435 | CE11: 448.2147459 | CF11: 2578.898926 | CG11: 844.9452146 | CH11: 293.4663415 | CI11: 168.9950722 | CJ11: 393.454332 | CK11: 1700.86096 | CL11: 180.5327677 | CM11: 54.2735885 | CN11: 30.0884452 | CO11: 72.93440359 | CP11: 337.829205 | CQ11: 1491.218445 | CR11: 358.0899389 | CS11: 212.9165967 | CT11: 445.5347221 | CU11: 2507.759703 | CV11: 1360.756671 | CW11: 337.0372211 | CX11: 181.8342807 | CY11: 428.5678609 | CZ11: 2308.196033 | DA11: 318.667011 | DB11: 201.9406694 | DC11: 181.8342807 | DD11: 169.0426931 | DE11: 871.4846541 | DF11: 1511.824078 | DG11: 361.4157517 | DH11: 216.5454335 | DI11: 448.2147459 | DJ11: 2538.000009 | DK11: 1045.971844 | DL11: 262.7491447 | DM11: 137.3915861 | DN11: 337.3104395 | DO11: 1783.423015 | DP11: 303.8486398 | DQ11: 90.33841415 | DR11: 34.89247043 | DS11: 129.6967631 | DT11: 558.7762875 | EA11: Tandem Disk | EN11: 0 | EO11: 0 | EP11: 12.27
A12: large machinery | D12: Interest | E12: 209.5435916 | F12: 47.69399325 | G12: 35.02812234 | H12: 202.1517926 | I12: 494.4174999 | J12: 133.3678246 | K12: 22.04127154 | L12: 34.78113849 | M12: 84.21832252 | N12: 274.4085571 | O12: 0 | P12: 0 | Q12: 0 | R12: 0 | S12: 0 | T12: 444.3449802 | U12: 118.5891942 | V12: 85.13678845 | W12: 250.9361756 | X12: 899.0071385 | Y12: 221.5950058 | Z12: 49.30101406 | AA12: 38.39872557 | AB12: 200.7484437 | AC12: 510.0431892 | AD12: 106.3440434 | AE12: 22.72928509 | AF12: 27.48785047 | AG12: 60.99227675 | AH12: 217.5534557 | AI12: 427.5644043 | AJ12: 129.8532427 | AK12: 99.01146984 | AL12: 256.768146 | AM12: 913.1972629 | AN12: 114.0786072 | AO12: 39.41299265 | AP12: 26.35463042 | AQ12: 88.9226462 | AR12: 268.7688765 | AS12: 58.65253393 | AT12: 11.94957825 | AU12: 19.2502124 | AV12: 32.4012156 | AW12: 122.2535402 | AX12: 496.6340098 | AY12: 121.5623069 | AZ12: 94.15896347 | BA12: 250.0867148 | BB12: 962.441995 | BC12: 178.0762861 | BD12: 37.94009722 | BE12: 29.8559898 | BF12: 150.3719428 | BG12: 396.2443159 | BH12: 75.32133868 | BI12: 18.09947551 | BJ12: 23.5942226 | BK12: 39.25651303 | BL12: 156.2715498 | BM12: 806.6772553 | BN12: 251.3112299 | BO12: 149.9337298 | BP12: 299.5094353 | BQ12: 1507.43165 | BR12: 245.143946 | BS12: 83.14035184 | BT12: 68.73415463 | BU12: 232.2530063 | BV12: 629.2714588 | BW12: 93.74122483 | BX12: 26.34073526 | BY12: 28.1271028 | BZ12: 62.62910321 | CA12: 210.8381661 | CB12: 982.5926325 | CC12: 231.1352947 | CD12: 140.5683707 | CE12: 283.2504581 | CF12: 1637.546756 | CG12: 547.0105107 | CH12: 185.3513463 | CI12: 108.5276126 | CJ12: 246.3560421 | CK12: 1087.245512 | CL12: 118.1520448 | CM12: 34.54722175 | CN12: 19.5988955 | CO12: 45.88081675 | CP12: 218.1789788 | CQ12: 968.7081714 | CR12: 228.8949041 | CS12: 138.1243081 | CT12: 281.444733 | CU12: 1617.172117 | CV12: 880.8088522 | CW12: 214.7099027 | CX12: 117.1808777 | CY12: 270.0117859 | CZ12: 1482.711418 | DA12: 205.4751216 | DB12: 126.1623109 | DC12: 117.1808777 | DD12: 105.5641291 | DE12: 554.3824393 | DF12: 982.5926325 | DG12: 231.1352947 | DH12: 140.5683707 | DI12: 283.2504581 | DJ12: 1637.546756 | DK12: 675.922392 | DL12: 167.1326482 | DM12: 88.30417915 | DN12: 212.2757754 | DO12: 1143.634995 | DP12: 197.5368859 | DQ12: 57.06041594 | DR12: 22.99008444 | DS12: 81.13840628 | DT12: 358.7257926 | EA12: Springtooth | EF12: 1 | EN12: 1 | EO12: 0
A13: All Used | D13: Ttl Variable Costs | E13: =(SUM(E6:E7)*Parameters!$C$9)+E8 -> 26.07797765 | F13: =(SUM(F6:F7)*Parameters!$C$9)+F8 -> 6.833140342 | G13: =(SUM(G6:G7)*Parameters!$C$9)+G8 -> 5.442151657 | H13: =(SUM(H6:H7)*Parameters!$C$9)+H8 -> 6.988216581 | I13: =(SUM(I6:I7)*Parameters!$C$9)+I8 -> 45.34148623 | J13: =(SUM(J6:J7)*Parameters!$C$9)+J8 -> 27.70238509 | K13: =(SUM(K6:K7)*Parameters!$C$9)+K8 -> 7.34728765 | L13: =(SUM(L6:L7)*Parameters!$C$9)+L8 -> 5.369509346 | M13: =(SUM(M6:M7)*Parameters!$C$9)+M8 -> 7.437785 | N13: =(SUM(N6:N7)*Parameters!$C$9)+N8 -> 47.85696708 | O13: =(SUM(O6:O7)*Parameters!$C$9)+O8 -> 0 | P13: =(SUM(P6:P7)*Parameters!$C$9)+P8 -> 0 | Q13: =(SUM(Q6:Q7)*Parameters!$C$9)+Q8 -> 0 | R13: =(SUM(R6:R7)*Parameters!$C$9)+R8 -> 0 | S13: =(SUM(S6:S7)*Parameters!$C$9)+S8 -> 0 | T13: =(SUM(T6:T7)*Parameters!$C$9)+T8 -> 24.76901325 | U13: =(SUM(U6:U7)*Parameters!$C$9)+U8 -> 6.545019145 | V13: =(SUM(V6:V7)*Parameters!$C$9)+V8 -> 5.209696262 | W13: =(SUM(W6:W7)*Parameters!$C$9)+W8 -> 6.804415128 | X13: =(SUM(X6:X7)*Parameters!$C$9)+X8 -> 43.32814378 | Y13: =(SUM(Y6:Y7)*Parameters!$C$9)+Y8 -> 26.15249175 | Z13: =(SUM(Z6:Z7)*Parameters!$C$9)+Z8 -> 6.850526966 | AA13: =(SUM(AA6:AA7)*Parameters!$C$9)+AA8 -> 5.456680119 | AB13: =(SUM(AB6:AB7)*Parameters!$C$9)+AB8 -> 7.013054615 | AC13: =(SUM(AC6:AC7)*Parameters!$C$9)+AC8 -> 45.47275345 | AD13: =(SUM(AD6:AD7)*Parameters!$C$9)+AD8 -> 28.0774394 | AE13: =(SUM(AE6:AE7)*Parameters!$C$9)+AE8 -> 7.26035453 | AF13: =(SUM(AF6:AF7)*Parameters!$C$9)+AF8 -> 5.572907816 | AG13: =(SUM(AG6:AG7)*Parameters!$C$9)+AG8 -> 7.34340047 | AH13: =(SUM(AH6:AH7)*Parameters!$C$9)+AH8 -> 48.25410222 | AI13: =(SUM(AI6:AI7)*Parameters!$C$9)+AI8 -> 24.69946675 | AJ13: =(SUM(AJ6:AJ7)*Parameters!$C$9)+AJ8 -> 6.525148718 | AK13: =(SUM(AK6:AK7)*Parameters!$C$9)+AK8 -> 5.195167799 | AL13: =(SUM(AL6:AL7)*Parameters!$C$9)+AL8 -> 6.789512308 | AM13: =(SUM(AM6:AM7)*Parameters!$C$9)+AM8 -> 43.20929558 | AN13: =(SUM(AN6:AN7)*Parameters!$C$9)+AN8 -> 27.09385325 | AO13: =(SUM(AO6:AO7)*Parameters!$C$9)+AO8 -> 7.009490385 | AP13: =(SUM(AP6:AP7)*Parameters!$C$9)+AP8 -> 5.601964741 | AQ13: =(SUM(AQ6:AQ7)*Parameters!$C$9)+AQ8 -> 7.273853974 | AR13: =(SUM(AR6:AR7)*Parameters!$C$9)+AR8 -> 46.97916235 | AS13: =(SUM(AS6:AS7)*Parameters!$C$9)+AS8 -> 31.17225846 | AT13: =(SUM(AT6:AT7)*Parameters!$C$9)+AT8 -> 8.179361795 | AU13: =(SUM(AU6:AU7)*Parameters!$C$9)+AU8 -> 5.601964741 | AV13: =(SUM(AV6:AV7)*Parameters!$C$9)+AV8 -> 8.408952137 | AW13: =(SUM(AW6:AW7)*Parameters!$C$9)+AW8 -> 53.36253713 | AX13: =(SUM(AX6:AX7)*Parameters!$C$9)+AX8 -> 29.74199637 | AY13: =(SUM(AY6:AY7)*Parameters!$C$9)+AY8 -> 6.545019145 | AZ13: =(SUM(AZ6:AZ7)*Parameters!$C$9)+AZ8 -> 5.209696262 | BA13: =(SUM(BA6:BA7)*Parameters!$C$9)+BA8 -> 6.806898932 | BB13: =(SUM(BB6:BB7)*Parameters!$C$9)+BB8 -> 48.30361071 | BC13: =(SUM(BC6:BC7)*Parameters!$C$9)+BC8 -> 32.43940688 | BD13: =(SUM(BD6:BD7)*Parameters!$C$9)+BD8 -> 7.016941795 | BE13: =(SUM(BE6:BE7)*Parameters!$C$9)+BE8 -> 5.587436279 | BF13: =(SUM(BF6:BF7)*Parameters!$C$9)+BF8 -> 7.159599017 | BG13: =(SUM(BG6:BG7)*Parameters!$C$9)+BG8 -> 52.20338397 | BH13: =(SUM(BH6:BH7)*Parameters!$C$9)+BH8 -> 36.82331991 | BI13: =(SUM(BI6:BI7)*Parameters!$C$9)+BI8 -> 7.471477821 | BJ13: =(SUM(BJ6:BJ7)*Parameters!$C$9)+BJ8 -> 5.732720901 | BK13: =(SUM(BK6:BK7)*Parameters!$C$9)+BK8 -> 7.805387906 | BL13: =(SUM(BL6:BL7)*Parameters!$C$9)+BL8 -> 57.83290654 | BM13: =(SUM(BM6:BM7)*Parameters!$C$9)+BM8 -> 24.31696103 | BN13: =(SUM(BN6:BN7)*Parameters!$C$9)+BN8 -> 6.438215598 | BO13: =(SUM(BO6:BO7)*Parameters!$C$9)+BO8 -> 5.151582413 | BP13: =(SUM(BP6:BP7)*Parameters!$C$9)+BP8 -> 6.742320043 | BQ13: =(SUM(BQ6:BQ7)*Parameters!$C$9)+BQ8 -> 42.64907908 | BR13: =(SUM(BR6:BR7)*Parameters!$C$9)+BR8 -> 25.4619944 | BS13: =(SUM(BS6:BS7)*Parameters!$C$9)+BS8 -> 6.669209316 | BT13: =(SUM(BT6:BT7)*Parameters!$C$9)+BT8 -> 5.296867035 | BU13: =(SUM(BU6:BU7)*Parameters!$C$9)+BU8 -> 6.893832051 | BV13: =(SUM(BV6:BV7)*Parameters!$C$9)+BV8 -> 44.3219028 | BW13: =(SUM(BW6:BW7)*Parameters!$C$9)+BW8 -> 27.97808726 | BX13: =(SUM(BX6:BX7)*Parameters!$C$9)+BX8 -> 7.26035453 | BY13: =(SUM(BY6:BY7)*Parameters!$C$9)+BY8 -> 5.456680119 | BZ13: =(SUM(BZ6:BZ7)*Parameters!$C$9)+BZ8 -> 7.52471812 | CA13: =(SUM(CA6:CA7)*Parameters!$C$9)+CA8 -> 48.21984003 | CB13: =(SUM(CB6:CB7)*Parameters!$C$9)+CB8 -> 36.52199645 | CC13: =(SUM(CC6:CC7)*Parameters!$C$9)+CC8 -> 6.455602222 | CD13: =(SUM(CD6:CD7)*Parameters!$C$9)+CD8 -> 5.137053951 | CE13: =(SUM(CE6:CE7)*Parameters!$C$9)+CE8 -> 6.75473906 | CF13: =(SUM(CF6:CF7)*Parameters!$C$9)+CF8 -> 54.86939169 | CG13: =(SUM(CG6:CG7)*Parameters!$C$9)+CG8 -> 37.37145722 | CH13: =(SUM(CH6:CH7)*Parameters!$C$9)+CH8 -> 6.535083932 | CI13: =(SUM(CI6:CI7)*Parameters!$C$9)+CI8 -> 5.209696262 | CJ13: =(SUM(CJ6:CJ7)*Parameters!$C$9)+CJ8 -> 6.819317949 | CK13: =(SUM(CK6:CK7)*Parameters!$C$9)+CK8 -> 55.93555536 | CL13: =(SUM(CL6:CL7)*Parameters!$C$9)+CL8 -> 44.06033983 | CM13: =(SUM(CM6:CM7)*Parameters!$C$9)+CM8 -> 7.148583376 | CN13: =(SUM(CN6:CN7)*Parameters!$C$9)+CN8 -> 5.674607052 | CO13: =(SUM(CO6:CO7)*Parameters!$C$9)+CO8 -> 7.658843504 | CP13: =(SUM(CP6:CP7)*Parameters!$C$9)+CP8 -> 64.54237376 | CQ13: =(SUM(CQ6:CQ7)*Parameters!$C$9)+CQ8 -> 36.53689927 | CR13: =(SUM(CR6:CR7)*Parameters!$C$9)+CR8 -> 6.455602222 | CS13: =(SUM(CS6:CS7)*Parameters!$C$9)+CS8 -> 2.553767179 | CT13: =(SUM(CT6:CT7)*Parameters!$C$9)+CT8 -> 6.75473906 | CU13: =(SUM(CU6:CU7)*Parameters!$C$9)+CU8 -> 52.30100774 | CV13: =(SUM(CV6:CV7)*Parameters!$C$9)+CV8 -> 36.63376761 | CW13: =(SUM(CW6:CW7)*Parameters!$C$9)+CW8 -> 6.472988846 | CX13: =(SUM(CX6:CX7)*Parameters!$C$9)+CX8 -> 2.56121859 | CY13: =(SUM(CY6:CY7)*Parameters!$C$9)+CY8 -> 6.767158077 | CZ13: =(SUM(CZ6:CZ7)*Parameters!$C$9)+CZ8 -> 52.43513312 | DA13: =(SUM(DA6:DA7)*Parameters!$C$9)+DA8 -> 40.28992624 | DB13: =(SUM(DB6:DB7)*Parameters!$C$9)+DB8 -> 6.857978376 | DC13: =(SUM(DC6:DC7)*Parameters!$C$9)+DC8 -> 2.56121859 | DD13: =(SUM(DD6:DD7)*Parameters!$C$9)+DD8 -> 7.189404658 | DE13: =(SUM(DE6:DE7)*Parameters!$C$9)+DE8 -> 56.89852786 | DF13: =(SUM(DF6:DF7)*Parameters!$C$9)+DF8 -> 36.52199645 | DG13: =(SUM(DG6:DG7)*Parameters!$C$9)+DG8 -> 6.455602222 | DH13: =(SUM(DH6:DH7)*Parameters!$C$9)+DH8 -> 2.553767179 | DI13: =(SUM(DI6:DI7)*Parameters!$C$9)+DI8 -> 6.75473906 | DJ13: =(SUM(DJ6:DJ7)*Parameters!$C$9)+DJ8 -> 52.28610491 | DK13: =(SUM(DK6:DK7)*Parameters!$C$9)+DK8 -> 36.96162966 | DL13: =(SUM(DL6:DL7)*Parameters!$C$9)+DL8 -> 6.515213504 | DM13: =(SUM(DM6:DM7)*Parameters!$C$9)+DM8 -> 2.573637607 | DN13: =(SUM(DN6:DN7)*Parameters!$C$9)+DN8 -> 6.819317949 | DO13: =(SUM(DO6:DO7)*Parameters!$C$9)+DO8 -> 52.86979872 | DP13: =(SUM(DP6:DP7)*Parameters!$C$9)+DP8 -> 40.14834944 | DQ13: =(SUM(DQ6:DQ7)*Parameters!$C$9)+DQ8 -> 6.96229812 | DR13: =(SUM(DR6:DR7)*Parameters!$C$9)+DR8 -> 2.648151709 | DS13: =(SUM(DS6:DS7)*Parameters!$C$9)+DS8 -> 7.303659615 | DT13: =(SUM(DT6:DT7)*Parameters!$C$9)+DT8 -> 57.06245889 | EA13: S. Harrow | EN13: 0 | EO13: 0 | EP13: 7.8
D14: Ttl Fixed Costs | E14: =E9+E10*Parameters!$C$13+E11*Parameters!$C$12+E12*Parameters!$C$11 -> 46.12987766 | F14: =F9+F10*Parameters!$C$13+F11*Parameters!$C$12+F12*Parameters!$C$11 -> 10.50434494 | G14: =G9+G10*Parameters!$C$13+G11*Parameters!$C$12+G12*Parameters!$C$11 -> 7.331621368 | H14: =H9+H10*Parameters!$C$13+H11*Parameters!$C$12+H12*Parameters!$C$11 -> 46.66887293 | I14: =I9+I10*Parameters!$C$13+I11*Parameters!$C$12+I12*Parameters!$C$11 -> 110.6347169 | J14: =J9+J10*Parameters!$C$13+J11*Parameters!$C$12+J12*Parameters!$C$11 -> 28.64829419 | K14: =K9+K10*Parameters!$C$13+K11*Parameters!$C$12+K12*Parameters!$C$11 -> 4.834472491 | L14: =L9+L10*Parameters!$C$13+L11*Parameters!$C$12+L12*Parameters!$C$11 -> 7.322039847 | M14: =M9+M10*Parameters!$C$13+M11*Parameters!$C$12+M12*Parameters!$C$11 -> 19.40415411 | N14: =N9+N10*Parameters!$C$13+N11*Parameters!$C$12+N12*Parameters!$C$11 -> 60.20896064 | O14: =O9+O10*Parameters!$C$13+O11*Parameters!$C$12+O12*Parameters!$C$11 -> 0 | P14: =P9+P10*Parameters!$C$13+P11*Parameters!$C$12+P12*Parameters!$C$11 -> 0 | Q14: =Q9+Q10*Parameters!$C$13+Q11*Parameters!$C$12+Q12*Parameters!$C$11 -> 0 | R14: =R9+R10*Parameters!$C$13+R11*Parameters!$C$12+R12*Parameters!$C$11 -> 0 | S14: =S9+S10*Parameters!$C$13+S11*Parameters!$C$12+S12*Parameters!$C$11 -> 0 | T14: =T9+T10*Parameters!$C$13+T11*Parameters!$C$12+T12*Parameters!$C$11 -> 96.94207621 | U14: =U9+U10*Parameters!$C$13+U11*Parameters!$C$12+U12*Parameters!$C$11 -> 26.14845782 | V14: =V9+V10*Parameters!$C$13+V11*Parameters!$C$12+V12*Parameters!$C$11 -> 18.52916483 | W14: =W9+W10*Parameters!$C$13+W11*Parameters!$C$12+W12*Parameters!$C$11 -> 57.32782594 | X14: =X9+X10*Parameters!$C$13+X11*Parameters!$C$12+X12*Parameters!$C$11 -> 198.9475248 | Y14: =Y9+Y10*Parameters!$C$13+Y11*Parameters!$C$12+Y12*Parameters!$C$11 -> 49.15848348 | Z14: =Z9+Z10*Parameters!$C$13+Z11*Parameters!$C$12+Z12*Parameters!$C$11 -> 10.92886296 | AA14: =AA9+AA10*Parameters!$C$13+AA11*Parameters!$C$12+AA12*Parameters!$C$11 -> 8.44394949 | AB14: =AB9+AB10*Parameters!$C$13+AB11*Parameters!$C$12+AB12*Parameters!$C$11 -> 46.38269531 | AC14: =AC9+AC10*Parameters!$C$13+AC11*Parameters!$C$12+AC12*Parameters!$C$11 -> 114.9139912 | AD14: =AD9+AD10*Parameters!$C$13+AD11*Parameters!$C$12+AD12*Parameters!$C$11 -> 22.79998034 | AE14: =AE9+AE10*Parameters!$C$13+AE11*Parameters!$C$12+AE12*Parameters!$C$11 -> 4.853571697 | AF14: =AF9+AF10*Parameters!$C$13+AF11*Parameters!$C$12+AF12*Parameters!$C$11 -> 6.017718097 | AG14: =AG9+AG10*Parameters!$C$13+AG11*Parameters!$C$12+AG12*Parameters!$C$11 -> 13.77680314 | AH14: =AH9+AH10*Parameters!$C$13+AH11*Parameters!$C$12+AH12*Parameters!$C$11 -> 47.44807327 | AI14: =AI9+AI10*Parameters!$C$13+AI11*Parameters!$C$12+AI12*Parameters!$C$11 -> 92.12522134 | AJ14: =AJ9+AJ10*Parameters!$C$13+AJ11*Parameters!$C$12+AJ12*Parameters!$C$11 -> 28.57141427 | AK14: =AK9+AK10*Parameters!$C$13+AK11*Parameters!$C$12+AK12*Parameters!$C$11 -> 21.64308645 | AL14: =AL9+AL10*Parameters!$C$13+AL11*Parameters!$C$12+AL12*Parameters!$C$11 -> 58.52600774 | AM14: =AM9+AM10*Parameters!$C$13+AM11*Parameters!$C$12+AM12*Parameters!$C$11 -> 200.8657298 | AN14: =AN9+AN10*Parameters!$C$13+AN11*Parameters!$C$12+AN12*Parameters!$C$11 -> 24.74278405 | AO14: =AO9+AO10*Parameters!$C$13+AO11*Parameters!$C$12+AO12*Parameters!$C$11 -> 8.773583525 | AP14: =AP9+AP10*Parameters!$C$13+AP11*Parameters!$C$12+AP12*Parameters!$C$11 -> 5.778390739 | AQ14: =AQ9+AQ10*Parameters!$C$13+AQ11*Parameters!$C$12+AQ12*Parameters!$C$11 -> 20.40748402 | AR14: =AR9+AR10*Parameters!$C$13+AR11*Parameters!$C$12+AR12*Parameters!$C$11 -> 59.70224234 | AS14: =AS9+AS10*Parameters!$C$13+AS11*Parameters!$C$12+AS12*Parameters!$C$11 -> 12.46270471 | AT14: =AT9+AT10*Parameters!$C$13+AT11*Parameters!$C$12+AT12*Parameters!$C$11 -> 2.624283614 | AU14: =AU9+AU10*Parameters!$C$13+AU11*Parameters!$C$12+AU12*Parameters!$C$11 -> 4.052097069 | AV14: =AV9+AV10*Parameters!$C$13+AV11*Parameters!$C$12+AV12*Parameters!$C$11 -> 7.429794957 | AW14: =AW9+AW10*Parameters!$C$13+AW11*Parameters!$C$12+AW12*Parameters!$C$11 -> 26.56888035 | AX14: =AX9+AX10*Parameters!$C$13+AX11*Parameters!$C$12+AX12*Parameters!$C$11 -> 108.318497 | AY14: =AY9+AY10*Parameters!$C$13+AY11*Parameters!$C$12+AY12*Parameters!$C$11 -> 26.87089564 | AZ14: =AZ9+AZ10*Parameters!$C$13+AZ11*Parameters!$C$12+AZ12*Parameters!$C$11 -> 20.65255042 | BA14: =BA9+BA10*Parameters!$C$13+BA11*Parameters!$C$12+BA12*Parameters!$C$11 -> 57.1538678 | BB14: =BB9+BB10*Parameters!$C$13+BB11*Parameters!$C$12+BB12*Parameters!$C$11 -> 212.9958108 | BC14: =BC9+BC10*Parameters!$C$13+BC11*Parameters!$C$12+BC12*Parameters!$C$11 -> 39.3991144 | BD14: =BD9+BD10*Parameters!$C$13+BD11*Parameters!$C$12+BD12*Parameters!$C$11 -> 8.42817216 | BE14: =BE9+BE10*Parameters!$C$13+BE11*Parameters!$C$12+BE12*Parameters!$C$11 -> 6.583608963 | BF14: =BF9+BF10*Parameters!$C$13+BF11*Parameters!$C$12+BF12*Parameters!$C$11 -> 34.74787209 | BG14: =BG9+BG10*Parameters!$C$13+BG11*Parameters!$C$12+BG12*Parameters!$C$11 -> 89.15876761 | BH14: =BH9+BH10*Parameters!$C$13+BH11*Parameters!$C$12+BH12*Parameters!$C$11 -> 16.10738445 | BI14: =BI9+BI10*Parameters!$C$13+BI11*Parameters!$C$12+BI12*Parameters!$C$11 -> 3.868336298 | BJ14: =BJ9+BJ10*Parameters!$C$13+BJ11*Parameters!$C$12+BJ12*Parameters!$C$11 -> 5.218681733 | BK14: =BK9+BK10*Parameters!$C$13+BK11*Parameters!$C$12+BK12*Parameters!$C$11 -> 8.90351004 | BL14: =BL9+BL10*Parameters!$C$13+BL11*Parameters!$C$12+BL12*Parameters!$C$11 -> 34.09791252 | BM14: =BM9+BM10*Parameters!$C$13+BM11*Parameters!$C$12+BM12*Parameters!$C$11 -> 173.9884735 | BN14: =BN9+BN10*Parameters!$C$13+BN11*Parameters!$C$12+BN12*Parameters!$C$11 -> 55.42108085 | BO14: =BO9+BO10*Parameters!$C$13+BO11*Parameters!$C$12+BO12*Parameters!$C$11 -> 32.42069924 | BP14: =BP9+BP10*Parameters!$C$13+BP11*Parameters!$C$12+BP12*Parameters!$C$11 -> 67.29472301 | BQ14: =BQ9+BQ10*Parameters!$C$13+BQ11*Parameters!$C$12+BQ12*Parameters!$C$11 -> 329.1249766 | BR14: =BR9+BR10*Parameters!$C$13+BR11*Parameters!$C$12+BR12*Parameters!$C$11 -> 53.34568798 | BS14: =BS9+BS10*Parameters!$C$13+BS11*Parameters!$C$12+BS12*Parameters!$C$11 -> 18.52841719 | BT14: =BT9+BT10*Parameters!$C$13+BT11*Parameters!$C$12+BT12*Parameters!$C$11 -> 15.3268811 | BU14: =BU9+BU10*Parameters!$C$13+BU11*Parameters!$C$12+BU12*Parameters!$C$11 -> 53.49544891 | BV14: =BV9+BV10*Parameters!$C$13+BV11*Parameters!$C$12+BV12*Parameters!$C$11 -> 140.6964352 | BW14: =BW9+BW10*Parameters!$C$13+BW11*Parameters!$C$12+BW12*Parameters!$C$11 -> 20.03506253 | BX14: =BX9+BX10*Parameters!$C$13+BX11*Parameters!$C$12+BX12*Parameters!$C$11 -> 5.827170477 | BY14: =BY9+BY10*Parameters!$C$13+BY11*Parameters!$C$12+BY12*Parameters!$C$11 -> 6.008187426 | BZ14: =BZ9+BZ10*Parameters!$C$13+BZ11*Parameters!$C$12+BZ12*Parameters!$C$11 -> 14.35822798 | CA14: =CA9+CA10*Parameters!$C$13+CA11*Parameters!$C$12+CA12*Parameters!$C$11 -> 46.22864842 | CB14: =CB9+CB10*Parameters!$C$13+CB11*Parameters!$C$12+CB12*Parameters!$C$11 -> 212.8379346 | CC14: =CC9+CC10*Parameters!$C$13+CC11*Parameters!$C$12+CC12*Parameters!$C$11 -> 51.28040544 | CD14: =CD9+CD10*Parameters!$C$13+CD11*Parameters!$C$12+CD12*Parameters!$C$11 -> 33.8218121 | CE14: =CE9+CE10*Parameters!$C$13+CE11*Parameters!$C$12+CE12*Parameters!$C$11 -> 63.9584261 | CF14: =CF9+CF10*Parameters!$C$13+CF11*Parameters!$C$12+CF12*Parameters!$C$11 -> 361.8985783 | CG14: =CG9+CG10*Parameters!$C$13+CG11*Parameters!$C$12+CG12*Parameters!$C$11 -> 119.1813789 | CH14: =CH9+CH10*Parameters!$C$13+CH11*Parameters!$C$12+CH12*Parameters!$C$11 -> 41.88652306 | CI14: =CI9+CI10*Parameters!$C$13+CI11*Parameters!$C$12+CI12*Parameters!$C$11 -> 23.92496304 | CJ14: =CJ9+CJ10*Parameters!$C$13+CJ11*Parameters!$C$12+CJ12*Parameters!$C$11 -> 56.38948475 | CK14: =CK9+CK10*Parameters!$C$13+CK11*Parameters!$C$12+CK12*Parameters!$C$11 -> 241.3823498 | CL14: =CL9+CL10*Parameters!$C$13+CL11*Parameters!$C$12+CL12*Parameters!$C$11 -> 25.32868844 | CM14: =CM9+CM10*Parameters!$C$13+CM11*Parameters!$C$12+CM12*Parameters!$C$11 -> 7.717180948 | CN14: =CN9+CN10*Parameters!$C$13+CN11*Parameters!$C$12+CN12*Parameters!$C$11 -> 4.225479737 | CO14: =CO9+CO10*Parameters!$C$13+CO11*Parameters!$C$12+CO12*Parameters!$C$11 -> 10.42892425 | CP14: =CP9+CP10*Parameters!$C$13+CP11*Parameters!$C$12+CP12*Parameters!$C$11 -> 47.70027337 | CQ14: =CQ9+CQ10*Parameters!$C$13+CQ11*Parameters!$C$12+CQ12*Parameters!$C$11 -> 209.9874597 | CR14: =CR9+CR10*Parameters!$C$13+CR11*Parameters!$C$12+CR12*Parameters!$C$11 -> 50.82157988 | CS14: =CS9+CS10*Parameters!$C$13+CS11*Parameters!$C$12+CS12*Parameters!$C$11 -> 30.00125296 | CT14: =CT9+CT10*Parameters!$C$13+CT11*Parameters!$C$12+CT12*Parameters!$C$11 -> 63.58892433 | CU14: =CU9+CU10*Parameters!$C$13+CU11*Parameters!$C$12+CU12*Parameters!$C$11 -> 354.3992169 | CV14: =CV9+CV10*Parameters!$C$13+CV11*Parameters!$C$12+CV12*Parameters!$C$11 -> 191.9522613 | CW14: =CW9+CW10*Parameters!$C$13+CW11*Parameters!$C$12+CW12*Parameters!$C$11 -> 47.91121179 | CX14: =CX9+CX10*Parameters!$C$13+CX11*Parameters!$C$12+CX12*Parameters!$C$11 -> 25.70543547 | CY14: =CY9+CY10*Parameters!$C$13+CY11*Parameters!$C$12+CY12*Parameters!$C$11 -> 61.24270996 | CZ14: =CZ9+CZ10*Parameters!$C$13+CZ11*Parameters!$C$12+CZ12*Parameters!$C$11 -> 326.8116185 | DA14: =DA9+DA10*Parameters!$C$13+DA11*Parameters!$C$12+DA12*Parameters!$C$11 -> 45.03597834 | DB14: =DB9+DB10*Parameters!$C$13+DB11*Parameters!$C$12+DB12*Parameters!$C$11 -> 28.97175122 | DC14: =DC9+DC10*Parameters!$C$13+DC11*Parameters!$C$12+DC12*Parameters!$C$11 -> 25.70543547 | DD14: =DD9+DD10*Parameters!$C$13+DD11*Parameters!$C$12+DD12*Parameters!$C$11 -> 24.25539228 | DE14: =DE9+DE10*Parameters!$C$13+DE11*Parameters!$C$12+DE12*Parameters!$C$11 -> 123.9685573 | DF14: =DF9+DF10*Parameters!$C$13+DF11*Parameters!$C$12+DF12*Parameters!$C$11 -> 212.8379346 | DG14: =DG9+DG10*Parameters!$C$13+DG11*Parameters!$C$12+DG12*Parameters!$C$11 -> 51.28040544 | DH14: =DH9+DH10*Parameters!$C$13+DH11*Parameters!$C$12+DH12*Parameters!$C$11 -> 30.50450631 | DI14: =DI9+DI10*Parameters!$C$13+DI11*Parameters!$C$12+DI12*Parameters!$C$11 -> 63.9584261 | DJ14: =DJ9+DJ10*Parameters!$C$13+DJ11*Parameters!$C$12+DJ12*Parameters!$C$11 -> 358.5812725 | DK14: =DK9+DK10*Parameters!$C$13+DK11*Parameters!$C$12+DK12*Parameters!$C$11 -> 147.6683526 | DL14: =DL9+DL10*Parameters!$C$13+DL11*Parameters!$C$12+DL12*Parameters!$C$11 -> 37.37719658 | DM14: =DM9+DM10*Parameters!$C$13+DM11*Parameters!$C$12+DM12*Parameters!$C$11 -> 19.44883153 | DN14: =DN9+DN10*Parameters!$C$13+DN11*Parameters!$C$12+DN12*Parameters!$C$11 -> 48.22782221 | DO14: =DO9+DO10*Parameters!$C$13+DO11*Parameters!$C$12+DO12*Parameters!$C$11 -> 252.7222029 | DP14: =DP9+DP10*Parameters!$C$13+DP11*Parameters!$C$12+DP12*Parameters!$C$11 -> 42.76954249 | DQ14: =DQ9+DQ10*Parameters!$C$13+DQ11*Parameters!$C$12+DQ12*Parameters!$C$11 -> 12.89512619 | DR14: =DR9+DR10*Parameters!$C$13+DR11*Parameters!$C$12+DR12*Parameters!$C$11 -> 4.877981275 | DS14: =DS9+DS10*Parameters!$C$13+DS11*Parameters!$C$12+DS12*Parameters!$C$11 -> 18.59507999 | DT14: =DT9+DT10*Parameters!$C$13+DT11*Parameters!$C$12+DT12*Parameters!$C$11 -> 79.13772995 | EA14: Drill | EN14: 0 | EO14: 0 | EP14: 12.55
A15: non-harvest, non-fertilizer, non-pesticide, non-planting operations | B15: 1 | D15: Labor Hrs. | E15: 0.766 | F15: 0.173 | G15: 0.16 | H15: 0.14 | I15: =+SUM(E15:H15) -> 1.239 | J15: 0.766 | K15: 0.173 | L15: 0.16 | M15: 0.14 | N15: =+SUM(J15:M15) -> 1.239 | S15: =+SUM(O15:R15) -> 0 | T15: 0.766 | U15: 0.173 | V15: 0.16 | W15: 0.14 | X15: =+SUM(T15:W15) -> 1.239 | Y15: 0.766 | Z15: 0.173 | AA15: 0.16 | AB15: 0.14 | AC15: =+SUM(Y15:AB15) -> 1.239 | AD15: 0.766 | AE15: 0.173 | AF15: 0.16 | AG15: 0.14 | AH15: =+SUM(AD15:AG15) -> 1.239 | AI15: 0.766 | AJ15: 0.173 | AK15: 0.16 | AL15: 0.14 | AM15: =+SUM(AI15:AL15) -> 1.239 | AN15: 0.766 | AO15: 0.173 | AP15: 0.16 | AQ15: 0.14 | AR15: =+SUM(AN15:AQ15) -> 1.239 | AS15: 0.766 | AT15: 0.173 | AU15: 0.16 | AV15: 0.14 | AW15: =+SUM(AS15:AV15) -> 1.239 | AX15: 0.877 | AY15: 0.173 | AZ15: 0.16 | BA15: 0.14 | BB15: =+SUM(AX15:BA15) -> 1.35 | BC15: 0.877 | BD15: 0.173 | BE15: 0.16 | BF15: 0.14 | BG15: =+SUM(BC15:BF15) -> 1.35 | BH15: 0.877 | BI15: 0.173 | BJ15: 0.16 | BK15: 0.14 | BL15: =+SUM(BH15:BK15) -> 1.35 | BM15: 0.766 | BN15: 0.173 | BO15: 0.16 | BP15: 0.14 | BQ15: =+SUM(BM15:BP15) -> 1.239 | BR15: 0.766 | BS15: 0.173 | BT15: 0.16 | BU15: 0.14 | BV15: =+SUM(BR15:BU15) -> 1.239 | BW15: 0.766 | BX15: 0.173 | BY15: 0.16 | BZ15: 0.14 | CA15: =+SUM(BW15:BZ15) -> 1.239 | CB15: 1.074 | CC15: 0.173 | CD15: 0.16 | CE15: 0.14 | CF15: =+SUM(CB15:CE15) -> 1.547 | CG15: 1.074 | CH15: 0.173 | CI15: 0.16 | CJ15: 0.14 | CK15: =+SUM(CG15:CJ15) -> 1.547 | CL15: 1.074 | CM15: 0.173 | CN15: 0.16 | CO15: 0.14 | CP15: =+SUM(CL15:CO15) -> 1.547 | CQ15: 1.074 | CR15: 0.173 | CS15: 0.079 | CT15: 0.14 | CU15: =+SUM(CQ15:CT15) -> 1.466 | CV15: 1.074 | CW15: 0.173 | CX15: 0.079 | CY15: 0.14 | CZ15: =+SUM(CV15:CY15) -> 1.466 | DA15: 1.074 | DB15: 0.173 | DC15: 0.079 | DD15: 0.14 | DE15: =+SUM(DA15:DD15) -> 1.466 | DF15: 1.074 | DG15: 0.173 | DH15: 0.079 | DI15: 0.14 | DJ15: =+SUM(DF15:DI15) -> 1.466 | DK15: 1.074 | DL15: 0.173 | DM15: 0.079 | DN15: 0.14 | DO15: =+SUM(DK15:DN15) -> 1.466 | DP15: 1.074 | DQ15: 0.173 | DR15: 0.079 | DS15: 0.14 | DT15: =+SUM(DP15:DS15) -> 1.466 | EA15: Planter | EF15: 1 | EN15: 1 | EO15: 16 | EP15: 16
A16: fertilizer operations | B16: 2 | D16: Tractor 1 | I16: 95 | N16: 95 | X16: 95 | AC16: 95 | AH16: 95 | AM16: 95 | AR16: 95 | AW16: 95 | BB16: 95 | BG16: 95 | BL16: 95 | BQ16: 95 | BV16: 95 | CA16: 95 | CF16: 95 | CK16: 95 | CP16: 95 | CU16: 95 | CZ16: 95 | DE16: 95 | DJ16: 95 | DO16: 95 | DT16: 95 | EA16: Cultivator | EG16: 1 | EH16: 1 | EN16: 2 | EO16: 0
A17: pesticide operations | B17: 3 | D17: Tractor 2 | N17: 95 | AH17: 95 | AW17: 95 | BL17: 95 | CA17: 95 | CP17: 95 | DT17: 95 | EA17: Rotary Hoe | EN17: 0 | EO17: 0
A18: planting operations | B18: 4 | D18: Tractor 3 | AH18: 95 | BL18: 95 | EA18: Sprayer | EG18: 1 | EN18: 1 | EO18: 5.82 | EP18: 5.82
EA19: S. Shreader | EN19: 0 | EO19: 0
B20: 2.5 | C20: =B20/Parameters!C9 -> 0.6666666667 | D20: Fuel | E20: 4.548 | F20: 1.21 | G20: 1.1 | H20: 0.975 | I20: =+SUM(E20:H20) -> 7.833 | J20: 3.841 | K20: 1.21 | L20: 0.65 | M20: 0.975 | N20: =+SUM(J20:M20) -> 6.676 | S20: =+SUM(O20:R20) -> 0 | T20: 4.548 | U20: 1.21 | V20: 1.1 | W20: 0.975 | X20: =+SUM(T20:W20) -> 7.833 | Y20: 4.548 | Z20: 1.21 | AA20: 1.1 | AB20: 0.975 | AC20: =+SUM(Y20:AB20) -> 7.833 | AD20: 3.841 | AE20: 1.21 | AF20: 0.65 | AG20: 0.975 | AH20: =+SUM(AD20:AG20) -> 6.676 | AI20: 4.548 | AJ20: 1.21 | AK20: 1.1 | AL20: 0.975 | AM20: =+SUM(AI20:AL20) -> 7.833 | AN20: 4.548 | AO20: 1.21 | AP20: 1.1 | AQ20: 0.975 | AR20: =+SUM(AN20:AQ20) -> 7.833 | AS20: 3.841 | AT20: 1.21 | AU20: 0.65 | AV20: 0.975 | AW20: =+SUM(AS20:AV20) -> 6.676 | AX20: 5.014 | AY20: 1.21 | AZ20: 1.1 | BA20: 0.975 | BB20: =+SUM(AX20:BA20) -> 8.299 | BC20: 5.014 | BD20: 1.21 | BE20: 1.1 | BF20: 0.975 | BG20: =+SUM(BC20:BF20) -> 8.299 | BH20: 4.171 | BI20: 1.087 | BJ20: 0.65 | BK20: 0.975 | BL20: =+SUM(BH20:BK20) -> 6.883 | BM20: 4.548 | BN20: 1.21 | BO20: 1.1 | BP20: 0.975 | BQ20: =+SUM(BM20:BP20) -> 7.833 | BR20: 4.548 | BS20: 1.21 | BT20: 1.1 | BU20: 0.975 | BV20: =+SUM(BR20:BU20) -> 7.833 | BW20: 3.841 | BX20: 1.21 | BY20: 0.65 | BZ20: 0.975 | CA20: =+SUM(BW20:BZ20) -> 6.676 | CB20: 5.734 | CC20: 1.21 | CD20: 1.1 | CE20: 0.975 | CF20: =+SUM(CB20:CE20) -> 9.019 | CG20: 5.734 | CH20: 1.21 | CI20: 1.1 | CJ20: 0.975 | CK20: =+SUM(CG20:CJ20) -> 9.019 | CL20: 5.027 | CM20: 1.21 | CN20: 0.65 | CO20: 0.975 | CP20: =+SUM(CL20:CO20) -> 7.862 | CQ20: 5.734 | CR20: 1.21 | CS20: 0.55 | CT20: 0.975 | CU20: =+SUM(CQ20:CT20) -> 8.469 | CV20: 5.734 | CW20: 1.21 | CX20: 0.55 | CY20: 0.975 | CZ20: =+SUM(CV20:CY20) -> 8.469 | DA20: 5.734 | DB20: 1.21 | DC20: 0.55 | DD20: 0.975 | DE20: =+SUM(DA20:DD20) -> 8.469 | DF20: 5.734 | DG20: 1.21 | DH20: 0.55 | DI20: 0.975 | DJ20: =+SUM(DF20:DI20) -> 8.469 | DK20: 5.734 | DL20: 1.21 | DM20: 0.55 | DN20: 0.975 | DO20: =+SUM(DK20:DN20) -> 8.469 | DP20: 5.027 | DQ20: 1.21 | DR20: 0.326 | DS20: 0.975 | DT20: =+SUM(DP20:DS20) -> 7.538 | EA20: Dry Fert. Spdr. | EN20: 0 | EO20: 0 | EP20: 5.6
B21: 0.37 | C21: =B21/Parameters!C9 -> 0.09866666667 | D21: Lube | E21: 0.682 | F21: 0.181 | G21: 0.17 | H21: 0.146 | I21: 1.179 | J21: 0.576 | K21: 0.181 | L21: 0.1 | M21: 0.146 | N21: 1.003 | S21: 0 | T21: 0.682 | U21: 0.181 | V21: 0.17 | W21: 0.146 | X21: 1.179 | Y21: 0.682 | Z21: 0.181 | AA21: 0.17 | AB21: 0.146 | AC21: 1.179 | AD21: 0.576 | AE21: 0.181 | AF21: 0.1 | AG21: 0.146 | AH21: 1.003 | AI21: 0.682 | AJ21: 0.181 | AK21: 0.17 | AL21: 0.146 | AM21: 1.179 | AN21: 0.682 | AO21: 0.181 | AP21: 0.17 | AQ21: 0.146 | AR21: 1.179 | AS21: 0.576 | AT21: 0.181 | AU21: 0.1 | AV21: 0.146 | AW21: 1.003 | AX21: 0.752 | AY21: 0.181 | AZ21: 0.17 | BA21: 0.146 | BB21: 1.249 | BC21: 0.752 | BD21: 0.181 | BE21: 0.17 | BF21: 0.146 | BG21: 1.249 | BH21: 0.626 | BI21: 0.163 | BJ21: 0.1 | BK21: 0.146 | BL21: 1.035 | BM21: 0.682 | BN21: 0.181 | BO21: 0.17 | BP21: 0.146 | BQ21: 1.179 | BR21: 0.682 | BS21: 0.181 | BT21: 0.17 | BU21: 0.146 | BV21: 1.179 | BW21: 0.576 | BX21: 0.181 | BY21: 0.1 | BZ21: 0.146 | CA21: 1.003 | CB21: 0.86 | CC21: 0.181 | CD21: 0.17 | CE21: 0.146 | CF21: 1.357 | CG21: 0.86 | CH21: 0.181 | CI21: 0.17 | CJ21: 0.146 | CK21: 1.357 | CL21: 0.754 | CM21: 0.181 | CN21: 0.1 | CO21: 0.146 | CP21: 1.181 | CQ21: 0.86 | CR21: 0.181 | CS21: 0.082 | CT21: 0.146 | CU21: 1.269 | CV21: 0.86 | CW21: 0.181 | CX21: 0.082 | CY21: 0.146 | CZ21: 1.269 | DA21: 0.86 | DB21: 0.181 | DC21: 0.082 | DD21: 0.146 | DE21: 1.269 | DF21: 0.86 | DG21: 0.181 | DH21: 0.082 | DI21: 0.146 | DJ21: 1.269 | DK21: 0.86 | DL21: 0.181 | DM21: 0.082 | DN21: 0.146 | DO21: 1.269 | DP21: 0.754 | DQ21: 0.181 | DR21: 0.049 | DS21: 0.146 | DT21: 1.13 | EA21: Windrower | EN21: 0 | EO21: 0
B22: 9.01 | C22: =B22 -> 9.01 | D22: Repairs | E22: 10.30530038 | F22: 3.57419312 | G22: 2.498895497 | H22: 4.361558803 | I22: =+SUM(E22:H22) -> 20.7399478 | J22: 11.88996697 | K22: 4.150435513 | L22: 2.557009346 | M22: 4.860803291 | N22: 23.45821512 | O22: 0 | P22: 0 | Q22: 0 | R22: 0 | S22: 0 | T22: 9.031109231 | U22: 3.231428248 | V22: 2.208326253 | W22: 4.133048889 | X22: 18.60391262 | Y22: 10.43942577 | Z22: 3.608966368 | AA22: 2.498895497 | AB22: 4.401299658 | AC22: 20.94858729 | AD22: 13.84968786 | AE22: 4.788772991 | AF22: 2.803993203 | AG22: 5.43456188 | AH22: 26.87701594 | AI22: 8.961562735 | AJ22: 3.209074017 | AK22: 2.193797791 | AL22: 4.118146068 | AM22: 18.48258061 | AN22: 11.4801394 | AO22: 3.837476282 | AP22: 2.71682243 | AQ22: 4.714258889 | AR22: 22.748697 | AS22: 15.21081214 | AT22: 5.206051966 | AU22: 2.789464741 | AV22: 6.010804274 | AW22: 29.21713312 | AX22: 11.07279564 | AY22: 3.226460641 | AZ22: 2.208326253 | BA22: 4.133048889 | BB22: 20.64063142 | BC22: 13.5864047 | BD22: 3.800219231 | BE22: 2.658708581 | BF22: 4.567714487 | BG22: 24.613047 | BH22: 18.51923829 | BI22: 4.801192009 | BJ22: 2.934749363 | BK22: 5.841905641 | BL22: 32.0970853 | BM22: 8.586508419 | BN22: 3.107238077 | BO22: 2.12115548 | BP22: 4.053567179 | BQ22: 17.86846916 | BR22: 9.743960812 | BS22: 3.395359274 | BT22: 2.353610875 | BU22: 4.254755256 | BV22: 19.74768622 | BW22: 12.21037761 | BX22: 4.083372821 | BY22: 2.644180119 | BZ22: 4.962639231 | CA22: 23.90056978 | CB22: 13.4398603 | CC22: 3.119657094 | CD22: 2.092098556 | CE22: 4.063502393 | CF22: 22.71511834 | CG22: 14.13780906 | CH22: 3.223976838 | CI22: 2.193797791 | CJ22: 4.147951709 | CK22: 23.7035354 | CL22: 20.28770632 | CM22: 4.311882735 | CN22: 2.58606627 | CO22: 5.369982991 | CP22: 32.55563832 | CQ22: 13.45724692 | CR22: 3.122140897 | CS22: 1.030778419 | CT22: 4.065986197 | CU22: 21.67615244 | CV22: 13.58143709 | CW22: 3.149462735 | CX22: 1.043197436 | CY22: 4.088340427 | CZ22: 21.86243769 | DA22: 16.82528436 | DB22: 3.66857765 | DC22: 1.043197436 | DD22: 4.617390556 | DE22: 26.15445 | DF22: 13.4398603 | DG22: 3.119657094 | DH22: 1.030778419 | DI22: 4.063502393 | DJ22: 21.65379821 | DK22: 13.90184774 | DL22: 3.209074017 | DM22: 1.063067863 | DN22: 4.15540312 | DO22: 22.32939274 | DP22: 17.8709656 | DQ22: 3.857346709 | DR22: 1.241901709 | DS22: 4.801192009 | DT22: 27.77140603 | EA22: Baler | EN22: 0 | EO22: 0
B23: 3.03 | C23: =B23 -> 3.03 | D23: Depreciation | E23: 40.25500201 | F23: 9.917827051 | G23: 7.671028037 | H23: 28.24084487 | I23: 86.08470197 | J23: 19.56740333 | K23: 4.890608932 | L23: 3.544944775 | M23: 12.16070154 | N23: 40.16365858 | O23: 0 | P23: 0 | Q23: 0 | R23: 0 | S23: 0 | T23: 88.46811017 | U23: 23.64084094 | V23: 18.61096007 | W23: 38.26795927 | X23: 168.9878705 | Y23: 41.09204376 | Z23: 9.701736154 | AA23: 8.005182668 | AB23: 27.73414897 | AC23: 86.53311156 | AD23: 12.46620936 | AE23: 3.114689487 | AF23: 1.961342396 | AG23: 7.379379957 | AH23: 24.9216212 | AI23: 87.76767761 | AJ23: 25.85887739 | AK23: 20.71758709 | AL23: 39.65392158 | AM23: 173.9980637 | AN23: 23.04969573 | AO23: 7.386831368 | AP23: 5.506287171 | AQ23: 13.02258132 | AR23: 48.96539559 | AS23: 8.777761282 | AT23: 2.548382308 | AU23: 1.961342396 | AV23: 4.870738504 | AW23: 18.15822449 | AX23: 98.28161748 | AY23: 24.26179179 | AZ23: 19.80229397 | BA23: 38.36731141 | BB23: 180.7130147 | BC23: 33.19603269 | BD23: 7.483699701 | BE23: 6.203653356 | BF23: 20.84656209 | BG23: 67.72994784 | BH23: 10.03953342 | BI23: 3.050110598 | BJ23: 1.65624469 | BK23: 5.292985085 | BL23: 20.03887379 | BM23: 158.8615829 | BN23: 47.21461919 | BO23: 32.12242991 | BP23: 50.04367128 | BQ23: 288.2423032 | BR23: 48.63783855 | BS23: 15.45422487 | BT23: 13.11920136 | BU23: 32.89300868 | BV23: 110.1042735 | BW23: 15.17107128 | BX23: 5.399788632 | BY23: 29.49277825 | BZ23: 9.470742436 | CA23: 59.5343806 | CB23: 203.2620528 | CC23: 44.00554517 | CD23: 37.74494477 | CE23: 47.45803192 | CF23: 332.4705746 | CG23: 111.6146742 | CH23: 31.33814774 | CI23: 21.87986406 | CJ23: 37.24959987 | CK23: 202.0822859 | CL23: 19.14267295 | CM23: 5.442013291 | CN23: 3.210790144 | CO23: 6.616852308 | CP23: 34.41232869 | CQ23: 199.645635 | CR23: 43.24301752 | CS23: 31.54927103 | CT23: 46.84204868 | CU23: 321.2799722 | CV23: 177.4752057 | CW23: 38.56601568 | CX23: 23.93889735 | CY23: 43.07411889 | CZ23: 283.0542376 | DA23: 40.3916112 | DB23: 18.36524248 | DC23: 23.93889735 | DD23: 15.28284244 | DE23: 97.97859346 | DF23: 203.2620528 | DG23: 44.00554517 | DH23: 32.51050295 | DI23: 47.45803192 | DJ23: 327.2361328 | DK23: 135.01707 | DL23: 29.38339444 | DM23: 17.34439927 | DN23: 33.2755144 | DO23: 215.0203782 | DP23: 28.58112594 | DQ23: 9.182621239 | DR23: 2.379483675 | DS23: 11.74839017 | DT23: 51.89162103 | EN23: 0 | EO23: 0
B24: 0.16 | C24: =B24/Parameters!C13 -> 18.82352941 | D24: Insurance | E24: 382.5206293 | F24: 95.36563226 | G24: 74.95233645 | H24: 240.5687801 | I24: 793.4073782 | J24: 188.4784548 | K24: 47.4381615 | L24: 34.78113849 | M24: 104.6848627 | N24: 375.3826175 | O24: 0 | P24: 0 | Q24: 0 | R24: 0 | S24: 0 | T24: 847.3818258 | U24: 226.2744915 | V24: 181.7655905 | W24: 337.7152994 | X24: 1593.137207 | Y24: 383.9736543 | Z24: 92.20871812 | AA24: 77.1606627 | AB24: 235.3254711 | AC24: 788.6685062 | AD24: 117.9285025 | AE24: 30.28749889 | AF24: 19.07587086 | AG24: 63.77662038 | AH24: 231.0684927 | AI24: 856.2042955 | AJ24: 248.0648988 | AK24: 200.8559898 | AL24: 352.0319424 | AM24: 1657.157127 | AN24: 223.2541865 | AO24: 69.54152812 | AP24: 53.17417162 | AQ24: 113.2018246 | AR24: 459.1717109 | AS24: 85.95946872 | AT24: 24.62194329 | AU24: 19.2502124 | AV24: 42.61213145 | AW24: 172.4437559 | AX24: 941.4037204 | AY24: 231.5749279 | AZ24: 191.3979609 | BA24: 338.7435941 | BB24: 1703.120203 | BC24: 311.7073938 | BD24: 70.95232846 | BE24: 59.49405268 | BF24: 176.9734774 | BG24: 619.1272524 | BH24: 95.36811607 | BI24: 28.47432239 | BJ24: 15.85055225 | BK24: 46.28816051 | BL24: 185.9811512 | BM24: 1539.652612 | BN24: 449.6180949 | BO24: 315.3548003 | BP24: 459.319831 | BQ24: 2763.945338 | BR24: 469.1258869 | BS24: 145.1311176 | BT24: 123.8260833 | BU24: 282.2097444 | BV24: 1020.292832 | BW24: 147.9328478 | BX24: 51.59853222 | BY24: 28.1271028 | BZ24: 82.98387222 | CA24: 310.6423551 | CB24: 1931.107482 | CC24: 416.4791897 | CD24: 373.3524214 | CE24: 432.6139767 | CF24: 3153.55307 | CG24: 1055.54939 | CH24: 285.6746502 | CI24: 209.6166525 | CJ24: 327.2013596 | CK24: 1878.042053 | CL24: 182.7756422 | CM24: 50.00889803 | CN24: 31.09090909 | CO24: 58.3420585 | CP24: 322.2175078 | CQ24: 1893.746111 | CR24: 408.5980814 | CS24: 309.4471327 | CT24: 426.2628913 | CU24: 3038.054216 | CV24: 1664.836304 | CW24: 360.3129429 | CX24: 230.8571088 | CY24: 387.351627 | CZ24: 2643.357983 | DA24: 377.8411437 | DB24: 159.3086675 | DC24: 230.8571088 | DD24: 132.2774349 | DE24: 900.2843548 | DF24: 1931.107482 | DG24: 416.4791897 | DH24: 319.3674436 | DI24: 432.6139767 | DJ24: 3099.568092 | DK24: 1259.963928 | DL24: 273.0842507 | DM24: 166.0397747 | DN24: 297.6590017 | DO24: 1996.746955 | DP24: 271.3679425 | DQ24: 83.16022226 | DR24: 22.99008444 | DS24: 102.1712536 | DT24: 479.6895029 | EA24: Operations/Month | EB24: =SUM(EB4:EB23) -> 0 | EC24: 1 | ED24: 1 | EE24: 1 | EF24: 2 | EG24: 2 | EH24: 1 | EI24: 0 | EJ24: 0 | EK24: 0 | EL24: 0 | EM24: 0 | EN24: =SUM(EN4:EN23)-SUM(EB24:EM24) -> 0
B25: 0.43 | C25: =B25/Parameters!C12 -> 43 | D25: Taxes | E25: 583.7981232 | F25: 144.9572513 | G25: 113.3365336 | H25: 381.7754883 | I25: 1223.867396 | J25: 286.3204391 | K25: 71.89368996 | L25: 52.50586236 | M25: 165.4908542 | N25: 576.2108456 | O25: 0 | P25: 0 | Q25: 0 | R25: 0 | S25: 0 | T25: 1289.72486 | U25: 344.4836638 | V25: 274.8349193 | W25: 529.0550958 | X25: 2438.098539 | Y25: 589.4338731 | Z25: 140.7223665 | AA25: 117.215633 | AB25: 373.9937322 | AC25: 1221.365605 | AD25: 180.2595493 | AE25: 45.86094632 | AF25: 28.85352591 | AG25: 100.6710364 | AH25: 355.6450579 | AI25: 1295.0402 | AJ25: 377.3617696 | AK25: 304.4439252 | AL25: 550.3040341 | AM25: 2527.149929 | AN25: 338.5026651 | AO25: 106.4806526 | AP25: 80.66202209 | AQ25: 178.3147312 | AR25: 703.960071 | AS25: 129.8532427 | AT25: 37.36882244 | AU25: 29.08598131 | AV25: 66.96830778 | AW25: 263.2763543 | AX25: 1432.816775 | AY25: 352.8888545 | AZ25: 290.4094308 | BA25: 530.5801511 | BB25: 2606.695212 | BC25: 477.6875573 | BD25: 108.3683432 | BE25: 90.48326253 | BF25: 281.2087717 | BG25: 957.7479347 | BH25: 145.5707508 | BI25: 43.72239158 | BJ25: 24.1317757 | BK25: 72.74811833 | BL25: 286.1730364 | BM25: 2333.958042 | BN25: 685.6936746 | BO25: 475.9669499 | BP25: 709.543155 | BQ25: 4205.161822 | BR25: 712.3101121 | BS25: 222.3997581 | BT25: 189.3930331 | BU25: 446.6698202 | BV25: 1570.772724 | BW25: 223.7931718 | BX25: 78.59499158 | BY25: 42.90254885 | BZ25: 130.342552 | CA25: 475.6332643 | CB25: 2947.417746 | CC25: 636.5069155 | CD25: 562.0480884 | CE25: 669.9041363 | CF25: 4815.876886 | CG25: 1613.622761 | CH25: 442.3653889 | CI25: 319.0159728 | CJ25: 513.4493589 | CK25: 2888.453482 | CL25: 278.4890069 | CM25: 77.22144829 | CN25: 47.15938828 | CO25: 91.42880385 | CP25: 494.2986473 | CQ25: 2891.964351 | CR25: 624.8082014 | CS25: 467.1984555 | CT25: 660.4781023 | CU25: 4644.44911 | CV25: 2552.212333 | CW25: 553.1455052 | CX25: 350.5540793 | CY25: 602.7247052 | CZ25: 4058.636622 | DA25: 579.7967159 | DB25: 251.1373637 | DC25: 350.5540793 | DD25: 208.6866794 | DE25: 1390.174838 | DF25: 2947.417746 | DG25: 636.5069155 | DH25: 481.9224421 | DI25: 669.9041363 | DJ25: 4735.75124 | DK25: 1935.049278 | DL25: 420.0061905 | DM25: 252.7667387 | DN25: 464.0390575 | DO25: 3071.861265 | DP25: 414.2686046 | DQ25: 129.0782961 | DR25: 34.89247043 | DS25: 160.9156883 | DT25: 739.1550594 | EA25: Custom Cost/Month | EB25: =EB4*$EP4+EB5*$EP5+EB6*$EP6+EB7*$EP7+EB8*$EP8+EB9*$EP9+EB10*$EP10+EB11*$EP11+EB12*$EP12+EB13*$EP13+EB14*$EP14+EB15*$EP15+EB16*$EP16+EB17*$EP17+EB18*$EP18+EB19*$EP19+EB20*$EP20+EB21*$EP21 -> 0 | EC25: 16.64 | ED25: 10.79 | EE25: 17.72 | EF25: 16 | EG25: 5.82 | EH25: 0 | EI25: 0 | EJ25: 0 | EK25: 0 | EL25: 0 | EM25: 0 | EN25: =SUM(EB25:EM25)-EO25 -> 0 | EO25: =SUM(EO4:EO23) -> 66.97
B26: 2.47 | C26: =B26/Parameters!C11 -> 29.05882353 | D26: Interest | E26: 382.5206293 | F26: 95.36563226 | G26: 74.95233645 | H26: 240.5687801 | I26: 793.4073782 | J26: 188.4784548 | K26: 47.4381615 | L26: 34.78113849 | M26: 104.6848627 | N26: 375.3826175 | O26: 0 | P26: 0 | Q26: 0 | R26: 0 | S26: 0 | T26: 847.3818258 | U26: 226.2744915 | V26: 181.7655905 | W26: 337.7152994 | X26: 1593.137207 | Y26: 383.9736543 | Z26: 92.20871812 | AA26: 77.1606627 | AB26: 235.3254711 | AC26: 788.6685062 | AD26: 117.9285025 | AE26: 30.28749889 | AF26: 19.07587086 | AG26: 63.77662038 | AH26: 231.0684927 | AI26: 856.2042955 | AJ26: 248.0648988 | AK26: 200.8559898 | AL26: 352.0319424 | AM26: 1657.157127 | AN26: 223.2541865 | AO26: 69.54152812 | AP26: 24.11724724 | AQ26: 113.2018246 | AR26: 430.1147865 | AS26: 85.95946872 | AT26: 24.62194329 | AU26: 19.2502124 | AV26: 42.61213145 | AW26: 172.4437559 | AX26: 941.4037204 | AY26: 231.5749279 | AZ26: 191.3979609 | BA26: 338.7435941 | BB26: 1703.120203 | BC26: 311.7073938 | BD26: 70.95232846 | BE26: 59.49405268 | BF26: 176.9734774 | BG26: 619.1272524 | BH26: 95.36811607 | BI26: 28.47432239 | BJ26: 15.85055225 | BK26: 46.28816051 | BL26: 185.9811512 | BM26: 1539.652612 | BN26: 449.6180949 | BO26: 315.3548003 | BP26: 459.319831 | BQ26: 2763.945338 | BR26: 469.1258869 | BS26: 145.1311176 | BT26: 123.8260833 | BU26: 282.2097444 | BV26: 1020.292832 | BW26: 147.9328478 | BX26: 51.59853222 | BY26: 28.1271028 | BZ26: 82.98387222 | CA26: 310.6423551 | CB26: 1931.107482 | CC26: 416.4791897 | CD26: 373.3524214 | CE26: 432.6139767 | CF26: 3153.55307 | CG26: 1055.54939 | CH26: 285.6746502 | CI26: 209.6166525 | CJ26: 327.2013596 | CK26: 1878.042053 | CL26: 182.7756422 | CM26: 50.00889803 | CN26: 31.09090909 | CO26: 58.3420585 | CP26: 322.2175078 | CQ26: 1893.746111 | CR26: 408.5980814 | CS26: 309.4471327 | CT26: 426.2628913 | CU26: 3038.054216 | CV26: 1664.836304 | CW26: 360.3129429 | CX26: 230.8571088 | CY26: 387.351627 | CZ26: 2643.357983 | DA26: 377.8411437 | DB26: 159.3086675 | DC26: 230.8571088 | DD26: 132.2774349 | DE26: 900.2843548 | DF26: 1931.107482 | DG26: 416.4791897 | DH26: 319.3674436 | DI26: 432.6139767 | DJ26: 3099.568092 | DK26: 1259.963928 | DL26: 273.0842507 | DM26: 166.0397747 | DN26: 297.6590017 | DO26: 1996.746955 | DP26: 271.3679425 | DQ26: 83.16022226 | DR26: 22.99008444 | DS26: 102.1712536 | DT26: 479.6895029
D27: Ttl Variable Costs | E27: =(SUM(E20:E21)*Parameters!$C$9)+E22 -> 29.91780038 | F27: =(SUM(F20:F21)*Parameters!$C$9)+F22 -> 8.79044312 | G27: =(SUM(G20:G21)*Parameters!$C$9)+G22 -> 7.261395497 | H27: =(SUM(H20:H21)*Parameters!$C$9)+H22 -> 8.565308803 | I27: =(SUM(I20:I21)*Parameters!$C$9)+I22 -> 54.5349478 | J27: =(SUM(J20:J21)*Parameters!$C$9)+J22 -> 28.45371697 | K27: =(SUM(K20:K21)*Parameters!$C$9)+K22 -> 9.366685513 | L27: =(SUM(L20:L21)*Parameters!$C$9)+L22 -> 5.369509346 | M27: =(SUM(M20:M21)*Parameters!$C$9)+M22 -> 9.064553291 | N27: =(SUM(N20:N21)*Parameters!$C$9)+N22 -> 52.25446512 | O27: =(SUM(O20:O21)*Parameters!$C$9)+O22 -> 0 | P27: =(SUM(P20:P21)*Parameters!$C$9)+P22 -> 0 | Q27: =(SUM(Q20:Q21)*Parameters!$C$9)+Q22 -> 0 | R27: =(SUM(R20:R21)*Parameters!$C$9)+R22 -> 0 | S27: =(SUM(S20:S21)*Parameters!$C$9)+S22 -> 0 | T27: =(SUM(T20:T21)*Parameters!$C$9)+T22 -> 28.64360923 | U27: =(SUM(U20:U21)*Parameters!$C$9)+U22 -> 8.447678248 | V27: =(SUM(V20:V21)*Parameters!$C$9)+V22 -> 6.970826253 | W27: =(SUM(W20:W21)*Parameters!$C$9)+W22 -> 8.336798889 | X27: =(SUM(X20:X21)*Parameters!$C$9)+X22 -> 52.39891262 | Y27: =(SUM(Y20:Y21)*Parameters!$C$9)+Y22 -> 30.05192577 | Z27: =(SUM(Z20:Z21)*Parameters!$C$9)+Z22 -> 8.825216368 | AA27: =(SUM(AA20:AA21)*Parameters!$C$9)+AA22 -> 7.261395497 | AB27: =(SUM(AB20:AB21)*Parameters!$C$9)+AB22 -> 8.605049658 | AC27: =(SUM(AC20:AC21)*Parameters!$C$9)+AC22 -> 54.74358729 | AD27: =(SUM(AD20:AD21)*Parameters!$C$9)+AD22 -> 30.41343786 | AE27: =(SUM(AE20:AE21)*Parameters!$C$9)+AE22 -> 10.00502299 | AF27: =(SUM(AF20:AF21)*Parameters!$C$9)+AF22 -> 5.616493203 | AG27: =(SUM(AG20:AG21)*Parameters!$C$9)+AG22 -> 9.63831188 | AH27: =(SUM(AH20:AH21)*Parameters!$C$9)+AH22 -> 55.67326594 | AI27: =(SUM(AI20:AI21)*Parameters!$C$9)+AI22 -> 28.57406274 | AJ27: =(SUM(AJ20:AJ21)*Parameters!$C$9)+AJ22 -> 8.425324017 | AK27: =(SUM(AK20:AK21)*Parameters!$C$9)+AK22 -> 6.956297791 | AL27: =(SUM(AL20:AL21)*Parameters!$C$9)+AL22 -> 8.321896068 | AM27: =(SUM(AM20:AM21)*Parameters!$C$9)+AM22 -> 52.27758061 | AN27: =(SUM(AN20:AN21)*Parameters!$C$9)+AN22 -> 31.0926394 | AO27: =(SUM(AO20:AO21)*Parameters!$C$9)+AO22 -> 9.053726282 | AP27: =(SUM(AP20:AP21)*Parameters!$C$9)+AP22 -> 7.47932243 | AQ27: =(SUM(AQ20:AQ21)*Parameters!$C$9)+AQ22 -> 8.918008889 | AR27: =(SUM(AR20:AR21)*Parameters!$C$9)+AR22 -> 56.543697 | AS27: =(SUM(AS20:AS21)*Parameters!$C$9)+AS22 -> 31.77456214 | AT27: =(SUM(AT20:AT21)*Parameters!$C$9)+AT22 -> 10.42230197 | AU27: =(SUM(AU20:AU21)*Parameters!$C$9)+AU22 -> 5.601964741 | AV27: =(SUM(AV20:AV21)*Parameters!$C$9)+AV22 -> 10.21455427 | AW27: =(SUM(AW20:AW21)*Parameters!$C$9)+AW22 -> 58.01338312 | AX27: =(SUM(AX20:AX21)*Parameters!$C$9)+AX22 -> 32.69529564 | AY27: =(SUM(AY20:AY21)*Parameters!$C$9)+AY22 -> 8.442710641 | AZ27: =(SUM(AZ20:AZ21)*Parameters!$C$9)+AZ22 -> 6.970826253 | BA27: =(SUM(BA20:BA21)*Parameters!$C$9)+BA22 -> 8.336798889 | BB27: =(SUM(BB20:BB21)*Parameters!$C$9)+BB22 -> 56.44563142 | BC27: =(SUM(BC20:BC21)*Parameters!$C$9)+BC22 -> 35.2089047 | BD27: =(SUM(BD20:BD21)*Parameters!$C$9)+BD22 -> 9.016469231 | BE27: =(SUM(BE20:BE21)*Parameters!$C$9)+BE22 -> 7.421208581 | BF27: =(SUM(BF20:BF21)*Parameters!$C$9)+BF22 -> 8.771464487 | BG27: =(SUM(BG20:BG21)*Parameters!$C$9)+BG22 -> 60.418047 | BH27: =(SUM(BH20:BH21)*Parameters!$C$9)+BH22 -> 36.50798829 | BI27: =(SUM(BI20:BI21)*Parameters!$C$9)+BI22 -> 9.488692009 | BJ27: =(SUM(BJ20:BJ21)*Parameters!$C$9)+BJ22 -> 5.747249363 | BK27: =(SUM(BK20:BK21)*Parameters!$C$9)+BK22 -> 10.04565564 | BL27: =(SUM(BL20:BL21)*Parameters!$C$9)+BL22 -> 61.7895853 | BM27: =(SUM(BM20:BM21)*Parameters!$C$9)+BM22 -> 28.19900842 | BN27: =(SUM(BN20:BN21)*Parameters!$C$9)+BN22 -> 8.323488077 | BO27: =(SUM(BO20:BO21)*Parameters!$C$9)+BO22 -> 6.88365548 | BP27: =(SUM(BP20:BP21)*Parameters!$C$9)+BP22 -> 8.257317179 | BQ27: =(SUM(BQ20:BQ21)*Parameters!$C$9)+BQ22 -> 51.66346916 | BR27: =(SUM(BR20:BR21)*Parameters!$C$9)+BR22 -> 29.35646081 | BS27: =(SUM(BS20:BS21)*Parameters!$C$9)+BS22 -> 8.611609274 | BT27: =(SUM(BT20:BT21)*Parameters!$C$9)+BT22 -> 7.116110875 | BU27: =(SUM(BU20:BU21)*Parameters!$C$9)+BU22 -> 8.458505256 | BV27: =(SUM(BV20:BV21)*Parameters!$C$9)+BV22 -> 53.54268622 | BW27: =(SUM(BW20:BW21)*Parameters!$C$9)+BW22 -> 28.77412761 | BX27: =(SUM(BX20:BX21)*Parameters!$C$9)+BX22 -> 9.299622821 | BY27: =(SUM(BY20:BY21)*Parameters!$C$9)+BY22 -> 5.456680119 | BZ27: =(SUM(BZ20:BZ21)*Parameters!$C$9)+BZ22 -> 9.166389231 | CA27: =(SUM(CA20:CA21)*Parameters!$C$9)+CA22 -> 52.69681978 | CB27: =(SUM(CB20:CB21)*Parameters!$C$9)+CB22 -> 38.1673603 | CC27: =(SUM(CC20:CC21)*Parameters!$C$9)+CC22 -> 8.335907094 | CD27: =(SUM(CD20:CD21)*Parameters!$C$9)+CD22 -> 6.854598556 | CE27: =(SUM(CE20:CE21)*Parameters!$C$9)+CE22 -> 8.267252393 | CF27: =(SUM(CF20:CF21)*Parameters!$C$9)+CF22 -> 61.62511834 | CG27: =(SUM(CG20:CG21)*Parameters!$C$9)+CG22 -> 38.86530906 | CH27: =(SUM(CH20:CH21)*Parameters!$C$9)+CH22 -> 8.440226838 | CI27: =(SUM(CI20:CI21)*Parameters!$C$9)+CI22 -> 6.956297791 | CJ27: =(SUM(CJ20:CJ21)*Parameters!$C$9)+CJ22 -> 8.351701709 | CK27: =(SUM(CK20:CK21)*Parameters!$C$9)+CK22 -> 62.6135354 | CL27: =(SUM(CL20:CL21)*Parameters!$C$9)+CL22 -> 41.96645632 | CM27: =(SUM(CM20:CM21)*Parameters!$C$9)+CM22 -> 9.528132735 | CN27: =(SUM(CN20:CN21)*Parameters!$C$9)+CN22 -> 5.39856627 | CO27: =(SUM(CO20:CO21)*Parameters!$C$9)+CO22 -> 9.573732991 | CP27: =(SUM(CP20:CP21)*Parameters!$C$9)+CP22 -> 66.46688832 | CQ27: =(SUM(CQ20:CQ21)*Parameters!$C$9)+CQ22 -> 38.18474692 | CR27: =(SUM(CR20:CR21)*Parameters!$C$9)+CR22 -> 8.338390897 | CS27: =(SUM(CS20:CS21)*Parameters!$C$9)+CS22 -> 3.400778419 | CT27: =(SUM(CT20:CT21)*Parameters!$C$9)+CT22 -> 8.269736197 | CU27: =(SUM(CU20:CU21)*Parameters!$C$9)+CU22 -> 58.19365244 | CV27: =(SUM(CV20:CV21)*Parameters!$C$9)+CV22 -> 38.30893709 | CW27: =(SUM(CW20:CW21)*Parameters!$C$9)+CW22 -> 8.365712735 | CX27: =(SUM(CX20:CX21)*Parameters!$C$9)+CX22 -> 3.413197436 | CY27: =(SUM(CY20:CY21)*Parameters!$C$9)+CY22 -> 8.292090427 | CZ27: =(SUM(CZ20:CZ21)*Parameters!$C$9)+CZ22 -> 58.37993769 | DA27: =(SUM(DA20:DA21)*Parameters!$C$9)+DA22 -> 41.55278436 | DB27: =(SUM(DB20:DB21)*Parameters!$C$9)+DB22 -> 8.88482765 | DC27: =(SUM(DC20:DC21)*Parameters!$C$9)+DC22 -> 3.413197436 | DD27: =(SUM(DD20:DD21)*Parameters!$C$9)+DD22 -> 8.821140556 | DE27: =(SUM(DE20:DE21)*Parameters!$C$9)+DE22 -> 62.67195 | DF27: =(SUM(DF20:DF21)*Parameters!$C$9)+DF22 -> 38.1673603 | DG27: =(SUM(DG20:DG21)*Parameters!$C$9)+DG22 -> 8.335907094 | DH27: =(SUM(DH20:DH21)*Parameters!$C$9)+DH22 -> 3.400778419 | DI27: =(SUM(DI20:DI21)*Parameters!$C$9)+DI22 -> 8.267252393 | DJ27: =(SUM(DJ20:DJ21)*Parameters!$C$9)+DJ22 -> 58.17129821 | DK27: =(SUM(DK20:DK21)*Parameters!$C$9)+DK22 -> 38.62934774 | DL27: =(SUM(DL20:DL21)*Parameters!$C$9)+DL22 -> 8.425324017 | DM27: =(SUM(DM20:DM21)*Parameters!$C$9)+DM22 -> 3.433067863 | DN27: =(SUM(DN20:DN21)*Parameters!$C$9)+DN22 -> 8.35915312 | DO27: =(SUM(DO20:DO21)*Parameters!$C$9)+DO22 -> 58.84689274 | DP27: =(SUM(DP20:DP21)*Parameters!$C$9)+DP22 -> 39.5497156 | DQ27: =(SUM(DQ20:DQ21)*Parameters!$C$9)+DQ22 -> 9.073596709 | DR27: =(SUM(DR20:DR21)*Parameters!$C$9)+DR22 -> 2.648151709 | DS27: =(SUM(DS20:DS21)*Parameters!$C$9)+DS22 -> 9.004942009 | DT27: =(SUM(DT20:DT21)*Parameters!$C$9)+DT22 -> 60.27640603 | DZ27: 2 | EA27: Offset Disc | ED27: 1 | EN27: =SUM(EB27:EM27) -> 1 | EO27: =EN27*EP27 -> 10.79 | EP27: 10.79
D28: Ttl Fixed Costs | E28: =E23+E24*Parameters!$C$13+E25*Parameters!$C$12+E26*Parameters!$C$11 -> 81.85866208 | F28: =F23+F24*Parameters!$C$13+F25*Parameters!$C$12+F26*Parameters!$C$11 -> 20.28408618 | G28: =G23+G24*Parameters!$C$13+G25*Parameters!$C$12+G26*Parameters!$C$11 -> 15.81243683 | H28: =H23+H24*Parameters!$C$13+H25*Parameters!$C$12+H26*Parameters!$C$11 -> 54.5517807 | I28: =I23+I24*Parameters!$C$13+I25*Parameters!$C$12+I26*Parameters!$C$11 -> 172.5069658 | J28: =J23+J24*Parameters!$C$13+J25*Parameters!$C$12+J26*Parameters!$C$11 -> 40.05334325 | K28: =K23+K24*Parameters!$C$13+K25*Parameters!$C$12+K26*Parameters!$C$11 -> 10.04501393 | L28: =L23+L24*Parameters!$C$13+L25*Parameters!$C$12+L26*Parameters!$C$11 -> 7.322039847 | M28: =M23+M24*Parameters!$C$13+M25*Parameters!$C$12+M26*Parameters!$C$11 -> 23.60364474 | N28: =N23+N24*Parameters!$C$13+N25*Parameters!$C$12+N26*Parameters!$C$11 -> 81.02404177 | O28: =O23+O24*Parameters!$C$13+O25*Parameters!$C$12+O26*Parameters!$C$11 -> 0 | P28: =P23+P24*Parameters!$C$13+P25*Parameters!$C$12+P26*Parameters!$C$11 -> 0 | Q28: =Q23+Q24*Parameters!$C$13+Q25*Parameters!$C$12+Q26*Parameters!$C$11 -> 0 | R28: =R23+R24*Parameters!$C$13+R25*Parameters!$C$12+R26*Parameters!$C$11 -> 0 | S28: =S23+S24*Parameters!$C$13+S25*Parameters!$C$12+S26*Parameters!$C$11 -> 0 | T28: =T23+T24*Parameters!$C$13+T25*Parameters!$C$12+T26*Parameters!$C$11 -> 180.5955595 | U28: =U23+U24*Parameters!$C$13+U25*Parameters!$C$12+U26*Parameters!$C$11 -> 48.24234253 | V28: =V23+V24*Parameters!$C$13+V25*Parameters!$C$12+V26*Parameters!$C$11 -> 38.35439197 | W28: =W23+W24*Parameters!$C$13+W25*Parameters!$C$12+W26*Parameters!$C$11 -> 75.13489073 | X28: =X23+X24*Parameters!$C$13+X25*Parameters!$C$12+X26*Parameters!$C$11 -> 342.3271847 | Y28: =Y23+Y24*Parameters!$C$13+Y25*Parameters!$C$12+Y26*Parameters!$C$11 -> 82.88791917 | Z28: =Z23+Z24*Parameters!$C$13+Z25*Parameters!$C$12+Z26*Parameters!$C$11 -> 19.73047496 | AA28: =AA23+AA24*Parameters!$C$13+AA25*Parameters!$C$12+AA26*Parameters!$C$11 -> 16.39186096 | AB28: =AB23+AB24*Parameters!$C$13+AB25*Parameters!$C$12+AB26*Parameters!$C$11 -> 53.47701785 | AC28: =AC23+AC24*Parameters!$C$13+AC25*Parameters!$C$12+AC26*Parameters!$C$11 -> 172.4872729 | AD28: =AD23+AD24*Parameters!$C$13+AD25*Parameters!$C$12+AD26*Parameters!$C$11 -> 25.29511984 | AE28: =AE23+AE24*Parameters!$C$13+AE25*Parameters!$C$12+AE26*Parameters!$C$11 -> 6.405180097 | AF28: =AF23+AF24*Parameters!$C$13+AF25*Parameters!$C$12+AF26*Parameters!$C$11 -> 4.03347158 | AG28: =AG23+AG24*Parameters!$C$13+AG25*Parameters!$C$12+AG26*Parameters!$C$11 -> 14.34920433 | AH28: =AH23+AH24*Parameters!$C$13+AH25*Parameters!$C$12+AH26*Parameters!$C$11 -> 50.08297584 | AI28: =AI23+AI24*Parameters!$C$13+AI25*Parameters!$C$12+AI26*Parameters!$C$11 -> 180.7731812 | AJ28: =AJ23+AJ24*Parameters!$C$13+AJ25*Parameters!$C$12+AJ26*Parameters!$C$11 -> 52.82656313 | AK28: =AK23+AK24*Parameters!$C$13+AK25*Parameters!$C$12+AK26*Parameters!$C$11 -> 42.54206138 | AL28: =AL23+AL24*Parameters!$C$13+AL25*Parameters!$C$12+AL26*Parameters!$C$11 -> 78.07194853 | AM28: =AM23+AM24*Parameters!$C$13+AM25*Parameters!$C$12+AM26*Parameters!$C$11 -> 354.2137543 | AN28: =AN23+AN24*Parameters!$C$13+AN25*Parameters!$C$12+AN26*Parameters!$C$11 -> 47.30898882 | AO28: =AO23+AO24*Parameters!$C$13+AO25*Parameters!$C$12+AO26*Parameters!$C$11 -> 14.95377077 | AP28: =AP23+AP24*Parameters!$C$13+AP25*Parameters!$C$12+AP26*Parameters!$C$11 -> 8.814853866 | AQ28: =AQ23+AQ24*Parameters!$C$13+AQ25*Parameters!$C$12+AQ26*Parameters!$C$11 -> 25.39009924 | AR28: =AR23+AR24*Parameters!$C$13+AR25*Parameters!$C$12+AR26*Parameters!$C$11 -> 96.46771269 | AS28: =AS23+AS24*Parameters!$C$13+AS25*Parameters!$C$12+AS26*Parameters!$C$11 -> 18.11350403 | AT28: =AT23+AT24*Parameters!$C$13+AT25*Parameters!$C$12+AT26*Parameters!$C$11 -> 5.22422223 | AU28: =AU23+AU24*Parameters!$C$13+AU25*Parameters!$C$12+AU26*Parameters!$C$11 -> 4.052097069 | AV28: =AV23+AV24*Parameters!$C$13+AV25*Parameters!$C$12+AV26*Parameters!$C$11 -> 9.524655873 | AW28: =AW23+AW24*Parameters!$C$13+AW25*Parameters!$C$12+AW26*Parameters!$C$11 -> 36.91447921 | AX28: =AX23+AX24*Parameters!$C$13+AX25*Parameters!$C$12+AX26*Parameters!$C$11 -> 200.6310331 | AY28: =AY23+AY24*Parameters!$C$13+AY25*Parameters!$C$12+AY26*Parameters!$C$11 -> 49.4429361 | AZ28: =AZ23+AZ24*Parameters!$C$13+AZ25*Parameters!$C$12+AZ26*Parameters!$C$11 -> 40.60209762 | BA28: =BA23+BA24*Parameters!$C$13+BA25*Parameters!$C$12+BA26*Parameters!$C$11 -> 75.34563897 | BB28: =BB23+BB24*Parameters!$C$13+BB25*Parameters!$C$12+BB26*Parameters!$C$11 -> 366.0217058 | BC28: =BC23+BC24*Parameters!$C$13+BC25*Parameters!$C$12+BC26*Parameters!$C$11 -> 67.11754959 | BD28: =BD23+BD24*Parameters!$C$13+BD25*Parameters!$C$12+BD26*Parameters!$C$11 -> 15.20142584 | BE28: =BE23+BE24*Parameters!$C$13+BE25*Parameters!$C$12+BE26*Parameters!$C$11 -> 12.67117991 | BF28: =BF23+BF24*Parameters!$C$13+BF25*Parameters!$C$12+BF26*Parameters!$C$11 -> 40.20566995 | BG28: =BG23+BG24*Parameters!$C$13+BG25*Parameters!$C$12+BG26*Parameters!$C$11 -> 135.1958253 | BH28: =BH23+BH24*Parameters!$C$13+BH25*Parameters!$C$12+BH26*Parameters!$C$11 -> 20.41215978 | BI28: =BI23+BI24*Parameters!$C$13+BI25*Parameters!$C$12+BI26*Parameters!$C$11 -> 6.149683658 | BJ28: =BJ23+BJ24*Parameters!$C$13+BJ25*Parameters!$C$12+BJ26*Parameters!$C$11 -> 3.379589082 | BK28: =BK23+BK24*Parameters!$C$13+BK25*Parameters!$C$12+BK26*Parameters!$C$11 -> 10.34840928 | BL28: =BL23+BL24*Parameters!$C$13+BL25*Parameters!$C$12+BL26*Parameters!$C$11 -> 40.2898418 | BM28: =BM23+BM24*Parameters!$C$13+BM25*Parameters!$C$12+BM26*Parameters!$C$11 -> 326.1586825 | BN28: =BN23+BN24*Parameters!$C$13+BN25*Parameters!$C$12+BN26*Parameters!$C$11 -> 96.1108478 | BO28: =BO23+BO24*Parameters!$C$13+BO25*Parameters!$C$12+BO26*Parameters!$C$11 -> 66.36777324 | BP28: =BP23+BP24*Parameters!$C$13+BP25*Parameters!$C$12+BP26*Parameters!$C$11 -> 100.085507 | BQ28: =BQ23+BQ24*Parameters!$C$13+BQ25*Parameters!$C$12+BQ26*Parameters!$C$11 -> 588.7228106 | BR28: =BR23+BR24*Parameters!$C$13+BR25*Parameters!$C$12+BR26*Parameters!$C$11 -> 99.62421009 | BS28: =BS23+BS24*Parameters!$C$13+BS25*Parameters!$C$12+BS26*Parameters!$C$11 -> 31.24798195 | BT28: =BT23+BT24*Parameters!$C$13+BT25*Parameters!$C$12+BT26*Parameters!$C$11 -> 26.59087048 | BU28: =BU23+BU24*Parameters!$C$13+BU25*Parameters!$C$12+BU26*Parameters!$C$11 -> 63.74631798 | BV28: =BV23+BV24*Parameters!$C$13+BV25*Parameters!$C$12+BV26*Parameters!$C$11 -> 221.2093805 | BW28: =BW23+BW24*Parameters!$C$13+BW25*Parameters!$C$12+BW26*Parameters!$C$11 -> 31.24072427 | BX28: =BX23+BX24*Parameters!$C$13+BX25*Parameters!$C$12+BX26*Parameters!$C$11 -> 11.01020131 | BY28: =BY23+BY24*Parameters!$C$13+BY25*Parameters!$C$12+BY26*Parameters!$C$11 -> 32.55168785 | BZ28: =BZ23+BZ24*Parameters!$C$13+BZ25*Parameters!$C$12+BZ26*Parameters!$C$11 -> 18.53316001 | CA28: =CA23+CA24*Parameters!$C$13+CA25*Parameters!$C$12+CA26*Parameters!$C$11 -> 93.33577344 | CB28: =CB23+CB24*Parameters!$C$13+CB25*Parameters!$C$12+CB26*Parameters!$C$11 -> 413.2947798 | CC28: =CC23+CC24*Parameters!$C$13+CC25*Parameters!$C$12+CC26*Parameters!$C$11 -> 89.31141856 | CD28: =CD23+CD24*Parameters!$C$13+CD25*Parameters!$C$12+CD26*Parameters!$C$11 -> 78.27387706 | CE28: =CE23+CE24*Parameters!$C$13+CE25*Parameters!$C$12+CE26*Parameters!$C$11 -> 94.6064801 | CF28: =CF23+CF24*Parameters!$C$13+CF25*Parameters!$C$12+CF26*Parameters!$C$11 -> 675.4865555 | CG28: =CG23+CG24*Parameters!$C$13+CG25*Parameters!$C$12+CG26*Parameters!$C$11 -> 226.4447698 | CH28: =CH23+CH24*Parameters!$C$13+CH25*Parameters!$C$12+CH26*Parameters!$C$11 -> 62.47238142 | CI28: =CI23+CI24*Parameters!$C$13+CI25*Parameters!$C$12+CI26*Parameters!$C$11 -> 44.6691808 | CJ28: =CJ23+CJ24*Parameters!$C$13+CJ25*Parameters!$C$12+CJ26*Parameters!$C$11 -> 72.97742058 | CK28: =CK23+CK24*Parameters!$C$13+CK25*Parameters!$C$12+CK26*Parameters!$C$11 -> 406.5637526 | CL28: =CL23+CL24*Parameters!$C$13+CL25*Parameters!$C$12+CL26*Parameters!$C$11 -> 39.01708556 | CM28: =CM23+CM24*Parameters!$C$13+CM25*Parameters!$C$12+CM26*Parameters!$C$11 -> 10.89005974 | CN28: =CN23+CN24*Parameters!$C$13+CN25*Parameters!$C$12+CN26*Parameters!$C$11 -> 6.589384027 | CO28: =CO23+CO24*Parameters!$C$13+CO25*Parameters!$C$12+CO26*Parameters!$C$11 -> 12.98612282 | CP28: =CP23+CP24*Parameters!$C$13+CP25*Parameters!$C$12+CP26*Parameters!$C$11 -> 69.48265214 | CQ28: =CQ23+CQ24*Parameters!$C$13+CQ25*Parameters!$C$12+CQ26*Parameters!$C$11 -> 405.6305399 | CR28: =CR23+CR24*Parameters!$C$13+CR25*Parameters!$C$12+CR26*Parameters!$C$11 -> 87.69502015 | CS28: =CS23+CS24*Parameters!$C$13+CS25*Parameters!$C$12+CS26*Parameters!$C$11 -> 65.15456249 | CT28: =CT23+CT24*Parameters!$C$13+CT25*Parameters!$C$12+CT26*Parameters!$C$11 -> 93.30241004 | CU28: =CU23+CU24*Parameters!$C$13+CU25*Parameters!$C$12+CU26*Parameters!$C$11 -> 651.7825326 | CV28: =CV23+CV24*Parameters!$C$13+CV25*Parameters!$C$12+CV26*Parameters!$C$11 -> 358.6595234 | CW28: =CW23+CW24*Parameters!$C$13+CW25*Parameters!$C$12+CW26*Parameters!$C$11 -> 77.7867309 | CX28: =CX23+CX24*Parameters!$C$13+CX25*Parameters!$C$12+CX26*Parameters!$C$11 -> 49.02957781 | CY28: =CY23+CY24*Parameters!$C$13+CY25*Parameters!$C$12+CY26*Parameters!$C$11 -> 85.31874306 | CZ28: =CZ23+CZ24*Parameters!$C$13+CZ25*Parameters!$C$12+CZ26*Parameters!$C$11 -> 570.7945752 | DA28: =DA23+DA24*Parameters!$C$13+DA25*Parameters!$C$12+DA26*Parameters!$C$11 -> 81.51772529 | DB28: =DB23+DB24*Parameters!$C$13+DB25*Parameters!$C$12+DB26*Parameters!$C$11 -> 35.77197652 | DC28: =DC23+DC24*Parameters!$C$13+DC25*Parameters!$C$12+DC26*Parameters!$C$11 -> 49.02957781 | DD28: =DD23+DD24*Parameters!$C$13+DD25*Parameters!$C$12+DD26*Parameters!$C$11 -> 29.73764939 | DE28: =DE23+DE24*Parameters!$C$13+DE25*Parameters!$C$12+DE26*Parameters!$C$11 -> 196.056929 | DF28: =DF23+DF24*Parameters!$C$13+DF25*Parameters!$C$12+DF26*Parameters!$C$11 -> 413.2947798 | DG28: =DG23+DG24*Parameters!$C$13+DG25*Parameters!$C$12+DG26*Parameters!$C$11 -> 89.31141856 | DH28: =DH23+DH24*Parameters!$C$13+DH25*Parameters!$C$12+DH26*Parameters!$C$11 -> 67.19058335 | DI28: =DI23+DI24*Parameters!$C$13+DI25*Parameters!$C$12+DI26*Parameters!$C$11 -> 94.6064801 | DJ28: =DJ23+DJ24*Parameters!$C$13+DJ25*Parameters!$C$12+DJ26*Parameters!$C$11 -> 664.4032618 | DK28: =DK23+DK24*Parameters!$C$13+DK25*Parameters!$C$12+DK26*Parameters!$C$11 -> 272.1741901 | DL28: =DL23+DL24*Parameters!$C$13+DL25*Parameters!$C$12+DL26*Parameters!$C$11 -> 59.11683379 | DM28: =DM23+DM24*Parameters!$C$13+DM25*Parameters!$C$12+DM26*Parameters!$C$11 -> 35.3967856 | DN28: =DN23+DN24*Parameters!$C$13+DN25*Parameters!$C$12+DN26*Parameters!$C$11 -> 65.74702164 | DO28: =DO23+DO24*Parameters!$C$13+DO25*Parameters!$C$12+DO26*Parameters!$C$11 -> 432.4348311 | DP28: =DP23+DP24*Parameters!$C$13+DP25*Parameters!$C$12+DP26*Parameters!$C$11 -> 58.09671461 | DQ28: =DQ23+DQ24*Parameters!$C$13+DQ25*Parameters!$C$12+DQ26*Parameters!$C$11 -> 18.24888498 | DR28: =DR23+DR24*Parameters!$C$13+DR25*Parameters!$C$12+DR26*Parameters!$C$11 -> 4.877981275 | DS28: =DS23+DS24*Parameters!$C$13+DS25*Parameters!$C$12+DS26*Parameters!$C$11 -> 22.91055927 | DT28: =DT23+DT24*Parameters!$C$13+DT25*Parameters!$C$12+DT26*Parameters!$C$11 -> 104.1341401 | EA28: Chisel | EC28: 1 | EN28: 1 | EO28: 16.64 | EP28: 16.64
D29: Labor Hrs. | E29: 0.651 | F29: 0.173 | G29: 0.16 | H29: 0.14 | I29: =+SUM(E29:H29) -> 1.124 | J29: 0.651 | K29: 0.173 | L29: 0.16 | M29: 0.14 | N29: =+SUM(J29:M29) -> 1.124 | S29: =+SUM(O29:R29) -> 0 | T29: 0.651 | U29: 0.173 | V29: 0.16 | W29: 0.14 | X29: =+SUM(T29:W29) -> 1.124 | Y29: 0.651 | Z29: 0.173 | AA29: 0.16 | AB29: 0.14 | AC29: =+SUM(Y29:AB29) -> 1.124 | AD29: 0.651 | AE29: 0.173 | AF29: 0.16 | AG29: 0.14 | AH29: =+SUM(AD29:AG29) -> 1.124 | AI29: 0.651 | AJ29: 0.173 | AK29: 0.16 | AL29: 0.14 | AM29: =+SUM(AI29:AL29) -> 1.124 | AN29: 0.651 | AO29: 0.173 | AP29: 0.16 | AQ29: 0.14 | AR29: =+SUM(AN29:AQ29) -> 1.124 | AS29: 0.651 | AT29: 0.173 | AU29: 0.16 | AV29: 0.14 | AW29: =+SUM(AS29:AV29) -> 1.124 | AX29: 0.718 | AY29: 0.173 | AZ29: 0.16 | BA29: 0.14 | BB29: =+SUM(AX29:BA29) -> 1.191 | BC29: 0.718 | BD29: 0.173 | BE29: 0.16 | BF29: 0.14 | BG29: =+SUM(BC29:BF29) -> 1.191 | BH29: 0.754 | BI29: 0.173 | BJ29: 0.16 | BK29: 0.14 | BL29: =+SUM(BH29:BK29) -> 1.227 | BM29: 0.651 | BN29: 0.173 | BO29: 0.16 | BP29: 0.14 | BQ29: =+SUM(BM29:BP29) -> 1.124 | BR29: 0.651 | BS29: 0.173 | BT29: 0.16 | BU29: 0.14 | BV29: =+SUM(BR29:BU29) -> 1.124 | BW29: 0.651 | BX29: 0.173 | BY29: 0.16 | BZ29: 0.14 | CA29: =+SUM(BW29:BZ29) -> 1.124 | CB29: 0.821 | CC29: 0.173 | CD29: 0.16 | CE29: 0.14 | CF29: =+SUM(CB29:CE29) -> 1.294 | CG29: 0.821 | CH29: 0.173 | CI29: 0.16 | CJ29: 0.14 | CK29: =+SUM(CG29:CJ29) -> 1.294 | CL29: 0.821 | CM29: 0.173 | CN29: 0.16 | CO29: 0.14 | CP29: =+SUM(CL29:CO29) -> 1.294 | CQ29: 0.821 | CR29: 0.173 | CS29: 0.079 | CT29: 0.14 | CU29: =+SUM(CQ29:CT29) -> 1.213 | CV29: 0.821 | CW29: 0.173 | CX29: 0.079 | CY29: 0.14 | CZ29: =+SUM(CV29:CY29) -> 1.213 | DA29: 0.821 | DB29: 0.173 | DC29: 0.079 | DD29: 0.14 | DE29: =+SUM(DA29:DD29) -> 1.213 | DF29: 0.821 | DG29: 0.173 | DH29: 0.079 | DI29: 0.14 | DJ29: =+SUM(DF29:DI29) -> 1.213 | DK29: 0.821 | DL29: 0.173 | DM29: 0.079 | DN29: 0.14 | DO29: =+SUM(DK29:DN29) -> 1.213 | DP29: 0.821 | DQ29: 0.173 | DR29: 0.079 | DS29: 0.14 | DT29: =+SUM(DP29:DS29) -> 1.213 | EA29: Anhy. App. | EE29: 1 | EN29: 1 | EO29: 17.72 | EP29: 17.72
D30: Tractor 1 | I30: 160 | N30: 160 | X30: 160 | AC30: 160 | AH30: 160 | AM30: 160 | AR30: 160 | AW30: 160 | BB30: 160 | BG30: 160 | BL30: 160 | BQ30: 160 | BV30: 160 | CA30: 160 | CF30: 160 | CK30: 160 | CP30: 160 | CU30: 160 | CZ30: 160 | DE30: 160 | DJ30: 160 | DO30: 160 | DT30: 160 | EA30: Sweep Plow | EN30: 0 | EO30: 0 | EP30: 13.17
D31: Tractor 2 | N31: 95 | AH31: 95 | AW31: 95 | BL31: 95 | CA31: 95 | CP31: 95 | DT31: 95 | EA31: M.B. Plow | EN31: 0 | EO31: 0 | EP31: 21.8
D32: Tractor 3 | EA32: Field Cultivator | EN32: 0 | EO32: 0 | EP32: 15.39
EA33: Cultipacker | EN33: 0 | EO33: 0
D34: Fuel | E34: 4.234 | F34: 1.021 | G34: 0.65 | H34: 0.822 | I34: =+SUM(E34:H34) -> 6.727 | J34: 4.234 | K34: 1.021 | L34: 0.65 | M34: 0.822 | N34: =+SUM(J34:M34) -> 6.727 | O34: 4.782 | P34: 0.869 | Q34: 0.88 | R34: 0.822 | S34: =+SUM(O34:R34) -> 7.353 | T34: 4.234 | U34: 1.021 | V34: 0.65 | W34: 0.822 | X34: =+SUM(T34:W34) -> 6.727 | Y34: 4.234 | Z34: 1.021 | AA34: 0.65 | AB34: 0.822 | AC34: =+SUM(Y34:AB34) -> 6.727 | AD34: 4.234 | AE34: 1.021 | AF34: 0.65 | AG34: 0.822 | AH34: =+SUM(AD34:AG34) -> 6.727 | AI34: 4.234 | AJ34: 1.021 | AK34: 0.65 | AL34: 0.579 | AM34: =+SUM(AI34:AL34) -> 6.484 | AN34: 4.234 | AO34: 1.021 | AP34: 0.65 | AQ34: 0.579 | AR34: =+SUM(AN34:AQ34) -> 6.484 | AS34: 4.234 | AT34: 1.021 | AU34: 0.65 | AV34: 0.822 | AW34: =+SUM(AS34:AV34) -> 6.727 | AX34: 4.771 | AY34: 1.021 | AZ34: 0.65 | BA34: 0.579 | BB34: =+SUM(AX34:BA34) -> 7.021 | BC34: 4.771 | BD34: 1.021 | BE34: 0.65 | BF34: 0.579 | BG34: =+SUM(BC34:BF34) -> 7.021 | BH34: 4.771 | BI34: 1.021 | BJ34: 0.65 | BK34: 0.822 | BL34: =+SUM(BH34:BK34) -> 7.264 | BM34: 4.234 | BN34: 1.021 | BO34: 0.65 | BP34: 0.822 | BQ34: =+SUM(BM34:BP34) -> 6.727 | BR34: 4.234 | BS34: 1.021 | BT34: 0.65 | BU34: 0.822 | BV34: =+SUM(BR34:BU34) -> 6.727 | BW34: 4.234 | BX34: 1.021 | BY34: 0.65 | BZ34: 0.822 | CA34: =+SUM(BW34:BZ34) -> 6.727 | CB34: 5.417 | CC34: 1.021 | CD34: 0.65 | CE34: 0.579 | CF34: =+SUM(CB34:CE34) -> 7.667 | CG34: 5.417 | CH34: 1.021 | CI34: 0.65 | CJ34: 0.579 | CK34: =+SUM(CG34:CJ34) -> 7.667 | CL34: 5.417 | CM34: 1.021 | CN34: 0.65 | CO34: 0.822 | CP34: =+SUM(CL34:CO34) -> 7.91 | CQ34: 5.417 | CR34: 1.021 | CS34: 0.326 | CT34: 0.822 | CU34: =+SUM(CQ34:CT34) -> 7.586 | CV34: 5.417 | CW34: 1.021 | CX34: 0.326 | CY34: 0.822 | CZ34: =+SUM(CV34:CY34) -> 7.586 | DA34: 5.417 | DB34: 1.021 | DC34: 0.326 | DD34: 0.579 | DE34: =+SUM(DA34:DD34) -> 7.343 | DF34: 5.417 | DG34: 1.021 | DH34: 0.326 | DI34: 0.822 | DJ34: =+SUM(DF34:DI34) -> 7.586 | DK34: 5.417 | DL34: 1.021 | DM34: 0.326 | DN34: 0.822 | DO34: =+SUM(DK34:DN34) -> 7.586 | DP34: 5.417 | DQ34: 1.021 | DR34: 0.326 | DS34: 0.822 | DT34: =+SUM(DP34:DS34) -> 7.586 | EA34: Tandem Disk | EN34: 0 | EO34: 0 | EP34: 12.27
D35: Lube | E35: 0.635 | F35: 0.153 | G35: 0.1 | H35: 0.123 | I35: 1.011 | J35: 0.635 | K35: 0.153 | L35: 0.1 | M35: 0.123 | N35: 1.011 | O35: 0.717 | P35: 0.13 | Q35: 0.13 | R35: 0.123 | S35: 1.1 | T35: 0.635 | U35: 0.153 | V35: 0.1 | W35: 0.123 | X35: 1.011 | Y35: 0.635 | Z35: 0.153 | AA35: 0.1 | AB35: 0.123 | AC35: 1.011 | AD35: 0.635 | AE35: 0.153 | AF35: 0.1 | AG35: 0.123 | AH35: 1.011 | AI35: 0.635 | AJ35: 0.153 | AK35: 0.1 | AL35: 0.087 | AM35: 0.975 | AN35: 0.635 | AO35: 0.153 | AP35: 0.1 | AQ35: 0.087 | AR35: 0.975 | AS35: 0.635 | AT35: 0.153 | AU35: 0.1 | AV35: 0.123 | AW35: 1.011 | AX35: 0.716 | AY35: 0.153 | AZ35: 0.1 | BA35: 0.087 | BB35: 1.056 | BC35: 0.716 | BD35: 0.153 | BE35: 0.1 | BF35: 0.087 | BG35: 1.056 | BH35: 0.716 | BI35: 0.153 | BJ35: 0.1 | BK35: 0.123 | BL35: 1.092 | BM35: 0.635 | BN35: 0.153 | BO35: 0.1 | BP35: 0.123 | BQ35: 1.011 | BR35: 0.635 | BS35: 0.153 | BT35: 0.1 | BU35: 0.123 | BV35: 1.011 | BW35: 0.635 | BX35: 0.153 | BY35: 0.1 | BZ35: 0.123 | CA35: 1.011 | CB35: 0.813 | CC35: 0.153 | CD35: 0.1 | CE35: 0.087 | CF35: 1.153 | CG35: 0.813 | CH35: 0.153 | CI35: 0.1 | CJ35: 0.087 | CK35: 1.153 | CL35: 0.813 | CM35: 0.153 | CN35: 0.1 | CO35: 0.123 | CP35: 1.189 | CQ35: 0.813 | CR35: 0.153 | CS35: 0.049 | CT35: 0.123 | CU35: 1.138 | CV35: 0.813 | CW35: 0.153 | CX35: 0.049 | CY35: 0.123 | CZ35: 1.138 | DA35: 0.813 | DB35: 0.153 | DC35: 0.049 | DD35: 0.087 | DE35: 1.102 | DF35: 0.813 | DG35: 0.153 | DH35: 0.049 | DI35: 0.123 | DJ35: 1.138 | DK35: 0.813 | DL35: 0.153 | DM35: 0.049 | DN35: 0.123 | DO35: 1.138 | DP35: 0.813 | DQ35: 0.153 | DR35: 0.049 | DS35: 0.123 | DT35: 1.138 | EA35: Springtooth | EF35: 1 | EN35: 1 | EO35: 0
D36: Repairs | E36: 7.501086325 | F36: 2.076459658 | G36: 2.353610875 | H36: 5.568687265 | I36: 17.49984412 | J36: 8.449899231 | K36: 2.252809701 | L36: 2.557009346 | M36: 5.789745769 | N36: 19.04946405 | O36: 13.54914765 | P36: 3.502162821 | Q36: 3.065505523 | R36: 6.614368504 | S36: 26.7311845 | T36: 7.15583765 | U36: 1.992010342 | V36: 2.295497026 | W36: 5.519011197 | X36: 16.96235621 | Y36: 7.515989145 | Z36: 2.061556838 | AA36: 2.368139337 | AB36: 5.563719658 | AC36: 17.50940498 | AD36: 9.431001581 | AE36: 2.424192137 | AF36: 2.803993203 | AG36: 6.020739487 | AH36: 20.67992641 | AI36: 7.15583765 | AJ36: 1.987042735 | AK36: 2.295497026 | AL36: 4.222465812 | AM36: 15.66084322 | AN36: 7.908430085 | AO36: 2.096330085 | AP36: 2.45531011 | AQ36: 4.495684188 | AR36: 16.95575447 | AS36: 10.06685526 | AT36: 2.526028077 | AU36: 2.789464741 | AV36: 6.323763504 | AW36: 21.70611158 | AX36: 9.135428974 | AY36: 1.989526538 | AZ36: 2.295497026 | BA36: 4.222465812 | BB36: 17.64291835 | BC36: 9.897956624 | BD36: 2.103781496 | BE36: 2.426253186 | BF36: 4.354107393 | BG36: 18.7820987 | BH36: 13.11696585 | BI36: 2.876244359 | BJ36: 2.774936279 | BK36: 6.326247308 | BL36: 25.0943938 | BM36: 7.041582692 | BN36: 1.964688504 | BO36: 2.208326253 | BP36: 5.506592179 | BQ36: 16.72118963 | BR36: 7.35950953 | BS36: 2.019332179 | BT36: 2.324553951 | BU36: 5.538881624 | BV36: 17.24227728 | BW36: 8.785212692 | BX36: 2.225487863 | BY36: 2.644180119 | BZ36: 5.881646496 | CA36: 19.53652717 | CB36: 11.54471829 | CC36: 1.964688504 | CD36: 2.280968564 | CE36: 4.212530598 | CF36: 20.00290596 | CG36: 11.79558244 | CH36: 1.974623718 | CI36: 2.324553951 | CJ36: 4.244820043 | CK36: 20.33958015 | CL36: 15.12139521 | CM36: 2.280131538 | CN36: 2.58606627 | CO36: 6.102705 | CP36: 26.09029802 | CQ36: 11.54471829 | CR36: 1.967172308 | CS36: 1.132614359 | CT36: 5.509075983 | CU36: 20.15358094 | CV36: 11.56707252 | CW36: 1.967172308 | CX36: 1.140065769 | CY36: 5.509075983 | CZ36: 20.18338658 | DA36: 12.66242983 | DB36: 2.006913162 | DC36: 1.140065769 | DD36: 4.513070812 | DE36: 20.32247957 | DF36: 11.54223449 | DG36: 1.967172308 | DH36: 1.130130556 | DI36: 5.509075983 | DJ36: 20.14861333 | DK36: 11.68132748 | DL36: 1.982075128 | DM36: 1.147517179 | DN36: 5.538881624 | DO36: 20.34980141 | DP36: 13.85217167 | DQ36: 2.168360385 | DR36: 1.241901709 | DS36: 5.814583803 | DT36: 23.07701756 | EA36: S. Harrow | EN36: 0 | EO36: 0 | EP36: 7.8
D37: Depreciation | E37: 74.34520393 | F37: 15.16610368 | G37: 11.18691589 | H37: 88.19489179 | I37: 188.8931153 | J37: 27.83598491 | K37: 6.423115641 | L37: 3.544944775 | M37: 36.14430735 | N37: 73.94835268 | O37: 11.00573295 | P37: 2.391902692 | Q37: 2.25191164 | R37: 10.3177194 | S37: 25.96726668 | T37: 157.8059664 | U37: 40.74927889 | V37: 23.46346644 | W37: 112.0170504 | X37: 334.0357621 | Y37: 73.04369094 | Z37: 16.79547872 | AA37: 9.385386576 | AB37: 88.92016239 | AC37: 188.1447186 | AD37: 18.39008051 | AE37: 4.095791838 | AF37: 1.961342396 | AG37: 21.68112004 | AH37: 46.12833479 | AI37: 153.009742 | AJ37: 45.57530893 | AK37: 21.05174172 | AL37: 39.97929983 | AM37: 259.6160925 | AN37: 39.53469902 | AO37: 13.13683628 | AP37: 5.3028887 | AQ37: 12.84374748 | AR37: 70.81817148 | AS37: 11.67635987 | AT37: 3.365553632 | AU37: 1.961342396 | AV37: 13.73791671 | AW37: 30.74117261 | AX37: 175.0758516 | AY37: 41.4124544 | AZ37: 21.05174172 | BA37: 39.97929983 | BB37: 277.5193475 | BC37: 58.14832184 | BD37: 12.51091782 | BE37: 8.092353441 | BF37: 21.30606573 | BG37: 100.0576588 | BH37: 14.18251752 | BI37: 3.608966368 | BJ37: 2.077570093 | BK37: 14.55260423 | BL37: 34.42165821 | BM37: 292.3014377 | BN37: 88.53517286 | BO37: 32.8924384 | BP37: 137.7815432 | BQ37: 551.5105922 | BR37: 82.70320244 | BS37: 25.91600487 | BT37: 15.47281223 | BU37: 102.2234135 | BV37: 226.315433 | BW37: 20.80433744 | BX37: 7.237803162 | BY37: 2.949277825 | BZ37: 26.55185855 | CA37: 57.54327697 | CB37: 393.2953685 | CC37: 86.06875607 | CD37: 33.44451997 | CE37: 45.81872167 | CF37: 558.6273662 | CG37: 226.7265437 | CH37: 63.14325051 | CI37: 17.79736619 | CJ37: 34.42799919 | CK37: 342.0951596 | CL37: 25.87874782 | CM37: 7.610373675 | CN37: 3.210790144 | CO37: 17.9429959 | CP37: 54.64290754 | CQ37: 369.1925402 | CR37: 78.64466765 | CS37: 43.35975628 | CT37: 129.8085343 | CU37: 621.0054984 | CV37: 352.3722234 | CW37: 78.64466765 | CX37: 20.69008248 | CY37: 129.8085343 | CZ37: 581.5155078 | DA37: 93.61455085 | DB37: 38.23070222 | DC37: 20.69008248 | DD37: 13.8049794 | DE37: 166.340315 | DF37: 373.0647897 | DG37: 78.64466765 | DH37: 49.28114363 | DI37: 129.8085343 | DJ37: 630.7991353 | DK37: 230.7478214 | DL37: 50.22747274 | DM37: 13.98878085 | DN37: 93.62200226 | DO37: 388.5860773 | DP37: 38.45176073 | DQ37: 13.06232218 | DR37: 2.379483675 | DS37: 33.28793342 | DT37: 87.1815 | EA37: Drill | EN37: 0 | EO37: 0 | EP37: 12.55
